Workbook

Sheet 16 foot
A1: Sixteen foot
A2: LOA | B2: Height | C2: Draft
A3: 5 | B3: 0.7 | C3: 0.2
A4: ANALYSIS. no.of sections (excl. zero) | B4: spacing of lines | C4: no. of heights | D4: spacing of lines | E4: plot scale (0.1mm units per m)
A5: 80 | B5: 4 | C5: 80 | D5: 16 | E5: 300
A6: FRONT LONG CURVE. Length | B6: no of points.
A7: 0.5 | B7: 4
A8: Distance from bottom of curve | B8: height
A9: 0 | B9: 0
A10: 0.1 | B10: 0
A11: 0.48 | B11: 0.6
A12: 0.5 | B12: 0.7
A13: BACK LONG CURVE. Length | B13: no of points.
A14: 1.2 | B14: 7
A15: Distance from bottom of curve | B15: height
A16: 0 | B16: 0
A17: 0.1 | B17: 0
A18: 0.2 | B18: 0.055
A19: 0.5 | B19: 0.3
A20: 0.7 | B20: 0.405
A21: 1.15 | B21: 0.62
A22: 1.2 | B22: 0.65
A23: SHEER CURVE. Number of points.
A24: 4
A25: Distance from front | B25: distance below max height
A26: 0 | B26: 0
A27: 2 | B27: 0.15
A28: 4 | B28: 0.02
A29: 5 | B29: 0
A30: CROSS SECTIONS | B30: number of.
A31: 5
A32: Distance from front | B32: no. of points
A33: 1.5 | B33: 5
A34: Offset | B34: height
A35: 0 | B35: 0
A36: 0.1 | B36: 0.01
A37: 0.55 | B37: 0.15
A38: 0.7 | B38: 0.6
A39: 0.7 | B39: 0.7
A40: Distance from front | B40: no. of points
A41: 2.5 | B41: 5
A42: Offset | B42: height
A43: 0 | B43: 0
A44: 0.1 | B44: 0.01
A45: 0.55 | B45: 0.15
A46: 0.7 | B46: 0.6
A47: 0.7 | B47: 0.7
A48: Distance from front | B48: no. of points
A49: 4 | B49: 5
A50: Offset | B50: height
A51: 0 | B51: 0.055
A52: 0.027 | B52: 0.098
A53: 0.063 | B53: 0.154
A54: 0.65 | B54: 0.68
A55: 0.654 | B55: 0.7
A56: Distance from front | B56: no. of points
A57: 4.5 | B57: 5
A58: Offset | B58: height
A59: 0 | B59: 0.405
A60: 0.103 | B60: 0.462
A61: 0.207 | B61: 0.518
A62: 0.625 | B62: 0.68
A63: 0.63 | B63: 0.7
A64: Distance from front | B64: no. of points
A65: 5 | B65: 4
A66: Offset | B66: height
A67: 0 | B67: 0.65
A68: 0.4 | B68: 0.66
A69: 0.59 | B69: 0.68
A70: 0.6 | B70: 0.7
A71: END OF HULL DATA
A72: Number of vertical sections | B72: spacing m
A73: 5 | B73: 0.13
A74: No. of diagonal sections
A75: 4
A76: Height of intercepts at centre line and 1m offset
A77: 0.7 | B77: 0.3
A78: 0.6 | B78: -0.1
A79: 0.4 | B79: -0.4
A80: 0.2 | B80: -0.7
A81: Keels: intercept at centre line | B81: offset at base | C81: thickness | D81: front | E81: back.
A82: 0.7 | B82: 0.5 | C82: 0.05 | D82: 1.5 | E82: 3
A83: Number of bulkheads
A84: 6
A85: Positions
A86: 1.5
A87: 2.5
A88: 4
A89: 4.5
A90: 4.75
A91: 5
A92: Plank thickness | B92: no. of planks | C92: min radius m
A93: 0.015 | B93: 75 | C93: 1.5
A94: Inclination angles
A95: 5 | B95: 10 | C95: 15

Sheet 65 foot
A1: Sixty five foot
A2: LOA | B2: Height | C2: Draft
A3: 20 | B3: 1.8 | C3: 0.75
A4: ANALYSIS. no.of sections (excl. zero) | B4: spacing of lines | C4: no. of heights | D4: spacing of lines | E4: plot scale (0.1mm units per m)
A5: 80 | B5: 4 | C5: 60 | D5: 10 | E5: 100
A6: FRONT LONG CURVE. Length | B6: no of points.
A7: 2 | B7: 4
A8: Distance from bottom of curve | B8: height
A9: 0 | B9: 0
A10: 0.1 | B10: 0
A11: 1.25 | B11: 1.4
A12: 2 | B12: 1.8
A13: BACK LONG CURVE. Length | B13: no of points.
A14: 3 | B14: 4
A15: Distance from bottom of curve | B15: height
A16: 0 | B16: 0
A17: 0.1 | B17: 0
A18: 2.4 | B18: 0.5
A19: 3 | B19: 0.57
A20: SHEER CURVE. Number of points.
A21: 3
A22: Distance from front | B22: distance below max height
A23: 0 | B23: 0
A24: 15 | B24: 0.2
A25: 20 | B25: 0
A26: CROSS SECTIONS | B26: number of.
A27: 4
A28: Distance from front | B28: no. of points
A29: 3 | B29: 4
A30: Offset | B30: height
A31: 0 | B31: 0
A32: 0.295 | B32: 0.3
A33: 0.53 | B33: 0.6
A34: 1.2 | B34: 1.8
A35: Distance from front | B35: no. of points
A36: 8 | B36: 4
A37: Offset | B37: height
A38: 0 | B38: 0
A39: 0.2 | B39: 0.04
A40: 1.8 | B40: 1.6
A41: 1.8 | B41: 1.8
A42: Distance from front | B42: no. of points
A43: 11 | B43: 4
A44: Offset | B44: height
A45: 0 | B45: 0
A46: 0.2 | B46: 0.04
A47: 1.8 | B47: 1.6
A48: 1.8 | B48: 1.8
A49: Distance from front | B49: no. of points
A50: 20 | B50: 4
A51: Offset | B51: height
A52: 0 | B52: 0.57
A53: 0.1 | B53: 0.67
A54: 1.1 | B54: 1.2
A55: 1.2 | B55: 1.8
A56: END OF HULL DATA
A57: Number of vertical sections | B57: spacing m
A58: 5 | B58: 0.3
A59: No. of diagonal sections
A60: 4
A61: Height of intercepts at centre line and 1m offset
A62: 1.7 | B62: 1.3
A63: 1.4 | B63: 0.8
A64: 0.9 | B64: 0.2
A65: 0.3 | B65: -0.6
A66: Keels: intercept at centre line | B66: offset at base | C66: thickness | D66: front | E66: back.
A67: 1.8 | B67: 1.5 | C67: 0.075 | D67: 6 | E67: 14
A68: Number of bulkheads
A69: 6
A70: Positions
A71: 3
A72: 9
A73: 10
A74: 11
A75: 18
A76: 20
A77: Plank thickness | B77: no. of planks | C77: min radius m
A78: 0.03 | B78: 95 | C78: 4.5
A79: Inclination angles
A80: 5 | B80: 10 | C80: 15

Sheet Dinghy
A1: Dinghy
A2: LOA | B2: Height | C2: Draft
A3: 2.4 | B3: 0.54 | C3: 0.15
A4: ANALYSIS. no.of sections (excl. zero) | B4: spacing of lines | C4: no. of heights | D4: spacing of lines | E4: plot scale (0.1mm units per m)
A5: 80 | B5: 4 | C5: 54 | D5: 9 | E5: 400
A6: FRONT LONG CURVE. Length | B6: no of points.
A7: 1 | B7: 3
A8: Distance from bottom of curve | B8: height
A9: 0 | B9: 0
A10: 0.1 | B10: 0
A11: 1 | B11: 0.3
A12: BACK LONG CURVE. Length | B12: no of points.
A13: 1 | B13: 3
A14: Distance from bottom of curve | B14: height
A15: 0 | B15: 0
A16: 0.1 | B16: 0
A17: 1 | B17: 0.1
A18: SHEER CURVE. Number of points.
A19: 3
A20: Distance from front | B20: distance below max height
A21: 0 | B21: 0
A22: 1 | B22: 0.1
A23: 2.4 | B23: 0
A24: CROSS SECTIONS | B24: number of.
A25: 3
A26: Distance from front | B26: no. of points
A27: 0 | B27: 3
A28: Offset | B28: height
A29: 0 | B29: 0.3
A30: 0.2 | B30: 0.5
A31: 0.2 | B31: 0.54
A32: Distance from front | B32: no. of points
A33: 1.2 | B33: 4
A34: Offset | B34: height
A35: 0 | B35: 0
A36: 0.25 | B36: 0.05
A37: 0.65 | B37: 0.5
A38: 0.65 | B38: 0.54
A39: Distance from front | B39: no. of points
A40: 2.4 | B40: 4
A41: Offset | B41: height
A42: 0 | B42: 0.1
A43: 0.15 | B43: 0.14
A44: 0.55 | B44: 0.5
A45: 0.55 | B45: 0.54
A46: END OF HULL DATA
A47: Number of vertical sections | B47: spacing m
A48: 6 | B48: 0.1
A49: No. of diagonal sections
A50: 4
A51: Height of intercepts at centre line and 1m offset
A52: 0.55 | B52: 0.2
A53: 0.5 | B53: -0.1
A54: 0.3 | B54: -0.5
A55: 0.1 | B55: -1
A56: Keels: intercept at centre line | B56: offset at base | C56: thickness | D56: front | E56: back.
A57: 0.55 | B57: 0.4 | C57: 0.05 | D57: 1 | E57: 2
A58: Number of bulkheads
A59: 6
A60: Positions
A61: 0.01
A62: 0.3
A63: 1.2
A64: 1.29
A65: 2.1
A66: 2.4
A67: Plank thickness | B67: no. of planks | C67: min radius m
A68: 0.01 | B68: 92 | C68: 1.5
A69: Inclination angles
A70: 5 | B70: 10 | C70: 15

Sheet Canoe
A1: Canoe
A2: LOA | B2: Height | C2: Draft
A3: 2.8 | B3: 0.4 | C3: 0.05
A4: ANALYSIS. no.of sections (excl. zero) | B4: spacing of lines | C4: no. of heights | D4: spacing of lines | E4: plot scale (0.1mm units per m)
A5: 80 | B5: 4 | C5: 80 | D5: 10 | E5: 600
A6: FRONT LONG CURVE. Length | B6: no of points.
A7: 0.4 | B7: 6
A8: Distance from bottom of curve | B8: height
A9: 0 | B9: 0
A10: 0.15 | B10: 0.003
A11: 0.2 | B11: 0.008
A12: 0.38 | B12: 0.1
A13: 0.415 | B13: 0.35
A14: 0.4 | B14: 0.4
A15: BACK LONG CURVE. Length | B15: no of points.
A16: 0.4 | B16: 6
A17: Distance from bottom of curve | B17: height
A18: 0 | B18: 0
A19: 0.15 | B19: 0.003
A20: 0.2 | B20: 0.008
A21: 0.38 | B21: 0.1
A22: 0.415 | B22: 0.35
A23: 0.4 | B23: 0.4
A24: SHEER CURVE. Number of points.
A25: 3
A26: Distance from front | B26: distance below max height
A27: 0 | B27: 0
A28: 1.4 | B28: 0.1
A29: 2.8 | B29: 0
A30: CROSS SECTIONS | B30: number of.
A31: 1
A32: Distance from front | B32: no. of points
A33: 1.4 | B33: 7
A34: Offset | B34: height
A35: 0 | B35: 0
A36: 0.15 | B36: 0.003
A37: 0.2 | B37: 0.008
A38: 0.36 | B38: 0.1
A39: 0.375 | B39: 0.2
A40: 0.36 | B40: 0.3
A41: 0.35 | B41: 0.4
A42: END OF HULL DATA
A43: Number of vertical sections | B43: spacing m
A44: 4 | B44: 0.08
A45: No. of diagonal sections
A46: 4
A47: Height of intercepts at centre line and 1m offset
A48: 0.4 | B48: 0
A49: 0.3 | B49: -0.3
A50: 0.25 | B50: -0.6
A51: 0.2 | B51: -2
A52: Keels: intercept at centre line | B52: offset at base | C52: thickness | D52: front | E52: back.
A53: 0.4 | B53: 0.01 | C53: 0.01 | D53: 1.3 | E53: 1.5
A54: Number of bulkheads
A55: 6
A56: Positions
A57: 0.2
A58: 0.4
A59: 0.65
A60: 0.9
A61: 1.15
A62: 1.4
A63: Plank thickness | B63: no. of planks | C63: min radius m
A64: 0.018 | B64: 40 | C64: 2
A65: Inclination angles
A66: 5 | B66: 10 | C66: 15

Sheet Bronty
A1: Bronty
A2: LOA | B2: Height | C2: Draft
A3: 9.7 | B3: 1.26 | C3: 0.6
A4: ANALYSIS. no.of sections (excl. zero) | B4: spacing of lines | C4: no. of heights | D4: spacing of lines | E4: plot scale (0.1mm units per m)
A5: 320 | B5: 16 | C5: 63 | D5: 9 | E5: 1
A6: FRONT LONG CURVE. Length | B6: no of points.
A7: 1.5 | B7: 4
A8: Distance from bottom of curve | B8: height
A9: 0 | B9: 0
A10: 0.1 | B10: 0
A11: 1.47 | B11: 1.15
A12: 1.5 | B12: 1.26
A13: BACK LONG CURVE. Length | B13: no of points.
A14: 2 | B14: 4
A15: Distance from bottom of curve | B15: height
A16: 0 | B16: 0
A17: 0.1 | B17: 0
A18: 1.4 | B18: 0.5
A19: 2 | B19: 0.55
A20: SHEER CURVE. Number of points.
A21: 4
A22: Distance from front | B22: distance below max height
A23: 0 | B23: 0
A24: 4.7 | B24: 0.1
A25: 5.5 | B25: 0.1
A26: 9.7 | B26: 0.01
A27: CROSS SECTIONS | B27: number of.
A28: 4
A29: Distance from front | B29: no. of points
A30: 1.5 | B30: 4
A31: Offset | B31: height
A32: 0 | B32: 0
A33: 0.13 | B33: 0.1
A34: 0.6 | B34: 1.2
A35: 0.6 | B35: 1.26
A36: Distance from front | B36: no. of points
A37: 4 | B37: 4
A38: Offset | B38: height
A39: 0 | B39: 0
A40: 0.3 | B40: 0.1
A41: 0.96 | B41: 1.2
A42: 0.96 | B42: 1.26
A43: Distance from front | B43: no. of points
A44: 6 | B44: 4
A45: Offset | B45: height
A46: 0 | B46: 0
A47: 0.3 | B47: 0.1
A48: 0.96 | B48: 1.2
A49: 0.96 | B49: 1.26
A50: Distance from front | B50: no. of points
A51: 9.7 | B51: 4
A52: Offset | B52: height
A53: 0 | B53: 0.57
A54: 0.1 | B54: 0.6
A55: 0.6 | B55: 1.2
A56: 0.6 | B56: 1.26
A57: END OF HULL DATA
A58: Number of vertical sections | B58: spacing m
A59: 4 | B59: 0.2
A60: No. of diagonal sections
A61: 4
A62: Height of intercepts at centre line and 1m offset
A63: 1.1 | B63: 0.7
A64: 0.9 | B64: 0.4
A65: 0.6 | B65: -0.1
A66: 0.3 | B66: -0.6
A67: Keels: intercept at centre line | B67: offset at base | C67: thickness | D67: front | E67: back.
A68: 1.2 | B68: 0.7 | C68: 0.075 | D68: 3 | E68: 6.8
A69: Number of bulkheads
A70: 11
A71: Positions
A72: 1
A73: 2
A74: 3
A75: 3.4
A76: 4
A77: 5
A78: 6
A79: 7
A80: 8
A81: 9
A82: 9.7
A83: Plank thickness | B83: no. of planks | C83: min radius m
A84: 0.022 | B84: 80 | C84: 3
A85: Inclination angles
A86: 5 | B86: 10 | C86: 15

Sheet Model 1
A1: Model 1
A2: LOA | B2: Height | C2: Draft
A3: 6 | B3: 1.5 | C3: 0.32
A4: ANALYSIS. no.of sections (excl. zero) | B4: spacing of lines | C4: no. of heights | D4: spacing of lines | E4: plot scale (0.1mm units per m)
A5: 60 | B5: 5 | C5: 150 | D5: 30 | E5: 300
A6: FRONT LONG CURVE. Length | B6: no of points.
A7: 1.5 | B7: 5
A8: Distance from bottom of curve | B8: height
A9: 0 | B9: 0
A10: 0.1 | B10: 0
A11: 1.05 | B11: 0.1
A12: 1.49 | B12: 1.4
A13: 1.5 | B13: 1.5
A14: BACK LONG CURVE. Length | B14: no of points.
A15: 1.5 | B15: 4
A16: Distance from bottom of curve | B16: height
A17: 0 | B17: 0
A18: 0.1 | B18: 0
A19: 1 | B19: 0.2
A20: 1.5 | B20: 0.25
A21: SHEER CURVE. Number of points.
A22: 3
A23: Distance from front | B23: distance below max height
A24: 0 | B24: 0
A25: 3 | B25: 0.1
A26: 6 | B26: 0
A27: CROSS SECTIONS number of
A28: 4
A29: Distance from front | B29: no. of points
A30: 1.2 | B30: 5
A31: Offset | B31: height
A32: 0 | B32: 0
A33: 0.1 | B33: 0.05
A34: 0.45 | B34: 0.3
A35: 0.6 | B35: 1.4
A36: 0.6 | B36: 1.5
A37: Distance from front | B37: no. of points
A38: 3 | B38: 5
A39: Offset | B39: height
A40: 0 | B40: 0
A41: 0.1 | B41: 0.015
A42: 0.8 | B42: 0.3
A43: 0.9 | B43: 1.4
A44: 0.9 | B44: 1.5
A45: Distance from front | B45: no. of points
A46: 4.5 | B46: 5
A47: Offset | B47: height
A48: 0 | B48: 0
A49: 0.1 | B49: 0.015
A50: 0.7 | B50: 0.3
A51: 0.9 | B51: 1.4
A52: 0.9 | B52: 1.5
A53: Distance from front | B53: no. of points
A54: 6 | B54: 5
A55: Offset | B55: height
A56: 0 | B56: 0.25
A57: 0.12 | B57: 0.27
A58: 0.6 | B58: 0.45
A59: 0.8 | B59: 1.4
A60: 0.8 | B60: 1.5
A61: END OF HULL DATA
A62: Number of vertical sections | B62: spacing m
A63: 5 | B63: 0.17
A64: No. of diagonal sections
A65: 4
A66: Height of intercepts at centre line and 1m offset
A67: 0.7 | B67: 0.3
A68: 0.6 | B68: -0.1
A69: 0.4 | B69: -0.4
A70: 0.2 | B70: -0.7
A71: Keels: intercept at centre line | B71: offset at base | C71: thickness | D71: front | E71: back.
A72: 1 | B72: 0.7 | C72: 0.05 | D72: 2.5 | E72: 4.5
A73: Number of bulkheads
A74: 6
A75: Positions
A76: 1.5
A77: 2.5
A78: 3
A79: 3.5
A80: 4
A81: 6
A82: Plank thickness | B82: no. of planks | C82: min radius m
A83: 0.02 | B83: 95 | C83: 2
A84: Inclination angles
A85: 5 | B85: 10 | C85: 15

Sheet Burr (NSB)
A1: Burr
A2: LOA | B2: Height | C2: Draft
A3: 6 | B3: 1.5 | C3: 0.25
A4: ANALYSIS. no.of sections (excl. zero) | B4: spacing of lines | C4: no. of heights | D4: spacing of lines | E4: plot scale (0.1mm units per m)
A5: 300 | B5: 25 | C5: 75 | D5: 15 | E5: 300
A6: FRONT LONG CURVE. Length | B6: no of points.
A7: 1.5 | B7: 5
A8: Distance from bottom of curve | B8: height
A9: 0 | B9: 0
A10: 0.1 | B10: 0
A11: 1.05 | B11: 0.1
A12: 1.49 | B12: 1.4
A13: 1.5 | B13: 1.5
A14: BACK LONG CURVE. Length | B14: no of points.
A15: 4 | B15: 4
A16: Distance from bottom of curve | B16: height
A17: 0 | B17: 0
A18: 0.1 | B18: 0
A19: 1 | B19: 0.03
A20: 4 | B20: 0.25
A21: SHEER CURVE. Number of points.
A22: 3
A23: Distance from front | B23: distance below max height
A24: 0 | B24: 0
A25: 3 | B25: 0.15
A26: 6 | B26: 0.1
A27: CROSS SECTIONS number of
A28: 3
A29: Distance from front | B29: no. of points
A30: 1.4 | B30: 6
A31: Offset | B31: height
A32: 0 | B32: 0
A33: 0.2 | B33: 0.05
A34: 0.55 | B34: 0.25
A35: 0.65 | B35: 0.4
A36: 0.7 | B36: 1.4
A37: 0.7 | B37: 1.5
A38: Distance from front | B38: no. of points
A39: 3 | B39: 6
A40: Offset | B40: height
A41: 0 | B41: 0.03
A42: 0.15 | B42: 0.045
A43: 0.85 | B43: 0.25
A44: 0.93 | B44: 0.4
A45: 0.9 | B45: 1.4
A46: 0.9 | B46: 1.5
A47: Distance from front | B47: no. of points
A48: 6 | B48: 5
A49: Offset | B49: height
A50: 0 | B50: 0.25
A51: 0.12 | B51: 0.27
A52: 0.6 | B52: 0.45
A53: 0.8 | B53: 1.4
A54: 0.8 | B54: 1.5
A55: END OF HULL DATA
A56: Number of vertical sections | B56: spacing m
A57: 5 | B57: 0.17
A58: No. of diagonal sections
A59: 4
A60: Height of intercepts at centre line and 1m offset
A61: 0.7 | B61: 0.3
A62: 0.6 | B62: -0.1
A63: 0.4 | B63: -0.4
A64: 0.2 | B64: -0.7
A65: Keels: intercept at centre line | B65: offset at base | C65: thickness | D65: front | E65: back.
A66: 1 | B66: 0.7 | C66: 0.05 | D66: 2.5 | E66: 4.5
A67: Number of bulkheads
A68: 8
A69: Positions
A70: 0.5
A71: 1.5
A72: 2.4
A73: 3
A74: 3.75
A75: 4.5
A76: 5.25
A77: 6
A78: Plank thickness | B78: no. of planks | C78: min radius m
A79: 0.018 | B79: 120 | C79: 2
A80: Inclination angles
A81: 5 | B81: 10 | C81: 15

Sheet Burr
A1: Burr
A2: LOA | B2: Height | C2: Draft
A3: 6 | B3: 1.5 | C3: 0.25
A4: ANALYSIS. no.of sections (excl. zero) | B4: spacing of lines | C4: no. of heights | D4: spacing of lines | E4: plot scale (0.1mm units per m)
A5: 300 | B5: 25 | C5: 75 | D5: 15 | E5: 300
A6: FRONT LONG CURVE. Length | B6: no of points.
A7: 1.5 | B7: 5
A8: Distance from bottom of curve | B8: height
A9: 0 | B9: 0
A10: 0.1 | B10: 0
A11: 1.05 | B11: 0.1
A12: 1.49 | B12: 1.4
A13: 1.5 | B13: 1.5
A14: BACK LONG CURVE. Length | B14: no of points.
A15: 4 | B15: 4
A16: Distance from bottom of curve | B16: height
A17: 0 | B17: 0
A18: 0.1 | B18: 0
A19: 1 | B19: 0.03
A20: 4 | B20: 0.25
A21: SHEER CURVE. Number of points.
A22: 9
A23: Distance from front | B23: distance below max height
A24: 0 | B24: 0
A25: 2.9 | B25: 0.1
A26: 2.98 | B26: 0.1
A27: 3 | B27: 0.11
A28: 3.001 | B28: 0.2
A29: 3.3 | B29: 0.375
A30: 3.5 | B30: 0.4
A31: 3.6 | B31: 0.4
A32: 6 | B32: 0.3
A33: CROSS SECTIONS number of
A34: 3
A35: Distance from front | B35: no. of points
A36: 1.4 | B36: 6
A37: Offset | B37: height
A38: 0 | B38: 0
A39: 0.2 | B39: 0.05
A40: 0.55 | B40: 0.25
A41: 0.65 | B41: 0.4
A42: 0.7 | B42: 1.4
A43: 0.7 | B43: 1.5
A44: Distance from front | B44: no. of points
A45: 3 | B45: 6
A46: Offset | B46: height
A47: 0 | B47: 0.03
A48: 0.15 | B48: 0.045
A49: 0.85 | B49: 0.25
A50: 0.93 | B50: 0.4
A51: 0.9 | B51: 1.4
A52: 0.9 | B52: 1.5
A53: Distance from front | B53: no. of points
A54: 6 | B54: 5
A55: Offset | B55: height
A56: 0 | B56: 0.25
A57: 0.12 | B57: 0.27
A58: 0.6 | B58: 0.45
A59: 0.8 | B59: 1.4
A60: 0.8 | B60: 1.5
A61: END OF HULL DATA
A62: Number of vertical sections | B62: spacing m
A63: 5 | B63: 0.17
A64: No. of diagonal sections
A65: 4
A66: Height of intercepts at centre line and 1m offset
A67: 0.7 | B67: 0.3
A68: 0.6 | B68: -0.1
A69: 0.4 | B69: -0.4
A70: 0.2 | B70: -0.7
A71: Keels: intercept at centre line | B71: offset at base | C71: thickness | D71: front | E71: back.
A72: 1 | B72: 0.7 | C72: 0.05 | D72: 2.5 | E72: 4.5
A73: Number of bulkheads
A74: 8
A75: Positions
A76: 0.5
A77: 1.5
A78: 2.4
A79: 3
A80: 3.75
A81: 4.5
A82: 5.25
A83: 6
A84: Plank thickness | B84: no. of planks | C84: min radius m
A85: 0.018 | B85: 120 | C85: 2
A86: Inclination angles
A87: 5 | B87: 10 | C87: 15

Sheet Old dinghy
A1: Old Dinghy
A2: LOA | B2: Height | C2: Draft
A3: 2.9 | B3: 0.65 | C3: 0.1
A4: ANALYSIS. no.of sections (excl. zero) | B4: spacing of lines | C4: no. of heights | D4: spacing of lines | E4: plot scale (0.1mm units per m) | CH4: 0.07836135477 | CI4: 0.01380250603 | CJ4: 0.2919975519 | CK4: 0.06640197337 | CL4: 0.4763717651 | CM4: 0.214176923 | CN4: 0.5706470609 | CO4: 0.3502735198 | CT4: -0.400000006 | CU4: 0 | CV4: -0.3551805066 | CW4: 0.1041314095 | CX4: 0.3551805066 | CZ4: 0 | DA4: 0.6499999762 | DB4: -0.601824522 | DC4: 0.4175850153 | DD4: -1.5 | DE4: 0.1000000015 | DF4: 0 | DG4: 0 | DH4: 0 | DI4: 0 | DJ4: 0 | DK4: 0 | DL4: 0 | DN4: 1 | DO4: -0.5499999523 | DP4: 0 | DQ4: 0 | DR4: -0.1450000107 | DS4: -0.03389166296 | DT4: -0.2900000215 | DU4: -0.06609276682 | DV4: -0.4350000024 | DW4: -0.09672581404 | DX4: -0.5800000429 | DY4: -0.1262616515 | DZ4: -0.7250000238 | EA4: -0.1551925838 | EB4: -0.8700000048 | EC4: -0.1812433749 | ED4: -1.014999986 | EE4: -0.2017626315 | EF4: -1.160000086 | EG4: -0.215240404 | EH4: -1.305000067 | EI4: -0.2233258784 | EJ4: -1.450000048 | EK4: -0.2284755111 | EL4: -1.595000029 | EM4: -0.2324149609 | EN4: -1.74000001 | EO4: -0.2345288098 | EP4: -1.88500011 | EQ4: -0.2351760715 | ER4: -2.029999971 | ES4: -0.2348847538 | ET4: -2.175000191 | EU4: -0.2341032028 | EV4: -2.320000172 | EW4: -0.2328498363 | EX4: -2.465000153 | EY4: -0.231046319 | EZ4: -2.610000134 | FA4: -0.2286143005 | FB4: -2.755000114 | FC4: -0.2254754007 | FD4: -2.900000095 | FE4: -0.221551314 | FJ4: -1 | FK4: -0.6499999762 | FL4: -0.1541868448 | FM4: -0.5416666269 | FN4: -0.04939264059 | FO4: -0.4333332777 | FP4: -0.02776539326 | FQ4: -0.3249999881 | FR4: -0.02107053995 | FS4: -0.2166666389 | FT4: -0.01083338261 | FU4: -0.1083333418 | GB4: 0.1000000015 | GC4: 0.6079013944 | GD4: -0.1000000015 | GE4: 0.4284486771 | GR4: 0 | GS4: 0 | GX4: 0 | GY4: 0 | GZ4: 0 | HA4: 0 | HB4: 0 | HC4: 0 | HD4: 0 | HH4: 0 | HI4: 0 | HJ4: -0.181250006 | HK4: 0.1000000015 | HL4: 0 | HM4: 0
A5: 80 | B5: 4 | C5: 54 | D5: 9 | E5: 400 | CH5: 0 | CI5: 0.1000000015 | CJ5: 0 | CK5: 0.3000000119 | CL5: 0 | CM5: 0.5 | CN5: 0 | CO5: 0.5500000119 | CT5: 0 | CU5: 0.5500000119 | CV5: -0.4202184089 | CW5: 0.0147042932 | CX5: 0.4202184089 | CZ5: 0 | DA5: 0.6499999762 | DB5: -0.604282856 | DC5: 0.4154711664 | DD5: 1.5 | DE5: 0.1000000015 | DF5: -0.03625000268 | DG5: -0.008635520935 | DH5: -0.008635520935 | DI5: -0.008635520935 | DJ5: -0.008635520935 | DK5: -0.008635520935 | DL5: -0.008635520935 | DN5: -3.900000095 | DO5: -0.5499999523 | DP5: 0 | DQ5: 0 | DR5: -0.1450000107 | DS5: -0.5416666269 | DT5: -0.2900000215 | DU5: -0.5898147821 | DV5: -0.4350000024 | DW5: -0.6018518209 | DX5: -0.5800000429 | DY5: -0.6259258986 | DZ5: -0.7250000238 | EA5: -0.6379629374 | EB5: -0.8700000048 | EC5: -0.6499999762 | ED5: -1.014999986 | EE5: -0.6499999762 | EF5: -1.160000086 | EG5: -0.6499999762 | EH5: -1.305000067 | EI5: -0.6499999762 | EJ5: -1.450000048 | EK5: -0.6499999762 | EL5: -1.595000029 | EM5: -0.6499999762 | EN5: -1.74000001 | EO5: -0.6499999762 | EP5: -1.88500011 | EQ5: -0.6499999762 | ER5: -2.029999971 | ES5: -0.6499999762 | ET5: -2.175000191 | EU5: -0.6499999762 | EV5: -2.320000172 | EW5: -0.6499999762 | EX5: -2.465000153 | EY5: -0.6499999762 | EZ5: -2.610000134 | FA5: -0.6499999762 | FB5: -2.755000114 | FC5: -0.6379629374 | FD5: -2.900000095 | FE5: -0.6379629374 | FJ5: -1.900000095 | FK5: -0.6499999762 | FL5: -2.900000095 | FM5: -0.5416666269 | FN5: -2.900000095 | FO5: -0.4333332777 | FP5: -2.900000095 | FQ5: -0.3249999881 | FR5: -2.900000095 | FS5: -0.2166666389 | FT5: -2.900000095 | FU5: -0.1083333418 | GB5: 0.1000000015 | GC5: 0.01335460506 | GD5: -0.1000000015 | GE5: 0.01335460506 | GR5: 0 | GS5: 0.6499999762 | GX5: -2.900000095 | GY5: 0 | GZ5: 0 | HA5: 0 | HB5: 0 | HC5: 0 | HD5: 0 | HH5: 0 | HI5: 0 | HJ5: -2.900000095 | HK5: 0.1000000015 | HL5: 0 | HM5: 0
A6: FRONT LONG CURVE. Length | B6: no of points. | CH6: -0.07836135477 | CI6: 0.01380250603 | CJ6: -0.2919975519 | CK6: 0.06640197337 | CL6: -0.4763717651 | CM6: 0.214176923 | CN6: -0.5706470609 | CO6: 0.3502735198 | CT6: 0.400000006 | CU6: 0 | CV6: -0.379781603 | CW6: -0.0147042932 | CX6: 0.379781603 | CZ6: 0.09354828298 | DA6: 0.6161082983 | DB6: -0.6010330319 | DC6: 0.4148238897 | DF6: -0.07250000536 | DG6: -0.0171661377 | DH6: -0.0171661377 | DI6: -0.0171661377 | DJ6: -0.0171661377 | DK6: -0.0171661377 | DL6: -0.0171661377 | GZ6: -0.03625000268 | HA6: -0.01882629053 | HB6: -0.01647879946 | HC6: -0.003377419493 | HD6: 0 | HL6: -0.03625000268 | HM6: -0.0283476015
A7: 1 | B7: 8 | CV7: -0.3147437006 | CW7: 0.07472282312 | CX7: 0.3147437006 | CZ7: 0.1818244457 | DA7: 0.583907187 | DB7: -0.5931338072 | DC7: 0.4151152372 | DF7: -0.1087500006 | DG7: -0.02558624744 | DH7: -0.02558624744 | DI7: -0.02558624744 | DJ7: -0.02558624744 | DK7: -0.02558624744 | DL7: -0.02558624744 | GZ7: -0.07250000536 | HA7: -0.04452550167 | HB7: -0.04386375639 | HC7: -0.02560859063 | HD7: 0 | HL7: -0.07250000536 | HM7: -0.0667069404
A8: Distance from bottom of curve | B8: height | CZ8: 0.2646758854 | DA8: 0.5532741547 | DB8: -0.5794928074 | DC8: 0.4158967733 | DF8: -0.1450000107 | DG8: -0.03389167786 | DH8: -0.03389167786 | DI8: -0.03389167786 | DJ8: -0.03389167786 | DK8: -0.03389167786 | DL8: -0.03389167786 | GB8: 0.200000003 | GC8: 0.5761129856 | GD8: -0.200000003 | GE8: 0.4284486771 | GZ8: -0.1087500006 | HA8: -0.06977221746 | HB8: -0.07025586193 | HC8: -0.04622522563 | HD8: 0 | HH8: -0.1450000107 | HI8: 0.09354828298 | HJ8: -0.3262500167 | HK8: 0.200000003 | HL8: -0.1087500006 | HM8: -0.1029803182
A9: 0 | B9: 0 | CZ9: 0.3417995572 | DA9: 0.5237383246 | DB9: -0.5593523383 | DC9: 0.4171501398 | DF9: -0.181250006 | DG9: -0.235199213 | DH9: -0.04209858179 | DI9: -0.04209858179 | DJ9: -0.04209858179 | DK9: -0.04209858179 | DL9: -0.04209858179 | GB9: 0.200000003 | GC9: 0.02168728784 | GD9: -0.200000003 | GE9: 0.02168728784 | GZ9: -0.1450000107 | HA9: -0.09452480077 | HB9: -0.09567222531 | HC9: -0.06538514476 | HD9: 0 | HH9: -0.1450000107 | HI9: -0.09452480077 | HJ9: -2.900000095 | HK9: 0.200000003 | HL9: -0.1450000107 | HM9: -0.137094004
A10: 0.5 | B10: 0.045 | CZ10: 0.413092941 | DA10: 0.4948073924 | DB10: -0.5327438712 | DC10: 0.4189536572 | DF10: -0.2175000012 | DG10: -0.3371297419 | DH10: -0.05019450188 | DI10: -0.05019450188 | DJ10: -0.05019450188 | DK10: -0.05019450188 | DL10: -0.05019450188 | GZ10: -0.181250006 | HA10: -0.1187129638 | HB10: -0.1203222714 | HC10: -0.0832483273 | HD10: -0.001802107442 | HL10: -0.181250006 | HM10: -0.1695536447
A11: 0.915 | B11: 0.15 | CZ11: 0.4746254086 | DA11: 0.4687566161 | DB11: -0.4897714555 | DC11: 0.4213856757 | DF11: -0.2537499964 | DG11: -0.3953176141 | DH11: -0.05819022655 | DI11: -0.05819022655 | DJ11: -0.05819022655 | DK11: -0.05819022655 | DL11: -0.05819022655 | GZ11: -0.2175000012 | HA11: -0.1423513718 | HB11: -0.1441061648 | HC11: -0.09996359058 | HD11: -0.00849065242 | HL11: -0.2175000012 | HM11: -0.1992630278
A12: 0.96 | B12: 0.25 | CZ12: 0.5231310129 | DA12: 0.4482373595 | DB12: -0.4471683502 | DC12: 0.4245245755 | DF12: -0.2900000215 | DG12: -0.4348919094 | DH12: -0.06609278917 | DI12: -0.06609278917 | DJ12: -0.06609278917 | DK12: -0.06609278917 | DL12: -0.06609278917 | GB12: 0.3000000119 | GC12: 0.5384802222 | GD12: -0.3000000119 | GE12: 0.4284486771 | GZ12: -0.2537499964 | HA12: -0.1653694246 | HB12: -0.1669031784 | HC12: -0.1156127934 | HD12: -0.01458166315 | HH12: -0.2900000215 | HI12: 0.1818244457 | HJ12: -0.5075000525 | HK12: 0.3000000119 | HL12: -0.2537499964 | HM12: -0.2263353878
A13: 0.975 | B13: 0.35 | CZ13: 0.5563161969 | DA13: 0.4347595572 | DB13: -0.3978988826 | DC13: 0.4284486771 | DF13: -0.3262500167 | DG13: -0.4618701339 | DH13: -0.152015239 | DI13: -0.07388699055 | DJ13: -0.07388699055 | DK13: -0.07388699055 | DL13: -0.07388699055 | GB13: 0.3000000119 | GC13: 0.06537826359 | GD13: -0.3000000119 | GE13: 0.06537826359 | GZ13: -0.2900000215 | HA13: -0.187753287 | HB13: -0.1887089397 | HC13: -0.1301510109 | HD13: -0.02005510268 | HH13: -0.2900000215 | HI13: -0.187753287 | HJ13: -2.900000095 | HK13: 0.3000000119 | HL13: -0.2900000215 | HM13: -0.2509200115
A14: 0.98 | B14: 0.45 | CZ14: 0.5790051222 | DA14: 0.4266740978 | DB14: 0 | DC14: 0.4284486771 | DF14: -0.3625000119 | DG14: -0.4819903374 | DH14: -0.2568787038 | DI14: -0.08159345388 | DJ14: -0.08159345388 | DK14: -0.08159345388 | DL14: -0.08159345388 | GZ14: -0.3262500167 | HA14: -0.2095914674 | HB14: -0.2095590152 | HC14: -0.1436884124 | HD14: -0.025171396 | HL14: -0.3262500167 | HM14: -0.2733332536
A15: 0.99 | B15: 0.55 | CZ15: 0.595915556 | DA15: 0.4215244651 | DF15: -0.3987500072 | DG15: -0.497605741 | DH15: -0.3145954013 | DI15: -0.08920675516 | DJ15: -0.08920675516 | DK15: -0.08920675516 | DL15: -0.08920675516 | GZ15: -0.3625000119 | HA15: -0.2308088271 | HB15: -0.2295130741 | HC15: -0.1563669426 | HD15: -0.02987914707 | HL15: -0.3625000119 | HM15: -0.2939798911
A16: 1 | B16: 0.65 | DF16: -0.4350000024 | DG16: -0.5106115937 | DH16: -0.3558053374 | DI16: -0.0967258215 | DJ16: -0.0967258215 | DK16: -0.0967258215 | DL16: -0.0967258215 | GB16: 0.400000006 | GC16: 0.4948073924 | GD16: -0.400000006 | GE16: 0.4284486771 | GZ16: -0.3987500072 | HA16: -0.2515219574 | HB16: -0.2486196943 | HC16: -0.1682214625 | HD16: -0.03429615644 | HH16: -0.4350000024 | HI16: 0.2646758854 | HJ16: -0.7250000238 | HK16: 0.400000006 | HL16: -0.3987500072 | HM16: -0.3130015574
A17: BACK LONG CURVE. Length | B17: no of points. | DF17: -0.4712500274 | DG17: -0.521944046 | DH17: -0.3883145452 | DI17: -0.1041634083 | DJ17: -0.1041634083 | DK17: -0.1041634083 | DL17: -0.1041634083 | GB17: 0.400000006 | GC17: 0.1332856715 | GD17: -0.400000006 | GE17: 0.1332856715 | GZ17: -0.4350000024 | HA17: -0.2717060511 | HB17: -0.2669024992 | HC17: -0.1793406594 | HD17: -0.03854351302 | HH17: -0.4350000024 | HI17: -0.2717060511 | HJ17: -2.900000095 | HK17: 0.400000006 | HL17: -0.4350000024 | HM17: -0.3306415906
A18: 1 | B18: 3 | DF18: -0.5074999928 | DG18: -0.5319001079 | DH18: -0.4150201082 | DI18: -0.1668276191 | DJ18: -0.1115197539 | DK18: -0.1115197539 | DL18: -0.1115197539 | GZ18: -0.4712500274 | HA18: -0.2914333158 | HB18: -0.2844132407 | HC18: -0.1898842866 | HD18: -0.04268441791 | HL18: -0.4712500274 | HM18: -0.3470272723
A19: Distance from bottom of curve | B19: height | DF19: -0.5437500477 | DG19: -0.5408510566 | DH19: -0.4366461635 | DI19: -0.246694088 | DJ19: -0.1188797355 | DK19: -0.1188797355 | DL19: -0.1188797355 | GZ19: -0.5074999928 | HA19: -0.3107523489 | HB19: -0.3012670326 | HC19: -0.1997946814 | HD19: -0.04698712585 | HL19: -0.5074999928 | HM19: -0.3623173528
A20: 0 | B20: 0 | DF20: -0.5800000429 | DG20: -0.5488069654 | DH20: -0.4543936253 | DI20: -0.2932327688 | DJ20: -0.1262616515 | DK20: -0.1262616515 | DL20: -0.1262616515 | GB20: 0.5 | GC20: 0.4576453567 | GD20: -0.5 | GE20: 0.4263933599 | GZ20: -0.5437500477 | HA20: -0.3297887246 | HB20: -0.3176786696 | HC20: -0.2093615881 | HD20: -0.05169994435 | HH20: -0.5800000429 | HI20: 0.3417995572 | HJ20: -0.9424999952 | HK20: 0.5 | HL20: -0.5437500477 | HM20: -0.3767543005
A21: 0.5 | B21: 0 | DF21: -0.6162500381 | DG21: -0.5567042232 | DH21: -0.4694593549 | DI21: -0.328523308 | DJ21: -0.1336231232 | DK21: -0.1336231232 | DL21: -0.1336231232 | GB21: 0.5 | GC21: 0.2331226617 | GD21: -0.5 | GE21: 0.2331226617 | GZ21: -0.5800000429 | HA21: -0.3486264324 | HB21: -0.3336434878 | HC21: -0.21858759 | HD21: -0.05709673487 | HH21: -0.5800000429 | HI21: -0.3486264324 | HJ21: -2.827500105 | HK21: 0.5 | HL21: -0.5800000429 | HM21: -0.3903502605
A22: 1 | B22: 0.02 | DF22: -0.6525000334 | DG22: -0.5647175312 | DH22: -0.4826740623 | DI22: -0.3571567833 | DJ22: -0.1409288645 | DK22: -0.1409288645 | DL22: -0.1409288645 | GZ22: -0.6162500381 | HA22: -0.3671050052 | HB22: -0.3491353442 | HC22: -0.2277736996 | HD22: -0.06330764916 | HL22: -0.6162500381 | HM22: -0.4030225887
A23: SHEER CURVE. Number of points. | DF23: -0.6887500286 | DG23: -0.5724737644 | DH23: -0.4957590401 | DI23: -0.3812666237 | DJ23: -0.1481333375 | DK23: -0.1481333375 | DL23: -0.1481333375 | GZ23: -0.6525000334 | HA23: -0.3852400984 | HB23: -0.3641257345 | HC23: -0.2367714502 | HD23: -0.0701815092 | HL23: -0.6525000334 | HM23: -0.4148180586
A24: 6 | DF24: -0.7250000238 | DG24: -0.5804002881 | DH24: -0.5077245831 | DI24: -0.4020038247 | DJ24: -0.2283354104 | DK24: -0.1551925838 | DL24: -0.1551925838 | GB24: 0.6000000238 | GC24: 0.4183996022 | GD24: -0.6000000238 | GE24: 0.4152700901 | GZ24: -0.6887500286 | HA24: -0.4028589551 | HB24: -0.3784991948 | HC24: -0.2457008636 | HD24: -0.077603989 | HH24: -0.7250000238 | HI24: 0.413092941 | HJ24: -1.558750033 | HK24: 0.6000000238 | HL24: -0.6887500286 | HM24: -0.425815765
A25: Distance from front | B25: distance below max height | DF25: -0.7612500191 | DG25: -0.5887819529 | DH25: -0.5185428262 | DI25: -0.4200178683 | DJ25: -0.2710796297 | DK25: -0.1620849371 | DL25: -0.1620849371 | GB25: 0.6000000238 | GD25: -0.6000000238 | GZ25: -0.7250000238 | HA25: -0.4199446839 | HB25: -0.3922992201 | HC25: -0.2543720331 | HD25: -0.08495390967 | HH25: -0.7250000238 | HI25: -0.4199446839 | HJ25: -2.066250086 | HK25: 0.6000000238 | HL25: -0.7250000238 | HM25: -0.4360407719
A26: 0 | B26: 0 | DF26: -0.7975000143 | DG26: -0.598698616 | DH26: -0.5283091664 | DI26: -0.4354892671 | DJ26: -0.3024752438 | DK26: -0.1687363982 | DL26: -0.1687363982 | GZ26: -0.7612500191 | HA26: -0.4363178361 | HB26: -0.4054702584 | HC26: -0.2628027501 | HD26: -0.09024771365 | HL26: -0.7612500191 | HM26: -0.4456614772
A27: 0.5 | B27: 0.11 | DF27: -0.8337500095 | DG27: -0.6071866155 | DH27: -0.5372340083 | DI27: -0.4491009712 | DJ27: -0.3277446628 | DK27: -0.1751343608 | DL27: -0.1751343608 | GZ27: -0.7975000143 | HA27: -0.4519743302 | HB27: -0.418001694 | HC27: -0.2709727426 | HD27: -0.09516302678 | HL27: -0.7975000143 | HM27: -0.4547028222
A28: 1 | B28: 0.2 | DF28: -0.8700000048 | DG28: -0.6140122414 | DH28: -0.5456523299 | DI28: -0.4612804055 | DJ28: -0.3488690257 | DK28: -0.18124336 | DL28: -0.18124336 | GZ28: -0.8337500095 | HA28: -0.4668907064 | HB28: -0.4299161434 | HC28: -0.2787241213 | HD28: -0.1001074224 | HH28: -0.8700000048 | HI28: 0.4746254086 | HL28: -0.8337500095 | HM28: -0.4633642418
A29: 1.5 | B29: 0.23 | DF29: -0.90625 | DG29: -0.618925333 | DH29: -0.5536061525 | DI29: -0.4725064039 | DJ29: -0.3669038713 | DK29: -0.1869770885 | DL29: -0.1869770885 | GZ29: -0.8700000048 | HA29: -0.4808691069 | HB29: -0.4411349422 | HC29: -0.2861945175 | HD29: -0.1043672423 | HH29: -0.8700000048 | HI29: -0.4808691069 | HL29: -0.8700000048 | HM29: -0.4717896198
A30: 2 | B30: 0.235 | DF30: -0.9425000548 | DG30: -0.6237326264 | DH30: -0.5601814985 | DI30: -0.4835219979 | DJ30: -0.3827214837 | DK30: -0.2063254714 | DL30: -0.1923546195 | GZ30: -0.90625 | HA30: -0.4940220809 | HB30: -0.4517260881 | HC30: -0.2931672227 | HD30: -0.10778769 | HL30: -0.90625 | HM30: -0.4806449483
A31: 2.95 | B31: 0.22 | DF31: -0.9787500501 | DG31: -0.6273958683 | DH31: -0.5664792657 | DI31: -0.49437356 | DJ31: -0.3966994286 | DK31: -0.2445398271 | DL31: -0.1972962022 | GZ31: -0.9425000548 | HA31: -0.5062022341 | HB31: -0.461678449 | HC31: -0.2997173719 | HD31: -0.1109669061 | HL31: -0.9425000548 | HM31: -0.4888910934
A32: CROSS SECTIONS | B32: number of. | DF32: -1.014999986 | DG32: -0.6299363375 | DH32: -0.5727396607 | DI32: -0.5035839677 | DJ32: -0.4090676308 | DK32: -0.2698127627 | DL32: -0.2017626166 | GZ32: -0.9787500501 | HA32: -0.5173825627 | HB32: -0.4709777345 | HC32: -0.3057967485 | HD32: -0.1138405486 | HH32: -1.014999986 | HI32: 0.5231310129 | HL32: -0.9787500501 | HM32: -0.496344876
A33: 4 | DF33: -1.051249981 | DG33: -0.6322709918 | DH33: -0.5791544914 | DI33: -0.511647284 | DJ33: -0.4205120504 | DK33: -0.2904975116 | DL33: -0.2057856917 | GZ33: -1.014999986 | HA33: -0.5274710562 | HB33: -0.4796412097 | HC33: -0.3112623898 | HD33: -0.1163547987 | HH33: -1.014999986 | HI33: -0.5274710562 | HL33: -1.087500095 | HM33: -0.6800735386
A34: Distance from front | B34: no. of points | DF34: -1.087500095 | DG34: -0.6344265938 | DH34: -0.5861626267 | DI34: -0.5191556215 | DJ34: -0.4312828183 | DK34: -0.308026135 | DL34: -0.2093176842 | GZ34: -1.051249981 | HA34: -0.5370137452 | HB34: -0.4878839377 | HC34: -0.3164731594 | HD34: -0.118667232 | HL34: -1.123750091 | HM34: -0.6800735386
A35: 0.5 | B35: 4 | DF35: -1.123750091 | DG35: -0.6364027262 | DH35: -0.5927313566 | DI35: -0.5260875225 | DJ35: -0.441586256 | DK35: -0.3234983683 | DL35: -0.2124596238 | GZ35: -1.087500095 | HA35: -0.5459360089 | HB35: -0.4958145489 | HC35: -0.3216105882 | HD35: -0.1186264139 | HL35: -1.160000086 | HM35: -0.6800735386
A36: Offset | B36: height | DF36: -1.160000086 | DG36: -0.637937367 | DH36: -0.5986011028 | DI36: -0.5327414274 | DJ36: -0.4515911043 | DK36: -0.3372214735 | DL36: -0.2152404189 | GZ36: -1.123750091 | HA36: -0.5543397647 | HB36: -0.5034600193 | HC36: -0.3267844325 | HD36: -0.1183566797 | HH36: -1.160000086 | HI36: 0.5563161969 | HL36: -1.196250081 | HM36: -0.6800735386
A37: 0 | B37: 0.045 | DF37: -1.196250081 | DG37: -0.6377542019 | DH37: -0.6047028303 | DI37: -0.5391309261 | DJ37: -0.4615868926 | DK37: -0.3496550322 | DL37: -0.217658639 | GZ37: -1.160000086 | HA37: -0.5621967541 | HB37: -0.5107330624 | HC37: -0.3325822844 | HD37: -0.1180963706 | HH37: -1.160000086 | HI37: -0.5621967541 | HL37: -1.232500076 | HM37: -0.6800735386
A38: 0.1 | B38: 0.12 | DF38: -1.232500076 | DG38: -0.6375746131 | DH38: -0.6113726497 | DI38: -0.5450732112 | DJ38: -0.4716296792 | DK38: -0.3611472249 | DL38: -0.2198022306 | GZ38: -1.196250081 | HA38: -0.569598065 | HB38: -0.5177727244 | HC38: -0.3385716437 | HD38: -0.1178446112 | HL38: -1.268750072 | HM38: -0.6800735386
A39: 0.2 | B39: 0.24 | DF39: -1.268750072 | DG39: -0.6374030113 | DH39: -0.6161014438 | DI39: -0.5506911278 | DJ39: -0.4812892973 | DK39: -0.3718103766 | DL39: -0.2216763496 | GZ39: -1.232500076 | HA39: -0.5764858343 | HB39: -0.5245995774 | HC39: -0.3447021832 | HD39: -0.1175913433 | HL39: -1.305000067 | HM39: -0.6800735386
A40: 0.3 | B40: 0.54 | DF40: -1.305000067 | DG40: -0.6372377872 | DH40: -0.6194645166 | DI40: -0.5571845174 | DJ40: -0.4882168472 | DK40: -0.38177073 | DL40: -0.2233258784 | GZ40: -1.268750072 | HA40: -0.5829153231 | HB40: -0.531189722 | HC40: -0.3506269775 | HD40: -0.1173543361 | HH40: -1.305000067 | HI40: 0.5790051222 | HL40: -1.341250062 | HM40: -0.6800735386
A41: Distance from front | B41: no. of points | DF41: -1.341250062 | DG41: -0.6370790005 | DH41: -0.6225495338 | DI41: -0.5647476912 | DJ41: -0.4951319396 | DK41: -0.3911855519 | DL41: -0.2248037457 | GZ41: -1.305000067 | HA41: -0.5889326971 | HB41: -0.5375645584 | HC41: -0.356511158 | HD41: -0.1171255624 | HH41: -1.305000067 | HI41: -0.5889326971 | HL41: -1.377500057 | HM41: -0.6800735386
A42: 1 | B42: 5 | DF42: -1.377500057 | DG42: -0.636927247 | DH42: -0.6253525615 | DI42: -0.5715532303 | DJ42: -0.5025592446 | DK42: -0.4001640975 | DL42: -0.226119101 | GZ42: -1.341250062 | HA42: -0.5945500209 | HB42: -0.5437544562 | HC42: -0.3623619018 | HD42: -0.1169051378 | HL42: -1.413750052 | HM42: -0.6800735386
A43: Offset | B43: height | DF43: -1.413750052 | DG43: -0.636782825 | DH43: -0.6270299554 | DI43: -0.5781391859 | DJ43: -0.509711504 | DK43: -0.4087257087 | DL43: -0.227332592 | GZ43: -1.377500057 | HA43: -0.5997787077 | HB43: -0.5497631978 | HC43: -0.3681991805 | HD43: -0.1166939905 | HL43: -1.450000048 | HM43: -0.6800735386
A44: 0 | B44: 0 | DF44: -1.450000048 | DG44: -0.6366453767 | DH44: -0.6283127069 | DI44: -0.5846217275 | DJ44: -0.5167143345 | DK44: -0.4168773293 | DL44: -0.2284755111 | GZ44: -1.413750052 | HA44: -0.6045897285 | HB44: -0.5555401785 | HC44: -0.3739393185 | HD44: -0.1164925326 | HH44: -1.450000048 | HI44: 0.595915556 | HL44: -1.486250043 | HM44: -0.6800735386
A45: 0.1 | B45: 0.02 | DF45: -1.486250043 | DG45: -0.6365152001 | DH45: -0.6294589043 | DI45: -0.590618968 | DJ45: -0.5232768059 | DK45: -0.4248282313 | DL45: -0.2295820117 | GZ45: -1.450000048 | HA45: -0.6089910844 | HB45: -0.5611097219 | HC45: -0.3795176856 | HD45: -0.1163001936 | HH45: -1.450000048 | HI45: -0.6800735386 | HL45: -1.522500038 | HM45: -0.6800735386
A46: 0.2 | B46: 0.08 | DF46: -1.522500038 | DG46: -0.6363810897 | DH46: -0.6304772496 | DI46: -0.5952886343 | DJ46: -0.5298115611 | DK46: -0.4325614572 | DL46: -0.2306537628 | GZ46: -1.486250043 | HA46: -0.612991203 | HB46: -0.5664942758 | HC46: -0.3847855663 | HD46: -0.1161174382 | HL46: -1.558750033 | HM46: -0.6800735386
A47: 0.3 | B47: 0.15 | DF47: -1.558750033 | DG47: -0.6362664104 | DH47: -0.6313757896 | DI47: -0.5997315049 | DJ47: -0.5358116627 | DK47: -0.4400738478 | DL47: -0.242244035 | GZ47: -1.522500038 | HA47: -0.6166495381 | HB47: -0.5716893066 | HC47: -0.3893181867 | HD47: -0.1159227417 | HL47: -1.595000029 | HM47: -0.6800735386
A48: 0.52 | B48: 0.45 | DF48: -1.595000029 | DG48: -0.6361609697 | DH48: -0.6321600676 | DI48: -0.6038201451 | DJ48: -0.5418125391 | DK48: -0.4474410117 | DL48: -0.2577260435 | GZ48: -1.558750033 | HA48: -0.6199738857 | HB48: -0.5766792818 | HC48: -0.3936649408 | HD48: -0.1157610309 | HH48: -1.595000029 | HI48: 0.601824522 | HL48: -1.631250024 | HM48: -0.6800735386
A49: Distance from front | B49: no. of points | DF49: -1.631250024 | DG49: -0.6360660791 | DH49: -0.6328330636 | DI49: -0.6073307395 | DJ49: -0.5470612645 | DK49: -0.4545988441 | DL49: -0.2695102692 | GZ49: -1.595000029 | HA49: -0.6229714272 | HB49: -0.5814527322 | HC49: -0.3978135083 | HD49: -0.1156119047 | HH49: -1.595000029 | HI49: -0.6229714272 | HL49: -1.667500019 | HM49: -0.6800735386
A50: 2 | B50: 7 | DF50: -1.667500019 | DG50: -0.6359813213 | DH50: -0.6334068775 | DI50: -0.6103460789 | DJ50: -0.5523324609 | DK50: -0.4615726173 | DL50: -0.2793496251 | GZ50: -1.631250024 | HA50: -0.6256489868 | HB50: -0.5860082421 | HC50: -0.4017495587 | HD50: -0.1154773197 | HL50: -1.703750014 | HM50: -0.6800735386
A51: Offset | B51: height | DF51: -1.703750014 | DG51: -0.6359072924 | DH51: -0.6338871717 | DI51: -0.6129100323 | DJ51: -0.5578370094 | DK51: -0.4681941271 | DL51: -0.2873547971 | GZ51: -1.667500019 | HA51: -0.6280130115 | HB51: -0.590336223 | HC51: -0.4052668999 | HD51: -0.1153566536 | HL51: -1.74000001 | HM51: -0.6800735386
A52: 0 | B52: 0 | DF52: -1.74000001 | DG52: -0.6358444095 | DH52: -0.6342790127 | DI52: -0.6146460772 | DJ52: -0.563087523 | DK52: -0.4742456079 | DL52: -0.2935264111 | GZ52: -1.703750014 | HA52: -0.6300214259 | HB52: -0.594381808 | HC52: -0.4082936642 | HD52: -0.1152508664 | HH52: -1.74000001 | HI52: 0.604282856 | HL52: -1.776250005 | HM52: -0.6800735386
A53: 0.1 | B53: 0.005 | DF53: -1.776250005 | DG53: -0.6357935667 | DH53: -0.6345868707 | DI53: -0.6158181429 | DJ53: -0.5677122474 | DK53: -0.479919672 | DL53: -0.2990015447 | GZ53: -1.74000001 | HA53: -0.6317239496 | HB53: -0.5981643473 | HC53: -0.4109542949 | HD53: -0.1151604435 | HH53: -1.74000001 | HI53: -0.6317239496 | HL53: -1.8125 | HM53: -0.6800735386
A54: 0.2 | B54: 0.015 | DF54: -1.8125 | DG54: -0.6357555389 | DH54: -0.6348145008 | DI54: -0.6168004274 | DJ54: -0.5716943741 | DK54: -0.4848482311 | DL54: -0.3034877777 | GZ54: -1.776250005 | HA54: -0.6331356064 | HB54: -0.6016601563 | HC54: -0.4132706905 | HD54: -0.1150868191 | HL54: -1.848750114 | HM54: -0.6800735386
A55: 0.3 | B55: 0.03 | DF55: -1.848750114 | DG55: -0.6357330084 | DH55: -0.6349567175 | DI55: -0.617587328 | DJ55: -0.5752931833 | DK55: -0.4894717038 | DL55: -0.3070714474 | GZ55: -1.8125 | HA55: -0.6342623907 | HB55: -0.6048697309 | HC55: -0.415260114 | HD55: -0.1150311645 | HL55: -1.88500011 | HM55: -0.6800735386
A56: 0.4 | B56: 0.065 | DF56: -1.88500011 | DG56: -0.6357248425 | DH56: -0.635024488 | DI56: -0.6182035208 | DJ56: -0.5784285069 | DK56: -0.4939028025 | DL56: -0.3099810183 | GZ56: -1.848750114 | HA56: -0.6351102405 | HB56: -0.607784234 | HC56: -0.4169198938 | HD56: -0.1149973349 | HH56: -1.88500011 | HI56: 0.6010330319 | HL56: -1.993750095 | HM56: -0.6196418965
A57: 0.5 | B57: 0.145 | DF57: -1.921250105 | DG57: -0.6357316971 | DH57: -0.6350198984 | DI57: -0.6186577678 | DJ57: -0.5809268951 | DK57: -0.4979579449 | DL57: -0.3119820654 | GZ57: -1.88500011 | HA57: -0.6356852823 | HB57: -0.6103947621 | HC57: -0.4182793942 | HD57: -0.1149837218 | HH57: -1.88500011 | HI57: -0.6356852823 | HL57: -2.029999971 | HM57: -0.6202077727
A58: 0.595 | B58: 0.415 | DF58: -1.9575001 | DG58: -0.635754168 | DH58: -0.6349444389 | DI58: -0.6189577579 | DJ58: -0.5829796791 | DK58: -0.5015425682 | DL58: -0.3126280308 | GZ58: -1.921250105 | HA58: -0.6359940197 | HB58: -0.6126929894 | HC58: -0.419352634 | HD58: -0.1149913748 | HL58: -2.066250086 | HM58: -0.6203907128
A59: Distance from front | B59: no. of points | DF59: -1.993750095 | DG59: -0.6357929111 | DH59: -0.6347990632 | DI59: -0.6191106439 | DJ59: -0.5845406651 | DK59: -0.5044693351 | DL59: -0.3109335303 | GZ59: -1.9575001 | HA59: -0.6360363962 | HB59: -0.6146610271 | HC59: -0.4201506766 | HD59: -0.1150212171 | HL59: -2.102499962 | HM59: -0.6202115457
A60: 2.9 | B60: 6 | DF60: -2.029999971 | DG60: -0.6358513832 | DH60: -0.6345739961 | DI60: -0.6191126108 | DJ60: -0.58562994 | DK60: -0.5066410303 | DL60: -0.3050656915 | GZ60: -1.993750095 | HA60: -0.6357920156 | HB60: -0.6162471872 | HC60: -0.4206804988 | HD60: -0.1150741397 | HH60: -2.029999971 | HI60: 0.5931338072 | HL60: -2.138750076 | HM60: -0.6196903902
A61: Offset | B61: height | DF61: -2.066250086 | DG61: -0.6359331012 | DH61: -0.6342568398 | DI61: -0.6189432144 | DJ61: -0.5861859918 | DK61: -0.5079578757 | DL61: -0.2347298861 | GZ61: -2.029999971 | HA61: -0.6352487935 | HB61: -0.617463271 | HC61: -0.4209338764 | HD61: -0.1151551691 | HH61: -2.029999971 | HI61: -0.6352487935 | HL61: -2.175000191 | HM61: -0.6188437933
A62: 0 | B62: 0.02 | DF62: -2.102499962 | DG62: -0.6360375881 | DH62: -0.633853972 | DI62: -0.6186360717 | DJ62: -0.586243093 | DK62: -0.5084662437 | DL62: -0.2345531583 | GZ62: -2.066250086 | HA62: -0.6343074157 | HB62: -0.6182238626 | HC62: -0.4208626976 | HD62: -0.1152693109 | HL62: -2.211250067 | HM62: -0.6176860326
A63: 0.1 | B63: 0.03 | DF63: -2.138750076 | DG63: -0.6361621618 | DH63: -0.6333749294 | DI63: -0.6182015538 | DJ63: -0.5858414173 | DK63: -0.5081631541 | DL63: -0.23434183 | GZ63: -2.102499962 | HA63: -0.6329486164 | HB63: -0.6185232376 | HC63: -0.4205180623 | HD63: -0.1154158475 | HL63: -2.247500181 | HM63: -0.616229102
A64: 0.2 | B64: 0.06 | DF64: -2.175000191 | DG64: -0.636308372 | DH64: -0.6328136921 | DI64: -0.6176298857 | DJ64: -0.5850176215 | DK64: -0.507068038 | DL64: -0.2341032028 | GZ64: -2.138750076 | HA64: -0.6311639977 | HB64: -0.6183653162 | HC64: -0.4199113783 | HD64: -0.1155908285 | HH64: -2.175000191 | HI64: 0.5794928074 | HL64: -2.283750057 | HM64: -0.6144830215
A65: 0.3 | B65: 0.1 | DF65: -2.211250067 | DG65: -0.6364719868 | DH65: -0.632184267 | DI65: -0.616943121 | DJ65: -0.5838054419 | DK65: -0.5052005053 | DL65: -0.2338393033 | GZ65: -2.175000191 | HA65: -0.628944841 | HB65: -0.6177569523 | HC65: -0.4190213566 | HD65: -0.1157964007 | HH65: -2.175000191 | HI65: -0.628944841 | HL65: -2.320000172 | HM65: -0.6124567988
A66: 0.38 | B66: 0.4
A67: 0.385 | B67: 0.43 | DF67: -2.247500181 | DG67: -0.6366557479 | DH67: -0.6314843893 | DI67: -0.6161538959 | DJ67: -0.5822360516 | DK67: -0.5025141239 | DL67: -0.2335465252 | GZ67: -2.211250067 | HA67: -0.6262820605 | HB67: -0.6167072793 | HC67: -0.4178793769 | HD67: -0.1160265351 | HL67: -2.356250048 | HM67: -0.610158094
A68: END OF HULL DATA | DF68: -2.283750057 | DG68: -0.6368546486 | DH68: -0.6307224631 | DI68: -0.6152613759 | DJ68: -0.5803386569 | DK68: -0.4991676211 | DL68: -0.2332125604 | GZ68: -2.247500181 | HA68: -0.6231664946 | HB68: -0.6152275366 | HC68: -0.4164983548 | HD68: -0.1162851196 | HL68: -2.392500162 | HM68: -0.6075937083
A69: Number of vertical sections | B69: spacing m | DF69: -2.320000172 | DG69: -0.6370710731 | DH69: -0.6298919916 | DI69: -0.6142634153 | DJ69: -0.5781406164 | DK69: -0.4952376485 | DL69: -0.2328498363 | GZ69: -2.283750057 | HA69: -0.6195882939 | HB69: -0.613330747 | HC69: -0.4148714207 | HD69: -0.1165650438 | HH69: -2.320000172 | HI69: 0.5593523383 | HL69: -2.428750038 | HM69: -0.6047027135
A70: 6 | B70: 0.1 | DF70: -2.356250048 | DG70: -0.6373010874 | DH70: -0.6290051937 | DI70: -0.6127027273 | DJ70: -0.57529217 | DK70: -0.4906998873 | DL70: -0.2324578166 | GZ70: -2.320000172 | HA70: -0.6155375329 | HB70: -0.6110318246 | HC70: -0.4129940318 | HD70: -0.116869573 | HH70: -2.320000172 | HI70: -0.6155375329 | HL70: -2.465000153 | HM70: -0.6014336295
A71: No. of diagonal sections | DF71: -2.392500162 | DG71: -0.6375456452 | DH71: -0.6280621886 | DI71: -0.6107114553 | DJ71: -0.5721082687 | DK71: -0.4856388569 | DL71: -0.2320253551 | GZ71: -2.356250048 | HA71: -0.6110034959 | HB71: -0.6083466393 | HC71: -0.4108855317 | HD71: -0.1171932057 | HL71: -2.501250029 | HM71: -0.59797345
A72: 4 | DF72: -2.428750038 | DG72: -0.6378024817 | DH72: -0.6270568371 | DI72: -0.6085121632 | DJ72: -0.5686930418 | DK72: -0.4801217914 | DL72: -0.2315522432 | GZ72: -2.392500162 | HA72: -0.605905199 | HB72: -0.605292221 | HC72: -0.4085431602 | HD72: -0.1175372128 | HL72: -2.537500143 | HM72: -0.5943400589
A73: Height of intercepts at centre line and 1m offset | DF73: -2.465000153 | DG73: -0.6375035644 | DH73: -0.6260280609 | DI73: -0.6061214209 | DJ73: -0.5649294853 | DK73: -0.474026978 | DL73: -0.231046319 | GZ73: -2.428750038 | HA73: -0.6001859591 | HB73: -0.6018864943 | HC73: -0.4059585861 | HD73: -0.1178982721 | HH73: -2.465000153 | HI73: 0.5327438712 | HL73: -2.573750019 | HM73: -0.5905280966
A74: 0.55 | B74: 0.2 | DF74: -2.501250029 | DG74: -0.6363164783 | DH74: -0.6244329214 | DI74: -0.6035348773 | DJ74: -0.5602853298 | DK74: -0.4675138593 | DL74: -0.2305070758 | GZ74: -2.465000153 | HA74: -0.593912206 | HB74: -0.5981475983 | HC74: -0.4031369199 | HD74: -0.1182758929 | HH74: -2.465000153 | HI74: -0.593912206 | HL74: -2.610000134 | HM74: -0.5862111031
A75: 0.5 | B75: -0.1 | DF75: -2.537500143 | DG75: -0.6350845098 | DH75: -0.6227769256 | DI75: -0.6003769636 | DJ75: -0.5554859042 | DK75: -0.460424304 | DL75: -0.2299138904 | GZ75: -2.501250029 | HA75: -0.5870664265 | HB75: -0.5940106891 | HC75: -0.3993866104 | HD75: -0.1186684925 | HL75: -2.64625001 | HM75: -0.5818018617
A76: 0.3 | B76: -0.5 | DF76: -2.573750019 | DG76: -0.633803606 | DH76: -0.6210597754 | DI76: -0.5964158773 | DJ76: -0.5496547818 | DK76: -0.4527594447 | DL76: -0.2292824984 | GZ76: -2.537500143 | HA76: -0.5796300723 | HB76: -0.5895468 | HC76: -0.395374536 | HD76: -0.1181421675 | HL76: -2.682500124 | HM76: -0.5773204013
A77: 0.1 | B77: -1 | DF77: -2.610000134 | DG77: -0.6324790716 | DH77: -0.6192948222 | DI77: -0.5922273993 | DJ77: -0.5431461334 | DK77: -0.4445780516 | DL77: -0.2286143005 | GZ77: -2.573750019 | HA77: -0.5715726428 | HB77: -0.5847891632 | HC77: -0.3911069337 | HD77: -0.1165590207 | HH77: -2.610000134 | HI77: 0.4897714555 | HL77: -2.71875 | HM77: -0.5722818336
A78: Keels: intercept at centre line | B78: offset at base | C78: thickness | D78: front | E78: back. | DF78: -2.64625001 | DG78: -0.6311069131 | DH78: -0.6174851656 | DI78: -0.5877993703 | DJ78: -0.5359922647 | DK78: -0.4355327189 | DL78: -0.2279022336 | GZ78: -2.610000134 | HA78: -0.5623949888 | HB78: -0.5797551562 | HC78: -0.3865903753 | HD78: -0.1149234679 | HH78: -2.610000134 | HI78: -0.5623949888 | HL78: -2.755000114 | HM78: -0.5669663424
A79: 0.55 | B79: 0.4 | C79: 0.05 | D79: 1 | E79: 2 | DF79: -2.682500124 | DG79: -0.6296842694 | DH79: -0.6156208515 | DI79: -0.5832371712 | DJ79: -0.5285770893 | DK79: -0.4255411625 | DL79: -0.2271337509 | GZ79: -2.64625001 | HA79: -0.5524844743 | HB79: -0.5744616609 | HC79: -0.3818199087 | HD79: -0.1132292174 | HL79: -2.79124999 | HM79: -0.5616224587
A80: Number of bulkheads | DF80: -2.71875 | DG80: -0.6282108426 | DH80: -0.6135573387 | DI80: -0.5786178708 | DJ80: -0.5207178593 | DK80: -0.4142056406 | DL80: -0.2263249755 | GZ80: -2.682500124 | HA80: -0.5418086578 | HB80: -0.5687696975 | HC80: -0.3768731078 | HD80: -0.1114779882 | HL80: -2.827500105 | HM80: -0.5551932656
A81: 6 | DF81: -2.755000114 | DG81: -0.6266942024 | DH81: -0.6097204089 | DI81: -0.5735636353 | DJ81: -0.5126638412 | DK81: -0.400770247 | DL81: -0.2254754007 | GZ81: -2.71875 | HA81: -0.5300335787 | HB81: -0.562818394 | HC81: -0.3718123174 | HD81: -0.1096650127 | HH81: -2.755000114 | HI81: 0.4471683502 | HL81: -2.863749981 | HM81: -0.548568071
A82: Positions | DF82: -2.79124999 | DG82: -0.6248288751 | DH82: -0.6056801081 | DI82: -0.5684518814 | DJ82: -0.5045005083 | DK82: -0.3830659389 | DL82: -0.2245675325 | GZ82: -2.755000114 | HA82: -0.5169337829 | HB82: -0.5566325594 | HC82: -0.3666551169 | HD82: -0.1078318941 | HH82: -2.755000114 | HI82: -0.5169337829 | HL82: -2.900000095 | HM82: -0.5417180357
A83: 0.01 | DF83: -2.827500105 | DG83: -0.6226662993 | DH83: -0.6013320684 | DI83: -0.5628708601 | DJ83: -0.4960910678 | DK83: -0.2236066163 | DL83: -0.2236066163 | GZ83: -2.79124999 | HA83: -0.502818271 | HB83: -0.5502085854 | HC83: -0.3612119724 | HD83: -0.1063265014
A84: 0.3 | DF84: -2.863749981 | DG84: -0.6204839349 | DH84: -0.5957536101 | DI84: -0.5567691326 | DJ84: -0.4874833822 | DK84: -0.2226014137 | DL84: -0.2226014137 | GZ84: -2.827500105 | HA84: -0.4867741119 | HB84: -0.5433423926 | HC84: -0.355602128 | HD84: -0.1042626631
A85: 1.2 | DF85: -2.900000095 | DG85: -0.6182855964 | DH85: -0.5900216103 | DI85: -0.5497413278 | DJ85: -0.4786530733 | DK85: -0.2215512991 | DL85: -0.2215512991 | GZ85: -2.863749981 | HA85: -0.4690801446 | HB85: -0.5362536593 | HC85: -0.3499792329 | HD85: -0.1015509264 | HH85: -2.900000095 | HI85: 0.3978988826
A86: 1.29 | GZ86: -2.900000095 | HA86: -0.4487152535 | HB86: -0.5289530523 | HC86: -0.3442177128 | HD86: -0.09886643686 | HH86: -2.900000095 | HI86: -0.4487152535
A87: 2.1
A88: 2.4
A89: Plank thickness | B89: no. of planks | C89: min radius m
A90: 0.01 | B90: 92 | C90: 1.5
A91: Inclination angles
A92: 5 | B92: 10 | C92: 15

Sheet 18 m (b5) (NSB)
A1: 18 m b5
A2: LOA | B2: Height | C2: Draft
A3: 18 | B3: 1.9 | C3: 0.6
A4: ANALYSIS. no.of sections (excl. zero) | B4: spacing of lines | C4: no. of heights | D4: spacing of lines | E4: plot scale (0.1mm units per m)
A5: 360 | B5: 40 | C5: 76 | D5: 19 | E5: 300
A6: FRONT LONG CURVE. Length | B6: no of points.
A7: 1.5 | B7: 5
A8: Distance from bottom of curve | B8: height
A9: 0 | B9: 0
A10: 0.1 | B10: 0
A11: 1.05 | B11: 0.1
A12: 1.49 | B12: 1.4
A13: 1.5 | B13: 1.5
A14: BACK LONG CURVE. Length | B14: no of points.
A15: 4 | B15: 4
A16: Distance from bottom of curve | B16: height
A17: 0 | B17: 0
A18: 0.1 | B18: 0
A19: 2 | B19: 0.02
A20: 4 | B20: 0.1
A21: SHEER CURVE. Number of points.
A22: 3
A23: Distance from front | B23: distance below max height
A24: 0 | B24: 0
A25: 9 | B25: 0.15
A26: 18 | B26: 0.1
A27: CROSS SECTIONS number of
A28: 5
A29: Distance from front | B29: no. of points
A30: 2 | B30: 6
A31: Offset | B31: height
A32: 0 | B32: 0
A33: 0.08 | B33: 0.05
A34: 0.5 | B34: 0.4
A35: 0.78 | B35: 1.2
A36: 0.8 | B36: 1.8
A37: 0.8 | B37: 1.9
A38: Distance from front | B38: no. of points
A39: 4 | B39: 6
A40: Offset | B40: height
A41: 0 | B41: 0
A42: 0.14 | B42: 0.045
A43: 0.6 | B43: 0.35
A44: 0.93 | B44: 0.9
A45: 0.95 | B45: 1.8
A46: 0.95 | B46: 1.9
A47: Distance from front | B47: no. of points
A48: 8 | B48: 6
A49: Offset | B49: height
A50: 0 | B50: 0
A51: 0.14 | B51: 0.045
A52: 0.6 | B52: 0.35
A53: 0.94 | B53: 0.9
A54: 0.96 | B54: 1.8
A55: 0.96 | B55: 1.9
A56: Distance from front | B56: no. of points
A57: 14 | B57: 6
A58: Offset | B58: height
A59: 0.01 | B59: 0
A60: 0.02 | B60: 0.05
A61: 0.2 | B61: 0.3
A62: 0.94 | B62: 0.9
A63: 0.96 | B63: 1.8
A64: 0.96 | B64: 1.9
A65: Distance from front | B65: no. of points
A66: 18 | B66: 6
A67: Offset | B67: height
A68: 0.01 | B68: 0.1
A69: 0.02 | B69: 0.15
A70: 0.15 | B70: 0.4
A71: 0.85 | B71: 0.9
A72: 0.9 | B72: 1.8
A73: 0.9 | B73: 1.9
A74: END OF HULL DATA
A75: Number of vertical sections | B75: spacing m
A76: 5 | B76: 0.17
A77: No. of diagonal sections
A78: 4
A79: Height of intercepts at centre line and 1m offset
A80: 0.7 | B80: 0.3
A81: 0.6 | B81: -0.1
A82: 0.4 | B82: -0.4
A83: 0.2 | B83: -0.7
A84: Keels: intercept at centre line | B84: offset at base | C84: thickness | D84: front | E84: back.
A85: 1 | B85: 0.7 | C85: 0.05 | D85: 7.5 | E85: 13.5
A86: Number of bulkheads
A87: 12
A88: Positions
A89: 0.5
A90: 1
A91: 2
A92: 4
A93: 6
A94: 8
A95: 10
A96: 12
A97: 14
A98: 16
A99: 17
A100: 18
A101: Plank thickness | B101: no. of planks | C101: min radius m
A102: 0.025 | B102: 120 | C102: 4
A103: Inclination angles
A104: 5 | B104: 10 | C104: 15

Sheet 18 m (b5)
A1: 18 m b5
A2: LOA | B2: Height | C2: Draft
A3: 18 | B3: 1.9 | C3: 0.6
A4: ANALYSIS. no.of sections (excl. zero) | B4: spacing of lines | C4: no. of heights | D4: spacing of lines | E4: plot scale (0.1mm units per m)
A5: 360 | B5: 40 | C5: 76 | D5: 19 | E5: 300
A6: FRONT LONG CURVE. Length | B6: no of points.
A7: 1.5 | B7: 5
A8: Distance from bottom of curve | B8: height
A9: 0 | B9: 0
A10: 0.1 | B10: 0
A11: 1.05 | B11: 0.1
A12: 1.49 | B12: 1.4
A13: 1.5 | B13: 1.5
A14: BACK LONG CURVE. Length | B14: no of points.
A15: 4 | B15: 4
A16: Distance from bottom of curve | B16: height
A17: 0 | B17: 0
A18: 0.1 | B18: 0
A19: 2 | B19: 0.02
A20: 4 | B20: 0.1
A21: SHEER CURVE. Number of points.
A22: 9
A23: Distance from front | B23: distance below max height
A24: 0 | B24: 0
A25: 6.9 | B25: 0.1
A26: 6.98 | B26: 0.1
A27: 7 | B27: 0.11
A28: 7.001 | B28: 0.15
A29: 7.3 | B29: 0.375
A30: 7.5 | B30: 0.4
A31: 7.6 | B31: 0.4
A32: 18 | B32: 0.3
A33: CROSS SECTIONS number of
A34: 5
A35: Distance from front | B35: no. of points
A36: 2 | B36: 6
A37: Offset | B37: height
A38: 0 | B38: 0
A39: 0.08 | B39: 0.05
A40: 0.5 | B40: 0.4
A41: 0.78 | B41: 1.2
A42: 0.8 | B42: 1.8
A43: 0.8 | B43: 1.9
A44: Distance from front | B44: no. of points
A45: 4 | B45: 6
A46: Offset | B46: height
A47: 0 | B47: 0
A48: 0.14 | B48: 0.045
A49: 0.6 | B49: 0.35
A50: 0.93 | B50: 0.9
A51: 0.95 | B51: 1.8
A52: 0.95 | B52: 1.9
A53: Distance from front | B53: no. of points
A54: 8 | B54: 6
A55: Offset | B55: height
A56: 0 | B56: 0
A57: 0.14 | B57: 0.045
A58: 0.6 | B58: 0.35
A59: 0.94 | B59: 0.9
A60: 0.96 | B60: 1.8
A61: 0.96 | B61: 1.9
A62: Distance from front | B62: no. of points
A63: 14 | B63: 6
A64: Offset | B64: height
A65: 0.01 | B65: 0
A66: 0.02 | B66: 0.05
A67: 0.2 | B67: 0.3
A68: 0.94 | B68: 0.9
A69: 0.96 | B69: 1.8
A70: 0.96 | B70: 1.9
A71: Distance from front | B71: no. of points
A72: 18 | B72: 6
A73: Offset | B73: height
A74: 0.01 | B74: 0.1
A75: 0.02 | B75: 0.15
A76: 0.15 | B76: 0.4
A77: 0.85 | B77: 0.9
A78: 0.9 | B78: 1.8
A79: 0.9 | B79: 1.9
A80: END OF HULL DATA
A81: Number of vertical sections | B81: spacing m
A82: 5 | B82: 0.17
A83: No. of diagonal sections
A84: 4
A85: Height of intercepts at centre line and 1m offset
A86: 0.7 | B86: 0.3
A87: 0.6 | B87: -0.1
A88: 0.4 | B88: -0.4
A89: 0.2 | B89: -0.7
A90: Keels: intercept at centre line | B90: offset at base | C90: thickness | D90: front | E90: back.
A91: 1 | B91: 0.7 | C91: 0.05 | D91: 7.5 | E91: 13.5
A92: Number of bulkheads
A93: 12
A94: Positions
A95: 0.5
A96: 1
A97: 2
A98: 4
A99: 6
A100: 8
A101: 10
A102: 12
A103: 14
A104: 16
A105: 17
A106: 18
A107: Plank thickness | B107: no. of planks | C107: min radius m
A108: 0.025 | B108: 120 | C108: 4
A109: Inclination angles
A110: 15 | B110: 20 | C110: 30

Sheet 18 m (b4)
A1: 18 m b4
A2: LOA | B2: Height | C2: Draft
A3: 18 | B3: 1.8 | C3: 0.6
A4: ANALYSIS. no.of sections (excl. zero) | B4: spacing of lines | C4: no. of heights | D4: spacing of lines | E4: plot scale (0.1mm units per m)
A5: 180 | B5: 20 | C5: 72 | D5: 12 | E5: 300
A6: FRONT LONG CURVE. Length | B6: no of points.
A7: 1.5 | B7: 5
A8: Distance from bottom of curve | B8: height
A9: 0 | B9: 0
A10: 0.1 | B10: 0
A11: 1.05 | B11: 0.1
A12: 1.49 | B12: 1.4
A13: 1.5 | B13: 1.5
A14: BACK LONG CURVE. Length | B14: no of points.
A15: 10 | B15: 4
A16: Distance from bottom of curve | B16: height
A17: 0 | B17: 0
A18: 0.1 | B18: 0
A19: 8 | B19: 0.44
A20: 10 | B20: 0.5
A21: SHEER CURVE. Number of points.
A22: 3
A23: Distance from front | B23: distance below max height
A24: 0 | B24: 0
A25: 9 | B25: 0.15
A26: 18 | B26: 0.1
A27: CROSS SECTIONS number of
A28: 4
A29: Distance from front | B29: no. of points
A30: 2 | B30: 6
A31: Offset | B31: height
A32: 0 | B32: 0
A33: 0.08 | B33: 0.05
A34: 0.5 | B34: 0.4
A35: 0.78 | B35: 1.2
A36: 0.8 | B36: 1.7
A37: 0.8 | B37: 1.8
A38: Distance from front | B38: no. of points
A39: 4 | B39: 6
A40: Offset | B40: height
A41: 0 | B41: 0
A42: 0.14 | B42: 0.045
A43: 0.6 | B43: 0.35
A44: 0.93 | B44: 0.9
A45: 0.95 | B45: 1.7
A46: 0.95 | B46: 1.8
A47: Distance from front | B47: no. of points
A48: 8 | B48: 6
A49: Offset | B49: height
A50: 0 | B50: 0
A51: 0.14 | B51: 0.045
A52: 0.6 | B52: 0.35
A53: 0.94 | B53: 0.9
A54: 0.96 | B54: 1.7
A55: 0.96 | B55: 1.8
A56: Distance from front | B56: no. of points
A57: 18 | B57: 5
A58: Offset | B58: height
A59: 0 | B59: 0.5
A60: 0.5 | B60: 0.6
A61: 0.8 | B61: 0.8
A62: 0.9 | B62: 1.7
A63: 0.9 | B63: 1.8
A64: END OF HULL DATA
A65: Number of vertical sections | B65: spacing m
A66: 5 | B66: 0.17
A67: No. of diagonal sections
A68: 4
A69: Height of intercepts at centre line and 1m offset
A70: 0.7 | B70: 0.3
A71: 0.6 | B71: -0.1
A72: 0.4 | B72: -0.4
A73: 0.2 | B73: -0.7
A74: Keels: intercept at centre line | B74: offset at base | C74: thickness | D74: front | E74: back.
A75: 1 | B75: 0.7 | C75: 0.05 | D75: 7.5 | E75: 13.5
A76: Number of bulkheads
A77: 12
A78: Positions
A79: 0.5
A80: 1
A81: 2
A82: 4
A83: 6
A84: 8
A85: 10
A86: 12
A87: 14
A88: 16
A89: 17
A90: 18
A91: Plank thickness | B91: no. of planks | C91: min radius m
A92: 0.025 | B92: 120 | C92: 4
A93: Inclination angles
A94: 5 | B94: 10 | C94: 15

Sheet 18 m (b3)
A1: 18 m b3
A2: LOA | B2: Height | C2: Draft
A3: 18 | B3: 1.8 | C3: 0.6
A4: ANALYSIS. no.of sections (excl. zero) | B4: spacing of lines | C4: no. of heights | D4: spacing of lines | E4: plot scale (0.1mm units per m)
A5: 180 | B5: 20 | C5: 72 | D5: 12 | E5: 300
A6: FRONT LONG CURVE. Length | B6: no of points.
A7: 1.5 | B7: 5
A8: Distance from bottom of curve | B8: height
A9: 0 | B9: 0
A10: 0.1 | B10: 0
A11: 1.05 | B11: 0.1
A12: 1.49 | B12: 1.4
A13: 1.5 | B13: 1.5
A14: BACK LONG CURVE. Length | B14: no of points.
A15: 6 | B15: 4
A16: Distance from bottom of curve | B16: height
A17: 0 | B17: 0
A18: 0.1 | B18: 0
A19: 5 | B19: 0.45
A20: 6 | B20: 0.5
A21: SHEER CURVE. Number of points.
A22: 3
A23: Distance from front | B23: distance below max height
A24: 0 | B24: 0
A25: 9 | B25: 0.15
A26: 18 | B26: 0.1
A27: CROSS SECTIONS number of
A28: 5
A29: Distance from front | B29: no. of points
A30: 2 | B30: 6
A31: Offset | B31: height
A32: 0 | B32: 0
A33: 0.1 | B33: 0.05
A34: 0.6 | B34: 0.4
A35: 0.78 | B35: 1.2
A36: 0.8 | B36: 1.7
A37: 0.8 | B37: 1.8
A38: Distance from front | B38: no. of points
A39: 4 | B39: 7
A40: Offset | B40: height
A41: 0 | B41: 0
A42: 0.15 | B42: 0.045
A43: 0.25 | B43: 0.07
A44: 0.75 | B44: 0.35
A45: 0.93 | B45: 0.9
A46: 0.95 | B46: 1.7
A47: 0.95 | B47: 1.8
A48: Distance from front | B48: no. of points
A49: 8 | B49: 7
A50: Offset | B50: height
A51: 0 | B51: 0
A52: 0.16 | B52: 0.045
A53: 0.26 | B53: 0.07
A54: 0.76 | B54: 0.35
A55: 0.94 | B55: 0.9
A56: 0.96 | B56: 1.7
A57: 0.96 | B57: 1.8
A58: Distance from front | B58: no. of points
A59: 12 | B59: 7
A60: Offset | B60: height
A61: 0 | B61: 0
A62: 0.15 | B62: 0.045
A63: 0.25 | B63: 0.07
A64: 0.75 | B64: 0.35
A65: 0.93 | B65: 0.9
A66: 0.95 | B66: 1.7
A67: 0.95 | B67: 1.8
A68: Distance from front | B68: no. of points
A69: 18 | B69: 4
A70: Offset | B70: height
A71: 0 | B71: 0.5
A72: 0.4 | B72: 0.6
A73: 0.8 | B73: 1.7
A74: 0.8 | B74: 1.8
A75: END OF HULL DATA
A76: Number of vertical sections | B76: spacing m
A77: 5 | B77: 0.17
A78: No. of diagonal sections
A79: 4
A80: Height of intercepts at centre line and 1m offset
A81: 0.7 | B81: 0.3
A82: 0.6 | B82: -0.1
A83: 0.4 | B83: -0.4
A84: 0.2 | B84: -0.7
A85: Keels: intercept at centre line | B85: offset at base | C85: thickness | D85: front | E85: back.
A86: 1 | B86: 0.7 | C86: 0.05 | D86: 7.5 | E86: 13.5
A87: Number of bulkheads
A88: 12
A89: Positions
A90: 0.5
A91: 1
A92: 2
A93: 4
A94: 6
A95: 8
A96: 10
A97: 12
A98: 14
A99: 16
A100: 17
A101: 18
A102: Plank thickness | B102: no. of planks | C102: min radius m
A103: 0.025 | B103: 120 | C103: 4
A104: Inclination angles
A105: 15 | B105: 20 | C105: 30

Sheet 17m
A1: 17m
A2: LOA | B2: Height | C2: Draft
A3: 17 | B3: 1.9 | C3: 0.6
A4: ANALYSIS. no.of sections (excl. zero) | B4: spacing of lines | C4: no. of heights | D4: spacing of lines | E4: plot scale (0.1mm units per m)
A5: 340 | B5: 20 | C5: 95 | D5: 10 | E5: 300
A6: FRONT LONG CURVE. Length | B6: no of points.
A7: 1.5 | B7: 5
A8: Distance from bottom of curve | B8: height
A9: 0 | B9: 0
A10: 0.1 | B10: 0
A11: 1.05 | B11: 0.1
A12: 1.49 | B12: 1.4
A13: 1.5 | B13: 1.5
A14: BACK LONG CURVE. Length | B14: no of points.
A15: 1 | B15: 2
A16: Distance from bottom of curve | B16: height
A17: 0 | B17: 0
A18: 1 | B18: 0
A19: SHEER CURVE. Number of points.
A20: 9
A21: Distance from front | B21: distance below max height
A22: 0 | B22: 0
A23: 5.9 | B23: 0.1
A24: 5.98 | B24: 0.1
A25: 6 | B25: 0.11
A26: 6.001 | B26: 0.15
A27: 6.3 | B27: 0.375
A28: 6.5 | B28: 0.4
A29: 6.6 | B29: 0.4
A30: 17 | B30: 0.3
A31: CROSS SECTIONS number of
A32: 4
A33: Distance from front | B33: no. of points
A34: 4 | B34: 6
A35: Offset | B35: height
A36: 0 | B36: 0
A37: 0.14 | B37: 0.045
A38: 0.6 | B38: 0.35
A39: 0.88 | B39: 0.9
A40: 0.9 | B40: 1.8
A41: 0.9 | B41: 1.9
A42: Distance from front | B42: no. of points
A43: 9 | B43: 6
A44: Offset | B44: height
A45: 0 | B45: 0
A46: 0.14 | B46: 0.045
A47: 0.6 | B47: 0.35
A48: 0.95 | B48: 0.9
A49: 0.952 | B49: 1.8
A50: 0.952 | B50: 1.9
A51: Distance from front | B51: no. of points
A52: 14 | B52: 6
A53: Offset | B53: height
A54: 0.01 | B54: 0
A55: 0.06 | B55: 0.05
A56: 0.4 | B56: 0.4
A57: 0.9 | B57: 1
A58: 0.86 | B58: 1.8
A59: 0.86 | B59: 1.9
A60: Distance from front | B60: no. of points
A61: 17 | B61: 6
A62: Offset | B62: height
A63: 0.02 | B63: 0
A64: 0.02 | B64: 0.1
A65: 0.08 | B65: 0.5
A66: 0.75 | B66: 1.2
A67: 0.73 | B67: 1.8
A68: 0.7 | B68: 1.9
A69: END OF HULL DATA
A70: Number of vertical sections | B70: spacing m
A71: 5 | B71: 0.17
A72: No. of diagonal sections
A73: 4
A74: Height of intercepts at centre line and 1m offset
A75: 0.7 | B75: 0.3
A76: 0.6 | B76: -0.1
A77: 0.4 | B77: -0.4
A78: 0.2 | B78: -0.7
A79: Keels: intercept at centre line | B79: offset at base | C79: thickness | D79: front | E79: back.
A80: 1 | B80: 0.7 | C80: 0.05 | D80: 7.5 | E80: 13.5
A81: Number of bulkheads
A82: 21
A83: Positions
A84: 0.75
A85: 1.5
A86: 2.5
A87: 3.5
A88: 4.5
A89: 5.25
A90: 6
A91: 7
A92: 7.65
A93: 8.3
A94: 9
A95: 9.65
A96: 10.3
A97: 11
A98: 12
A99: 13
A100: 14
A101: 15
A102: 16
A103: 16.5
A104: 17
A105: Plank thickness | B105: no. of planks | C105: min radius m
A106: 0.025 | B106: 120 | C106: 4
A107: Inclination angles
A108: 5 | B108: 10 | C108: 15

Sheet 17m (NSB)
A1: 17m
A2: LOA | B2: Height | C2: Draft
A3: 17 | B3: 1.9 | C3: 0.6
A4: ANALYSIS. no.of sections (excl. zero) | B4: spacing of lines | C4: no. of heights | D4: spacing of lines | E4: plot scale (0.1mm units per m)
A5: 340 | B5: 20 | C5: 95 | D5: 10 | E5: 300
A6: FRONT LONG CURVE. Length | B6: no of points.
A7: 1.5 | B7: 5
A8: Distance from bottom of curve | B8: height
A9: 0 | B9: 0
A10: 0.1 | B10: 0
A11: 1.05 | B11: 0.1
A12: 1.49 | B12: 1.4
A13: 1.5 | B13: 1.5
A14: BACK LONG CURVE. Length | B14: no of points.
A15: 1 | B15: 2
A16: Distance from bottom of curve | B16: height
A17: 0 | B17: 0
A18: 1 | B18: 0
A19: SHEER CURVE. Number of points.
A20: 3
A21: Distance from front | B21: distance below max height
A22: 0 | B22: 0
A23: 9 | B23: 0.15
A24: 18 | B24: 0.1
A25: CROSS SECTIONS number of
A26: 4
A27: Distance from front | B27: no. of points
A28: 4 | B28: 6
A29: Offset | B29: height
A30: 0 | B30: 0
A31: 0.14 | B31: 0.045
A32: 0.6 | B32: 0.35
A33: 0.88 | B33: 0.9
A34: 0.9 | B34: 1.8
A35: 0.9 | B35: 1.9
A36: Distance from front | B36: no. of points
A37: 9 | B37: 6
A38: Offset | B38: height
A39: 0 | B39: 0
A40: 0.14 | B40: 0.045
A41: 0.6 | B41: 0.35
A42: 0.95 | B42: 0.9
A43: 0.952 | B43: 1.8
A44: 0.952 | B44: 1.9
A45: Distance from front | B45: no. of points
A46: 14 | B46: 6
A47: Offset | B47: height
A48: 0.01 | B48: 0
A49: 0.06 | B49: 0.05
A50: 0.4 | B50: 0.4
A51: 0.9 | B51: 1
A52: 0.86 | B52: 1.8
A53: 0.86 | B53: 1.9
A54: Distance from front | B54: no. of points
A55: 17 | B55: 6
A56: Offset | B56: height
A57: 0.02 | B57: 0
A58: 0.02 | B58: 0.1
A59: 0.08 | B59: 0.5
A60: 0.75 | B60: 1.2
A61: 0.73 | B61: 1.8
A62: 0.7 | B62: 1.9
A63: END OF HULL DATA
A64: Number of vertical sections | B64: spacing m
A65: 5 | B65: 0.17
A66: No. of diagonal sections
A67: 4
A68: Height of intercepts at centre line and 1m offset
A69: 0.7 | B69: 0.3
A70: 0.6 | B70: -0.1
A71: 0.4 | B71: -0.4
A72: 0.2 | B72: -0.7
A73: Keels: intercept at centre line | B73: offset at base | C73: thickness | D73: front | E73: back.
A74: 1 | B74: 0.7 | C74: 0.05 | D74: 7.5 | E74: 13.5
A75: Number of bulkheads
A76: 12
A77: Positions
A78: 1
A79: 2
A80: 3
A81: 4
A82: 6
A83: 8
A84: 10
A85: 12
A86: 14
A87: 15
A88: 16
A89: 17
A90: Plank thickness | B90: no. of planks | C90: min radius m
A91: 0.025 | B91: 120 | C91: 4
A92: Inclination angles
A93: 5 | B93: 10 | C93: 15

Sheet 17m (2)
A1: 17m (2)
A2: LOA | B2: Height | C2: Draft
A3: 17 | B3: 1.9 | C3: 0.6
A4: ANALYSIS. no.of sections (excl. zero) | B4: spacing of lines | C4: no. of heights | D4: spacing of lines | E4: plot scale (0.1mm units per m)
A5: 340 | B5: 20 | C5: 95 | D5: 10 | E5: 300
A6: FRONT LONG CURVE. Length | B6: no of points.
A7: 2 | B7: 5
A8: Distance from bottom of curve | B8: height
A9: 0 | B9: 0
A10: 0.1 | B10: 0
A11: 1 | B11: 0.07
A12: 1.98 | B12: 1.8
A13: 2 | B13: 1.9
A14: BACK LONG CURVE. Length | B14: no of points.
A15: 1 | B15: 2
A16: Distance from bottom of curve | B16: height
A17: 0 | B17: 0
A18: 1 | B18: 0
A19: SHEER CURVE. Number of points.
A20: 9
A21: Distance from front | B21: distance below max height
A22: 0 | B22: 0
A23: =A25-0.1 -> 6.45 | B23: 0.1
A24: =A25-0.02 -> 6.53 | B24: 0.1
A25: 6.55 | B25: 0.11
A26: =A25+0.001 -> 6.551 | B26: 0.15
A27: =A25+0.3 -> 6.85 | B27: 0.475
A28: =A25+0.5 -> 7.05 | B28: 0.5
A29: =A25+0.6 -> 7.15 | B29: 0.5
A30: 17 | B30: 0.4
A31: CROSS SECTIONS number of
A32: 5
A33: Distance from front | B33: no. of points
A34: 2 | B34: 6
A35: Offset | B35: height
A36: 0 | B36: 0
A37: 0.07 | B37: 0.04
A38: 0.35 | B38: 0.35
A39: 0.524 | B39: 0.9
A40: 0.698 | B40: 1.8
A41: 0.7 | B41: 1.9
A42: Distance from front | B42: no. of points
A43: 4 | B43: 6
A44: Offset | B44: height
A45: 0 | B45: 0
A46: 0.2 | B46: 0.045
A47: 0.7 | B47: 0.35
A48: 0.88 | B48: 0.9
A49: 0.9 | B49: 1.8
A50: 0.9 | B50: 1.9
A51: Distance from front | B51: no. of points
A52: 7 | B52: 6
A53: Offset | B53: height
A54: 0 | B54: 0
A55: 0.2 | B55: 0.05
A56: 0.9 | B56: 0.5
A57: 0.97 | B57: 0.9
A58: 0.972 | B58: 1.8
A59: 0.972 | B59: 1.9
A60: Distance from front | B60: no. of points
A61: 13 | B61: 6
A62: Offset | B62: height
A63: 0 | B63: 0
A64: 0.15 | B64: 0.05
A65: 0.75 | B65: 0.5
A66: 0.9 | B66: 1
A67: 0.86 | B67: 1.8
A68: 0.86 | B68: 1.9
A69: Distance from front | B69: no. of points
A70: 17 | B70: 7
A71: Offset | B71: height
A72: 0.02 | B72: 0
A73: 0.02 | B73: 0.1
A74: 0.08 | B74: 0.5
A75: 0.55 | B75: 0.9
A76: 0.7 | B76: 1.2
A77: 0.66 | B77: 1.8
A78: 0.65 | B78: 1.9
A79: END OF HULL DATA
A80: Number of vertical sections | B80: spacing m
A81: 8 | B81: 0.2
A82: No. of diagonal sections
A83: 4
A84: Height of intercepts at centre line and 1m offset
A85: 0.7 | B85: 0.3
A86: 0.6 | B86: -0.1
A87: 0.4 | B87: -0.4
A88: 0.2 | B88: -0.7
A89: Keels: intercept at centre line | B89: offset at base | C89: thickness | D89: front | E89: back.
A90: 1 | B90: 0.7 | C90: 0.05 | D90: 7.5 | E90: 13.5
A91: Number of bulkheads
A92: 26
A93: Positions
A94: 0.65
A95: 1.3
A96: 1.95
A97: 2.6
A98: 3.25
A99: 4.25
A100: 4.9
A101: 5.55
A102: 6.55
A103: 7.2
A104: 7.85
A105: =A104+0.65 -> 8.5
A106: =A105+0.65 -> 9.15
A107: 9.8
A108: 10.45
A109: 11.1
A110: 11.75
A111: 12.4
A112: 13.05
A113: 13.7
A114: 14.35
A115: 15
A116: 15.65
A117: 16.3
A118: 16.7
A119: 17
A120: Plank thickness | B120: no. of planks | C120: min radius m
A121: 0.025 | B121: 120 | C121: 4
A122: Inclination angles
A123: 5 | B123: 10 | C123: 15

Sheet 17m(2)NSB
A1: 17m (2)NSB
A2: LOA | B2: Height | C2: Draft
A3: 17 | B3: 1.9 | C3: 0.6
A4: ANALYSIS. no.of sections (excl. zero) | B4: spacing of lines | C4: no. of heights | D4: spacing of lines | E4: plot scale (0.1mm units per m)
A5: 340 | B5: 20 | C5: 95 | D5: 10 | E5: 300
A6: FRONT LONG CURVE. Length | B6: no of points.
A7: 2 | B7: 5
A8: Distance from bottom of curve | B8: height
A9: 0 | B9: 0
A10: 0.1 | B10: 0
A11: 1 | B11: 0.07
A12: 1.98 | B12: 1.8
A13: 2 | B13: 1.9
A14: BACK LONG CURVE. Length | B14: no of points.
A15: 1 | B15: 2
A16: Distance from bottom of curve | B16: height
A17: 0 | B17: 0
A18: 1 | B18: 0
A19: SHEER CURVE. Number of points.
A20: 3
A21: Distance from front | B21: distance below max height
A22: 0 | B22: 0
A23: 9 | B23: 0.1
A24: 17 | B24: 0
A25: CROSS SECTIONS number of
A26: 5
A27: Distance from front | B27: no. of points
A28: 2 | B28: 6
A29: Offset | B29: height
A30: 0 | B30: 0
A31: 0.07 | B31: 0.04
A32: 0.35 | B32: 0.35
A33: 0.524 | B33: 0.9
A34: 0.698 | B34: 1.8
A35: 0.7 | B35: 1.9
A36: Distance from front | B36: no. of points
A37: 4 | B37: 6
A38: Offset | B38: height
A39: 0 | B39: 0
A40: 0.2 | B40: 0.045
A41: 0.7 | B41: 0.35
A42: 0.88 | B42: 0.9
A43: 0.9 | B43: 1.8
A44: 0.9 | B44: 1.9
A45: Distance from front | B45: no. of points
A46: 7 | B46: 6
A47: Offset | B47: height
A48: 0 | B48: 0
A49: 0.2 | B49: 0.05
A50: 0.9 | B50: 0.5
A51: 0.97 | B51: 0.9
A52: 0.972 | B52: 1.8
A53: 0.972 | B53: 1.9
A54: Distance from front | B54: no. of points
A55: 13 | B55: 6
A56: Offset | B56: height
A57: 0 | B57: 0
A58: 0.15 | B58: 0.05
A59: 0.75 | B59: 0.5
A60: 0.9 | B60: 1
A61: 0.86 | B61: 1.8
A62: 0.86 | B62: 1.9
A63: Distance from front | B63: no. of points
A64: 17 | B64: 7
A65: Offset | B65: height
A66: 0.02 | B66: 0
A67: 0.02 | B67: 0.1
A68: 0.08 | B68: 0.5
A69: 0.55 | B69: 0.9
A70: 0.7 | B70: 1.2
A71: 0.66 | B71: 1.8
A72: 0.65 | B72: 1.9
A73: END OF HULL DATA
A74: Number of vertical sections | B74: spacing m
A75: 8 | B75: 0.2
A76: No. of diagonal sections
A77: 4
A78: Height of intercepts at centre line and 1m offset
A79: 0.7 | B79: 0.3
A80: 0.6 | B80: -0.1
A81: 0.4 | B81: -0.4
A82: 0.2 | B82: -0.7
A83: Keels: intercept at centre line | B83: offset at base | C83: thickness | D83: front | E83: back.
A84: 1 | B84: 0.7 | C84: 0.05 | D84: 7.5 | E84: 13.5
A85: Number of bulkheads
A86: 26
A87: Positions
A88: 0.65
A89: 1.3
A90: 1.95
A91: 2.6
A92: 3.25
A93: 4.25
A94: 4.9
A95: 5.55
A96: 6.55
A97: 7.2
A98: 7.85
A99: =A98+0.65 -> 8.5
A100: =A99+0.65 -> 9.15
A101: 9.8
A102: 10.45
A103: 11.1
A104: 11.75
A105: 12.4
A106: 13.05
A107: 13.7
A108: 14.35
A109: 15
A110: 15.65
A111: 16.3
A112: 16.7
A113: 17
A114: Plank thickness | B114: no. of planks | C114: min radius m
A115: 0.025 | B115: 120 | C115: 4
A116: Inclination angles
A117: 5 | B117: 10 | C117: 15

Sheet 17m(3)
A1: 17m (3)
A2: LOA | B2: Height | C2: Draft
A3: 17 | B3: 1.9 | C3: 0.6
A4: ANALYSIS. no.of sections (excl. zero) | B4: spacing of lines | C4: no. of heights | D4: spacing of lines | E4: plot scale (0.1mm units per m)
A5: 340 | B5: 20 | C5: 95 | D5: 10 | E5: 300
A6: FRONT LONG CURVE. Length | B6: no of points.
A7: 1.5 | B7: 6
A8: Distance from bottom of curve | B8: height
A9: 0 | B9: 0
A10: 0.1 | B10: 0
A11: 1.1 | B11: 0.15
A12: 1.4 | B12: 0.8
A13: 1.495 | B13: 1.8
A14: 1.5 | B14: 1.9
A15: BACK LONG CURVE. Length | B15: no of points.
A16: 1 | B16: 2
A17: Distance from bottom of curve | B17: height
A18: 0 | B18: 0
A19: 1 | B19: 0
A20: SHEER CURVE. Number of points.
A21: 9
A22: Distance from front | B22: distance below max height
A23: 0 | B23: 0
A24: =A26-0.1 -> 5.45 | B24: 0.1
A25: =A26-0.02 -> 5.53 | B25: 0.1
A26: 5.55 | B26: 0.11
A27: =A26+0.001 -> 5.551 | B27: 0.15
A28: =A26+0.3 -> 5.85 | B28: 0.475
A29: =A26+0.5 -> 6.05 | B29: 0.5
A30: =A26+0.6 -> 6.15 | B30: 0.5
A31: 17 | B31: 0.4
A32: CROSS SECTIONS number of
A33: 5
A34: Distance from front | B34: no. of points
A35: 2 | B35: 6
A36: Offset | B36: height
A37: 0 | B37: 0
A38: 0.07 | B38: 0.04
A39: 0.35 | B39: 0.35
A40: 0.524 | B40: 0.9
A41: 0.698 | B41: 1.8
A42: 0.7 | B42: 1.9
A43: Distance from front | B43: no. of points
A44: 4 | B44: 6
A45: Offset | B45: height
A46: 0 | B46: 0
A47: 0.2 | B47: 0.045
A48: 0.65 | B48: 0.35
A49: 0.88 | B49: 0.9
A50: 0.9 | B50: 1.8
A51: 0.9 | B51: 1.9
A52: Distance from front | B52: no. of points
A53: 7 | B53: 6
A54: Offset | B54: height
A55: 0 | B55: 0
A56: 0.2 | B56: 0.05
A57: 0.9 | B57: 0.5
A58: 0.97 | B58: 0.9
A59: 0.972 | B59: 1.8
A60: 0.972 | B60: 1.9
A61: Distance from front | B61: no. of points
A62: 13 | B62: 6
A63: Offset | B63: height
A64: 0 | B64: 0
A65: 0.15 | B65: 0.05
A66: 0.75 | B66: 0.5
A67: 0.925 | B67: 1
A68: 0.89 | B68: 1.8
A69: 0.89 | B69: 1.9
A70: Distance from front | B70: no. of points
A71: 17 | B71: 7
A72: Offset | B72: height
A73: 0.02 | B73: 0
A74: 0.03 | B74: 0.05
A75: 0.15 | B75: 0.43
A76: 0.53 | B76: 0.65
A77: 0.71 | B77: 0.9
A78: 0.75 | B78: 1.8
A79: 0.75 | B79: 1.9
A80: END OF HULL DATA
A81: Number of vertical sections | B81: spacing m
A82: 8 | B82: 0.2
A83: No. of diagonal sections
A84: 4
A85: Height of intercepts at centre line and 1m offset
A86: 0.7 | B86: 0.3
A87: 0.6 | B87: -0.1
A88: 0.4 | B88: -0.4
A89: 0.2 | B89: -0.7
A90: Keels: intercept at centre line | B90: offset at base | C90: thickness | D90: front | E90: back.
A91: 1 | B91: 0.7 | C91: 0.05 | D91: 7.5 | E91: 13.5
A92: Number of bulkheads
A93: 26
A94: Positions
A95: 0.65
A96: 1.3
A97: 1.95
A98: 2.6
A99: 3.25
A100: 4.25
A101: 4.9
A102: 5.55
A103: 6.55
A104: 7.2
A105: 7.85
A106: =A105+0.65 -> 8.5
A107: =A106+0.65 -> 9.15
A108: 9.8
A109: 10.45
A110: 11.1
A111: 11.75
A112: 12.4
A113: 13.05
A114: 13.7
A115: 14.35
A116: 15
A117: 15.65
A118: 16.3
A119: 16.7
A120: 17
A121: Plank thickness | B121: no. of planks | C121: min radius m
A122: 0.025 | B122: 120 | C122: 4
A123: Inclination angles
A124: 5 | B124: 15 | C124: 30

Sheet 17m(3)NSB
A1: 17m (3)NSB
A2: LOA | B2: Height | C2: Draft
A3: 17 | B3: 1.9 | C3: 0.6
A4: ANALYSIS. no.of sections (excl. zero) | B4: spacing of lines | C4: no. of heights | D4: spacing of lines | E4: plot scale (0.1mm units per m)
A5: 340 | B5: 20 | C5: 95 | D5: 10 | E5: 300
A6: FRONT LONG CURVE. Length | B6: no of points.
A7: 1.5 | B7: 6
A8: Distance from bottom of curve | B8: height
A9: 0 | B9: 0
A10: 0.1 | B10: 0
A11: 1.1 | B11: 0.15
A12: 1.4 | B12: 0.8
A13: 1.495 | B13: 1.8
A14: 1.5 | B14: 1.9
A15: BACK LONG CURVE. Length | B15: no of points.
A16: 1 | B16: 2
A17: Distance from bottom of curve | B17: height
A18: 0 | B18: 0
A19: 1 | B19: 0
A20: SHEER CURVE. Number of points.
A21: 3
A22: Distance from front | B22: distance below max height
A23: 0 | B23: 0
A24: 9 | B24: 0.1
A25: 17 | B25: 0
A26: CROSS SECTIONS number of
A27: 5
A28: Distance from front | B28: no. of points
A29: 2 | B29: 6
A30: Offset | B30: height
A31: 0 | B31: 0
A32: 0.07 | B32: 0.04
A33: 0.35 | B33: 0.35
A34: 0.524 | B34: 0.9
A35: 0.698 | B35: 1.8
A36: 0.7 | B36: 1.9
A37: Distance from front | B37: no. of points
A38: 4 | B38: 6
A39: Offset | B39: height
A40: 0 | B40: 0
A41: 0.2 | B41: 0.045
A42: 0.65 | B42: 0.35
A43: 0.88 | B43: 0.9
A44: 0.9 | B44: 1.8
A45: 0.9 | B45: 1.9
A46: Distance from front | B46: no. of points
A47: 7 | B47: 6
A48: Offset | B48: height
A49: 0 | B49: 0
A50: 0.2 | B50: 0.05
A51: 0.9 | B51: 0.5
A52: 0.97 | B52: 0.9
A53: 0.972 | B53: 1.8
A54: 0.972 | B54: 1.9
A55: Distance from front | B55: no. of points
A56: 13 | B56: 6
A57: Offset | B57: height
A58: 0 | B58: 0
A59: 0.15 | B59: 0.05
A60: 0.75 | B60: 0.5
A61: 0.925 | B61: 1
A62: 0.89 | B62: 1.8
A63: 0.89 | B63: 1.9
A64: Distance from front | B64: no. of points
A65: 17 | B65: 7
A66: Offset | B66: height
A67: 0.02 | B67: 0
A68: 0.03 | B68: 0.05
A69: 0.15 | B69: 0.43
A70: 0.53 | B70: 0.65
A71: 0.71 | B71: 0.9
A72: 0.75 | B72: 1.8
A73: 0.75 | B73: 1.9
A74: END OF HULL DATA
A75: Number of vertical sections | B75: spacing m
A76: 8 | B76: 0.2
A77: No. of diagonal sections
A78: 4
A79: Height of intercepts at centre line and 1m offset
A80: 0.7 | B80: 0.3
A81: 0.6 | B81: -0.1
A82: 0.4 | B82: -0.4
A83: 0.2 | B83: -0.7
A84: Keels: intercept at centre line | B84: offset at base | C84: thickness | D84: front | E84: back.
A85: 1 | B85: 0.001 | C85: 0 | D85: 7.5 | E85: 13.5
A86: Number of bulkheads
A87: 26
A88: Positions
A89: 0.65
A90: 1.3
A91: 1.95
A92: 2.6
A93: 3.25
A94: 4.25
A95: 4.9
A96: 5.55
A97: 6.55
A98: 7.2
A99: 7.85
A100: =A99+0.65 -> 8.5
A101: =A100+0.65 -> 9.15
A102: 9.8
A103: 10.45
A104: 11.1
A105: 11.75
A106: 12.4
A107: 13.05
A108: 13.7
A109: 14.35
A110: 15
A111: 15.65
A112: 16.3
A113: 16.7
A114: 17
A115: Plank thickness | B115: no. of planks | C115: min radius m
A116: 0.025 | B116: 120 | C116: 4
A117: Inclination angles
A118: 5 | B118: 15 | C118: 30

Sheet 17m(4)
A1: 17m (4)
A2: LOA | B2: Height | C2: Draft
A3: 17 | B3: 1.9 | C3: 0.6
A4: ANALYSIS. no.of sections (excl. zero) | B4: spacing of lines | C4: no. of heights | D4: spacing of lines | E4: plot scale (0.1mm units per m)
A5: 340 | B5: 20 | C5: 95 | D5: 10 | E5: 300
A6: FRONT LONG CURVE. Length | B6: no of points.
A7: 1.5 | B7: 6
A8: Distance from bottom of curve | B8: height
A9: 0 | B9: 0
A10: 0.1 | B10: 0
A11: 1.1 | B11: 0.15
A12: 1.4 | B12: 0.8
A13: 1.495 | B13: 1.8
A14: 1.5 | B14: 1.9
A15: BACK LONG CURVE. Length | B15: no of points.
A16: 0 | B16: 2
A17: Distance from bottom of curve | B17: height
A18: 0 | B18: 0
A19: 0 | B19: 0.1
A20: SHEER CURVE. Number of points.
A21: 9
A22: Distance from front | B22: distance below max height
A23: 0 | B23: 0
A24: =A26-0.1 -> 5.45 | B24: 0.1
A25: =A26-0.02 -> 5.53 | B25: 0.1
A26: 5.55 | B26: 0.11
A27: =A26+0.001 -> 5.551 | B27: 0.15
A28: =A26+0.3 -> 5.85 | B28: 0.475
A29: =A26+0.5 -> 6.05 | B29: 0.5
A30: =A26+0.6 -> 6.15 | B30: 0.5
A31: 17 | B31: 0.4
A32: CROSS SECTIONS number of
A33: 5
A34: Distance from front | B34: no. of points
A35: 2 | B35: 5
A36: Offset | B36: height
A37: 0 | B37: 0
A38: 0.35 | B38: 0.35
A39: 0.524 | B39: 0.9
A40: 0.698 | B40: 1.8
A41: 0.7 | B41: 1.9
A42: Distance from front | B42: no. of points
A43: 4 | B43: 6
A44: Offset | B44: height
A45: 0 | B45: 0
A46: 0.2 | B46: 0.045
A47: 0.65 | B47: 0.35
A48: 0.88 | B48: 0.9
A49: 0.9 | B49: 1.8
A50: 0.9 | B50: 1.9
A51: Distance from front | B51: no. of points
A52: 7 | B52: 6
A53: Offset | B53: height
A54: 0 | B54: 0
A55: 0.2 | B55: 0.05
A56: 0.9 | B56: 0.5
A57: 0.97 | B57: 0.9
A58: 0.972 | B58: 1.8
A59: 0.972 | B59: 1.9
A60: Distance from front | B60: no. of points
A61: 13 | B61: 5
A62: Offset | B62: height
A63: 0 | B63: 0
A64: 0.1 | B64: 0.05
A65: 0.925 | B65: 1
A66: 0.89 | B66: 1.8
A67: 0.89 | B67: 1.9
A68: Distance from front | B68: no. of points
A69: 17 | B69: 7
A70: Offset | B70: height
A71: 0.02 | B71: 0
A72: 0.05 | B72: 0.2
A73: 0.13 | B73: 0.45
A74: 0.53 | B74: 0.65
A75: 0.71 | B75: 0.9
A76: 0.75 | B76: 1.8
A77: 0.75 | B77: 1.9
A78: END OF HULL DATA
A79: Number of vertical sections | B79: spacing m
A80: 8 | B80: 0.2
A81: No. of diagonal sections
A82: 4
A83: Height of intercepts at centre line and 1m offset
A84: 0.7 | B84: 0.3
A85: 0.6 | B85: -0.1
A86: 0.4 | B86: -0.4
A87: 0.2 | B87: -0.7
A88: Keels: intercept at centre line | B88: offset at base | C88: thickness | D88: front | E88: back.
A89: 1 | B89: 0.001 | C89: 0 | D89: 7.5 | E89: 13.5
A90: Number of bulkheads
A91: 26
A92: Positions
A93: 0.65
A94: 1.3
A95: 1.95
A96: 2.6
A97: 3.25
A98: 4.25
A99: 4.9
A100: 5.55
A101: 6.55
A102: 7.2
A103: 7.85
A104: =A103+0.65 -> 8.5
A105: =A104+0.65 -> 9.15
A106: 9.8
A107: 10.45
A108: 11.1
A109: 11.75
A110: 12.4
A111: 13.05
A112: 13.7
A113: 14.35
A114: 15
A115: 15.65
A116: 16.3
A117: 16.65
A118: 17
A119: Plank thickness | B119: no. of planks | C119: min radius m
A120: 0.025 | B120: 120 | C120: 4
A121: Inclination angles
A122: 5 | B122: 15 | C122: 30

Sheet 17m(4)NSB
A1: 17m (4)NSB
A2: LOA | B2: Height | C2: Draft
A3: 17 | B3: 1.9 | C3: 0.6
A4: ANALYSIS. no.of sections (excl. zero) | B4: spacing of lines | C4: no. of heights | D4: spacing of lines | E4: plot scale (0.1mm units per m)
A5: 340 | B5: 20 | C5: 95 | D5: 10 | E5: 300
A6: FRONT LONG CURVE. Length | B6: no of points.
A7: 1.5 | B7: 6
A8: Distance from bottom of curve | B8: height
A9: 0 | B9: 0
A10: 0.1 | B10: 0
A11: 1.1 | B11: 0.15
A12: 1.4 | B12: 0.8
A13: 1.495 | B13: 1.8
A14: 1.5 | B14: 1.9
A15: BACK LONG CURVE. Length | B15: no of points.
A16: 0 | B16: 2
A17: Distance from bottom of curve | B17: height
A18: 0 | B18: 0
A19: 0 | B19: 0.1
A20: SHEER CURVE. Number of points.
A21: 3
A22: Distance from front | B22: distance below max height
A23: 0 | B23: 0
A24: 9 | B24: 0.1
A25: 17 | B25: 0
A26: CROSS SECTIONS number of
A27: 5
A28: Distance from front | B28: no. of points
A29: 2 | B29: 5
A30: Offset | B30: height
A31: 0 | B31: 0
A32: 0.35 | B32: 0.35
A33: 0.524 | B33: 0.9
A34: 0.698 | B34: 1.8
A35: 0.7 | B35: 1.9
A36: Distance from front | B36: no. of points
A37: 4 | B37: 6
A38: Offset | B38: height
A39: 0 | B39: 0
A40: 0.2 | B40: 0.045
A41: 0.65 | B41: 0.35
A42: 0.88 | B42: 0.9
A43: 0.9 | B43: 1.8
A44: 0.9 | B44: 1.9
A45: Distance from front | B45: no. of points
A46: 7 | B46: 6
A47: Offset | B47: height
A48: 0 | B48: 0
A49: 0.2 | B49: 0.05
A50: 0.9 | B50: 0.5
A51: 0.97 | B51: 0.9
A52: 0.972 | B52: 1.8
A53: 0.972 | B53: 1.9
A54: Distance from front | B54: no. of points
A55: 13 | B55: 5
A56: Offset | B56: height
A57: 0 | B57: 0
A58: 0.1 | B58: 0.05
A59: 0.925 | B59: 1
A60: 0.89 | B60: 1.8
A61: 0.89 | B61: 1.9
A62: Distance from front | B62: no. of points
A63: 17 | B63: 7
A64: Offset | B64: height
A65: 0.02 | B65: 0
A66: 0.05 | B66: 0.2
A67: 0.13 | B67: 0.45
A68: 0.53 | B68: 0.65
A69: 0.71 | B69: 0.9
A70: 0.75 | B70: 1.8
A71: 0.75 | B71: 1.9
A72: END OF HULL DATA
A73: Number of vertical sections | B73: spacing m
A74: 8 | B74: 0.2
A75: No. of diagonal sections
A76: 4
A77: Height of intercepts at centre line and 1m offset
A78: 0.7 | B78: 0.3
A79: 0.6 | B79: -0.1
A80: 0.4 | B80: -0.4
A81: 0.2 | B81: -0.7
A82: Keels: intercept at centre line | B82: offset at base | C82: thickness | D82: front | E82: back.
A83: 1 | B83: 0.001 | C83: 0 | D83: 7.5 | E83: 13.5
A84: Number of bulkheads
A85: 26
A86: Positions
A87: 0.65
A88: 1.3
A89: 1.95
A90: 2.6
A91: 3.25
A92: 4.25
A93: 4.9
A94: 5.55
A95: 6.55
A96: 7.2
A97: 7.85
A98: =A97+0.65 -> 8.5
A99: =A98+0.65 -> 9.15
A100: 9.8
A101: 10.45
A102: 11.1
A103: 11.75
A104: 12.4
A105: 13.05
A106: 13.7
A107: 14.35
A108: 15
A109: 15.65
A110: 16.3
A111: 16.65
A112: 17
A113: Plank thickness | B113: no. of planks | C113: min radius m
A114: 0.025 | B114: 120 | C114: 4
A115: Inclination angles
A116: 5 | B116: 15 | C116: 30

Sheet 17m(5)
A1: 17m (5)
A2: LOA | B2: Height | C2: Draft
A3: 17 | B3: 1.9 | C3: 0.6
A4: ANALYSIS. no.of sections (excl. zero) | B4: spacing of lines | C4: no. of heights | D4: spacing of lines | E4: plot scale (0.1mm units per m)
A5: 340 | B5: 20 | C5: 95 | D5: 10 | E5: 300
A6: FRONT LONG CURVE. Length | B6: no of points.
A7: 1.5 | B7: 6
A8: Distance from bottom of curve | B8: height
A9: 0 | B9: 0
A10: 0.1 | B10: 0
A11: 1.1 | B11: 0.15
A12: 1.4 | B12: 0.8
A13: 1.495 | B13: 1.8
A14: 1.5 | B14: 1.9
A15: BACK LONG CURVE. Length | B15: no of points.
A16: 0.5 | B16: 4
A17: Distance from bottom of curve | B17: height
A18: 0 | B18: 0
A19: 0.01 | B19: 0.05
A20: 0.45 | B20: 0.5
A21: 0.5 | B21: 0.5
A22: SHEER CURVE. Number of points.
A23: 9
A24: Distance from front | B24: distance below max height
A25: 0 | B25: 0
A26: =A28-0.1 -> 5.45 | B26: 0.1
A27: =A28-0.02 -> 5.53 | B27: 0.1
A28: 5.55 | B28: 0.11
A29: =A28+0.001 -> 5.551 | B29: 0.15
A30: =A28+0.3 -> 5.85 | B30: 0.475
A31: =A28+0.5 -> 6.05 | B31: 0.5
A32: =A28+0.6 -> 6.15 | B32: 0.5
A33: 17 | B33: 0.4
A34: CROSS SECTIONS number of
A35: 5
A36: Distance from front | B36: no. of points
A37: 2 | B37: 5
A38: Offset | B38: height
A39: 0 | B39: 0
A40: 0.35 | B40: 0.35
A41: 0.524 | B41: 0.9
A42: 0.698 | B42: 1.8
A43: 0.7 | B43: 1.9
A44: Distance from front | B44: no. of points
A45: 4 | B45: 6
A46: Offset | B46: height
A47: 0 | B47: 0
A48: 0.2 | B48: 0.045
A49: 0.65 | B49: 0.35
A50: 0.88 | B50: 0.9
A51: 0.9 | B51: 1.8
A52: 0.9 | B52: 1.9
A53: Distance from front | B53: no. of points
A54: 7 | B54: 6
A55: Offset | B55: height
A56: 0 | B56: 0
A57: 0.2 | B57: 0.05
A58: 0.9 | B58: 0.5
A59: 0.97 | B59: 0.9
A60: 0.972 | B60: 1.8
A61: 0.972 | B61: 1.9
A62: Distance from front | B62: no. of points
A63: 13 | B63: 5
A64: Offset | B64: height
A65: 0 | B65: 0
A66: 0.1 | B66: 0.05
A67: 0.925 | B67: 1
A68: 0.89 | B68: 1.8
A69: 0.89 | B69: 1.9
A70: Distance from front | B70: no. of points
A71: 17 | B71: 5
A72: Offset | B72: height
A73: 0 | B73: 0.5
A74: 0.5 | B74: 0.65
A75: 0.71 | B75: 0.9
A76: 0.75 | B76: 1.8
A77: 0.75 | B77: 1.9
A78: END OF HULL DATA
A79: Number of vertical sections | B79: spacing m
A80: 8 | B80: 0.2
A81: No. of diagonal sections
A82: 4
A83: Height of intercepts at centre line and 1m offset
A84: 0.7 | B84: 0.3
A85: 0.6 | B85: -0.1
A86: 0.4 | B86: -0.4
A87: 0.2 | B87: -0.7
A88: Keels: intercept at centre line | B88: offset at base | C88: thickness | D88: front | E88: back.
A89: 1 | B89: 0.001 | C89: 0 | D89: 7.5 | E89: 13.5
A90: Number of bulkheads
A91: 26
A92: Positions
A93: 0.65
A94: 1.3
A95: 1.95
A96: 2.6
A97: 3.25
A98: 4.25
A99: 4.9
A100: 5.55
A101: 6.55
A102: 7.2
A103: 7.85
A104: =A103+0.65 -> 8.5
A105: =A104+0.65 -> 9.15
A106: 9.8
A107: 10.45
A108: 11.1
A109: 11.75
A110: 12.4
A111: 13.05
A112: 13.7
A113: 14.35
A114: 15
A115: 15.65
A116: 16.3
A117: 16.7
A118: 17
A119: Plank thickness | B119: no. of planks | C119: min radius m
A120: 0.025 | B120: 120 | C120: 4
A121: Inclination angles
A122: 5 | B122: 15 | C122: 30

Sheet 17m(5)NSB
A1: 17m (5)NSB
A2: LOA | B2: Height | C2: Draft
A3: 17 | B3: 1.9 | C3: 0.6
A4: ANALYSIS. no.of sections (excl. zero) | B4: spacing of lines | C4: no. of heights | D4: spacing of lines | E4: plot scale (0.1mm units per m)
A5: 340 | B5: 20 | C5: 95 | D5: 10 | E5: 300
A6: FRONT LONG CURVE. Length | B6: no of points.
A7: 1.5 | B7: 6
A8: Distance from bottom of curve | B8: height
A9: 0 | B9: 0
A10: 0.1 | B10: 0
A11: 1.1 | B11: 0.15
A12: 1.4 | B12: 0.8
A13: 1.495 | B13: 1.8
A14: 1.5 | B14: 1.9
A15: BACK LONG CURVE. Length | B15: no of points.
A16: 0.5 | B16: 4
A17: Distance from bottom of curve | B17: height
A18: 0 | B18: 0
A19: 0.01 | B19: 0.05
A20: 0.45 | B20: 0.5
A21: 0.5 | B21: 0.5
A22: SHEER CURVE. Number of points.
A23: 3
A24: Distance from front | B24: distance below max height
A25: 0 | B25: 0
A26: 9 | B26: 0.1
A27: 17 | B27: 0
A28: CROSS SECTIONS number of
A29: 5
A30: Distance from front | B30: no. of points
A31: 2 | B31: 5
A32: Offset | B32: height
A33: 0 | B33: 0
A34: 0.35 | B34: 0.35
A35: 0.524 | B35: 0.9
A36: 0.698 | B36: 1.8
A37: 0.7 | B37: 1.9
A38: Distance from front | B38: no. of points
A39: 4 | B39: 6
A40: Offset | B40: height
A41: 0 | B41: 0
A42: 0.2 | B42: 0.045
A43: 0.65 | B43: 0.35
A44: 0.88 | B44: 0.9
A45: 0.9 | B45: 1.8
A46: 0.9 | B46: 1.9
A47: Distance from front | B47: no. of points
A48: 7 | B48: 6
A49: Offset | B49: height
A50: 0 | B50: 0
A51: 0.2 | B51: 0.05
A52: 0.9 | B52: 0.5
A53: 0.97 | B53: 0.9
A54: 0.972 | B54: 1.8
A55: 0.972 | B55: 1.9
A56: Distance from front | B56: no. of points
A57: 13 | B57: 5
A58: Offset | B58: height
A59: 0 | B59: 0
A60: 0.1 | B60: 0.05
A61: 0.925 | B61: 1
A62: 0.89 | B62: 1.8
A63: 0.89 | B63: 1.9
A64: Distance from front | B64: no. of points
A65: 17 | B65: 5
A66: Offset | B66: height
A67: 0 | B67: 0.5
A68: 0.5 | B68: 0.65
A69: 0.71 | B69: 0.9
A70: 0.75 | B70: 1.8
A71: 0.75 | B71: 1.9
A72: END OF HULL DATA
A73: Number of vertical sections | B73: spacing m
A74: 8 | B74: 0.2
A75: No. of diagonal sections
A76: 4
A77: Height of intercepts at centre line and 1m offset
A78: 0.7 | B78: 0.3
A79: 0.6 | B79: -0.1
A80: 0.4 | B80: -0.4
A81: 0.2 | B81: -0.7
A82: Keels: intercept at centre line | B82: offset at base | C82: thickness | D82: front | E82: back.
A83: 1 | B83: 0.001 | C83: 0 | D83: 7.5 | E83: 13.5
A84: Number of bulkheads
A85: 27
A86: Positions
A87: 0.65
A88: 1.3
A89: 1.95
A90: 2.6
A91: 3.25
A92: 4.25
A93: 4.9
A94: 5.55
A95: 6.55
A96: 7.2
A97: 7.85
A98: =A97+0.65 -> 8.5
A99: =A98+0.65 -> 9.15
A100: 9.8
A101: 10.45
A102: 11.1
A103: 11.75
A104: 12.4
A105: 13.05
A106: 13.7
A107: 14.35
A108: 15
A109: 15.65
A110: 16.3
A111: 16.7
A112: 16.982
A113: 17
A114: Plank thickness | B114: no. of planks | C114: min radius m
A115: 0.025 | B115: 120 | C115: 4
A116: Inclination angles
A117: 5 | B117: 15 | C117: 30

Sheet lines
N2: Horizontal sections on plan | X2: Cross sections | DP2: vertical section lines on elevation | FJ2: Horizontal sections on elevation | GB2: Vertical section lines on cross section | HH2: vertical sections | HJ2: long sections
H3: Front | J3: Back | L3: Sheer | N3: 1 | O3: 2 | P3: 3 | Q3: 4 | R3: 5 | S3: 6 | T3: 7 | X3: 1 | Z3: 2 | AB3: 3 | AD3: 4 | AF3: 5 | AH3: 6 | AJ3: 7 | AL3: 8 | AN3: 9 | AP3: 10 | AR3: 11 | AT3: 12 | AV3: 13 | AX3: 14 | AZ3: 15 | BB3: 16 | BD3: 17 | BF3: 18 | BH3: 19 | BJ3: 20 | BP3: Horizontal section lines | CH3: Diagonal section lines | CT3: keel section lines | CV3: left keel | CX3: right keel | CZ3: sheer in section | DD3: water line | DF3: vertical sections on elevation | DN3: water line on elevation | DP3: 1 | DR3: 2 | DT3: 3 | DV3: 4 | DX3: 5 | DZ3: 6 | EB3: 7 | ED3: 8 | EF3: 9 | EH3: 10 | EJ3: 11 | EL3: 12 | EN3: 13 | EP3: 14 | ER3: 15 | ET3: 16 | EV3: 17 | EX3: 18 | EZ3: 19 | FB3: 20 | FD3: 21 | FJ3: 1 | FL3: 2 | FN3: 3 | FP3: 4 | FR3: 5 | FT3: 6 | FV3: 7 | GB3: 1a | GD3: 1b | GR3: centre line | GX3: Centre line | GZ3: Diagonal sections | HH3: on plan | HJ3: on plan | HL3: keel on plan
H4: -1.5 | I4: -1.899999976 | J4: -1.5 | K4: -1.899999976 | L4: 0 | M4: 0 | N4: 0 | O4: 0 | P4: 0 | Q4: 0 | R4: 0 | S4: 0 | T4: 0 | U4: 0 | V4: 0 | W4: 0 | X4: 0 | Y4: 0 | Z4: 0 | AA4: 0 | AB4: 0 | AC4: 0 | AD4: 0 | AE4: 0 | AF4: 0 | AG4: 0 | AH4: 0 | AI4: 0 | AJ4: 0 | AK4: 0 | AL4: 0 | AM4: 0 | AN4: 0 | AO4: 0 | AP4: 0 | AQ4: 0 | AR4: 0 | AS4: 0 | AT4: 0 | AU4: 0 | AV4: 0 | AW4: 0 | AX4: 0 | AY4: 0 | AZ4: 0 | BA4: 0 | BB4: 0 | BC4: 0 | BD4: 0 | BE4: 0 | BP4: -0.07798440009 | BQ4: 0.01999999955 | BR4: -0.5702565908 | BS4: 0.2199999988 | BT4: -0.8360086083 | BU4: 0.4199999869 | BV4: -0.9383023977 | BW4: 0.6200000048 | BX4: -0.9671197534 | BY4: 0.8199999928 | BZ4: -0.9800031781 | CA4: 1.019999981 | CB4: -0.9820721745 | CC4: 1.220000029 | CD4: -0.9777989984 | CE4: 1.419999957 | CF4: -0.9715189934 | CG4: 1.619999886 | CH4: 0.1699222773 | CI4: 0.04706995189 | CJ4: 0.3542335629 | CK4: 0.1166131496 | CL4: 0.5552351475 | CM4: 0.2113353908 | CN4: 0.7988126874 | CO4: 0.380474925 | CT4: -0.001000000047 | CU4: 0 | CV4: -0.0009782708752 | CW4: 0.02172917128 | CX4: 0.0009782708752 | CZ4: 0 | DA4: 1.899999976 | DD4: -1.5 | DE4: 0.6000000238 | DF4: 0 | DG4: 0 | DH4: 0 | DI4: 0 | DJ4: 0 | DK4: 0 | DL4: 0 | DM4: 0 | DN4: 1 | DO4: -1.299999952 | DP4: 0 | DQ4: 0 | DR4: -1 | DS4: -0.02208749577 | DT4: -2 | DU4: -0.04137250036 | DV4: -3 | DW4: -0.05785522982 | DX4: -4 | DY4: -0.07158837467 | DZ4: -5 | EA4: -0.08259343356 | EB4: -6 | EC4: -0.09090231359 | ED4: -7 | EE4: -0.09655679762 | EF4: -8 | EG4: -0.09956897795 | EH4: -9 | EI4: -0.1000000015 | EJ4: -10 | EK4: -0.0976254642 | EL4: -11 | EM4: -0.09227598459 | EN4: -12 | EO4: -0.08399255574 | EP4: -13 | EQ4: -0.0728161335 | ER4: -14 | ES4: -0.05878770351 | ET4: -15 | EU4: -0.0419482179 | EV4: -16 | EW4: -0.02233866602 | EX4: -17 | EY4: 0 | FJ4: -1.5 | FK4: -1.899999976 | FL4: -0.3279920816 | FM4: -1.699999928 | FN4: -0.2035037279 | FO4: -1.499999881 | FP4: -0.1429651976 | FQ4: -1.299999952 | FR4: -0.1000000238 | FS4: -1.100000024 | FT4: -0.07000005245 | FU4: -0.8999999762 | FV4: -0.04869544506 | FW4: -0.7000000477 | FX4: -0.03173673153 | FY4: -0.5 | FZ4: -0.01746451855 | GA4: -0.2999999821 | GB4: 0.200000003 | GC4: 1.889716029 | GD4: -0.200000003 | GE4: 1.899999976 | GR4: 0 | GS4: 0 | GX4: 0 | GY4: 0 | GZ4: 0 | HA4: 0 | HB4: 0 | HC4: 0 | HD4: 0 | HH4: 0 | HI4: 0 | HJ4: -0.4499999881 | HK4: 0.200000003 | HL4: 0 | HM4: 0
H5: -0.759485364 | I5: -1.879999876 | J5: -16.5 | K5: -1.899999976 | L5: -0.05000000075 | M5: -0.001162934117 | N5: 0 | O5: 0 | P5: 0 | Q5: 0 | R5: 0 | S5: 0 | T5: 0.0004934330937 | U5: 0.007603746373 | V5: 0.01457136311 | W5: 0.02109549567 | X5: 0.003711991943 | Y5: 0.01999999955 | Z5: 0.02530847117 | AA5: 0.01999999955 | AB5: 0.06672435254 | AC5: 0.01999999955 | AD5: 0.09836813807 | AE5: 0.01999999955 | AF5: 0.09936821461 | AG5: 0.01999999955 | AH5: 0.09364340454 | AI5: 0.01999999955 | AJ5: 0.08671717346 | AK5: 0.01999999955 | AL5: 0.08096176386 | AM5: 0.01999999955 | AN5: -0.07490836829 | AO5: 0.01999999955 | AP5: -0.06836668402 | AQ5: 0.01999999955 | AR5: -0.06114644185 | AS5: 0.01999999955 | AT5: -0.05305734277 | AU5: 0.01999999955 | AV5: -0.04390909895 | AW5: 0.01999999955 | AX5: -0.03321019933 | AY5: 0.01999999955 | AZ5: -0.02087572217 | BA5: 0.01999999955 | BB5: -0.0072430484 | BC5: 0.01999999955 | BD5: 0 | BE5: 0.01999999955 | BP5: 0.07798440009 | BQ5: 0.01999999955 | BR5: 0.5702565908 | BS5: 0.2199999988 | BT5: 0.8360086083 | BU5: 0.4199999869 | BV5: 0.9383023977 | BW5: 0.6200000048 | BX5: 0.9671197534 | BY5: 0.8199999928 | BZ5: 0.9800031781 | CA5: 1.019999981 | CB5: 0.9820721745 | CC5: 1.220000029 | CD5: 0.9777989984 | CE5: 1.419999957 | CF5: 0.9715189934 | CG5: 1.619999886 | CH5: 0 | CI5: 0.200000003 | CJ5: 0 | CK5: 0.400000006 | CL5: 0 | CM5: 0.6000000238 | CN5: 0 | CO5: 0.6999999881 | CT5: 0 | CU5: 1 | CV5: -0.001000000047 | CW5: 0 | CX5: 0.001000000047 | CZ5: 0 | DA5: 1.899999976 | DD5: 1.5 | DE5: 0.6000000238 | DF5: -0.05000000075 | DG5: -0.00116288662 | DH5: -0.00116288662 | DI5: -0.00116288662 | DJ5: -0.00116288662 | DK5: -0.00116288662 | DL5: -0.00116288662 | DM5: -0.00116288662 | DN5: -18 | DO5: -1.299999952 | DP5: 0 | DQ5: 0 | DR5: -1 | DS5: -1.899999976 | DT5: -2 | DU5: -1.899999976 | DV5: -3 | DW5: -1.899999976 | DX5: -4 | DY5: -1.899999976 | DZ5: -5 | EA5: -1.899999976 | EB5: -6 | EC5: -1.899999976 | ED5: -7 | EE5: -1.899999976 | EF5: -8 | EG5: -1.899999976 | EH5: -9 | EI5: -1.899999976 | EJ5: -10 | EK5: -1.899999976 | EL5: -11 | EM5: -1.899999976 | EN5: -12 | EO5: -1.899999976 | EP5: -13 | EQ5: -1.899999976 | ER5: -14 | ES5: -1.899999976 | ET5: -15 | EU5: -1.899999976 | EV5: -16 | EW5: -1.899999976 | EX5: -17 | EY5: -1.399999976 | FJ5: -16.5 | FK5: -1.899999976 | FL5: -16.55585289 | FM5: -1.699999928 | FN5: -16.65620613 | FO5: -1.499999881 | FP5: -17 | FQ5: -1.299999952 | FR5: -17 | FS5: -1.100000024 | FT5: -17 | FU5: -0.8999999762 | FV5: -17 | FW5: -0.7000000477 | FX5: -17 | FY5: -0.5 | FZ5: -17 | GA5: -0.2999999821 | GB5: 0.200000003 | GC5: 0.05732790381 | GD5: -0.200000003 | GE5: 0.05732790381 | GR5: 0 | GS5: 1.899999976 | GX5: -17 | GY5: 0 | GZ5: 0 | HA5: 0 | HB5: 0 | HC5: 0 | HD5: 0 | HH5: 0 | HI5: 0 | HJ5: -17 | HK5: 0.200000003 | HL5: 0 | HM5: 0
H6: -0.6631579399 | I6: -1.860000014 | J6: -16.50374985 | K6: -1.879999876 | L6: -0.1000000015 | M6: -0.002325868234 | N6: 0 | O6: 0 | P6: 0 | Q6: 0 | R6: 0 | S6: 0.01012723055 | T6: 0.01940535381 | U6: 0.02842079476 | V6: 0.03696439415 | W6: 0.04453493282 | X6: 0.009768147953 | Y6: 0.03999999911 | Z6: 0.0503090471 | AA6: 0.03999999911 | AB6: 0.1259188503 | AC6: 0.03999999911 | AD6: 0.1844156981 | AE6: 0.03999999911 | AF6: 0.1876023263 | AG6: 0.03999999911 | AH6: 0.1776191741 | AI6: 0.03999999911 | AJ6: 0.1648653746 | AK6: 0.03999999911 | AL6: 0.1538838893 | AM6: 0.03999999911 | AN6: -0.1420709789 | AO6: 0.03999999911 | AP6: -0.129180178 | AQ6: 0.03999999911 | AR6: -0.1149649918 | AS6: 0.03999999911 | AT6: -0.09917896986 | AU6: 0.03999999911 | AV6: -0.08157558739 | AW6: 0.03999999911 | AX6: -0.06141114235 | AY6: 0.03999999911 | AZ6: -0.03852678463 | BA6: 0.03999999911 | BB6: -0.01341885794 | BC6: 0.03999999911 | BD6: 0 | BE6: 0.03999999911 | CH6: -0.1699222773 | CI6: 0.04706995189 | CJ6: -0.3542335629 | CK6: 0.1166131496 | CL6: -0.5552351475 | CM6: 0.2113353908 | CN6: -0.7988126874 | CO6: 0.380474925 | CT6: 0.001000000047 | CU6: 0 | CV6: -0.001000000047 | CW6: 0 | CX6: 0.001000000047 | CZ6: 0.4179622531 | DA6: 1.877912521 | DF6: -0.1000000015 | DG6: -0.002325892448 | DH6: -0.002325892448 | DI6: -0.002325892448 | DJ6: -0.002325892448 | DK6: -0.002325892448 | DL6: -0.002325892448 | DM6: -0.002325892448 | DN6: -0.002325892448 | GZ6: -0.05000000075 | HA6: 0 | HB6: 0 | HC6: 0 | HD6: 0 | HL6: -0.05000000075 | HM6: -0.172988382
H7: -0.5951985121 | I7: -1.840000033 | J7: -16.50749969 | K7: -1.860000014 | L7: -0.150000006 | M7: -0.003488802351 | N7: 0 | O7: 0 | P7: 0 | Q7: 0.001930774422 | R7: 0.01505411789 | S7: 0.02700597793 | T7: 0.0383172743 | U7: 0.04910072684 | V7: 0.05906335264 | W7: 0.06753313541 | X7: 0.01799858361 | Y7: 0.05999999866 | Z7: 0.07492440939 | AA7: 0.05999999866 | AB7: 0.1691947877 | AC7: 0.05999999866 | AD7: 0.2438547611 | AE7: 0.05999999866 | AF7: 0.2539131939 | AG7: 0.05999999866 | AH7: 0.24414891 | AI7: 0.05999999866 | AJ7: 0.2291038334 | AK7: 0.05999999866 | AL7: 0.2154728174 | AM7: 0.05999999866 | AN7: -0.2000612319 | AO7: 0.05999999866 | AP7: -0.1826448739 | AQ7: 0.05999999866 | AR7: -0.1629994512 | AS7: 0.05999999866 | AT7: -0.1409008354 | AU7: 0.05999999866 | AV7: -0.1161247492 | AW7: 0.05999999866 | AX7: -0.08765985072 | AY7: 0.05999999866 | AZ7: -0.05520576611 | BA7: 0.05999999866 | BB7: -0.01941456459 | BC7: 0.05999999866 | BD7: 0 | BE7: 0.05999999866 | CV7: -0.0009782708752 | CW7: 0.02172917128 | CX7: 0.0009782708752 | CZ7: 0.699953258 | DA7: 1.858627439 | DF7: -0.150000006 | DG7: -0.003488779068 | DH7: -0.003488779068 | DI7: -0.003488779068 | DJ7: -0.003488779068 | DK7: -0.003488779068 | DL7: -0.003488779068 | DM7: -0.003488779068 | DN7: -0.003488779068 | GZ7: -0.1000000015 | HA7: 0 | HB7: 0 | HC7: 0 | HD7: 0 | HL7: -0.1000000015 | HM7: -0.1964313774
A8: 17m (5)NSB | H8: -0.5406797528 | I8: -1.819999933 | J8: -16.51277161 | K8: -1.840000033 | L8: -0.200000003 | M8: -0.004643197637 | N8: 0 | O8: 0 | P8: 0 | Q8: 0.01565377973 | R8: 0.03010824509 | S8: 0.0437146686 | T8: 0.05685004964 | U8: 0.06945045292 | V8: 0.08093480766 | W8: 0.09042103589 | X8: 0.02718398347 | Y8: 0.07999999821 | Z8: 0.09905891865 | AA8: 0.07999999821 | AB8: 0.2090067714 | AC8: 0.07999999821 | AD8: 0.2969655693 | AE8: 0.07999999821 | AF8: 0.3128575981 | AG8: 0.07999999821 | AH8: 0.3031188846 | AI8: 0.07999999821 | AJ8: 0.2860744596 | AK8: 0.07999999821 | AL8: 0.2703324854 | AM8: 0.07999999821 | AN8: -0.2520607114 | AO8: 0.07999999821 | AP8: -0.2309941202 | AQ8: 0.07999999821 | AR8: -0.2068675607 | AS8: 0.07999999821 | AT8: -0.1794159859 | AU8: 0.07999999821 | AV8: -0.1483742595 | AW8: 0.07999999821 | AX8: -0.1123971641 | AY8: 0.07999999821 | AZ8: -0.07105783373 | BA8: 0.07999999821 | BB8: -0.02521961555 | BC8: 0.07999999821 | BD8: 0 | BE8: 0.07999999821 | CZ8: 0.8368209004 | DA8: 1.842144728 | DF8: -0.200000003 | DG8: -0.004643201828 | DH8: -0.004643201828 | DI8: -0.004643201828 | DJ8: -0.004643201828 | DK8: -0.004643201828 | DL8: -0.004643201828 | DM8: -0.004643201828 | DN8: -0.004643201828 | GB8: 0.400000006 | GC8: 1.878945231 | GD8: -0.400000006 | GE8: 1.899999976 | GZ8: -0.150000006 | HA8: -0.009025815412 | HB8: -0.002251107781 | HC8: 0 | HD8: 0 | HH8: -1 | HI8: 0.4179622531 | HJ8: -0.9499999881 | HK8: 0.400000006 | HL8: -0.150000006 | HM8: -0.4255566341
H9: -0.4942216873 | I9: -1.799999952 | J9: -16.51831627 | K9: -1.819999933 | L9: -0.25 | M9: -0.005779982544 | N9: 0 | O9: 0 | P9: 0.01086727157 | Q9: 0.02934358642 | R9: 0.04494509101 | S9: 0.06029424816 | T9: 0.07537193596 | U9: 0.08969503641 | V9: 0.1025509685 | W9: 0.1129093766 | X9: 0.03715138137 | Y9: 0.1000000015 | Z9: 0.1227174625 | AA9: 0.1000000015 | AB9: 0.24520576 | AC9: 0.1000000015 | AD9: 0.3443589509 | AE9: 0.1000000015 | AF9: 0.3668187559 | AG9: 0.1000000015 | AH9: 0.3580836058 | AI9: 0.1000000015 | AJ9: 0.3398704827 | AK9: 0.1000000015 | AL9: 0.3225889802 | AM9: 0.1000000015 | AN9: -0.3019371629 | AO9: 0.1000000015 | AP9: -0.2776280642 | AQ9: 0.1000000015 | AR9: -0.249374643 | AS9: 0.1000000015 | AT9: -0.2168899924 | AU9: 0.1000000015 | AV9: -0.1798870116 | AW9: 0.1000000015 | AX9: -0.1366841346 | AY9: 0.1000000015 | AZ9: -0.08671135455 | BA9: 0.1000000015 | BB9: -0.03104282916 | BC9: 0.1000000015 | BD9: 0 | BE9: 0.1000000015 | CZ9: 0.9000917077 | DA9: 1.828411579 | DF9: -0.25 | DG9: -0.005779981613 | DH9: -0.005779981613 | DI9: -0.005779981613 | DJ9: -0.005779981613 | DK9: -0.005779981613 | DL9: -0.005779981613 | DM9: -0.005779981613 | DN9: -0.005779981613 | GB9: 0.400000006 | GC9: 0.1367907524 | GD9: -0.400000006 | GE9: 0.1367907524 | GZ9: -0.200000003 | HA9: -0.02406903433 | HB9: -0.01815137543 | HC9: 0 | HD9: 0 | HH9: -1 | HI9: -0.2425438444 | HJ9: -17 | HK9: 0.400000006 | HL9: -0.200000003 | HM9: -0.5879899223
H10: -0.452631712 | I10: -1.779999852 | J10: -16.52375031 | K10: -1.799999952 | L10: -0.3000000119 | M10: -0.006916767918 | N10: 0 | O10: 0 | P10: 0.0225480739 | Q10: 0.04288802668 | R10: 0.05978194624 | S10: 0.07671356201 | T10: 0.09353363514 | U10: 0.1095701531 | V10: 0.1238871515 | W10: 0.1352264881 | X10: 0.04767772928 | Y10: 0.1199999973 | Z10: 0.1457738131 | AA10: 0.1199999973 | AB10: 0.2781752944 | AC10: 0.1199999973 | AD10: 0.3867216706 | AE10: 0.1199999973 | AF10: 0.4161812961 | AG10: 0.1199999973 | AH10: 0.4091311991 | AI10: 0.1199999973 | AJ10: 0.3904035687 | AK10: 0.1199999973 | AL10: 0.3721075356 | AM10: 0.1199999973 | AN10: -0.3495593369 | AO10: 0.1199999973 | AP10: -0.3224528134 | AQ10: 0.1199999973 | AR10: -0.2904818356 | AS10: 0.1199999973 | AT10: -0.2533403039 | AU10: 0.1199999973 | AV10: -0.2107219696 | AW10: 0.1199999973 | AX10: -0.1605956256 | AY10: 0.1199999973 | AZ10: -0.1022379994 | BA10: 0.1199999973 | BB10: -0.03694374487 | BC10: 0.1199999973 | BD10: 0 | BE10: 0.1199999973 | CZ10: 0.9423263073 | DA10: 1.817406535 | DF10: -0.3000000119 | DG10: -0.006916761398 | DH10: -0.006916761398 | DI10: -0.006916761398 | DJ10: -0.006916761398 | DK10: -0.006916761398 | DL10: -0.006916761398 | DM10: -0.006916761398 | DN10: -0.006916761398 | GZ10: -0.25 | HA10: -0.03892585505 | HB10: -0.03385965183 | HC10: -0.01287372848 | HD10: 0 | HL10: -0.25 | HM10: -0.694129218
A11: Lines and Sections | H11: -0.4176797867 | I11: -1.75999999 | J11: -16.52989197 | K11: -1.779999852 | L11: -0.349999994 | M11: -0.008053552359 | N11: 0 | O11: 0.003014490474 | P11: 0.03409597278 | Q11: 0.05639144033 | R11: 0.07440301031 | S11: 0.09299458563 | T11: 0.1116631925 | U11: 0.1293731183 | V11: 0.1450091749 | W11: 0.1571895629 | X11: 0.05855164304 | Y11: 0.1400000006 | Z11: 0.1681921482 | AA11: 0.1400000006 | AB11: 0.3081231117 | AC11: 0.1400000006 | AD11: 0.42448017 | AE11: 0.1400000006 | AF11: 0.4613278806 | AG11: 0.1400000006 | AH11: 0.4563388526 | AI11: 0.1400000006 | AJ11: 0.43752864 | AK11: 0.1400000006 | AL11: 0.4187009335 | AM11: 0.1400000006 | AN11: -0.3947331905 | AO11: 0.1400000006 | AP11: -0.3652923107 | AQ11: 0.1400000006 | AR11: -0.3300451636 | AS11: 0.1400000006 | AT11: -0.2886586189 | AU11: 0.1400000006 | AV11: -0.2407996058 | AW11: 0.1400000006 | AX11: -0.1840674877 | AY11: 0.1400000006 | AZ11: -0.1175811738 | BA11: 0.1400000006 | BB11: -0.0428706035 | BC11: 0.1400000006 | BD11: 0 | BE11: 0.1400000006 | CZ11: 0.9643924236 | DA11: 1.809097648 | DF11: -0.349999994 | DG11: -0.008053541183 | DH11: -0.008053541183 | DI11: -0.008053541183 | DJ11: -0.008053541183 | DK11: -0.008053541183 | DL11: -0.008053541183 | DM11: -0.008053541183 | DN11: -0.008053541183 | GZ11: -0.3000000119 | HA11: -0.05362756247 | HB11: -0.04920733357 | HC11: -0.02642422836 | HD11: 0 | HL11: -0.3000000119 | HM11: -0.7709952275
H12: -0.3842104673 | I12: -1.74000001 | J12: -16.53591347 | K12: -1.75999999 | L12: -0.400000006 | M12: -0.009173295461 | N12: 0 | O12: 0.009863143787 | P12: 0.0456235446 | Q12: 0.06975843012 | R12: 0.08902408183 | S12: 0.1091250777 | T12: 0.1294517815 | U12: 0.148766309 | V12: 0.1657963842 | W12: 0.1789166331 | X12: 0.06999439001 | Y12: 0.1599999964 | Z12: 0.1904168576 | AA12: 0.1599999964 | AB12: 0.3350367248 | AC12: 0.1599999964 | AD12: 0.4576506019 | AE12: 0.1599999964 | AF12: 0.5028254986 | AG12: 0.1599999964 | AH12: 0.500338316 | AI12: 0.1599999964 | AJ12: 0.4818410873 | AK12: 0.1599999964 | AL12: 0.462967813 | AM12: 0.1599999964 | AN12: -0.4379982352 | AO12: 0.1599999964 | AP12: -0.406586349 | AQ12: 0.1599999964 | AR12: -0.3683861196 | AS12: 0.1599999964 | AT12: -0.3230514824 | AU12: 0.1599999964 | AV12: -0.2702364028 | AW12: 0.1599999964 | AX12: -0.2071657777 | AY12: 0.1599999964 | AZ12: -0.1327857673 | BA12: 0.1599999964 | BB12: -0.04886459187 | BC12: 0.1599999964 | BD12: 0 | BE12: 0.1599999964 | CZ12: 0.9720000029 | DA12: 1.803443193 | DF12: -0.400000006 | DG12: -0.00917327404 | DH12: -0.00917327404 | DI12: -0.00917327404 | DJ12: -0.00917327404 | DK12: -0.00917327404 | DL12: -0.00917327404 | DM12: -0.00917327404 | DN12: -0.00917327404 | GB12: 0.6000000238 | GC12: 1.866007209 | GD12: -0.6000000238 | GE12: 1.899999976 | GZ12: -0.349999994 | HA12: -0.06815396593 | HB12: -0.06439820135 | HC12: -0.03951141757 | HD12: -0.003571146035 | HH12: -2 | HI12: 0.699953258 | HJ12: -1.600000024 | HK12: 0.6000000238 | HL12: -0.349999994 | HM12: -0.8145958682
H13: -0.3526315689 | I13: -1.719999909 | J13: -16.5423336 | K13: -1.74000001 | L13: -0.4499999881 | M13: -0.01028398518 | N13: 0 | O13: 0.01671689562 | P13: 0.05703391135 | Q13: 0.08307667822 | R13: 0.1034308672 | S13: 0.1251081526 | T13: 0.1471867263 | U13: 0.1681214273 | V13: 0.1864129752 | W13: 0.2003390491 | X13: 0.08117564023 | Y13: 0.1800000072 | Z13: 0.2108998895 | AA13: 0.1800000072 | AB13: 0.3586032391 | AC13: 0.1800000072 | AD13: 0.4869649112 | AE13: 0.1800000072 | AF13: 0.5410460234 | AG13: 0.1800000072 | AH13: 0.5413339138 | AI13: 0.1800000072 | AJ13: 0.5234420896 | AK13: 0.1800000072 | AL13: 0.5049123168 | AM13: 0.1800000072 | AN13: -0.4792912602 | AO13: 0.1800000072 | AP13: -0.4462291002 | AQ13: 0.1800000072 | AR13: -0.4053757787 | AS13: 0.1800000072 | AT13: -0.3563814461 | AU13: 0.1800000072 | AV13: -0.2988960445 | AW13: 0.1800000072 | AX13: -0.2297670543 | AY13: 0.1800000072 | AZ13: -0.1477576196 | BA13: 0.1800000072 | BB13: -0.05487707257 | BC13: 0.1800000072 | BD13: 0 | BE13: 0.1800000072 | CZ13: 0.9709777832 | DA13: 1.800431013 | DF13: -0.4499999881 | DG13: -0.1058028936 | DH13: -0.01028394699 | DI13: -0.01028394699 | DJ13: -0.01028394699 | DK13: -0.01028394699 | DL13: -0.01028394699 | DM13: -0.01028394699 | DN13: -0.01028394699 | GB13: 0.6000000238 | GC13: 0.2370698303 | GD13: -0.6000000238 | GE13: 0.2370698303 | GZ13: -0.400000006 | HA13: -0.08252469576 | HB13: -0.0792494575 | HC13: -0.05222063561 | HD13: -0.01124408525 | HH13: -2 | HI13: -0.4626468228 | HJ13: -17 | HK13: 0.6000000238 | HL13: -0.400000006 | HM13: -0.850308605
H14: -0.3279920816 | I14: -1.700000048 | J14: -16.54889488 | K14: -1.719999909 | L14: -0.5 | M14: -0.01139467582 | N14: 0 | O14: 0.02357305214 | P14: 0.06840915978 | Q14: 0.09626734257 | R14: 0.1178376675 | S14: 0.1409503967 | T14: 0.1646001786 | U14: 0.187025398 | V14: 0.2066374868 | W14: 0.2214568257 | X14: 0.09237222373 | Y14: 0.200000003 | Z14: 0.2310598344 | AA14: 0.200000003 | AB14: 0.3783195615 | AC14: 0.200000003 | AD14: 0.5130746961 | AE14: 0.200000003 | AF14: 0.5795484781 | AG14: 0.200000003 | AH14: 0.5811187625 | AI14: 0.200000003 | AJ14: 0.5624325871 | AK14: 0.200000003 | AL14: 0.5446036458 | AM14: 0.200000003 | AN14: -0.518684864 | AO14: 0.200000003 | AP14: -0.4843182862 | AQ14: 0.200000003 | AR14: -0.4411458075 | AS14: 0.200000003 | AT14: -0.3888095021 | AU14: 0.200000003 | AV14: -0.3269512057 | AW14: 0.200000003 | AX14: -0.2520275116 | AY14: 0.200000003 | AZ14: -0.162613377 | BA14: 0.200000003 | BB14: -0.06097048521 | BC14: 0.200000003 | BD14: 0 | BE14: 0.200000003 | CZ14: -0.9639472961 | DA14: 1.799999952 | DF14: -0.5 | DG14: -0.3722043037 | DH14: -0.01139461994 | DI14: -0.01139461994 | DJ14: -0.01139461994 | DK14: -0.01139461994 | DL14: -0.01139461994 | DM14: -0.01139461994 | DN14: -0.01139461994 | GZ14: -0.4499999881 | HA14: -0.09672488791 | HB14: -0.09378759599 | HC14: -0.06463120089 | HD14: -0.01858802302 | HL14: -0.4499999881 | HM14: -0.8744269213
H15: -0.306885004 | I15: -1.679999948 | J15: -16.55585289 | K15: -1.700000048 | L15: -0.5500000119 | M15: -0.0125053674 | N15: 0 | O15: 0.03043599613 | P15: 0.07968274504 | Q15: 0.1094016656 | R15: 0.1320316494 | S15: 0.1566361338 | T15: 0.1819382608 | U15: 0.205816254 | V15: 0.2267373204 | W15: 0.2423231751 | X15: 0.1033705622 | Y15: 0.2199999988 | Z15: 0.2503648698 | AA15: 0.2199999988 | AB15: 0.4017817676 | AC15: 0.2199999988 | AD15: 0.5364061594 | AE15: 0.2199999988 | AF15: 0.6050521135 | AG15: 0.2199999988 | AH15: 0.6130673885 | AI15: 0.2199999988 | AJ15: 0.59891361 | AK15: 0.2199999988 | AL15: 0.5820643306 | AM15: 0.2199999988 | AN15: -0.5561312437 | AO15: 0.2199999988 | AP15: -0.5207468271 | AQ15: 0.2199999988 | AR15: -0.4755435288 | AS15: 0.2199999988 | AT15: -0.4201537669 | AU15: 0.2199999988 | AV15: -0.3542099297 | AW15: 0.2199999988 | AX15: -0.2737722099 | AY15: 0.2199999988 | AZ15: -0.1772239208 | BA15: 0.2199999988 | BB15: -0.06703236699 | BC15: 0.2199999988 | BD15: 0 | BE15: 0.2199999988 | CZ15: -0.9516213536 | DA15: 1.802374482 | DF15: -0.5500000119 | DG15: -0.5512039661 | DH15: -0.0125054121 | DI15: -0.0125054121 | DJ15: -0.0125054121 | DK15: -0.0125054121 | DL15: -0.0125054121 | DM15: -0.0125054121 | DN15: -0.0125054121 | GZ15: -0.5 | HA15: -0.1107701376 | HB15: -0.1082703197 | HC15: -0.07679433443 | HD15: -0.02559877958 | HL15: -0.5 | HM15: -0.8972007946
H16: -0.2894736528 | I16: -1.659999967 | J16: -16.56303406 | K16: -1.679999948 | L16: -0.6000000238 | M16: -0.01359054632 | N16: 0 | O16: 0.03730069101 | P16: 0.09090656787 | Q16: 0.122417137 | R16: 0.1462256461 | S16: 0.1721906811 | T16: 0.1989745349 | U16: 0.2243338823 | V16: 0.2463854402 | W16: 0.2628124058 | X16: 0.1139682233 | Y16: 0.2399999946 | Z16: 0.2686542869 | AA16: 0.2399999946 | AB16: 0.4249331951 | AC16: 0.2399999946 | AD16: 0.5571975708 | AE16: 0.2399999946 | AF16: 0.6248577833 | AG16: 0.2399999946 | AH16: 0.6403925419 | AI16: 0.2399999946 | AJ16: 0.6321612597 | AK16: 0.2399999946 | AL16: 0.6165959835 | AM16: 0.2399999946 | AN16: -0.5910718441 | AO16: 0.2399999946 | AP16: -0.5551643372 | AQ16: 0.2399999946 | AR16: -0.508449316 | AS16: 0.2399999946 | AT16: -0.4505026042 | AU16: 0.2399999946 | AV16: -0.3808998168 | AW16: 0.2399999946 | AX16: -0.2952658832 | AY16: 0.2399999946 | AZ16: -0.1918065846 | BA16: 0.2399999946 | BB16: -0.07331861556 | BC16: 0.2399999946 | BD16: 0 | BE16: 0.2399999946 | CZ16: -0.9347129464 | DA16: 1.807723999 | DF16: -0.6000000238 | DG16: -0.6921582222 | DH16: -0.01359057426 | DI16: -0.01359057426 | DJ16: -0.01359057426 | DK16: -0.01359057426 | DL16: -0.01359057426 | DM16: -0.01359057426 | DN16: -0.01359057426 | GB16: 0.8000000119 | GC16: 1.847601533 | GD16: -0.8000000119 | GE16: 1.881911993 | GZ16: -0.5500000119 | HA16: -0.1246435575 | HB16: -0.1225032571 | HC16: -0.08831429102 | HD16: -0.03229871422 | HH16: -3 | HI16: 0.8368209004 | HJ16: -2.650000095 | HK16: 0.8000000119 | HL16: -0.5500000119 | HM16: -0.9176060377
H17: -0.2736842632 | I17: -1.639999986 | J17: -16.57072639 | K17: -1.659999967 | L17: -0.6499999762 | M17: -0.01467519253 | N17: 0 | O17: 0.04417145997 | P17: 0.1020440832 | Q17: 0.1353687346 | R17: 0.1602083147 | S17: 0.1875796616 | T17: 0.215913415 | U17: 0.2427413166 | V17: 0.2659571469 | W17: 0.2831072509 | X17: 0.1243544072 | Y17: 0.2599999905 | Z17: 0.2860136032 | AA17: 0.2599999905 | AB17: 0.4450751841 | AC17: 0.2599999905 | AD17: 0.5760344863 | AE17: 0.2599999905 | AF17: 0.6453749537 | AG17: 0.2599999905 | AH17: 0.6675662994 | AI17: 0.2599999905 | AJ17: 0.6643350124 | AK17: 0.2599999905 | AL17: 0.6502048969 | AM17: 0.2599999905 | AN17: -0.6251385808 | AO17: 0.2599999905 | AP17: -0.5886992812 | AQ17: 0.2599999905 | AR17: -0.5404500961 | AS17: 0.2599999905 | AT17: -0.4799542725 | AU17: 0.2599999905 | AV17: -0.4067747891 | AW17: 0.2599999905 | AX17: -0.3161336184 | AY17: 0.2599999905 | AZ17: -0.2060388178 | BA17: 0.2599999905 | BB17: -0.07953681797 | BC17: 0.2599999905 | BD17: 0 | BE17: 0.2599999905 | CZ17: -0.9139348269 | DA17: 1.816007376 | DF17: -0.6499999762 | DG17: -0.8127943277 | DH17: -0.01467514038 | DI17: -0.01467514038 | DJ17: -0.01467514038 | DK17: -0.01467514038 | DL17: -0.01467514038 | DM17: -0.01467514038 | DN17: -0.01467514038 | GB17: 0.8000000119 | GC17: 0.3825233579 | GD17: -0.8000000119 | GE17: 0.3825233579 | GZ17: -0.6000000238 | HA17: -0.1383666808 | HB17: -0.1362680989 | HC17: -0.09966448285 | HD17: -0.03871978036 | HH17: -3 | HI17: -0.6355536094 | HJ17: -16.20000076 | HK17: 0.8000000119 | HL17: -0.6000000238 | HM17: -0.9352129605
H18: -0.2610758543 | I18: -1.619999886 | J18: -16.57875061 | K18: -1.639999986 | L18: -0.6999999881 | M18: -0.01575984061 | N18: 0 | O18: 0.05104508996 | P18: 0.1131173894 | Q18: 0.1482101083 | R18: 0.174191013 | S18: 0.2028470933 | T18: 0.2325704694 | U18: 0.2606781721 | V18: 0.2850151658 | W18: 0.3029487133 | X18: 0.1339043975 | Y18: 0.2800000012 | Z18: 0.3022739887 | AA18: 0.2800000012 | AB18: 0.4633989334 | AC18: 0.2800000012 | AD18: 0.593492806 | AE18: 0.2800000012 | AF18: 0.6649081707 | AG18: 0.2800000012 | AH18: 0.6925334334 | AI18: 0.2800000012 | AJ18: 0.6934627891 | AK18: 0.2800000012 | AL18: 0.6809222102 | AM18: 0.2800000012 | AN18: -0.6566685438 | AO18: 0.2800000012 | AP18: -0.6201815605 | AQ18: 0.2800000012 | AR18: -0.5709406734 | AS18: 0.2800000012 | AT18: -0.508425653 | AU18: 0.2800000012 | AV18: -0.4321159124 | AW18: 0.2800000012 | AX18: -0.3367844522 | AY18: 0.2800000012 | AZ18: -0.2202700526 | BA18: 0.2800000012 | BB18: -0.08590686321 | BC18: 0.2800000012 | BD18: 0 | BE18: 0.2800000012 | CZ18: -0.8898134232 | DA18: 1.827183843 | DF18: -0.6999999881 | DG18: -0.9190260172 | DH18: -0.01575982571 | DI18: -0.01575982571 | DJ18: -0.01575982571 | DK18: -0.01575982571 | DL18: -0.01575982571 | DM18: -0.01575982571 | DN18: -0.01575982571 | GZ18: -0.6499999762 | HA18: -0.1519307664 | HB18: -0.1498949115 | HC18: -0.110584005 | HD18: -0.04489366129 | HL18: -0.6499999762 | HM18: -0.9515299786
H19: -0.2493544817 | I19: -1.600000024 | J19: -16.58730698 | K19: -1.619999886 | L19: -0.75 | M19: -0.01683653332 | N19: 0 | O19: 0.05792298913 | P19: 0.124119617 | Q19: 0.1609802097 | R19: 0.187963888 | S19: 0.2179399729 | T19: 0.2491078973 | U19: 0.2785818279 | V19: 0.3040475249 | W19: 0.3226567209 | X19: 0.1429709196 | Y19: 0.3000000119 | Z19: 0.3173886538 | AA19: 0.3000000119 | AB19: 0.4802860618 | AC19: 0.3000000119 | AD19: 0.6099987626 | AE19: 0.3000000119 | AF19: 0.683716476 | AG19: 0.3000000119 | AH19: 0.7160103917 | AI19: 0.3000000119 | AJ19: 0.7205442786 | AK19: 0.3000000119 | AL19: 0.7096135616 | AM19: 0.3000000119 | AN19: -0.6863030195 | AO19: 0.3000000119 | AP19: -0.6499806643 | AQ19: 0.3000000119 | AR19: -0.600014627 | AS19: 0.3000000119 | AT19: -0.5357731581 | AU19: 0.3000000119 | AV19: -0.4566242397 | AW19: 0.3000000119 | AX19: -0.3568863571 | AY19: 0.3000000119 | AZ19: -0.2342440337 | BA19: 0.3000000119 | BB19: -0.09232556075 | BC19: 0.3000000119 | BD19: 0 | BE19: 0.3000000119 | CZ19: -0.8619039059 | DA19: 1.841212273 | DF19: -0.75 | DG19: -1.01509881 | DH19: -0.01683652401 | DI19: -0.01683652401 | DJ19: -0.01683652401 | DK19: -0.01683652401 | DL19: -0.01683652401 | DM19: -0.01683652401 | DN19: -0.01683652401 | GZ19: -0.6999999881 | HA19: -0.1653411852 | HB19: -0.1631960414 | HC19: -0.1212517716 | HD19: -0.05082020002 | HL19: -0.6999999881 | HM19: -0.9601648482
H20: -0.2385755777 | I20: -1.579999924 | J20: -16.59639549 | K20: -1.600000024 | L20: -0.8000000119 | M20: -0.01789519377 | N20: 0 | O20: 0.0648053661 | P20: 0.1350433081 | Q20: 0.1736486405 | R20: 0.2017367929 | S20: 0.2329208702 | T20: 0.2653836906 | U20: 0.2960447669 | V20: 0.322501719 | W20: 0.3418310881 | X20: 0.1517851502 | Y20: 0.3199999928 | Z20: 0.3319777846 | AA20: 0.3199999928 | AB20: 0.4964984059 | AC20: 0.3199999928 | AD20: 0.625972569 | AE20: 0.3199999928 | AF20: 0.7017979026 | AG20: 0.3199999928 | AH20: 0.7380250096 | AI20: 0.3199999928 | AJ20: 0.7456804514 | AK20: 0.3199999928 | AL20: 0.7363682985 | AM20: 0.3199999928 | AN20: -0.7141667008 | AO20: 0.3199999928 | AP20: -0.6782841086 | AQ20: 0.3199999928 | AR20: -0.6279287338 | AS20: 0.3199999928 | AT20: -0.5623089075 | AU20: 0.3199999928 | AV20: -0.4806329906 | AW20: 0.3199999928 | AX20: -0.3767422438 | AY20: 0.3199999928 | AZ20: -0.2481883019 | BA20: 0.3199999928 | BB20: -0.09891270101 | BC20: 0.3199999928 | BD20: 0 | BE20: 0.3199999928 | CZ20: -0.8291324377 | DA20: 1.858051777 | DF20: -0.8000000119 | DG20: -1.11233294 | DH20: -0.01789522171 | DI20: -0.01789522171 | DJ20: -0.01789522171 | DK20: -0.01789522171 | DL20: -0.01789522171 | DM20: -0.01789522171 | DN20: -0.01789522171 | GB20: 1 | GC20: 1.899999976 | GD20: -1 | GE20: 1.899999976 | GZ20: -0.75 | HA20: -0.1785767387 | HB20: -0.1763387361 | HC20: -0.1314566081 | HD20: -0.05658130509 | HH20: -4 | HI20: 0.9000917077 | HJ20: 0 | HK20: 1 | HL20: -0.75 | HM20: -0.971574077
H21: -0.228728652 | I21: -1.559999943 | J21: -16.60625076 | K21: -1.579999924 | L21: -0.8500000238 | M21: -0.01895385608 | N21: 0 | O21: 0.07169026136 | P21: 0.1459109783 | Q21: 0.1862384826 | R21: 0.21530132 | S21: 0.247718215 | T21: 0.2815173864 | U21: 0.313437283 | V21: 0.3409559131 | W21: 0.3609368205 | X21: 0.1589625776 | Y21: 0.3400000036 | Z21: 0.3440569937 | AA21: 0.3400000036 | AB21: 0.5111042857 | AC21: 0.3400000036 | AD21: 0.6419336796 | AE21: 0.3400000036 | AF21: 0.7200039625 | AG21: 0.3400000036 | AH21: 0.7590747476 | AI21: 0.3400000036 | AJ21: 0.7689723969 | AK21: 0.3400000036 | AL21: 0.7611129284 | AM21: 0.3400000036 | AN21: -0.7400600314 | AO21: 0.3400000036 | AP21: -0.7048077583 | AQ21: 0.3400000036 | AR21: -0.6543496847 | AS21: 0.3400000036 | AT21: -0.587679863 | AU21: 0.3400000036 | AV21: -0.5037918687 | AW21: 0.3400000036 | AX21: -0.3960415721 | AY21: 0.3400000036 | AZ21: -0.2618809938 | BA21: 0.3400000036 | BB21: -0.1055751741 | BC21: 0.3400000036 | BD21: 0 | BE21: 0.3400000036 | CZ21: -0.7917823792 | DA21: 1.877661347 | DF21: -0.8500000238 | DG21: -1.207752705 | DH21: -0.0189538002 | DI21: -0.0189538002 | DJ21: -0.0189538002 | DK21: -0.0189538002 | DL21: -0.0189538002 | DM21: -0.0189538002 | DN21: -0.0189538002 | GB21: 1 | GD21: -1 | GZ21: -0.8000000119 | HA21: -0.1916694556 | HB21: -0.1891379946 | HC21: -0.1411518141 | HD21: -0.06212363199 | HH21: -4 | HI21: -0.7563013975 | HJ21: -17 | HK21: 1 | HL21: -0.8000000119 | HM21: -0.9774694562
H22: -0.2198038101 | I22: -1.540000081 | J22: -16.61680031 | K22: -1.559999943 | L22: -0.8999999762 | M22: -0.02001251467 | N22: 0 | O22: 0.0785811767 | P22: 0.1566859335 | Q22: 0.1987350583 | R22: 0.2288658917 | S22: 0.2624131143 | T22: 0.2974098623 | U22: 0.330420047 | V22: 0.3588199615 | W22: 0.3794248998 | X22: 0.1657051891 | Y22: 0.3600000143 | Z22: 0.3555212915 | AA22: 0.3600000143 | AB22: 0.525402844 | AC22: 0.3600000143 | AD22: 0.6579244733 | AE22: 0.3600000143 | AF22: 0.7378554344 | AG22: 0.3600000143 | AH22: 0.7789562345 | AI22: 0.3600000143 | AJ22: 0.7905210257 | AK22: 0.3600000143 | AL22: 0.7840112448 | AM22: 0.3600000143 | AN22: -0.7642117143 | AO22: 0.3600000143 | AP22: -0.7298409939 | AQ22: 0.3600000143 | AR22: -0.6796172857 | AS22: 0.3600000143 | AT22: -0.6122590899 | AU22: 0.3600000143 | AV22: -0.5264846087 | AW22: 0.3600000143 | AX22: -0.4151388109 | AY22: 0.3600000143 | AZ22: -0.275601685 | BA22: 0.3600000143 | BB22: -0.1124837697 | BC22: 0.3600000143 | BD22: 0 | BE22: 0.3600000143 | CZ22: -0.75 | DA22: 1.899999976 | DF22: -0.8999999762 | DG22: -1.292204142 | DH22: -0.0200124979 | DI22: -0.0200124979 | DJ22: -0.0200124979 | DK22: -0.0200124979 | DL22: -0.0200124979 | DM22: -0.0200124979 | DN22: -0.0200124979 | GZ22: -0.8500000238 | HA22: -0.2046094217 | HB22: -0.201784625 | HC22: -0.1505170541 | HD22: -0.06747481686 | HL22: -0.8500000238 | HM22: -0.9799804223
H23: -0.2111783028 | I23: -1.519999981 | J23: -16.62849998 | K23: -1.540000081 | L23: -0.9499999881 | M23: -0.02105476893 | N23: 0 | O23: 0.08547373861 | P23: 0.1674197614 | Q23: 0.2111458629 | R23: 0.2422235906 | S23: 0.2769155502 | T23: 0.3131375313 | U23: 0.3472941518 | V23: 0.3766566515 | W23: 0.3979130387 | X23: 0.1720461398 | Y23: 0.3799999952 | Z23: 0.366317749 | AA23: 0.3799999952 | AB23: 0.539251864 | AC23: 0.3799999952 | AD23: 0.6737210155 | AE23: 0.3799999952 | AF23: 0.7551513314 | AG23: 0.3799999952 | AH23: 0.7975716591 | AI23: 0.3799999952 | AJ23: 0.8102825284 | AK23: 0.3799999952 | AL23: 0.80497998 | AM23: 0.3799999952 | AN23: -0.7864639163 | AO23: 0.3799999952 | AP23: -0.7531366348 | AQ23: 0.3799999952 | AR23: -0.7034005523 | AS23: 0.3799999952 | AT23: -0.6356579661 | AU23: 0.3799999952 | AV23: -0.5483111143 | AW23: 0.3799999952 | AX23: -0.4336887598 | AY23: 0.3799999952 | AZ23: -0.2891204655 | BA23: 0.3799999952 | BB23: -0.1195675507 | BC23: 0.3799999952 | BD23: 0 | BE23: 0.3799999952 | CZ23: 0 | DA23: 1.899999976 | DF23: -0.9499999881 | DG23: -1.360883355 | DH23: -0.04929256439 | DI23: -0.02105474472 | DJ23: -0.02105474472 | DK23: -0.02105474472 | DL23: -0.02105474472 | DM23: -0.02105474472 | DN23: -0.02105474472 | GZ23: -0.8999999762 | HA23: -0.2174094124 | HB23: -0.2141072194 | HC23: -0.1596398425 | HD23: -0.07263059934 | HL23: -0.8999999762 | HM23: -0.9799391163
H24: -0.2035037279 | I24: -1.5 | J24: -16.64147949 | K24: -1.519999981 | L24: -1 | M24: -0.02208749577 | N24: 0 | O24: 0.09237222373 | P24: 0.1780469269 | Q24: 0.2234717607 | R24: 0.2555813491 | S24: 0.2913250625 | T24: 0.3286446929 | U24: 0.3637904823 | V24: 0.3939449787 | W24: 0.4156954885 | X24: 0.1780469269 | Y24: 0.400000006 | Z24: 0.3765285611 | AA24: 0.400000006 | AB24: 0.5523332357 | AC24: 0.400000006 | AD24: 0.6885726452 | AE24: 0.400000006 | AF24: 0.7712213397 | AG24: 0.400000006 | AH24: 0.814658463 | AI24: 0.400000006 | AJ24: 0.8283514977 | AK24: 0.400000006 | AL24: 0.8242831826 | AM24: 0.400000006 | AN24: -0.8071893454 | AO24: 0.400000006 | AP24: -0.7751274109 | AQ24: 0.400000006 | AR24: -0.7261544466 | AS24: 0.400000006 | AT24: -0.6583277583 | AU24: 0.400000006 | AV24: -0.5697044134 | AW24: 0.400000006 | AX24: -0.4520834982 | AY24: 0.400000006 | AZ24: -0.3027504385 | BA24: 0.400000006 | BB24: -0.1270262301 | BC24: 0.400000006 | BD24: 0 | BE24: 0.400000006 | DF24: -1 | DG24: -1.415684581 | DH24: -0.2525182962 | DI24: -0.0220874548 | DJ24: -0.0220874548 | DK24: -0.0220874548 | DL24: -0.0220874548 | DM24: -0.0220874548 | DN24: -0.0220874548 | GB24: 1.200000048 | GC24: 1.899999976 | GD24: -1.200000048 | GE24: 1.899999976 | GZ24: -0.9499999881 | HA24: -0.2300436359 | HB24: -0.2262240319 | HC24: -0.168417124 | HD24: -0.07762056549 | HH24: -5 | HI24: 0.9423263073 | HJ24: 0 | HK24: 1.200000048 | HL24: -0.9499999881 | HM24: -0.9798998368
H25: -0.1959068775 | I25: -1.4799999 | J25: -16.65620613 | K25: -1.5 | L25: -1.049999952 | M25: -0.02312022075 | N25: 0 | O25: 0.09927308559 | P25: 0.1886476576 | Q25: 0.23570472 | R25: 0.2687337101 | S25: 0.3055331707 | T25: 0.3439640403 | U25: 0.3801388741 | V25: 0.4111504257 | W25: 0.4334779978 | X25: 0.1837656498 | Y25: 0.4199999869 | Z25: 0.3861812651 | AA25: 0.4199999869 | AB25: 0.5648206472 | AC25: 0.4199999869 | AD25: 0.7028382421 | AE25: 0.4199999869 | AF25: 0.7864890695 | AG25: 0.4199999869 | AH25: 0.8306099176 | AI25: 0.4199999869 | AJ25: 0.8450393677 | AK25: 0.4199999869 | AL25: 0.8421122432 | AM25: 0.4199999869 | AN25: -0.8264235854 | AO25: 0.4199999869 | AP25: -0.7956813574 | AQ25: 0.4199999869 | AR25: -0.7475938797 | AS25: 0.4199999869 | AT25: -0.6798692346 | AU25: 0.4199999869 | AV25: -0.5902156234 | AW25: 0.4199999869 | AX25: -0.4699279964 | AY25: 0.4199999869 | AZ25: -0.3162520528 | BA25: 0.4199999869 | BB25: -0.1348471493 | BC25: 0.4199999869 | BD25: 0 | BE25: 0.4199999869 | DF25: -1.049999952 | DG25: -1.460524797 | DH25: -0.3772070408 | DI25: -0.02312016487 | DJ25: -0.02312016487 | DK25: -0.02312016487 | DL25: -0.02312016487 | DM25: -0.02312016487 | DN25: -0.02312016487 | GB25: 1.200000048 | GD25: -1.200000048 | GZ25: -1 | HA25: -0.2425438444 | HB25: -0.2380648521 | HC25: -0.1769671295 | HD25: -0.08248410083 | HH25: -5 | HI25: -0.8250715415 | HJ25: -17 | HK25: 1.200000048 | HL25: -1 | HM25: -0.9798627031
H26: -0.1890461445 | I26: -1.459999919 | J26: -16.67333794 | K26: -1.4799999 | L26: -1.100000024 | M26: -0.02415294945 | N26: 0 | O26: 0.1061782017 | P26: 0.1991279423 | Q26: 0.2478610128 | R26: 0.2818861306 | S26: 0.3196578324 | T26: 0.3590838313 | U26: 0.3961425722 | V26: 0.4278516769 | W26: 0.4506081939 | X26: 0.1891078055 | Y26: 0.4399999976 | Z26: 0.3952552378 | AA26: 0.4399999976 | AB26: 0.576744616 | AC26: 0.4399999976 | AD26: 0.7165734172 | AE26: 0.4399999976 | AF26: 0.8010151386 | AG26: 0.4399999976 | AH26: 0.8454970717 | AI26: 0.4399999976 | AJ26: 0.8604470491 | AK26: 0.4399999976 | AL26: 0.8586235046 | AM26: 0.4399999976 | AN26: -0.8443934321 | AO26: 0.4399999976 | AP26: -0.8151026964 | AQ26: 0.4399999976 | AR26: -0.7680972815 | AS26: 0.4399999976 | AT26: -0.7007231116 | AU26: 0.4399999976 | AV26: -0.6103258729 | AW26: 0.4399999976 | AX26: -0.4877197444 | AY26: 0.4399999976 | AZ26: -0.3301148713 | BA26: 0.4399999976 | BB26: -0.1434876472 | BC26: 0.4399999976 | BD26: 0 | BE26: 0.4399999976 | DF26: -1.100000024 | DG26: -1.49716866 | DH26: -0.4777827263 | DI26: -0.02415299416 | DJ26: -0.02415299416 | DK26: -0.02415299416 | DL26: -0.02415299416 | DM26: -0.02415299416 | DN26: -0.02415299416 | GZ26: -1.049999952 | HA26: -0.254892074 | HB26: -0.2497105818 | HC26: -0.1852664288 | HD26: -0.08712390649 | HL26: -1.049999952 | HM26: -0.9798271191
H27: -0.1823192835 | I27: -1.440000057 | J27: -16.69471169 | K27: -1.459999919 | L27: -1.149999976 | M27: -0.02516085096 | N27: 0 | O27: 0.1130871698 | P27: 0.2093928605 | Q27: 0.2599173784 | R27: 0.2948346436 | S27: 0.3335722387 | T27: 0.3739925623 | U27: 0.4119579494 | V27: 0.4444122314 | W27: 0.4676659107 | X27: 0.1941911727 | Y27: 0.4600000083 | Z27: 0.403798908 | AA27: 0.4600000083 | AB27: 0.587982893 | AC27: 0.4600000083 | AD27: 0.7295178771 | AE27: 0.4600000083 | AF27: 0.8146142364 | AG27: 0.4600000083 | AH27: 0.8593137264 | AI27: 0.4600000083 | AJ27: 0.8746756911 | AK27: 0.4600000083 | AL27: 0.8738749623 | AM27: 0.4600000083 | AN27: -0.8610342741 | AO27: 0.4600000083 | AP27: -0.8331670165 | AQ27: 0.4600000083 | AR27: -0.7872864604 | AS27: 0.4600000083 | AT27: -0.7204060555 | AU27: 0.4600000083 | AV27: -0.6295389533 | AW27: 0.4600000083 | AX27: -0.5051192045 | AY27: 0.4600000083 | AZ27: -0.3443235159 | BA27: 0.4600000083 | BB27: -0.1533623487 | BC27: 0.4600000083 | BD27: 0 | BE27: 0.4600000083 | DF27: -1.149999976 | DG27: -1.528107762 | DH27: -0.565302968 | DI27: -0.0251609087 | DJ27: -0.0251609087 | DK27: -0.0251609087 | DL27: -0.0251609087 | DM27: -0.0251609087 | DN27: -0.0251609087 | GZ27: -1.100000024 | HA27: -0.2671133224 | HB27: -0.2610475616 | HC27: -0.1933384521 | HD27: -0.09169753449 | HL27: -1.100000024 | HM27: -0.979793204
H28: -0.1759610176 | I28: -1.419999957 | J28: -16.72348785 | K28: -1.440000057 | L28: -1.200000048 | M28: -0.0261676982 | N28: 0 | O28: 0.1199987456 | P28: 0.219930619 | Q28: 0.2719052136 | R28: 0.3077831864 | S28: 0.347412616 | T28: 0.3887229562 | U28: 0.4274627566 | V28: 0.4605150223 | W28: 0.4841283858 | X28: 0.1990155876 | Y28: 0.4799999893 | Z28: 0.411878407 | AA28: 0.4799999893 | AB28: 0.598655045 | AC28: 0.4799999893 | AD28: 0.7418159842 | AE28: 0.4799999893 | AF28: 0.8274148107 | AG28: 0.4799999893 | AH28: 0.8721635938 | AI28: 0.4799999893 | AJ28: 0.8878263831 | AK28: 0.4799999893 | AL28: 0.8879805207 | AM28: 0.4799999893 | AN28: -0.8764728308 | AO28: 0.4799999893 | AP28: -0.8500312567 | AQ28: 0.4799999893 | AR28: -0.8053838015 | AS28: 0.4799999893 | AT28: -0.7392582893 | AU28: 0.4799999893 | AV28: -0.6483826041 | AW28: 0.4799999893 | AX28: -0.5230278969 | AY28: 0.4799999893 | AZ28: -0.3603518009 | BA28: 0.4799999893 | BB28: -0.1666223705 | BC28: 0.4799999893 | BD28: 0 | BE28: 0.4799999893 | DF28: -1.200000048 | DG28: -1.554453611 | DH28: -0.6436909437 | DI28: -0.02616775036 | DJ28: -0.02616775036 | DK28: -0.02616775036 | DL28: -0.02616775036 | DM28: -0.02616775036 | DN28: -0.02616775036 | GB28: 1.399999976 | GC28: 1.899999976 | GD28: -1.399999976 | GE28: 1.899999976 | GZ28: -1.149999976 | HA28: -0.2791187307 | HB28: -0.2722312981 | HC28: -0.2010685 | HD28: -0.09618582896 | HH28: -6 | HI28: 0.9643924236 | HJ28: 0 | HK28: 1.399999976 | HL28: -1.149999976 | HM28: -0.9797604214
H29: -0.169973135 | I29: -1.399999976 | J29: -16.77124977 | K29: -1.419999957 | L29: -1.25 | M29: -0.02717454359 | N29: 0 | O29: 0.1269156486 | P29: 0.2302506119 | Q29: 0.2837862372 | R29: 0.3205294013 | S29: 0.3610339463 | T29: 0.4032188654 | U29: 0.4427378178 | V29: 0.4764169455 | W29: 0.500442028 | X29: 0.2035779059 | Y29: 0.5 | Z29: 0.4195213318 | AA29: 0.5 | AB29: 0.6088522673 | AC29: 0.5 | AD29: 0.7536190748 | AE29: 0.5 | AF29: 0.8396222591 | AG29: 0.5 | AH29: 0.8842704892 | AI29: 0.5 | AJ29: 0.8999999762 | AK29: 0.5 | AL29: 0.9005302787 | AM29: 0.5 | AN29: -0.88947469 | AO29: 0.5 | AP29: -0.8636792898 | AQ29: 0.5 | AR29: -0.8199900985 | AS29: 0.5 | AT29: -0.7552532554 | AU29: 0.5 | AV29: -0.6663147211 | AW29: 0.5 | AX29: -0.5445315838 | AY29: 0.5 | AZ29: -0.3875853121 | BA29: 0.5 | BB29: -0.2006297112 | BC29: 0.5 | BD29: 0 | BE29: 0.5 | DF29: -1.25 | DG29: -1.577266216 | DH29: -0.7154425383 | DI29: -0.02717459202 | DJ29: -0.02717459202 | DK29: -0.02717459202 | DL29: -0.02717459202 | DM29: -0.02717459202 | DN29: -0.02717459202 | GB29: 1.399999976 | GD29: -1.399999976 | GZ29: -1.200000048 | HA29: -0.2909863274 | HB29: -0.2831346111 | HC29: -0.2086042245 | HD29: -0.1005426387 | HH29: -6 | HI29: -0.8596771273 | HJ29: -17 | HK29: 1.399999976 | HL29: -1.200000048 | HM29: -0.9797283541
H30: -0.1639852524 | I30: -1.379999876 | J30: -16.95000076 | K30: -1.399999976 | L30: -1.299999952 | M30: -0.02817400917 | N30: 0 | O30: 0.133834064 | P30: 0.2404565364 | Q30: 0.2956066728 | R30: 0.3332755864 | S30: 0.3745906055 | T30: 0.4175578058 | U30: 0.457737416 | V30: 0.4919099808 | W30: 0.5162213445 | X30: 0.207950905 | Y30: 0.5199999809 | Z30: 0.4267551601 | AA30: 0.5199999809 | AB30: 0.6185194254 | AC30: 0.5199999809 | AD30: 0.7647733688 | AE30: 0.5199999809 | AF30: 0.8510885835 | AG30: 0.5199999809 | AH30: 0.895532608 | AI30: 0.5199999809 | AJ30: 0.9109489322 | AK30: 0.5199999809 | AL30: 0.9105943441 | AM30: 0.5199999809 | AN30: -0.8980643153 | AO30: 0.5199999809 | AP30: -0.8712448478 | AQ30: 0.5199999809 | AR30: -0.8280217648 | AS30: 0.5199999809 | AT30: -0.7662809491 | AU30: 0.5199999809 | AV30: -0.6839081645 | AW30: 0.5199999809 | AX30: -0.5742024183 | AY30: 0.5199999809 | AZ30: -0.4351713359 | BA30: 0.5199999809 | BB30: -0.2706421912 | BC30: 0.5199999809 | BD30: -0.08444214612 | BE30: 0.5199999809 | DF30: -1.299999952 | DG30: -1.594765425 | DH30: -0.7824727297 | DI30: -0.0281740427 | DJ30: -0.0281740427 | DK30: -0.0281740427 | DL30: -0.0281740427 | DM30: -0.0281740427 | DN30: -0.0281740427 | GZ30: -1.25 | HA30: -0.302697767 | HB30: -0.2938192731 | HC30: -0.2159508571 | HD30: -0.1047938769 | HL30: -1.25 | HM30: -0.9796971809
H31: -0.1585410833 | I31: -1.360000014 | J31: -17 | K31: -1.379999876 | L31: -1.350000024 | M31: -0.02915502898 | N31: 0 | O31: 0.1407582313 | P31: 0.2506316304 | Q31: 0.3073135912 | R31: 0.3458209038 | S31: 0.3879194558 | T31: 0.431638509 | U31: 0.4724648893 | V31: 0.5071395636 | W31: 0.5317717195 | X31: 0.2120966166 | Y31: 0.5400000215 | Z31: 0.4336074293 | AA31: 0.5400000215 | AB31: 0.6276602745 | AC31: 0.5400000215 | AD31: 0.7752333283 | AE31: 0.5400000215 | AF31: 0.86164397 | AG31: 0.5400000215 | AH31: 0.9056828022 | AI31: 0.5400000215 | AJ31: 0.9206640124 | AK31: 0.5400000215 | AL31: 0.9195483923 | AM31: 0.5400000215 | AN31: -0.9058997035 | AO31: 0.5400000215 | AP31: -0.8784481287 | AQ31: 0.5400000215 | AR31: -0.8359236121 | AS31: 0.5400000215 | AT31: -0.777056396 | AU31: 0.5400000215 | AV31: -0.700576365 | AW31: 0.5400000215 | AX31: -0.6010946631 | AY31: 0.5400000215 | AZ31: -0.4766995609 | BA31: 0.5400000215 | BB31: -0.3303986192 | BC31: 0.5400000215 | BD31: -0.1651992202 | BE31: 0.5400000215 | DF31: -1.350000024 | DG31: -1.610405207 | DH31: -0.8452402353 | DI31: -0.02915501595 | DJ31: -0.02915501595 | DK31: -0.02915501595 | DL31: -0.02915501595 | DM31: -0.02915501595 | DN31: -0.02915501595 | GZ31: -1.299999952 | HA31: -0.3142935207 | HB31: -0.3042766581 | HC31: -0.2231211646 | HD31: -0.1088979247 | HL31: -1.299999952 | HM31: -0.9796669017
H32: -0.1531840563 | I32: -1.339999914 | J32: -17 | K32: -1.360000014 | L32: -1.399999976 | M32: -0.03013604507 | N32: 0 | O32: 0.1476843208 | P32: 0.260707438 | Q32: 0.318967849 | R32: 0.3583662212 | S32: 0.4011929929 | T32: 0.4455839396 | U32: 0.4869530797 | V32: 0.5220115185 | W32: 0.546852529 | X32: 0.2160542458 | Y32: 0.5600000024 | Z32: 0.4401056767 | AA32: 0.5600000024 | AB32: 0.6364070773 | AC32: 0.5600000024 | AD32: 0.7852336168 | AE32: 0.5600000024 | AF32: 0.8715034127 | AG32: 0.5600000024 | AH32: 0.9148602486 | AI32: 0.5600000024 | AJ32: 0.9292200804 | AK32: 0.5600000024 | AL32: 0.9273702502 | AM32: 0.5600000024 | AN32: -0.9128065109 | AO32: 0.5600000024 | AP32: -0.8850050569 | AQ32: 0.5600000024 | AR32: -0.8434419632 | AS32: 0.5600000024 | AT32: -0.7875936627 | AU32: 0.5600000024 | AV32: -0.7169361115 | AW32: 0.5600000024 | AX32: -0.6271758676 | AY32: 0.5600000024 | AZ32: -0.5164343119 | BA32: 0.5600000024 | BB32: -0.3870360553 | BC32: 0.5600000024 | BD32: -0.2413057238 | BE32: 0.5600000024 | DF32: -1.399999976 | DG32: -1.624598503 | DH32: -0.9053225517 | DI32: -0.03013598919 | DJ32: -0.03013598919 | DK32: -0.03013598919 | DL32: -0.03013598919 | DM32: -0.03013598919 | DN32: -0.03013598919 | GB32: 1.600000024 | GC32: 1.899999976 | GD32: -1.600000024 | GE32: 1.899999976 | GZ32: -1.350000024 | HA32: -0.3257419164 | HB32: -0.3145674912 | HC32: -0.2300029217 | HD32: -0.1129038877 | HH32: -7 | HI32: 0.9720000029 | HJ32: 0 | HK32: 1.600000024 | HL32: -1.350000024 | HM32: -0.9796372186
H33: -0.1478270292 | I33: -1.320000052 | J33: -17 | K33: -1.339999914 | L33: -1.450000048 | M33: -0.03111706488 | N33: 0 | O33: 0.1546145678 | P33: 0.2707384825 | Q33: 0.3305017948 | R33: 0.3707122207 | S33: 0.4142299592 | T33: 0.4592472315 | U33: 0.5011255741 | V33: 0.536555171 | W33: 0.561620295 | X33: 0.2196879089 | Y33: 0.5799999833 | Z33: 0.4460340738 | AA33: 0.5799999833 | AB33: 0.6445906758 | AC33: 0.5799999833 | AD33: 0.7947147489 | AE33: 0.5799999833 | AF33: 0.8806964755 | AG33: 0.5799999833 | AH33: 0.9231443405 | AI33: 0.5799999833 | AJ33: 0.9366921782 | AK33: 0.5799999833 | AL33: 0.9340776801 | AM33: 0.5799999833 | AN33: -0.9187101722 | AO33: 0.5799999833 | AP33: -0.8907219172 | AQ33: 0.5799999833 | AR33: -0.8502454758 | AS33: 0.5799999833 | AT33: -0.7974132299 | AU33: 0.5799999833 | AV33: -0.732357502 | AW33: 0.5799999833 | AX33: -0.6516936421 | AY33: 0.5799999833 | AZ33: -0.5535390377 | BA33: 0.5799999833 | BB33: -0.4396535456 | BC33: 0.5799999833 | BD33: -0.3117968142 | BE33: 0.5799999833 | DF33: -1.450000048 | DG33: -1.637448311 | DH33: -0.9625195265 | DI33: -0.03111708164 | DJ33: -0.03111708164 | DK33: -0.03111708164 | DL33: -0.03111708164 | DM33: -0.03111708164 | DN33: -0.03111708164 | GB33: 1.600000024 | GD33: -1.600000024 | GZ33: -1.399999976 | HA33: -0.3371146714 | HB33: -0.324526971 | HC33: -0.2367024147 | HD33: -0.1168222223 | HH33: -7 | HI33: -0.8695639126 | HJ33: -17 | HK33: 1.600000024 | HL33: -1.399999976 | HM33: -0.9796078931
H34: -0.1429651976 | I34: -1.299999952 | J34: -17 | K34: -1.320000052 | L34: -1.5 | M34: -0.03208230436 | N34: 0 | O34: 0.1615481526 | P34: 0.2806849182 | Q34: 0.3419909477 | R34: 0.3830581605 | S34: 0.4272209406 | T34: 0.4727971554 | U34: 0.515096128 | V34: 0.5507947206 | W34: 0.5759871602 | X34: 0.2234717607 | Y34: 0.6000000238 | Z34: 0.452118367 | AA34: 0.6000000238 | AB34: 0.6525498629 | AC34: 0.6000000238 | AD34: 0.803465724 | AE34: 0.6000000238 | AF34: 0.8888952136 | AG34: 0.6000000238 | AH34: 0.9303851128 | AI34: 0.6000000238 | AJ34: 0.9431552291 | AK34: 0.6000000238 | AL34: 0.9399278164 | AM34: 0.6000000238 | AN34: -0.9240607619 | AO34: 0.6000000238 | AP34: -0.8962194324 | AQ34: 0.6000000238 | AR34: -0.8570687175 | AS34: 0.6000000238 | AT34: -0.8072739244 | AU34: 0.6000000238 | AV34: -0.7474999428 | AW34: 0.6000000238 | AX34: -0.6750701666 | AY34: 0.6000000238 | AZ34: -0.5880798101 | BA34: 0.6000000238 | BB34: -0.4878513813 | BC34: 0.6000000238 | BD34: -0.3757072389 | BE34: 0.6000000238 | DF34: -1.5 | DG34: -1.64893949 | DH34: -1.018536091 | DI34: -0.03208231926 | DJ34: -0.03208231926 | DK34: -0.03208231926 | DL34: -0.03208231926 | DM34: -0.03208231926 | DN34: -0.03208231926 | GZ34: -1.450000048 | HA34: -0.3483297142 | HB34: -0.3343264691 | HC34: -0.2432634388 | HD34: -0.1206365156 | HL34: -1.450000048 | HM34: -0.979578806
H35: -0.1381496191 | I35: -1.279999971 | J35: -17 | K35: -1.299999952 | L35: -1.549999952 | M35: -0.03303755075 | N35: 0 | O35: 0.1684843451 | P35: 0.2905727923 | Q35: 0.3533532023 | R35: 0.3952062428 | S35: 0.4399665594 | T35: 0.4860406518 | U35: 0.5287064314 | V35: 0.564638555 | W35: 0.5899531245 | X35: 0.2269481421 | Y35: 0.6200000048 | Z35: 0.4576848149 | AA35: 0.6200000048 | AB35: 0.6600241065 | AC35: 0.6200000048 | AD35: 0.8117925525 | AE35: 0.6200000048 | AF35: 0.8965241909 | AG35: 0.6200000048 | AH35: 0.9368353486 | AI35: 0.6200000048 | AJ35: 0.9486842752 | AK35: 0.6200000048 | AL35: 0.9449047446 | AM35: 0.6200000048 | AN35: -0.928739965 | AO35: 0.6200000048 | AP35: -0.9012630582 | AQ35: 0.6200000048 | AR35: -0.8635472655 | AS35: 0.6200000048 | AT35: -0.8166658282 | AU35: 0.6200000048 | AV35: -0.7616917491 | AW35: 0.6200000048 | AX35: -0.6964868903 | AY35: 0.6200000048 | AZ35: -0.6191254258 | BA35: 0.6200000048 | BB35: -0.530600667 | BC35: 0.6200000048 | BD35: -0.4319059551 | BE35: 0.6200000048 | DF35: -1.549999952 | DG35: -1.659718037 | DH35: -1.07647121 | DI35: -0.0330375433 | DJ35: -0.0330375433 | DK35: -0.0330375433 | DL35: -0.0330375433 | DM35: -0.0330375433 | DN35: -0.0330375433 | GZ35: -1.5 | HA35: -0.3594473945 | HB35: -0.34393866 | HC35: -0.2496785982 | HD35: -0.124352239 | HL35: -1.5 | HM35: -0.9795502554
H36: -0.1333341599 | I36: -1.25999999 | J36: -17 | K36: -1.279999971 | L36: -1.600000024 | M36: -0.03399279714 | N36: 0 | O36: 0.1754252315 | P36: 0.300390631 | Q36: 0.3646783829 | R36: 0.4073542953 | S36: 0.4526755214 | T36: 0.4991930425 | U36: 0.5421530604 | V36: 0.5782344341 | W36: 0.6035906672 | X36: 0.2303428501 | Y36: 0.6399999857 | Z36: 0.4630187452 | AA36: 0.6399999857 | AB36: 0.6670865417 | AC36: 0.6399999857 | AD36: 0.8195089698 | AE36: 0.6399999857 | AF36: 0.903350234 | AG36: 0.6399999857 | AH36: 0.9423713088 | AI36: 0.6399999857 | AJ36: 0.9533541799 | AK36: 0.6399999857 | AL36: 0.949308455 | AM36: 0.6399999857 | AN36: -0.9332618713 | AO36: 0.6399999857 | AP36: -0.906542778 | AQ36: 0.6399999857 | AR36: -0.8704794645 | AS36: 0.6399999857 | AT36: -0.8264002204 | AU36: 0.6399999857 | AV36: -0.7756332755 | AW36: 0.6399999857 | AX36: -0.7164103389 | AY36: 0.6399999857 | AZ36: -0.6468083858 | BA36: 0.6399999857 | BB36: -0.567600131 | BC36: 0.6399999857 | BD36: -0.479557991 | BE36: 0.6399999857 | DF36: -1.600000024 | DG36: -1.669592261 | DH36: -1.136365771 | DI36: -0.1358166933 | DJ36: -0.03399276733 | DK36: -0.03399276733 | DL36: -0.03399276733 | DM36: -0.03399276733 | DN36: -0.03399276733 | GZ36: -1.549999952 | HA36: -0.370404424 | HB36: -0.3533332668 | HC36: -0.2559579625 | HD36: -0.1279804497 | HH36: -8 | HI36: 0.9709777832 | HL36: -1.549999952 | HM36: -0.9795220027
H37: -0.1288155317 | I37: -1.24000001 | J37: -17 | K37: -1.25999999 | L37: -1.649999976 | M37: -0.0349480398 | N37: 0 | O37: 0.1823675036 | P37: 0.3101362586 | Q37: 0.3758701682 | R37: 0.4193060398 | S37: 0.4651305676 | T37: 0.5120145082 | U37: 0.5551938415 | V37: 0.5913647413 | W37: 0.616735518 | X37: 0.2336079329 | Y37: 0.6600000262 | Z37: 0.4681476653 | AA37: 0.6600000262 | AB37: 0.6739007831 | AC37: 0.6600000262 | AD37: 0.8268889189 | AE37: 0.6600000262 | AF37: 0.9096338749 | AG37: 0.6600000262 | AH37: 0.9471676946 | AI37: 0.6600000262 | AJ37: 0.9572400451 | AK37: 0.6600000262 | AL37: 0.9530894756 | AM37: 0.6600000262 | AN37: -0.9374014139 | AO37: 0.6600000262 | AP37: -0.9116427898 | AQ37: 0.6600000262 | AR37: -0.8772805333 | AS37: 0.6600000262 | AT37: -0.835781455 | AU37: 0.6600000262 | AV37: -0.7886125445 | AW37: 0.6600000262 | AX37: -0.7342602611 | AY37: 0.6600000262 | AZ37: -0.6708311439 | BA37: 0.6600000262 | BB37: -0.5989506841 | BC37: 0.6600000262 | BD37: -0.5192443728 | BE37: 0.6600000262 | DF37: -1.649999976 | DG37: -1.678977013 | DH37: -1.193494558 | DI37: -0.2420434952 | DJ37: -0.03494799137 | DK37: -0.03494799137 | DL37: -0.03494799137 | DM37: -0.03494799137 | DN37: -0.03494799137 | GZ37: -1.600000024 | HA37: -0.3812345554 | HB37: -0.3625000375 | HC37: -0.2620418655 | HD37: -0.1315126331 | HH37: -8 | HI37: -0.8654052849 | HL37: -1.600000024 | HM37: -0.9794936905
H38: -0.1244672537 | I38: -1.220000029 | J38: -17 | K38: -1.24000001 | L38: -1.700000048 | M38: -0.03587914631 | N38: 0 | O38: 0.1893152744 | P38: 0.3198262155 | Q38: 0.3870325089 | R38: 0.431257695 | S38: 0.477558136 | T38: 0.5247673392 | U38: 0.5681102872 | V38: 0.604305625 | W38: 0.6296283007 | X38: 0.2368074656 | Y38: 0.6800000072 | Z38: 0.4730991423 | AA38: 0.6800000072 | AB38: 0.680341661 | AC38: 0.6800000072 | AD38: 0.8336715102 | AE38: 0.6800000072 | AF38: 0.9151394367 | AG38: 0.6800000072 | AH38: 0.9511182904 | AI38: 0.6800000072 | AJ38: 0.9604167342 | AK38: 0.6800000072 | AL38: 0.956494689 | AM38: 0.6800000072 | AN38: -0.9415473342 | AO38: 0.6800000072 | AP38: -0.9170680046 | AQ38: 0.6800000072 | AR38: -0.8845497966 | AS38: 0.6800000072 | AT38: -0.8454860449 | AU38: 0.6800000072 | AV38: -0.8013697863 | AW38: 0.6800000072 | AX38: -0.7508434057 | AY38: 0.6800000072 | AZ38: -0.6920748949 | BA38: 0.6800000072 | BB38: -0.6256064177 | BC38: 0.6800000072 | BD38: -0.551980257 | BE38: 0.6800000072 | DF38: -1.700000048 | DG38: -1.687569857 | DH38: -1.246150255 | DI38: -0.326818943 | DJ38: -0.03587913513 | DK38: -0.03587913513 | DL38: -0.03587913513 | DM38: -0.03587913513 | DN38: -0.03587913513 | GZ38: -1.649999976 | HA38: -0.3918406974 | HB38: -0.3715023365 | HC38: -0.2679951583 | HD38: -0.1349724718 | HL38: -1.649999976 | HM38: -0.9794654975
H39: -0.1201188564 | I39: -1.200000048 | J39: -17 | K39: -1.220000029 | L39: -1.75 | M39: -0.03680867329 | N39: 0 | O39: 0.1962645799 | P39: 0.3294305205 | Q39: 0.3980550468 | R39: 0.4430145621 | S39: 0.4897230566 | T39: 0.5371645093 | U39: 0.5805742741 | V39: 0.6167088151 | W39: 0.6419328451 | X39: 0.239954859 | Y39: 0.6999999881 | Z39: 0.4779006541 | AA39: 0.6999999881 | AB39: 0.6865277886 | AC39: 0.6999999881 | AD39: 0.8400683403 | AE39: 0.6999999881 | AF39: 0.9201196432 | AG39: 0.6999999881 | AH39: 0.9544534087 | AI39: 0.6999999881 | AJ39: 0.9629592896 | AK39: 0.6999999881 | AL39: 0.9593060613 | AM39: 0.6999999881 | AN39: -0.9451470971 | AO39: 0.6999999881 | AP39: -0.9219675064 | AQ39: 0.6999999881 | AR39: -0.8912520409 | AS39: 0.6999999881 | AT39: -0.8544858694 | AU39: 0.6999999881 | AV39: -0.8131537437 | AW39: 0.6999999881 | AX39: -0.7660216093 | AY39: 0.6999999881 | AZ39: -0.7113282681 | BA39: 0.6999999881 | BB39: -0.6495528817 | BC39: 0.6999999881 | BD39: -0.5811747313 | BE39: 0.6999999881 | DF39: -1.75 | DG39: -1.695746899 | DH39: -1.292339087 | DI39: -0.3989350796 | DJ39: -0.03680872917 | DK39: -0.03680872917 | DL39: -0.03680872917 | DM39: -0.03680872917 | DN39: -0.03680872917 | GZ39: -1.700000048 | HA39: -0.4023649119 | HB39: -0.3803562362 | HC39: -0.2738333168 | HD39: -0.138347483 | HL39: -1.700000048 | HM39: -0.9794374833
H40: -0.1157895327 | I40: -1.179999948 | J40: -17 | K40: -1.200000048 | L40: -1.799999952 | M40: -0.03773820028 | N40: 0 | O40: 0.2032179087 | P40: 0.3389932513 | Q40: 0.4090556502 | R40: 0.4547713101 | S40: 0.5018696785 | T40: 0.5495156646 | U40: 0.592954278 | V40: 0.6289832592 | W40: 0.6540654898 | X40: 0.2430914491 | Y40: 0.7200000286 | Z40: 0.4825797975 | AA40: 0.7200000286 | AB40: 0.692368269 | AC40: 0.7200000286 | AD40: 0.8458783627 | AE40: 0.7200000286 | AF40: 0.9243859649 | AG40: 0.7200000286 | AH40: 0.9570829868 | AI40: 0.7200000286 | AJ40: 0.9649426341 | AK40: 0.7200000286 | AL40: 0.9617980123 | AM40: 0.7200000286 | AN40: -0.9486734867 | AO40: 0.7200000286 | AP40: -0.92698735 | AQ40: 0.7200000286 | AR40: -0.8981580138 | AS40: 0.7200000286 | AT40: -0.8636037707 | AU40: 0.7200000286 | AV40: -0.8247429729 | AW40: 0.7200000286 | AX40: -0.780415833 | AY40: 0.7200000286 | AZ40: -0.7289503813 | BA40: 0.7200000286 | BB40: -0.6707939506 | BC40: 0.7200000286 | BD40: -0.6063941717 | BE40: 0.7200000286 | DF40: -1.799999952 | DG40: -1.703454256 | DH40: -1.332340121 | DI40: -0.4644184113 | DJ40: -0.037738204 | DK40: -0.037738204 | DL40: -0.037738204 | DM40: -0.037738204 | DN40: -0.037738204 | GZ40: -1.75 | HA40: -0.4127192168 | HB40: -0.3889701802 | HC40: -0.2795698709 | HD40: -0.1416470948 | HH40: -9 | HI40: 0.9639472961 | HL40: -1.75 | HM40: -0.9794096479
H41: -0.1118292809 | I41: -1.159999967 | J41: -17 | K41: -1.179999948 | L41: -1.850000024 | M41: -0.03866091743 | N41: 0 | O41: 0.2101740837 | P41: 0.3484571874 | Q41: 0.4199101627 | R41: 0.4663347602 | S41: 0.5137451887 | T41: 0.5614863038 | U41: 0.604834199 | V41: 0.6406456232 | W41: 0.6655105352 | X41: 0.2461111993 | Y41: 0.7399999499 | Z41: 0.4870700538 | AA41: 0.7399999499 | AB41: 0.6978986859 | AC41: 0.7399999499 | AD41: 0.8512460589 | AE41: 0.7399999499 | AF41: 0.9281354547 | AG41: 0.7399999499 | AH41: 0.9591901898 | AI41: 0.7399999499 | AJ41: 0.9664417505 | AK41: 0.7399999499 | AL41: 0.9638572931 | AM41: 0.7399999499 | AN41: -0.9518005848 | AO41: 0.7399999499 | AP41: -0.931596458 | AQ41: 0.7399999499 | AR41: -0.9045698047 | AS41: 0.7399999499 | AT41: -0.8720455766 | AU41: 0.7399999499 | AV41: -0.8353486061 | AW41: 0.7399999499 | AX41: -0.7933661938 | AY41: 0.7399999499 | AZ41: -0.7445216179 | BA41: 0.7399999499 | BB41: -0.689247191 | BC41: 0.7399999499 | BD41: -0.6279754043 | BE41: 0.7399999499 | DF41: -1.850000024 | DG41: -1.710695505 | DH41: -1.36739409 | DI41: -0.5238331556 | DJ41: -0.0386608839 | DK41: -0.0386608839 | DL41: -0.0386608839 | DM41: -0.0386608839 | DN41: -0.0386608839 | GZ41: -1.799999952 | HA41: -0.4230017604 | HB41: -0.3974095813 | HC41: -0.2852078834 | HD41: -0.1448813308 | HH41: -9 | HI41: -0.8513197493 | HL41: -1.799999952 | HM41: -0.9793814549
H42: -0.1078861952 | I42: -1.139999986 | J42: -17 | K42: -1.159999967 | L42: -1.899999976 | M42: -0.03956478089 | N42: 0 | O42: 0.2171328813 | P42: 0.3578935266 | Q42: 0.4307501316 | R42: 0.4778980911 | S42: 0.5256115794 | T42: 0.5734337568 | U42: 0.6166715622 | V42: 0.6522424221 | W42: 0.6768676639 | X42: 0.24926202 | Y42: 0.7599999905 | Z42: 0.4916767478 | AA42: 0.7599999905 | AB42: 0.7033459544 | AC42: 0.7599999905 | AD42: 0.8562633395 | AE42: 0.7599999905 | AF42: 0.9313802719 | AG42: 0.7599999905 | AH42: 0.9607795477 | AI42: 0.7599999905 | AJ42: 0.9675316811 | AK42: 0.7599999905 | AL42: 0.965691328 | AM42: 0.7599999905 | AN42: -0.954893589 | AO42: 0.7599999905 | AP42: -0.9363213181 | AQ42: 0.7599999905 | AR42: -0.9111574888 | AS42: 0.7599999905 | AT42: -0.880584836 | AU42: 0.7599999905 | AV42: -0.8457862735 | AW42: 0.7599999905 | AX42: -0.8056561947 | AY42: 0.7599999905 | AZ42: -0.7587290406 | BA42: 0.7599999905 | BB42: -0.705447495 | BC42: 0.7599999905 | BD42: -0.6462543607 | BE42: 0.7599999905 | DF42: -1.899999976 | DG42: -1.717653036 | DH42: -1.398054123 | DI42: -0.5805490017 | DJ42: -0.03956472874 | DK42: -0.03956472874 | DL42: -0.03956472874 | DM42: -0.03956472874 | DN42: -0.03956472874 | GZ42: -1.850000024 | HA42: -0.4330967959 | HB42: -0.4056803528 | HC42: -0.290699319 | HD42: -0.1480398506 | HL42: -1.850000024 | HM42: -0.9793533811
H43: -0.1039431095 | I43: -1.120000005 | J43: -17 | K43: -1.139999986 | L43: -1.950000048 | M43: -0.04046864063 | N43: 0 | O43: 0.224095732 | P43: 0.3672178984 | Q43: 0.4414378703 | R43: 0.4892696738 | S43: 0.5371981859 | T43: 0.5849755406 | U43: 0.6279600263 | V43: 0.6631502509 | W43: 0.6874338388 | X43: 0.2523894608 | Y43: 0.7799999714 | Z43: 0.4961594343 | AA43: 0.7799999714 | AB43: 0.7084854841 | AC43: 0.7799999714 | AD43: 0.8608096242 | AE43: 0.7799999714 | AF43: 0.9341478944 | AG43: 0.7799999714 | AH43: 0.9619749784 | AI43: 0.7799999714 | AJ43: 0.9682873487 | AK43: 0.7799999714 | AL43: 0.9671909213 | AM43: 0.7799999714 | AN43: -0.9576245546 | AO43: 0.7799999714 | AP43: -0.9406169653 | AQ43: 0.7799999714 | AR43: -0.9171964526 | AS43: 0.7799999714 | AT43: -0.8883915544 | AU43: 0.7799999714 | AV43: -0.8552307487 | AW43: 0.7799999714 | AX43: -0.8165954351 | AY43: 0.7799999714 | AZ43: -0.7711298466 | BA43: 0.7799999714 | BB43: -0.7192988396 | BC43: 0.7799999714 | BD43: -0.6615675092 | BE43: 0.7799999714 | DF43: -1.950000048 | DG43: -1.724291682 | DH43: -1.424853683 | DI43: -0.6331731081 | DJ43: -0.04046869278 | DK43: -0.04046869278 | DL43: -0.04046869278 | DM43: -0.04046869278 | DN43: -0.04046869278 | GZ43: -1.899999976 | HA43: -0.4430836552 | HB43: -0.4138408319 | HC43: -0.296040573 | HD43: -0.151123282 | HL43: -1.899999976 | HM43: -0.9793250093
H44: -0.1000000238 | I44: -1.100000024 | J44: -17 | K44: -1.120000005 | L44: -2 | M44: -0.04137250036 | N44: 0 | O44: 0.2310598344 | P44: 0.3765285611 | Q44: 0.452118367 | R44: 0.5006411672 | S44: 0.548784852 | T44: 0.5965172648 | U44: 0.6392484307 | V44: 0.6740580201 | W44: 0.6980000138 | X44: 0.2555813491 | Y44: 0.8000000119 | Z44: 0.5006411672 | AA44: 0.8000000119 | AB44: 0.7133945823 | AC44: 0.8000000119 | AD44: 0.8648917079 | AE44: 0.8000000119 | AF44: 0.9364153147 | AG44: 0.8000000119 | AH44: 0.962772131 | AI44: 0.8000000119 | AJ44: 0.9687836766 | AK44: 0.8000000119 | AL44: 0.9685667753 | AM44: 0.8000000119 | AN44: -0.9603680372 | AO44: 0.8000000119 | AP44: -0.9450263381 | AQ44: 0.8000000119 | AR44: -0.9233806729 | AS44: 0.8000000119 | AT44: -0.8962699771 | AU44: 0.8000000119 | AV44: -0.8645333648 | AW44: 0.8000000119 | AX44: -0.8270024657 | AY44: 0.8000000119 | AZ44: -0.7824383974 | BA44: 0.8000000119 | BB44: -0.7313512564 | BC44: 0.8000000119 | BD44: -0.6742511988 | BE44: 0.8000000119 | DF44: -2 | DG44: -1.730642796 | DH44: -1.448892832 | DI44: -0.6846091747 | DJ44: -0.04137253761 | DK44: -0.04137253761 | DL44: -0.04137253761 | DM44: -0.04137253761 | DN44: -0.04137253761 | GZ44: -1.950000048 | HA44: -0.4528911195 | HB44: -0.4217755991 | HC44: -0.3012952004 | HD44: -0.1541221714 | HH44: -10 | HI44: 0.9516213536 | HL44: -1.950000048 | HM44: -0.9792966971
H45: -0.09637904167 | I45: -1.080000043 | J45: -17 | K45: -1.100000024 | L45: -2.049999952 | M45: -0.04226120189 | N45: 0 | O45: 0.2381018251 | P45: 0.385754019 | Q45: 0.4626901746 | R45: 0.5118929148 | S45: 0.5601392388 | T45: 0.6076553464 | U45: 0.6499511003 | V45: 0.6842213273 | W45: 0.7077165842 | X45: 0.258793056 | Y45: 0.8199999928 | Z45: 0.5051496029 | AA45: 0.8199999928 | AB45: 0.718162775 | AC45: 0.8199999928 | AD45: 0.8686588407 | AE45: 0.8199999928 | AF45: 0.9383793473 | AG45: 0.8199999928 | AH45: 0.9633606672 | AI45: 0.8199999928 | AJ45: 0.9690957069 | AK45: 0.8199999928 | AL45: 0.9696849585 | AM45: 0.8199999928 | AN45: -0.962757647 | AO45: 0.8199999928 | AP45: -0.9489614367 | AQ45: 0.8199999928 | AR45: -0.9289436936 | AS45: 0.8199999928 | AT45: -0.9033520222 | AU45: 0.8199999928 | AV45: -0.872833848 | AW45: 0.8199999928 | AX45: -0.8361554742 | AY45: 0.8199999928 | AZ45: -0.7921878099 | BA45: 0.8199999928 | BB45: -0.7414951324 | BC45: 0.8199999928 | BD45: -0.6846418381 | BE45: 0.8199999928 | DF45: -2.049999952 | DG45: -1.736930013 | DH45: -1.47041595 | DI45: -0.7333495617 | DJ45: -0.04226124287 | DK45: -0.04226124287 | DL45: -0.04226124287 | DM45: -0.04226124287 | DN45: -0.04226124287 | GZ45: -2 | HA45: -0.4626468228 | HB45: -0.4295424886 | HC45: -0.3064696918 | HD45: -0.1570476765 | HH45: -10 | HI45: -0.8265708983 | HL45: -2 | HM45: -0.9792677292
H46: -0.09291887283 | I46: -1.059999943 | J46: -17 | K46: -1.080000043 | L46: -2.099999905 | M46: -0.04313945398 | N46: 0 | O46: 0.2451438159 | P46: 0.3949794471 | Q46: 0.4732619822 | R46: 0.5231446028 | S46: 0.5714936256 | T46: 0.6187934279 | U46: 0.66065377 | V46: 0.6943846345 | W46: 0.7174332142 | X46: 0.2620786726 | Y46: 0.8399999738 | Z46: 0.5097121 | AA46: 0.8399999738 | AB46: 0.7227730751 | AC46: 0.8399999738 | AD46: 0.872058332 | AE46: 0.8399999738 | AF46: 0.939987421 | AG46: 0.8399999738 | AH46: 0.963724196 | AI46: 0.8399999738 | AJ46: 0.9692983627 | AK46: 0.8399999738 | AL46: 0.9707660675 | AM46: 0.8399999738 | AN46: -0.9651859999 | AO46: 0.8399999738 | AP46: -0.9529896379 | AQ46: 0.8399999738 | AR46: -0.9346084595 | AS46: 0.8399999738 | AT46: -0.9104740024 | AU46: 0.8399999738 | AV46: -0.8810177445 | AW46: 0.8399999738 | AX46: -0.8449054956 | AY46: 0.8399999738 | AZ46: -0.8011175394 | BA46: 0.8399999738 | BB46: -0.7502942085 | BC46: 0.8399999738 | BD46: -0.6930756569 | BE46: 0.8399999738 | DF46: -2.099999905 | DG46: -1.742759109 | DH46: -1.489946008 | DI46: -0.7815167904 | DJ46: -0.0431394577 | DK46: -0.0431394577 | DL46: -0.0431394577 | DM46: -0.0431394577 | DN46: -0.0431394577 | GZ46: -2.049999952 | HA46: -0.4722593743 | HB46: -0.437176895 | HC46: -0.3116188146 | HD46: -0.1600715564 | HL46: -2.049999952 | HM46: -0.9792354831
H47: -0.08958876133 | I47: -1.039999962 | J47: -17 | K47: -1.059999943 | L47: -2.150000095 | M47: -0.04401770607 | N47: 0 | O47: 0.2523064613 | P47: 0.4041538239 | Q47: 0.4837681949 | R47: 0.5343350768 | S47: 0.582677424 | T47: 0.6295924783 | U47: 0.6708526015 | V47: 0.7039201856 | W47: 0.7264546156 | X47: 0.2654759884 | Y47: 0.8599999547 | Z47: 0.5143563747 | AA47: 0.8599999547 | AB47: 0.7271581888 | AC47: 0.8599999547 | AD47: 0.8749840856 | AE47: 0.8599999547 | AF47: 0.9412449002 | AG47: 0.8599999547 | AH47: 0.9639675021 | AI47: 0.8599999547 | AJ47: 0.9694666862 | AK47: 0.8599999547 | AL47: 0.9717109203 | AM47: 0.8599999547 | AN47: -0.9673287272 | AO47: 0.8599999547 | AP47: -0.9565529823 | AQ47: 0.8599999547 | AR47: -0.9396162629 | AS47: 0.8599999547 | AT47: -0.9167515039 | AU47: 0.8599999547 | AV47: -0.8881913424 | AW47: 0.8599999547 | AX47: -0.8524940014 | AY47: 0.8599999547 | AZ47: -0.8087317348 | BA47: 0.8599999547 | BB47: -0.7576236725 | BC47: 0.8599999547 | BD47: -0.6998890638 | BE47: 0.8599999547 | DF47: -2.150000095 | DG47: -1.748412609 | DH47: -1.507743359 | DI47: -0.8281382322 | DJ47: -0.04401767254 | DK47: -0.04401767254 | DL47: -0.04401767254 | DM47: -0.04401767254 | DN47: -0.04401767254 | GZ47: -2.099999905 | HA47: -0.4818306188 | HB47: -0.4447404709 | HC47: -0.3166960465 | HD47: -0.1630112055 | HL47: -2.099999905 | HM47: -0.9792029985
H48: -0.08646380901 | I48: -1.019999981 | J48: -17 | K48: -1.039999962 | L48: -2.200000048 | M48: -0.04489595443 | N48: 0 | O48: 0.259483248 | P48: 0.4133221507 | Q48: 0.4942666292 | R48: 0.5455182791 | S48: 0.5938410759 | T48: 0.6403515339 | U48: 0.6809921265 | V48: 0.7133818865 | W48: 0.7353941202 | X48: 0.2689727247 | Y48: 0.8799999952 | Z48: 0.519109726 | AA48: 0.8799999952 | AB48: 0.7314454913 | AC48: 0.8799999952 | AD48: 0.8776302934 | AE48: 0.8799999952 | AF48: 0.9422864318 | AG48: 0.8799999952 | AH48: 0.9641479254 | AI48: 0.8799999952 | AJ48: 0.9696756005 | AK48: 0.8799999952 | AL48: 0.9727310538 | AM48: 0.8799999952 | AN48: -0.9695776105 | AO48: 0.8799999952 | AP48: -0.9602352381 | AQ48: 0.8799999952 | AR48: -0.9447237253 | AS48: 0.8799999952 | AT48: -0.9230630398 | AU48: 0.8799999952 | AV48: -0.8952730298 | AW48: 0.8799999952 | AX48: -0.8597721457 | AY48: 0.8799999952 | AZ48: -0.8157176971 | BA48: 0.8799999952 | BB48: -0.7639273405 | BC48: 0.8799999952 | BD48: -0.7052186728 | BE48: 0.8799999952 | DF48: -2.200000048 | DG48: -1.753924489 | DH48: -1.524211049 | DI48: -0.8744951487 | DJ48: -0.04489600658 | DK48: -0.04489600658 | DL48: -0.04489600658 | DM48: -0.04489600658 | DN48: -0.04489600658 | GZ48: -2.150000095 | HA48: -0.491250471 | HB48: -0.4522126298 | HC48: -0.3217632925 | HD48: -0.1661344367 | HH48: -11 | HI48: 0.9347129464 | HL48: -2.150000095 | HM48: -0.9791647919
H49: -0.0834530592 | I49: -1 | J49: -17 | K49: -1.019999981 | L49: -2.25 | M49: -0.04575072974 | N49: 0 | O49: 0.2667477727 | P49: 0.4224312305 | Q49: 0.5046896338 | R49: 0.5566236377 | S49: 0.6048365235 | T49: 0.650808692 | U49: 0.6907011867 | V49: 0.7223176956 | W49: 0.7437562346 | X49: 0.27260077 | Y49: 0.8999999762 | Z49: 0.523999989 | AA49: 0.8999999762 | AB49: 0.7356258631 | AC49: 0.8999999762 | AD49: 0.8799999952 | AE49: 0.8999999762 | AF49: 0.9432046413 | AG49: 0.8999999762 | AH49: 0.9644047022 | AI49: 0.8999999762 | AJ49: 0.9700000286 | AK49: 0.8999999762 | AL49: 0.9737100005 | AM49: 0.8999999762 | AN49: -0.9715655446 | AO49: 0.8999999762 | AP49: -0.9634114504 | AQ49: 0.8999999762 | AR49: -0.9490922093 | AS49: 0.8999999762 | AT49: -0.9284524918 | AU49: 0.8999999762 | AV49: -0.9013369083 | AW49: 0.8999999762 | AX49: -0.8660390973 | AY49: 0.8999999762 | AZ49: -0.821780324 | BA49: 0.8999999762 | BB49: -0.7694656253 | BC49: 0.8999999762 | BD49: -0.7099999785 | BE49: 0.8999999762 | DF49: -2.25 | DG49: -1.759491682 | DH49: -1.539452672 | DI49: -0.9200088382 | DJ49: -0.04575073719 | DK49: -0.04575073719 | DL49: -0.04575073719 | DM49: -0.04575073719 | DN49: -0.04575073719 | GZ49: -2.200000048 | HA49: -0.5006010191 | HB49: -0.4595277659 | HC49: -0.3267386338 | HD49: -0.1692045472 | HH49: -11 | HI49: -0.7897997876 | HL49: -2.200000048 | HM49: -0.9791259297
H50: -0.08054292202 | I50: -0.9799999595 | J50: -17 | K50: -1 | L50: -2.299999952 | M50: -0.04660341889 | N50: 0 | O50: 0.2740356922 | P50: 0.431524545 | Q50: 0.5150925517 | R50: 0.5677083135 | S50: 0.6157871485 | T50: 0.6611853838 | U50: 0.7002955079 | V50: 0.7311131954 | W50: 0.7519642711 | X50: 0.2763417959 | Y50: 0.9200000167 | Z50: 0.5289768577 | AA50: 0.9200000167 | AB50: 0.7396158576 | AC50: 0.9200000167 | AD50: 0.8819722533 | AE50: 0.9200000167 | AF50: 0.9438315034 | AG50: 0.9200000167 | AH50: 0.964566946 | AI50: 0.9200000167 | AJ50: 0.9703771472 | AK50: 0.9200000167 | AL50: 0.9748158455 | AM50: 0.9200000167 | AN50: -0.9737466574 | AO50: 0.9200000167 | AP50: -0.9668292403 | AQ50: 0.9200000167 | AR50: -0.9537230134 | AS50: 0.9200000167 | AT50: -0.9340876937 | AU50: 0.9200000167 | AV50: -0.9075827599 | AW50: 0.9200000167 | AX50: -0.8723481894 | AY50: 0.9200000167 | AZ50: -0.8276610374 | BA50: 0.9200000167 | BB50: -0.7745309472 | BC50: 0.9200000167 | BD50: -0.7139675617 | BE50: 0.9200000167 | DF50: -2.299999952 | DG50: -1.764821887 | DH50: -1.553491592 | DI50: -0.9653144479 | DJ50: -0.04660344124 | DK50: -0.04660344124 | DL50: -0.04660344124 | DM50: -0.04660344124 | DN50: -0.04660344124 | GZ50: -2.25 | HA50: -0.5098401038 | HB50: -0.4667394555 | HC50: -0.3317571442 | HD50: -0.1723877624 | HL50: -2.25 | HM50: -0.9790829547
H51: -0.07779192924 | I51: -0.9599999785 | J51: -17 | K51: -0.9799999595 | L51: -2.349999905 | M51: -0.04745610803 | N51: 0 | O51: 0.2813835144 | P51: 0.4405543208 | Q51: 0.5254150629 | R51: 0.5787050128 | S51: 0.6265768409 | T51: 0.6712982655 | U51: 0.7095291018 | V51: 0.7394772768 | W51: 0.7597030997 | X51: 0.2800731957 | Y51: 0.939999938 | Z51: 0.5339512229 | AA51: 0.939999938 | AB51: 0.7435759902 | AC51: 0.939999938 | AD51: 0.8839445114 | AE51: 0.939999938 | AF51: 0.9445521832 | AG51: 0.939999938 | AH51: 0.9648454785 | AI51: 0.939999938 | AJ51: 0.9707543254 | AK51: 0.939999938 | AL51: 0.9756590128 | AM51: 0.939999938 | AN51: -0.975333035 | AO51: 0.939999938 | AP51: -0.9693054557 | AQ51: 0.939999938 | AR51: -0.957105279 | AS51: 0.939999938 | AT51: -0.938261807 | AU51: 0.939999938 | AV51: -0.9123040438 | AW51: 0.939999938 | AX51: -0.8772634864 | AY51: 0.939999938 | AZ51: -0.8324556947 | BA51: 0.939999938 | BB51: -0.7789650559 | BC51: 0.939999938 | BD51: -0.7178759575 | BE51: 0.939999938 | DF51: -2.349999905 | DG51: -1.770119429 | DH51: -1.566772342 | DI51: -1.010246038 | DJ51: -0.04745614529 | DK51: -0.04745614529 | DL51: -0.04745614529 | DM51: -0.04745614529 | DN51: -0.04745614529 | GZ51: -2.299999952 | HA51: -0.5190196964 | HB51: -0.4738905252 | HC51: -0.3367790476 | HD51: -0.1755398248 | HL51: -2.299999952 | HM51: -0.9790388473
H52: -0.07500004768 | I52: -0.939999938 | J52: -17 | K52: -0.9599999785 | L52: -2.400000095 | M52: -0.04830255732 | N52: 0 | O52: 0.2887590528 | P52: 0.449554801 | Q52: 0.5357004404 | R52: 0.589661181 | S52: 0.6372923255 | T52: 0.6812894344 | U52: 0.71859622 | V52: 0.7476422191 | W52: 0.7672254443 | X52: 0.2838331461 | Y52: 0.9599999785 | Z52: 0.5389083624 | AA52: 0.9599999785 | AB52: 0.747412622 | AC52: 0.9599999785 | AD52: 0.8857280016 | AE52: 0.9599999785 | AF52: 0.9451112747 | AG52: 0.9599999785 | AH52: 0.965018034 | AI52: 0.9599999785 | AJ52: 0.9710880518 | AK52: 0.9599999785 | AL52: 0.9765306711 | AM52: 0.9599999785 | AN52: -0.9770352244 | AO52: 0.9599999785 | AP52: -0.9719846249 | AQ52: 0.9599999785 | AR52: -0.9607620239 | AS52: 0.9599999785 | AT52: -0.9427505732 | AU52: 0.9599999785 | AV52: -0.9173333049 | AW52: 0.9599999785 | AX52: -0.8824055791 | AY52: 0.9599999785 | AZ52: -0.837318182 | BA52: 0.9599999785 | BB52: -0.7832473516 | BC52: 0.9599999785 | BD52: -0.7213696837 | BE52: 0.9599999785 | DF52: -2.400000095 | DG52: -1.775327086 | DH52: -1.579464436 | DI52: -1.056264877 | DJ52: -0.04830253124 | DK52: -0.04830253124 | DL52: -0.04830253124 | DM52: -0.04830253124 | DN52: -0.04830253124 | GZ52: -2.349999905 | HA52: -0.528087167 | HB52: -0.4809583055 | HC52: -0.3418537359 | HD52: -0.1787479991 | HH52: -12 | HI52: 0.9139348269 | HL52: -2.349999905 | HM52: -0.9789918192
H53: -0.07253623009 | I53: -0.9200000167 | J53: -17 | K53: -0.939999938 | L53: -2.450000048 | M53: -0.04912974313 | N53: 0 | O53: 0.296171546 | P53: 0.4584912062 | Q53: 0.5459048748 | R53: 0.600525558 | S53: 0.6478587985 | T53: 0.6910553575 | U53: 0.7273685336 | V53: 0.7554624677 | W53: 0.7743771076 | X53: 0.2875722945 | Y53: 0.9799999595 | Z53: 0.5438579321 | AA53: 0.9799999595 | AB53: 0.7511590123 | AC53: 0.9799999595 | AD53: 0.8874012828 | AE53: 0.9799999595 | AF53: 0.9456564784 | AG53: 0.9799999595 | AH53: 0.9652277231 | AI53: 0.9799999595 | AJ53: 0.9713964462 | AK53: 0.9799999595 | AL53: 0.9771866202 | AM53: 0.9799999595 | AN53: -0.9782670736 | AO53: 0.9799999595 | AP53: -0.9739195704 | AQ53: 0.9799999595 | AR53: -0.9634257555 | AS53: 0.9799999595 | AT53: -0.9460674524 | AU53: 0.9799999595 | AV53: -0.9211263061 | AW53: 0.9799999595 | AX53: -0.8864030242 | AY53: 0.9799999595 | AZ53: -0.8412721753 | BA53: 0.9799999595 | BB53: -0.7869748473 | BC53: 0.9799999595 | BD53: -0.7247519493 | BE53: 0.9799999595 | DF53: -2.450000048 | DG53: -1.780460954 | DH53: -1.590105295 | DI53: -1.102198362 | DJ53: -0.0491297245 | DK53: -0.0491297245 | DL53: -0.0491297245 | DM53: -0.0491297245 | DN53: -0.0491297245 | GZ53: -2.400000095 | HA53: -0.5370819299 | HB53: -0.4879644818 | HC53: -0.3469597619 | HD53: -0.1818671838 | HH53: -12 | HI53: -0.7386229242 | HL53: -2.400000095 | HM53: -0.9789433606
H54: -0.07000005245 | I54: -0.8999999762 | J54: -17 | K54: -0.9200000167 | L54: -2.5 | M54: -0.04995692894 | N54: 0 | O54: 0.3036109507 | P54: 0.4673810005 | Q54: 0.556050539 | R54: 0.6113232374 | S54: 0.6583168507 | T54: 0.7006576061 | U54: 0.7359265089 | V54: 0.7630321383 | W54: 0.7812591791 | X54: 0.2913250625 | Y54: 1 | Z54: 0.548784852 | AA54: 1 | AB54: 0.7548397779 | AC54: 1 | AD54: 0.8890019655 | AE54: 1 | AF54: 0.946151197 | AG54: 1 | AH54: 0.9654042125 | AI54: 1 | AJ54: 0.971688211 | AK54: 1 | AL54: 0.9778491855 | AM54: 1 | AN54: -0.9795356393 | AO54: 1 | AP54: -0.9759207368 | AQ54: 1 | AR54: -0.966177702 | AS54: 1 | AT54: -0.9494796991 | AU54: 1 | AV54: -0.9250000119 | AW54: 1 | AX54: -0.8904289007 | AY54: 1 | AZ54: -0.8451616168 | BA54: 1 | BB54: -0.7905135751 | BC54: 1 | BD54: -0.727799952 | BE54: 1 | DF54: -2.5 | DG54: -1.785260439 | DH54: -1.600504398 | DI54: -1.146323204 | DJ54: -0.04995691776 | DK54: -0.04995691776 | DL54: -0.04995691776 | DM54: -0.04995691776 | DN54: -0.04995691776 | GZ54: -2.450000048 | HA54: -0.5459075692 | HB54: -0.494544643 | HC54: -0.352120588 | HD54: -0.1849647592 | HL54: -2.450000048 | HM54: -0.9788931138
H55: -0.06762647629 | I55: -0.8799999952 | J55: -17 | K55: -0.8999999762 | L55: -2.549999952 | M55: -0.05078411475 | N55: 0 | O55: 0.3110694289 | P55: 0.4762099385 | Q55: 0.5661194921 | R55: 0.6220316291 | S55: 0.6686425209 | T55: 0.7100740671 | U55: 0.7442517877 | V55: 0.7703366876 | W55: 0.7878596783 | X55: 0.2950842083 | Y55: 1.019999981 | Z55: 0.5536965132 | AA55: 1.019999981 | AB55: 0.7583717108 | AC55: 1.019999981 | AD55: 0.8903990984 | AE55: 1.019999981 | AF55: 0.9465395212 | AG55: 1.019999981 | AH55: 0.9655481577 | AI55: 1.019999981 | AJ55: 0.9719334841 | AK55: 1.019999981 | AL55: 0.9783479571 | AM55: 1.019999981 | AN55: -0.9804708362 | AO55: 1.019999981 | AP55: -0.9773989916 | AQ55: 1.019999981 | AR55: -0.9682291746 | AS55: 1.019999981 | AT55: -0.9520582557 | AU55: 1.019999981 | AV55: -0.9279831052 | AW55: 1.019999981 | AX55: -0.8936159015 | AY55: 1.019999981 | AZ55: -0.8483660817 | BA55: 1.019999981 | BB55: -0.7936017513 | BC55: 1.019999981 | BD55: -0.7306913137 | BE55: 1.019999981 | DF55: -2.549999952 | DG55: -1.789957285 | DH55: -1.610393763 | DI55: -1.187399626 | DJ55: -0.05078411102 | DK55: -0.05078411102 | DL55: -0.05078411102 | DM55: -0.05078411102 | DN55: -0.05078411102 | GZ55: -2.5 | HA55: -0.5546320939 | HB55: -0.5010621259 | HC55: -0.3571519584 | HD55: -0.1880332188 | HL55: -2.5 | HM55: -0.9788413174
H56: -0.06525313854 | I56: -0.8599999547 | J56: -17 | K56: -0.8799999952 | L56: -2.599999905 | M56: -0.05159675702 | N56: 0 | O56: 0.3185491562 | P56: 0.4849711955 | Q56: 0.5761032701 | R56: 0.6326408386 | S56: 0.6788210273 | T56: 0.7192841172 | U56: 0.7523185015 | V56: 0.777346611 | W56: 0.7941471934 | X56: 0.2988362014 | Y56: 1.039999962 | Z56: 0.5585827231 | AA56: 1.039999962 | AB56: 0.7618742585 | AC56: 1.039999962 | AD56: 0.8917962313 | AE56: 1.039999962 | AF56: 0.9469543099 | AG56: 1.039999962 | AH56: 0.9657144547 | AI56: 1.039999962 | AJ56: 0.9721787572 | AK56: 1.039999962 | AL56: 0.9788133502 | AM56: 1.039999962 | AN56: -0.9813308716 | AO56: 1.039999962 | AP56: -0.9787563682 | AQ56: 1.039999962 | AR56: -0.9701148868 | AS56: 1.039999962 | AT56: -0.9544314146 | AU56: 1.039999962 | AV56: -0.9307309985 | AW56: 1.039999962 | AX56: -0.8965494037 | AY56: 1.039999962 | AZ56: -0.8513073325 | BA56: 1.039999962 | BB56: -0.7964247465 | BC56: 1.039999962 | BD56: -0.7333216071 | BE56: 1.039999962 | DF56: -2.599999905 | DG56: -1.794566274 | DH56: -1.620150208 | DI56: -1.224535942 | DJ56: -0.05159676075 | DK56: -0.05159676075 | DL56: -0.05159676075 | DM56: -0.05159676075 | DN56: -0.05159676075 | GZ56: -2.549999952 | HA56: -0.5632540155 | HB56: -0.5075268016 | HC56: -0.3621866891 | HD56: -0.1910633816 | HH56: -13 | HI56: 0.8898134232 | HL56: -2.549999952 | HM56: -0.978788448
H57: -0.06301259995 | I57: -0.8399999738 | J57: -17 | K57: -0.8599999547 | L57: -2.650000095 | M57: -0.0523984991 | N57: 0 | O57: 0.3260350227 | P57: 0.49367854 | Q57: 0.5860193372 | R57: 0.6431696415 | S57: 0.688888371 | T57: 0.7283484936 | U57: 0.7602109909 | V57: 0.784163475 | W57: 0.8002325296 | X57: 0.3025940657 | Y57: 1.059999943 | Z57: 0.5634434223 | AA57: 1.059999943 | AB57: 0.7652130723 | AC57: 1.059999943 | AD57: 0.8929666877 | AE57: 1.059999943 | AF57: 0.9472234249 | AG57: 1.059999943 | AH57: 0.965809226 | AI57: 1.059999943 | AJ57: 0.9723725319 | AK57: 1.059999943 | AL57: 0.979182303 | AM57: 1.059999943 | AN57: -0.9820177555 | AO57: 1.059999943 | AP57: -0.9798484445 | AQ57: 1.059999943 | AR57: -0.9716441035 | AS57: 1.059999943 | AT57: -0.956374228 | AU57: 1.059999943 | AV57: -0.933008492 | AW57: 1.059999943 | AX57: -0.8990223408 | AY57: 1.059999943 | AZ57: -0.853844583 | BA57: 1.059999943 | BB57: -0.7989358902 | BC57: 1.059999943 | BD57: -0.7357571721 | BE57: 1.059999943 | DF57: -2.650000095 | DG57: -1.79905808 | DH57: -1.629077196 | DI57: -1.257974267 | DJ57: -0.10362041 | DK57: -0.05239844322 | DL57: -0.05239844322 | DM57: -0.05239844322 | DN57: -0.05239844322 | GZ57: -2.599999905 | HA57: -0.5717673348 | HB57: -0.5139400691 | HC57: -0.3672347685 | HD57: -0.1940621341 | HH57: -13 | HI57: -0.6692027277 | HL57: -2.599999905 | HM57: -0.9787342078
A58: offset +/- | B58: height | C58: offset | D58: length | E58: height down | H58: -0.06078779697 | I58: -0.8199999928 | J58: -17 | K58: -0.8399999738 | L58: -2.700000048 | M58: -0.05320023373 | N58: 0 | O58: 0.3335313797 | P58: 0.5022934079 | Q58: 0.5958191752 | R58: 0.6535604596 | S58: 0.698765099 | T58: 0.7371630669 | U58: 0.7678046227 | V58: 0.7906490564 | W58: 0.8059711456 | X58: 0.3063461185 | Y58: 1.080000043 | Z58: 0.5682784915 | AA58: 1.080000043 | AB58: 0.7685034275 | AC58: 1.080000043 | AD58: 0.8941104412 | AE58: 1.080000043 | AF58: 0.9475080967 | AG58: 1.080000043 | AH58: 0.9659261703 | AI58: 1.080000043 | AJ58: 0.9725602269 | AK58: 1.080000043 | AL58: 0.9794842601 | AM58: 1.080000043 | AN58: -0.982555151 | AO58: 1.080000043 | AP58: -0.9806998372 | AQ58: 1.080000043 | AR58: -0.9728456736 | AS58: 1.080000043 | AT58: -0.9579197168 | AU58: 1.080000043 | AV58: -0.934849143 | AW58: 1.080000043 | AX58: -0.9010638595 | AY58: 1.080000043 | AZ58: -0.8559988737 | BA58: 1.080000043 | BB58: -0.8011463284 | BC58: 1.080000043 | BD58: -0.7379979491 | BE58: 1.080000043 | DF58: -2.700000048 | DG58: -1.803215742 | DH58: -1.637896895 | DI58: -1.287953377 | DJ58: -0.1895046234 | DK58: -0.0532002449 | DL58: -0.0532002449 | DM58: -0.0532002449 | DN58: -0.0532002449 | GZ58: -2.650000095 | HA58: -0.580188588 | HB58: -0.520309326 | HC58: -0.3722783193 | HD58: -0.1970011131 | HL58: -2.650000095 | HM58: -0.9786792523
H59: -0.05865108967 | I59: -0.8000000119 | J59: -17 | K59: -0.8199999928 | L59: -2.75 | M59: -0.05400196835 | N59: 0 | O59: 0.3410259187 | P59: 0.5108650923 | Q59: 0.6055648327 | R59: 0.6638858914 | S59: 0.7085565925 | T59: 0.745872736 | U59: 0.7752783895 | V59: 0.7970060706 | W59: 0.8115773201 | X59: 0.3100860417 | Y59: 1.100000024 | Z59: 0.5730751157 | AA59: 1.100000024 | AB59: 0.7716872692 | AC59: 1.100000024 | AD59: 0.8951328993 | AE59: 1.100000024 | AF59: 0.9477205276 | AG59: 1.100000024 | AH59: 0.9660060406 | AI59: 1.100000024 | AJ59: 0.972720623 | AK59: 1.100000024 | AL59: 0.9797431827 | AM59: 1.100000024 | AN59: -0.9830198288 | AO59: 1.100000024 | AP59: -0.9814406633 | AQ59: 1.100000024 | AR59: -0.9738960266 | AS59: 1.100000024 | AT59: -0.9592762589 | AU59: 1.100000024 | AV59: -0.9364714622 | AW59: 1.100000024 | AX59: -0.9028708935 | AY59: 1.100000024 | AZ59: -0.8579144478 | BA59: 1.100000024 | BB59: -0.8031218052 | BC59: 1.100000024 | BD59: -0.7400128245 | BE59: 1.100000024 | DF59: -2.75 | DG59: -1.807166696 | DH59: -1.646090388 | DI59: -1.314748168 | DJ59: -0.265581131 | DK59: -0.05400192738 | DL59: -0.05400192738 | DM59: -0.05400192738 | DN59: -0.05400192738 | GZ59: -2.700000048 | HA59: -0.5884794566 | HB59: -0.5265684151 | HC59: -0.3773309041 | HD59: -0.1999003771 | HL59: -2.700000048 | HM59: -0.9786232239
A60: 0 | B60: 0 | C60: 0 | D60: -2 | E60: -1.899999976 | H60: -0.05656266212 | I60: -0.7799999714 | J60: -17 | K60: -0.8000000119 | L60: -2.799999952 | M60: -0.05478090048 | N60: 0 | O60: 0.3485153615 | P60: 0.5193157792 | Q60: 0.6151586175 | R60: 0.674028337 | S60: 0.7181093693 | T60: 0.7542886138 | U60: 0.7824168205 | V60: 0.8030029535 | W60: 0.8168126345 | X60: 0.3138290048 | Y60: 1.120000005 | Z60: 0.5778486133 | AA60: 1.120000005 | AB60: 0.7747727633 | AC60: 1.120000005 | AD60: 0.8960461617 | AE60: 1.120000005 | AF60: 0.9478902817 | AG60: 1.120000005 | AH60: 0.9660787582 | AI60: 1.120000005 | AJ60: 0.9728564024 | AK60: 1.120000005 | AL60: 0.9799006581 | AM60: 1.120000005 | AN60: -0.983270824 | AO60: 1.120000005 | AP60: -0.9818408489 | AQ60: 1.120000005 | AR60: -0.9744845629 | AS60: 1.120000005 | AT60: -0.9600759745 | AU60: 1.120000005 | AV60: -0.9374890327 | AW60: 1.120000005 | AX60: -0.9040986896 | AY60: 1.120000005 | AZ60: -0.8593488932 | BA60: 1.120000005 | BB60: -0.8047699928 | BC60: 1.120000005 | BD60: -0.741892159 | BE60: 1.120000005 | DF60: -2.799999952 | DG60: -1.810998321 | DH60: -1.653992772 | DI60: -1.339403152 | DJ60: -0.3340309858 | DK60: -0.05478084087 | DL60: -0.05478084087 | DM60: -0.05478084087 | DN60: -0.05478084087 | GZ60: -2.75 | HA60: -0.59665817 | HB60: -0.5327521595 | HC60: -0.3823714342 | HD60: -0.2027282931 | HH60: -14 | HI60: 0.8619039059 | HL60: -2.75 | HM60: -0.9785670166
A61: 0.349999994 | B61: 0.349999994 | C61: 0.349999994 | D61: -2 | E61: -1.549999952 | H61: -0.05450558662 | I61: -0.7599999905 | J61: -17 | K61: -0.7799999714 | L61: -2.849999905 | M61: -0.0555572398 | N61: 0 | O61: 0.3559999764 | P61: 0.5277376771 | Q61: 0.6247163415 | R61: 0.6841268539 | S61: 0.7276074886 | T61: 0.7626410723 | U61: 0.789486289 | V61: 0.8089282513 | W61: 0.821975708 | X61: 0.3175433576 | Y61: 1.139999986 | Z61: 0.5825679898 | AA61: 1.139999986 | AB61: 0.7777955532 | AC61: 1.139999986 | AD61: 0.8969265819 | AE61: 1.139999986 | AF61: 0.9480580688 | AG61: 1.139999986 | AH61: 0.9661544561 | AI61: 1.139999986 | AJ61: 0.97298491 | AK61: 1.139999986 | AL61: 0.9800317287 | AM61: 1.139999986 | AN61: -0.9834681749 | AO61: 1.139999986 | AP61: -0.9821549058 | AQ61: 1.139999986 | AR61: -0.9749523997 | AS61: 1.139999986 | AT61: -0.9607211947 | AU61: 1.139999986 | AV61: -0.9383218884 | AW61: 1.139999986 | AX61: -0.9051182866 | AY61: 1.139999986 | AZ61: -0.8605579138 | BA61: 1.139999986 | BB61: -0.8061794043 | BC61: 1.139999986 | BD61: -0.7435215712 | BE61: 1.139999986 | DF61: -2.849999905 | DG61: -1.814693332 | DH61: -1.661608219 | DI61: -1.361554623 | DJ61: -0.4009890556 | DK61: -0.05555725098 | DL61: -0.05555725098 | DM61: -0.05555725098 | DN61: -0.05555725098 | GZ61: -2.799999952 | HA61: -0.604652076 | HB61: -0.5388629152 | HC61: -0.3872159513 | HD61: -0.2055026614 | HH61: -14 | HI61: -0.5720545463 | HL61: -2.799999952 | HM61: -0.9785102134
A62: 0.523999989 | B62: 0.8999999762 | C62: 0.523999989 | D62: -2 | E62: -1 | H62: -0.052541852 | I62: -0.7399999499 | J62: -17 | K62: -0.7599999905 | L62: -2.900000095 | M62: -0.05633358285 | N62: 0 | O62: 0.3634588718 | P62: 0.5360063314 | Q62: 0.6340820193 | R62: 0.6939909458 | S62: 0.7368142009 | T62: 0.7706549764 | U62: 0.7961876392 | V62: 0.8144717813 | W62: 0.8267533183 | X62: 0.3212678432 | Y62: 1.159999967 | Z62: 0.5872693658 | AA62: 1.159999967 | AB62: 0.7806878686 | AC62: 1.159999967 | AD62: 0.8976320624 | AE62: 1.159999967 | AF62: 0.9481163025 | AG62: 1.159999967 | AH62: 0.9661762118 | AI62: 1.159999967 | AJ62: 0.9730743766 | AK62: 1.159999967 | AL62: 0.980089426 | AM62: 1.159999967 | AN62: -0.9835314751 | AO62: 1.159999967 | AP62: -0.9822613001 | AQ62: 1.159999967 | AR62: -0.9751397371 | AS62: 1.159999967 | AT62: -0.9610274434 | AU62: 1.159999967 | AV62: -0.9387853146 | AW62: 1.159999967 | AX62: -0.9057837129 | AY62: 1.159999967 | AZ62: -0.8614731431 | BA62: 1.159999967 | BB62: -0.8073892593 | BC62: 1.159999967 | BD62: -0.7450675964 | BE62: 1.159999967 | DF62: -2.900000095 | DG62: -1.818254471 | DH62: -1.668370843 | DI62: -1.381737232 | DJ62: -0.4637863636 | DK62: -0.05633354187 | DL62: -0.05633354187 | DM62: -0.05633354187 | DN62: -0.05633354187 | GZ62: -2.849999905 | HA62: -0.6125860692 | HB62: -0.5449504717 | HC62: -0.3919264979 | HD62: -0.2082028541 | HL62: -2.849999905 | HM62: -0.9784531717
A63: 0.6980000138 | B63: 1.799999952 | C63: 0.6980000138 | D63: -2 | E63: -0.1000000238 | H63: -0.05057823658 | I63: -0.7200000286 | J63: -17 | K63: -0.7399999499 | L63: -2.950000048 | M63: -0.05710423365 | N63: 0 | O63: 0.3709148765 | P63: 0.5442644358 | Q63: 0.6434345245 | R63: 0.7038387656 | S63: 0.746001482 | T63: 0.778647542 | U63: 0.8028668761 | V63: 0.8199933171 | W63: 0.8315092921 | X63: 0.3249493539 | Y63: 1.179999948 | Z63: 0.5918984413 | AA63: 1.179999948 | AB63: 0.7835249901 | AC63: 1.179999948 | AD63: 0.8983374834 | AE63: 1.179999948 | AF63: 0.9482075572 | AG63: 1.179999948 | AH63: 0.9662260413 | AI63: 1.179999948 | AJ63: 0.9731639028 | AK63: 1.179999948 | AL63: 0.9801023602 | AM63: 1.179999948 | AN63: -0.9834904671 | AO63: 1.179999948 | AP63: -0.9821968675 | AQ63: 1.179999948 | AR63: -0.9750902653 | AS63: 1.179999948 | AT63: -0.9610393643 | AU63: 1.179999948 | AV63: -0.9389128685 | AW63: 1.179999948 | AX63: -0.9060978889 | AY63: 1.179999948 | AZ63: -0.8620480299 | BA63: 1.179999948 | BB63: -0.8082889915 | BC63: 1.179999948 | BD63: -0.7463465929 | BE63: 1.179999948 | DF63: -2.950000048 | DG63: -1.82154429 | DH63: -1.675032377 | DI63: -1.400431633 | DJ63: -0.5274003744 | DK63: -0.05710422993 | DL63: -0.05710422993 | DM63: -0.05710422993 | DN63: -0.05710422993 | GZ63: -2.900000095 | HA63: -0.6203388521 | HB63: -0.5509482152 | HC63: -0.3965934287 | HD63: -0.2107547586 | HL63: -2.900000095 | HM63: -0.9783964877
A64: 0.6999999881 | B64: 1.899999976 | C64: 0.6999999881 | D64: -2 | E64: 0 | H64: -0.04869544506 | I64: -0.6999999881 | J64: -17 | K64: -0.7200000286 | L64: -3 | M64: -0.05785522982 | N64: 0 | O64: 0.3783195615 | P64: 0.5523332357 | Q64: 0.6525498629 | R64: 0.7133945823 | S64: 0.7548397779 | T64: 0.7862561941 | U64: 0.8091490269 | V64: 0.825118959 | W64: 0.8358748555 | X64: 0.3286446929 | Y64: 1.200000048 | Z64: 0.5965172648 | AA64: 1.200000048 | AB64: 0.7862561941 | AC64: 1.200000048 | AD64: 0.8988969326 | AE64: 1.200000048 | AF64: 0.9481998682 | AG64: 1.200000048 | AH64: 0.9662222862 | AI64: 1.200000048 | AJ64: 0.9732212424 | AK64: 1.200000048 | AL64: 0.9800751805 | AM64: 1.200000048 | AN64: -0.9833862782 | AO64: 1.200000048 | AP64: -0.9820380807 | AQ64: 1.200000048 | AR64: -0.9749140739 | AS64: 1.200000048 | AT64: -0.9608976841 | AU64: 1.200000048 | AV64: -0.9388725162 | AW64: 1.200000048 | AX64: -0.9062511325 | AY64: 1.200000048 | AZ64: -0.8624896407 | BA64: 1.200000048 | BB64: -0.8090983629 | BC64: 1.200000048 | BD64: -0.7475874424 | BE64: 1.200000048 | DF64: -3 | DG64: -1.824524641 | DH64: -1.681518793 | DI64: -1.417362094 | DJ64: -0.588206172 | DK64: -0.05785524845 | DL64: -0.05785524845 | DM64: -0.05785524845 | DN64: -0.05785524845 | GZ64: -2.950000048 | HA64: -0.6280519663 | HB64: -0.5569367151 | HC64: -0.4012331363 | HD64: -0.2131799001 | HH64: -15 | HI64: 0.8291324377 | HL64: -2.950000048 | HM64: -0.9783393268
A65: 0 | B65: 0 | C65: 0 | D65: -4 | E65: -1.899999976 | H65: -0.04684650898 | I65: -0.6800000072 | J65: -17 | K65: -0.6999999881 | L65: -3.049999952 | M65: -0.05860622227 | N65: 0 | O65: 0.3857242763 | P65: 0.5604019761 | Q65: 0.6616652608 | R65: 0.7229503989 | S65: 0.7636780739 | T65: 0.7938647866 | U65: 0.8154312372 | V65: 0.8302446008 | W65: 0.8402404189 | X65: 0.3322819471 | Y65: 1.220000029 | Z65: 0.6010430455 | AA65: 1.220000029 | AB65: 0.7888974547 | AC65: 1.220000029 | AD65: 0.89941746 | AE65: 1.220000029 | AF65: 0.9482004642 | AG65: 1.220000029 | AH65: 0.9662358165 | AI65: 1.220000029 | AJ65: 0.9732700586 | AK65: 1.220000029 | AL65: 0.979981482 | AM65: 1.220000029 | AN65: -0.9831350446 | AO65: 1.220000029 | AP65: -0.9816411734 | AQ65: 1.220000029 | AR65: -0.9744102359 | AS65: 1.220000029 | AT65: -0.9603526592 | AU65: 1.220000029 | AV65: -0.9383788705 | AW65: 1.220000029 | AX65: -0.9059430361 | AY65: 1.220000029 | AZ65: -0.8625036478 | BA65: 1.220000029 | BB65: -0.8095449805 | BC65: 1.220000029 | BD65: -0.7485512495 | BE65: 1.220000029 | DF65: -3.049999952 | DG65: -1.827390909 | DH65: -1.687880039 | DI65: -1.433317423 | DJ65: -0.649875164 | DK65: -0.05860626698 | DL65: -0.05860626698 | DM65: -0.05860626698 | DN65: -0.05860626698 | GZ65: -3 | HA65: -0.6355536094 | HB65: -0.5626666308 | HC65: -0.4057949209 | HD65: -0.2155042981 | HH65: -15 | HI65: -0.4759402718 | HL65: -3 | HM65: -0.9782834176
A66: 0.200000003 | B66: 0.04500000179 | C66: 0.200000003 | D66: -4 | E66: -1.855000019 | H66: -0.04499995708 | I66: -0.6600000262 | J66: -17 | K66: -0.6800000072 | L66: -3.099999905 | M66: -0.05935721844 | N66: 0 | O66: 0.3930552304 | P66: 0.5682644844 | Q66: 0.6705225706 | R66: 0.7321857214 | S66: 0.7721464038 | T66: 0.8010863662 | U66: 0.8213333488 | V66: 0.8350079656 | W66: 0.8442589045 | X66: 0.3359307647 | Y66: 1.24000001 | Z66: 0.6055558324 | AA66: 1.24000001 | AB66: 0.7914779186 | AC66: 1.24000001 | AD66: 0.8998696804 | AE66: 1.24000001 | AF66: 0.9481613636 | AG66: 1.24000001 | AH66: 0.9662297368 | AI66: 1.24000001 | AJ66: 0.9733040929 | AK66: 1.24000001 | AL66: 0.9798611403 | AM66: 1.24000001 | AN66: -0.9828352332 | AO66: 1.24000001 | AP66: -0.9811688662 | AQ66: 1.24000001 | AR66: -0.9738044143 | AS66: 1.24000001 | AT66: -0.9596843719 | AU66: 1.24000001 | AV66: -0.9377509952 | AW66: 1.24000001 | AX66: -0.9055062532 | AY66: 1.24000001 | AZ66: -0.8624107838 | BA66: 1.24000001 | BB66: -0.809918642 | BC66: 1.24000001 | BD66: -0.7494838834 | BE66: 1.24000001 | DF66: -3.099999905 | DG66: -1.830083966 | DH66: -1.694122434 | DI66: -1.448011637 | DJ66: -0.7088190317 | DK66: -0.05935716629 | DL66: -0.05935716629 | DM66: -0.05935716629 | DN66: -0.05935716629 | GZ66: -3.049999952 | HA66: -0.6430280244 | HB66: -0.5683632687 | HC66: -0.4103325541 | HD66: -0.2177620433 | HL66: -3.049999952 | HM66: -0.978226972
A67: 0.6499999762 | B67: 0.349999994 | C67: 0.6499999762 | D67: -4 | E67: -1.549999952 | H67: -0.04325425625 | I67: -0.6399999857 | J67: -17 | K67: -0.6600000262 | L67: -3.150000095 | M67: -0.06009428203 | N67: 0 | O67: 0.4003821313 | P67: 0.5761155486 | Q67: 0.6793655753 | R67: 0.7414032817 | S67: 0.7805942297 | T67: 0.8082864881 | U67: 0.8272144198 | V67: 0.839751184 | W67: 0.8482580781 | X67: 0.3395215571 | Y67: 1.25999999 | Z67: 0.6099780798 | AA67: 1.25999999 | AB67: 0.7939415574 | AC67: 1.25999999 | AD67: 0.9002280235 | AE67: 1.25999999 | AF67: 0.9480748773 | AG67: 1.25999999 | AH67: 0.9662029147 | AI67: 1.25999999 | AJ67: 0.9733177423 | AK67: 1.25999999 | AL67: 0.9796947837 | AM67: 1.25999999 | AN67: -0.9824479818 | AO67: 1.25999999 | AP67: -0.9805589914 | AQ67: 1.25999999 | AR67: -0.9730093479 | AS67: 1.25999999 | AT67: -0.9587806463 | AU67: 1.25999999 | AV67: -0.9368546009 | AW67: 1.25999999 | AX67: -0.9047888517 | AY67: 1.25999999 | AZ67: -0.8620452881 | BA67: 1.25999999 | BB67: -0.8100423813 | BC67: 1.25999999 | BD67: -0.7501986623 | BE67: 1.25999999 | DF67: -3.150000095 | DG67: -1.832675934 | DH67: -1.700393677 | DI67: -1.461962461 | DJ67: -0.7676439285 | DK67: -0.06009423733 | DL67: -0.06009423733 | DM67: -0.06009423733 | DN67: -0.06009423733 | GZ67: -3.099999905 | HA67: -0.6502420134 | HB67: -0.5739400314 | HC67: -0.4147562863 | HD67: -0.2199009702 | HL67: -3.099999905 | HM67: -0.9781726125
A68: 0.8799999952 | B68: 0.8999999762 | C68: 0.8799999952 | D68: -4 | E68: -1 | H68: -0.04151070118 | I68: -0.6200000048 | J68: -17 | K68: -0.6399999857 | L68: -3.200000048 | M68: -0.06081998721 | N68: 0 | O68: 0.407623589 | P68: 0.5837681293 | Q68: 0.6879605651 | R68: 0.7503106594 | S68: 0.7886944413 | T68: 0.8151397705 | U68: 0.832772851 | V68: 0.84420228 | W68: 0.8519871235 | X68: 0.3431029618 | Y68: 1.279999971 | Z68: 0.6143718362 | AA68: 1.279999971 | AB68: 0.7963727117 | AC68: 1.279999971 | AD68: 0.9005790353 | AE68: 1.279999971 | AF68: 0.9480020404 | AG68: 1.279999971 | AH68: 0.9661910534 | AI68: 1.279999971 | AJ68: 0.9733298421 | AK68: 1.279999971 | AL68: 0.979493022 | AM68: 1.279999971 | AN68: -0.9819791913 | AO68: 1.279999971 | AP68: -0.9798167944 | AQ68: 1.279999971 | AR68: -0.9720343351 | AS68: 1.279999971 | AT68: -0.957660377 | AU68: 1.279999971 | AV68: -0.9357233644 | AW68: 1.279999971 | AX68: -0.9038465023 | AY68: 1.279999971 | AZ68: -0.8614920974 | BA68: 1.279999971 | BB68: -0.8100371361 | BC68: 1.279999971 | BD68: -0.7508582473 | BE68: 1.279999971 | DF68: -3.200000048 | DG68: -1.835094333 | DH68: -1.707867026 | DI68: -1.474654436 | DJ68: -0.8233720064 | DK68: -0.06081998348 | DL68: -0.06081998348 | DM68: -0.06081998348 | DN68: -0.06081998348 | GZ68: -3.150000095 | HA68: -0.6573903119 | HB68: -0.5795133052 | HC68: -0.418964299 | HD68: -0.221978204 | HH68: -16 | HI68: 0.7917823792 | HL68: -3.150000095 | HM68: -0.9781177762
A69: 0.8999999762 | B69: 1.799999952 | C69: 0.8999999762 | D69: -4 | E69: -0.1000000238 | H69: -0.03978025913 | I69: -0.6000000238 | J69: -17 | K69: -0.6200000048 | L69: -3.25 | M69: -0.06154569611 | N69: 0 | O69: 0.4148490429 | P69: 0.5913835168 | Q69: 0.6965090036 | R69: 0.7591599226 | S69: 0.7967295051 | T69: 0.8219280839 | U69: 0.8382707238 | V69: 0.8485985398 | W69: 0.8556654453 | X69: 0.3466483355 | Y69: 1.299999952 | Z69: 0.6186800599 | AA69: 1.299999952 | AB69: 0.7986677885 | AC69: 1.299999952 | AD69: 0.9007980824 | AE69: 1.299999952 | AF69: 0.9478421807 | AG69: 1.299999952 | AH69: 0.9661312699 | AI69: 1.299999952 | AJ69: 0.9733140469 | AK69: 1.299999952 | AL69: 0.9792633057 | AM69: 1.299999952 | AN69: -0.981472075 | AO69: 1.299999952 | AP69: -0.9790190458 | AQ69: 1.299999952 | AR69: -0.9709826708 | AS69: 1.299999952 | AT69: -0.9564417005 | AU69: 1.299999952 | AV69: -0.934474647 | AW69: 1.299999952 | AX69: -0.9027717113 | AY69: 1.299999952 | AZ69: -0.8607944846 | BA69: 1.299999952 | BB69: -0.80987674 | BC69: 1.299999952 | BD69: -0.751352191 | BE69: 1.299999952 | DF69: -3.25 | DG69: -1.837415099 | DH69: -1.715340018 | DI69: -1.486771345 | DJ69: -0.8778477907 | DK69: -0.06154572964 | DL69: -0.06154572964 | DM69: -0.06154572964 | DN69: -0.06154572964 | GZ69: -3.200000048 | HA69: -0.6643295966 | HB69: -0.5849693332 | HC69: -0.422934475 | HD69: -0.2239293703 | HH69: -16 | HI69: -0.3956646528 | HL69: -3.200000048 | HM69: -0.9780651453
A70: 0.8999999762 | B70: 1.899999976 | C70: 0.8999999762 | D70: -4 | E70: 0 | H70: -0.03813397884 | I70: -0.5799999833 | J70: -17 | K70: -0.6000000238 | L70: -3.299999952 | M70: -0.06227140129 | N70: 0 | O70: 0.421982348 | P70: 0.5988121629 | Q70: 0.7048241496 | R70: 0.7677157521 | S70: 0.8044440746 | T70: 0.8284104466 | U70: 0.8434996605 | V70: 0.8527653217 | W70: 0.8591410518 | X70: 0.3501570225 | Y70: 1.320000052 | Z70: 0.6229416132 | AA70: 1.320000052 | AB70: 0.8009269834 | AC70: 1.320000052 | AD70: 0.9010170698 | AE70: 1.320000052 | AF70: 0.9477048516 | AG70: 1.320000052 | AH70: 0.966094017 | AI70: 1.320000052 | AJ70: 0.9732982516 | AK70: 1.320000052 | AL70: 0.9789883494 | AM70: 1.320000052 | AN70: -0.9808593392 | AO70: 1.320000052 | AP70: -0.9780498743 | AQ70: 1.320000052 | AR70: -0.9696984887 | AS70: 1.320000052 | AT70: -0.9549437165 | AU70: 1.320000052 | AV70: -0.9329240918 | AW70: 1.320000052 | AX70: -0.9014082551 | AY70: 1.320000052 | AZ70: -0.8598557711 | BA70: 1.320000052 | BB70: -0.8095498681 | BC70: 1.320000052 | BD70: -0.7517738342 | BE70: 1.320000052 | DF70: -3.299999952 | DG70: -1.839568496 | DH70: -1.72213769 | DI70: -1.498190045 | DJ70: -0.9291537404 | DK70: -0.06227135658 | DL70: -0.06227135658 | DM70: -0.06227135658 | DN70: -0.06227135658 | GZ70: -3.25 | HA70: -0.6712112376 | HB70: -0.5904085613 | HC70: -0.4268407004 | HD70: -0.2258165542 | HL70: -3.25 | HM70: -0.9780129912
A71: 0 | B71: 0 | C71: 0 | D71: -7 | E71: -1.899999976 | H71: -0.03648769855 | I71: -0.5600000024 | J71: -17 | K71: -0.5799999833 | L71: -3.349999905 | M71: -0.06297495961 | N71: 0 | O71: 0.4290827215 | P71: 0.606174171 | Q71: 0.7130560279 | R71: 0.7761667371 | S71: 0.8120442629 | T71: 0.8347836137 | U71: 0.8486324549 | V71: 0.8568501472 | W71: 0.8625442982 | X71: 0.3536293507 | Y71: 1.339999914 | Z71: 0.6271253824 | AA71: 1.339999914 | AB71: 0.8030872941 | AC71: 1.339999914 | AD71: 0.9011563063 | AE71: 1.339999914 | AF71: 0.9475181103 | AG71: 1.339999914 | AH71: 0.9660304189 | AI71: 1.339999914 | AJ71: 0.9732661247 | AK71: 1.339999914 | AL71: 0.9786946177 | AM71: 1.339999914 | AN71: -0.9802189469 | AO71: 1.339999914 | AP71: -0.9770398736 | AQ71: 1.339999914 | AR71: -0.9683580399 | AS71: 1.339999914 | AT71: -0.9533744454 | AU71: 1.339999914 | AV71: -0.9312897325 | AW71: 1.339999914 | AX71: -0.8999509811 | AY71: 1.339999914 | AZ71: -0.8588138223 | BA71: 1.339999914 | BB71: -0.8091109991 | BC71: 1.339999914 | BD71: -0.7520750165 | BE71: 1.339999914 | DF71: -3.349999905 | DG71: -1.84146893 | DH71: -1.727912784 | DI71: -1.508946538 | DJ71: -0.9786009192 | DK71: -0.06297492981 | DL71: -0.06297492981 | DM71: -0.06297492981 | DN71: -0.06297492981 | GZ71: -3.299999952 | HA71: -0.677898995 | HB71: -0.5956230369 | HC71: -0.4305847452 | HD71: -0.2275768377 | HL71: -3.299999952 | HM71: -0.9779637577
A72: 0.200000003 | B72: 0.05000000075 | C72: 0.200000003 | D72: -7 | E72: -1.850000024 | H72: -0.03485000134 | I72: -0.5400000215 | J72: -17 | K72: -0.5600000024 | L72: -3.400000095 | M72: -0.0636754334 | N72: 0 | O72: 0.4360892475 | P72: 0.6133648753 | Q72: 0.7210739851 | R72: 0.7843473554 | S72: 0.8193557262 | T72: 0.8408925533 | U72: 0.8535460234 | V72: 0.8607606888 | W72: 0.8658025861 | X72: 0.3570653498 | Y72: 1.360000014 | Z72: 0.6312416792 | AA72: 1.360000014 | AB72: 0.8051799536 | AC72: 1.360000014 | AD72: 0.9012587667 | AE72: 1.360000014 | AF72: 0.9473184943 | AG72: 1.360000014 | AH72: 0.9659646153 | AI72: 1.360000014 | AJ72: 0.973226428 | AK72: 1.360000014 | AL72: 0.9783722162 | AM72: 1.360000014 | AN72: -0.9795191884 | AO72: 1.360000014 | AP72: -0.9759358764 | AQ72: 1.360000014 | AR72: -0.9668905735 | AS72: 1.360000014 | AT72: -0.951651752 | AU72: 1.360000014 | AV72: -0.9294878244 | AW72: 1.360000014 | AX72: -0.8983283639 | AY72: 1.360000014 | AZ72: -0.8576234579 | BA72: 1.360000014 | BB72: -0.8085523248 | BC72: 1.360000014 | BD72: -0.7522938848 | BE72: 1.360000014 | DF72: -3.400000095 | DG72: -1.843181729 | DH72: -1.73346889 | DI72: -1.519236803 | DJ72: -1.024390221 | DK72: -0.06367540359 | DL72: -0.06367540359 | DM72: -0.06367540359 | DN72: -0.06367540359 | GZ72: -3.349999905 | HA72: -0.6845046589 | HB72: -0.6007057154 | HC72: -0.4342434899 | HD72: -0.2292658995 | HH72: -17 | HI72: 0.75 | HL72: -3.349999905 | HM72: -0.9779152991
A73: 0.8999999762 | B73: 0.5 | C73: 0.8999999762 | D73: -7 | E73: -1.399999976 | H73: -0.03329336643 | I73: -0.5199999809 | J73: -17 | K73: -0.5400000215 | L73: -3.450000048 | M73: -0.06437589973 | N73: 0 | O73: 0.4430409968 | P73: 0.6204556227 | Q73: 0.7289671302 | R73: 0.7923702002 | S73: 0.8264987469 | T73: 0.8468473554 | U73: 0.8583317995 | V73: 0.8645694852 | W73: 0.8689762354 | X73: 0.3604526818 | Y73: 1.379999876 | Z73: 0.6352905035 | AA73: 1.379999876 | AB73: 0.8072116375 | AC73: 1.379999876 | AD73: 0.9013316035 | AE73: 1.379999876 | AF73: 0.9471094012 | AG73: 1.379999876 | AH73: 0.9658979177 | AI73: 1.379999876 | AJ73: 0.9731810093 | AK73: 1.379999876 | AL73: 0.9780268073 | AM73: 1.379999876 | AN73: -0.9787720442 | AO73: 1.379999876 | AP73: -0.9747570157 | AQ73: 1.379999876 | AR73: -0.9653218389 | AS73: 1.379999876 | AT73: -0.9498067498 | AU73: 1.379999876 | AV73: -0.9275519848 | AW73: 1.379999876 | AX73: -0.8965718746 | AY73: 1.379999876 | AZ73: -0.8563088775 | BA73: 1.379999876 | BB73: -0.8078870773 | BC73: 1.379999876 | BD73: -0.752430439 | BE73: 1.379999876 | DF73: -3.450000048 | DG73: -1.844789982 | DH73: -1.738852501 | DI73: -1.528727055 | DJ73: -1.065207243 | DK73: -0.06437587738 | DL73: -0.06437587738 | DM73: -0.06437587738 | DN73: -0.06437587738 | GZ73: -3.400000095 | HA73: -0.690934547 | HB73: -0.605688163 | HC73: -0.4377355161 | HD73: -0.2308328091 | HH73: -17 | HI73: -0.3283823048 | HL73: -3.400000095 | HM73: -0.9778698208
A74: 0.9700000286 | B74: 0.8999999762 | C74: 0.9700000286 | D74: -7 | E74: -1 | H74: -0.03173673153 | I74: -0.5 | J74: -17 | K74: -0.5199999809 | L74: -3.5 | M74: -0.06507123262 | N74: 0 | O74: 0.4499020278 | P74: 0.6273941994 | Q74: 0.7366703153 | R74: 0.8001519442 | S74: 0.8333895206 | T74: 0.8525802493 | U74: 0.8629443049 | V74: 0.8682517409 | W74: 0.8720530868 | X74: 0.3637904823 | Y74: 1.399999976 | Z74: 0.6392484307 | AA74: 1.399999976 | AB74: 0.8091490269 | AC74: 1.399999976 | AD74: 0.9013403058 | AE74: 1.399999976 | AF74: 0.9468618631 | AG74: 1.399999976 | AH74: 0.9658114314 | AI74: 1.399999976 | AJ74: 0.9731230736 | AK74: 1.399999976 | AL74: 0.9776656628 | AM74: 1.399999976 | AN74: -0.9780007601 | AO74: 1.399999976 | AP74: -0.9735425115 | AQ74: 1.399999976 | AR74: -0.9637050629 | AS74: 1.399999976 | AT74: -0.9479025602 | AU74: 1.399999976 | AV74: -0.9255491495 | AW74: 1.399999976 | AX74: -0.8947429657 | AY74: 1.399999976 | AZ74: -0.8549167514 | BA74: 1.399999976 | BB74: -0.8071398735 | BC74: 1.399999976 | BD74: -0.7524816394 | BE74: 1.399999976 | DF74: -3.5 | DG74: -1.846267104 | DH74: -1.743455052 | DI74: -1.53785038 | DJ74: -1.100646496 | DK74: -0.06507122517 | DL74: -0.06507122517 | DM74: -0.06507122517 | DN74: -0.06507122517 | GZ74: -3.450000048 | HA74: -0.697254726 | HB74: -0.6106183087 | HC74: -0.441113404 | HD74: -0.2323164265 | HL74: -3.450000048 | HM74: -0.9778260113
A75: 0.9720000029 | B75: 1.799999952 | C75: 0.9720000029 | D75: -7 | E75: -0.1000000238 | H75: -0.03018021584 | I75: -0.4799999893 | J75: -17 | K75: -0.5 | L75: -3.549999952 | M75: -0.06574651599 | N75: 0 | O75: 0.4566814899 | P75: 0.6341958046 | Q75: 0.7442026138 | R75: 0.8077166677 | S75: 0.8400533199 | T75: 0.8581133485 | U75: 0.8674008846 | V75: 0.8718200326 | W75: 0.8750427961 | X75: 0.3670967221 | Y75: 1.419999957 | Z75: 0.6431518793 | AA75: 1.419999957 | AB75: 0.8110496402 | AC75: 1.419999957 | AD75: 0.9013489485 | AE75: 1.419999957 | AF75: 0.946626842 | AG75: 1.419999957 | AH75: 0.9657376409 | AI75: 1.419999957 | AJ75: 0.9730650783 | AK75: 1.419999957 | AL75: 0.9772798419 | AM75: 1.419999957 | AN75: -0.9771735072 | AO75: 1.419999957 | AP75: -0.9722388387 | AQ75: 1.419999957 | AR75: -0.9619690776 | AS75: 1.419999957 | AT75: -0.9458571076 | AU75: 1.419999957 | AV75: -0.9233959317 | AW75: 1.419999957 | AX75: -0.8927702904 | AY75: 1.419999957 | AZ75: -0.8534008861 | BA75: 1.419999957 | BB75: -0.8063004613 | BC75: 1.419999957 | BD75: -0.752481699 | BE75: 1.419999957 | DF75: -3.549999952 | DG75: -1.847628713 | DH75: -1.747699499 | DI75: -1.54656601 | DJ75: -1.132154822 | DK75: -0.06574654579 | DL75: -0.06574654579 | DM75: -0.06574654579 | DN75: -0.06574654579 | GZ75: -3.5 | HA75: -0.703380767 | HB75: -0.6154613612 | HC75: -0.4443275195 | HD75: -0.233687694 | HL75: -3.5 | HM75: -0.9777850629
A76: 0.9720000029 | B76: 1.899999976 | C76: 0.9720000029 | D76: -7 | E76: 0 | H76: -0.02869689465 | I76: -0.4600000083 | J76: -17 | K76: -0.4799999893 | L76: -3.599999905 | M76: -0.06642180681 | N76: 0 | O76: 0.4633784294 | P76: 0.640868187 | Q76: 0.7515736818 | R76: 0.8150758147 | S76: 0.8465058804 | T76: 0.8634675741 | U76: 0.8717265129 | V76: 0.8753019571 | W76: 0.8779743314 | X76: 0.37032184 | Y76: 1.440000057 | Z76: 0.6469383836 | AA76: 1.440000057 | AB76: 0.812843442 | AC76: 1.440000057 | AD76: 0.9012904167 | AE76: 1.440000057 | AF76: 0.9463508725 | AG76: 1.440000057 | AH76: 0.9656422734 | AI76: 1.440000057 | AJ76: 0.972995162 | AK76: 1.440000057 | AL76: 0.9768837094 | AM76: 1.440000057 | AN76: -0.9763339758 | AO76: 1.440000057 | AP76: -0.9709187746 | AQ76: 1.440000057 | AR76: -0.960210979 | AS76: 1.440000057 | AT76: -0.9437835813 | AU76: 1.440000057 | AV76: -0.9212094545 | AW76: 1.440000057 | AX76: -0.8907572031 | AY76: 1.440000057 | AZ76: -0.8518332243 | BA76: 1.440000057 | BB76: -0.8053951263 | BC76: 1.440000057 | BD76: -0.7524003983 | BE76: 1.440000057 | DF76: -3.599999905 | DG76: -1.84887886 | DH76: -1.75173378 | DI76: -1.554988146 | DJ76: -1.160155773 | DK76: -0.06642186642 | DL76: -0.06642186642 | DM76: -0.06642186642 | DN76: -0.06642186642 | GZ76: -3.549999952 | HA76: -0.7093349615 | HB76: -0.620229838 | HC76: -0.4473910718 | HD76: -0.2349591151 | HL76: -3.549999952 | HM76: -0.9777467371
A77: 0 | B77: 0 | C77: 0 | D77: -13 | E77: -1.899999976 | H77: -0.0272231102 | I77: -0.4399999976 | J77: -17 | K77: -0.4600000083 | L77: -3.650000095 | M77: -0.06709709764 | N77: 0 | O77: 0.469961971 | P77: 0.6473628879 | Q77: 0.7587230206 | R77: 0.8221523762 | S77: 0.8526681066 | T77: 0.8685758114 | U77: 0.875872016 | V77: 0.8786652088 | W77: 0.8808258772 | X77: 0.3735261559 | Y77: 1.459999919 | Z77: 0.6506859064 | AA77: 1.459999919 | AB77: 0.8146079183 | AC77: 1.459999919 | AD77: 0.9012281895 | AE77: 1.459999919 | AF77: 0.9460785985 | AG77: 1.459999919 | AH77: 0.965552032 | AI77: 1.459999919 | AJ77: 0.9729245305 | AK77: 1.459999919 | AL77: 0.9764747024 | AM77: 1.459999919 | AN77: -0.9754667878 | AO77: 1.459999919 | AP77: -0.9695558548 | AQ77: 1.459999919 | AR77: -0.9583970308 | AS77: 1.459999919 | AT77: -0.941645503 | AU77: 1.459999919 | AV77: -0.9189562798 | AW77: 1.459999919 | AX77: -0.8886813521 | AY77: 1.459999919 | AZ77: -0.8502104282 | BA77: 1.459999919 | BB77: -0.8044464588 | BC77: 1.459999919 | BD77: -0.752292037 | BE77: 1.459999919 | DF77: -3.650000095 | DG77: -1.849997997 | DH77: -1.755506754 | DI77: -1.563092709 | DJ77: -1.185268164 | DK77: -0.06709706783 | DL77: -0.06709706783 | DM77: -0.06709706783 | DN77: -0.06709706783 | GZ77: -3.599999905 | HA77: -0.715158716 | HB77: -0.6249272281 | HC77: -0.4501582263 | HD77: -0.2361323136 | HL77: -3.599999905 | HM77: -0.9777111531
A78: -0.1000000015 | B78: 0.05000000075 | C78: 0.1000000015 | D78: -13 | E78: -1.850000024 | H78: -0.02574944496 | I78: -0.4199999869 | J78: -17 | K78: -0.4399999976 | L78: -3.700000048 | M78: -0.06775905192 | N78: 0 | O78: 0.4764761627 | P78: 0.6537550092 | Q78: 0.7657444477 | R78: 0.8290653229 | S78: 0.8586649895 | T78: 0.8735488057 | U78: 0.8799250126 | V78: 0.8819748163 | W78: 0.8836480975 | X78: 0.3766304851 | Y78: 1.4799999 | Z78: 0.6542878747 | AA78: 1.4799999 | AB78: 0.8162757754 | AC78: 1.4799999 | AD78: 0.9011380076 | AE78: 1.4799999 | AF78: 0.9457981586 | AG78: 1.4799999 | AH78: 0.9654592872 | AI78: 1.4799999 | AJ78: 0.9728497863 | AK78: 1.4799999 | AL78: 0.9760580063 | AM78: 1.4799999 | AN78: -0.9745869637 | AO78: 1.4799999 | AP78: -0.968174696 | AQ78: 1.4799999 | AR78: -0.9565591216 | AS78: 1.4799999 | AT78: -0.9394782782 | AU78: 1.4799999 | AV78: -0.9166701436 | AW78: 1.4799999 | AX78: -0.8865670562 | AY78: 1.4799999 | AZ78: -0.8485401869 | BA78: 1.4799999 | BB78: -0.8034390807 | BC78: 1.4799999 | BD78: -0.7521134019 | BE78: 1.4799999 | DF78: -3.700000048 | DG78: -1.851028204 | DH78: -1.759082556 | DI78: -1.57098484 | DJ78: -1.20801723 | DK78: -0.06775903702 | DL78: -0.06775903702 | DM78: -0.06775903702 | DN78: -0.06775903702 | GZ78: -3.650000095 | HA78: -0.7208106019 | HB78: -0.6294135576 | HC78: -0.4526851704 | HD78: -0.2371849317 | HL78: -3.650000095 | HM78: -0.9776795627
A79: -0.9250000119 | B79: 1 | C79: 0.9250000119 | D79: -13 | E79: -0.8999999762 | H79: -0.02431344986 | I79: -0.400000006 | J79: -17 | K79: -0.4199999869 | L79: -3.75 | M79: -0.06840921193 | N79: 0 | O79: 0.4828401208 | P79: 0.6599248648 | Q79: 0.7724887729 | R79: 0.8356238008 | S79: 0.8643035293 | T79: 0.8782288432 | U79: 0.8837774396 | V79: 0.8851684332 | W79: 0.8864068389 | X79: 0.3797263205 | Y79: 1.5 | Z79: 0.657869041 | AA79: 1.5 | AB79: 0.8179144263 | AC79: 1.5 | AD79: 0.9010276198 | AE79: 1.5 | AF79: 0.945504427 | AG79: 1.5 | AH79: 0.9653611183 | AI79: 1.5 | AJ79: 0.9727721214 | AK79: 1.5 | AL79: 0.9756351113 | AM79: 1.5 | AN79: -0.9736969471 | AO79: 1.5 | AP79: -0.9667792916 | AQ79: 1.5 | AR79: -0.9547039866 | AS79: 1.5 | AT79: -0.9372928739 | AU79: 1.5 | AV79: -0.9143675566 | AW79: 1.5 | AX79: -0.8844387531 | AY79: 1.5 | AZ79: -0.8468568325 | BA79: 1.5 | BB79: -0.8024196029 | BC79: 1.5 | BD79: -0.7519247532 | BE79: 1.5 | DF79: -3.75 | DG79: -1.851907492 | DH79: -1.762022734 | DI79: -1.578532577 | DJ79: -1.2282722 | DK79: -0.06840920448 | DL79: -0.06840920448 | DM79: -0.06840920448 | DN79: -0.06840920448 | GZ79: -3.700000048 | HA79: -0.7263581801 | HB79: -0.6336842294 | HC79: -0.4550860609 | HD79: -0.2381573499 | HL79: -3.700000048 | HM79: -0.9776502372
A80: -0.8899999857 | B80: 1.799999952 | C80: 0.8899999857 | D80: -13 | E80: -0.1000000238 | H80: -0.0229164362 | I80: -0.3799999952 | J80: -17 | K80: -0.400000006 | L80: -3.799999952 | M80: -0.06905937195 | N80: 0 | O80: 0.4891529381 | P80: 0.6660225391 | Q80: 0.7791431546 | R80: 0.842066884 | S80: 0.8698271513 | T80: 0.8828179836 | U80: 0.8875719905 | V80: 0.8883337975 | W80: 0.8891557455 | X80: 0.3826861084 | Y80: 1.519999981 | Z80: 0.6612733603 | AA80: 1.519999981 | AB80: 0.819457531 | AC80: 1.519999981 | AD80: 0.900911808 | AE80: 1.519999981 | AF80: 0.9452207088 | AG80: 1.519999981 | AH80: 0.9652692676 | AI80: 1.519999981 | AJ80: 0.9726941586 | AK80: 1.519999981 | AL80: 0.9752104878 | AM80: 1.519999981 | AN80: -0.9728053212 | AO80: 1.519999981 | AP80: -0.9653834701 | AQ80: 1.519999981 | AR80: -0.9528497458 | AS80: 1.519999981 | AT80: -0.9351089597 | AU80: 1.519999981 | AV80: -0.9120659828 | AW80: 1.519999981 | AX80: -0.8823058009 | AY80: 1.519999981 | AZ80: -0.8451565504 | BA80: 1.519999981 | BB80: -0.8013665676 | BC80: 1.519999981 | BD80: -0.7516838908 | BE80: 1.519999981 | DF80: -3.799999952 | DG80: -1.852722406 | DH80: -1.764699697 | DI80: -1.585819125 | DJ80: -1.247109771 | DK80: -0.06905937195 | DL80: -0.06905937195 | DM80: -0.06905937195 | DN80: -0.06905937195 | GZ80: -3.75 | HA80: -0.7316982165 | HB80: -0.6378542161 | HC80: -0.4572603548 | HD80: -0.2389842656 | HL80: -3.75 | HM80: -0.9776261569
A81: -0.8899999857 | B81: 1.899999976 | C81: 0.8899999857 | D81: -13 | E81: 0 | H81: -0.02151942253 | I81: -0.3600000143 | J81: -17 | K81: -0.3799999952 | L81: -3.849999905 | M81: -0.06970953196 | N81: 0 | O81: 0.4952737689 | P81: 0.6718497872 | Q81: 0.7854602337 | R81: 0.8480773568 | S81: 0.8749198318 | T81: 0.8870665431 | U81: 0.8911493421 | V81: 0.8913933039 | W81: 0.891867578 | X81: 0.3856404722 | Y81: 1.540000081 | Z81: 0.6646541953 | AA81: 1.540000081 | AB81: 0.8209704161 | AC81: 1.540000081 | AD81: 0.9007760286 | AE81: 1.540000081 | AF81: 0.9449230433 | AG81: 1.540000081 | AH81: 0.9651714563 | AI81: 1.540000081 | AJ81: 0.9726150036 | AK81: 1.540000081 | AL81: 0.9747864604 | AM81: 1.540000081 | AN81: -0.9719168544 | AO81: 1.540000081 | AP81: -0.963993907 | AQ81: 1.540000081 | AR81: -0.9510052204 | AS81: 1.540000081 | AT81: -0.9329385161 | AU81: 1.540000081 | AV81: -0.9097815752 | AW81: 1.540000081 | AX81: -0.8801904321 | AY81: 1.540000081 | AZ81: -0.8434693813 | BA81: 1.540000081 | BB81: -0.8003189564 | BC81: 1.540000081 | BD81: -0.7514399886 | BE81: 1.540000081 | DF81: -3.849999905 | DG81: -1.85336256 | DH81: -1.767047048 | DI81: -1.59273982 | DJ81: -1.263955116 | DK81: -0.06970953941 | DL81: -0.06970953941 | DM81: -0.06970953941 | DN81: -0.06970953941 | GZ81: -3.799999952 | HA81: -0.7369628114 | HB81: -0.642020482 | HC81: -0.4593365631 | HD81: -0.239607045 | HL81: -3.799999952 | HM81: -0.9776039243
A82: 0 | B82: 0.5 | C82: 0 | D82: -17 | E82: -1.399999976 | H82: -0.02012240887 | I82: -0.3400000036 | J82: -17 | K82: -0.3600000143 | L82: -3.900000095 | M82: -0.0703382045 | N82: 0 | O82: 0.5013665557 | P82: 0.6776391268 | Q82: 0.7917301059 | R82: 0.8540269136 | S82: 0.8799527287 | T82: 0.8912693262 | U82: 0.8946996927 | V82: 0.8944423795 | W82: 0.8945792317 | X82: 0.3884730041 | Y82: 1.559999943 | Z82: 0.6678712368 | AA82: 1.559999943 | AB82: 0.8223984241 | AC82: 1.559999943 | AD82: 0.9006402493 | AE82: 1.559999943 | AF82: 0.9446367621 | AG82: 1.559999943 | AH82: 0.9650793672 | AI82: 1.559999943 | AJ82: 0.9725359082 | AK82: 1.559999943 | AL82: 0.974364996 | AM82: 1.559999943 | AN82: -0.971036911 | AO82: 1.559999943 | AP82: -0.9626206756 | AQ82: 1.559999943 | AR82: -0.949185133 | AS82: 1.559999943 | AT82: -0.930799067 | AU82: 1.559999943 | AV82: -0.9075314403 | AW82: 1.559999943 | AX82: -0.8781054616 | AY82: 1.559999943 | AZ82: -0.8418002129 | BA82: 1.559999943 | BB82: -0.7992715836 | BC82: 1.559999943 | BD82: -0.7511751056 | BE82: 1.559999943 | DF82: -3.900000095 | DG82: -1.853965282 | DH82: -1.769293785 | DI82: -1.599613905 | DJ82: -1.280153275 | DK82: -0.07033824921 | DL82: -0.07033824921 | DM82: -0.07033824921 | DN82: -0.07033824921 | GZ82: -3.849999905 | HA82: -0.7419814131 | HB82: -0.6460680225 | HC82: -0.4611376394 | HD82: -0.2400521407 | HL82: -3.849999905 | HM82: -0.9775885463
A83: -0.5 | B83: 0.6499999762 | C83: 0.5 | D83: -17 | E83: -1.25 | H83: -0.01879036427 | I83: -0.3199999928 | J83: -17 | K83: -0.3400000036 | L83: -3.950000048 | M83: -0.07096329331 | N83: 0 | O83: 0.5072206259 | P83: 0.683105886 | Q83: 0.7975978851 | R83: 0.8594593406 | S83: 0.8844773769 | T83: 0.8950831294 | U83: 0.8980200291 | V83: 0.8974031806 | W83: 0.8972895741 | X83: 0.3912649453 | Y83: 1.579999924 | Z83: 0.6710388064 | AA83: 1.579999924 | AB83: 0.8237969279 | AC83: 1.579999924 | AD83: 0.9005023241 | AE83: 1.579999924 | AF83: 0.9443507791 | AG83: 1.579999924 | AH83: 0.9649880528 | AI83: 1.579999924 | AJ83: 0.9724602699 | AK83: 1.579999924 | AL83: 0.9739550948 | AM83: 1.579999924 | AN83: -0.9701808691 | AO83: 1.579999924 | AP83: -0.9612854719 | AQ83: 1.579999924 | AR83: -0.9474166036 | AS83: 1.579999924 | AT83: -0.9287219644 | AU83: 1.579999924 | AV83: -0.9053493738 | AW83: 1.579999924 | AX83: -0.8760845661 | AY83: 1.579999924 | AZ83: -0.8401808143 | BA83: 1.579999924 | BB83: -0.7982518077 | BC83: 1.579999924 | BD83: -0.7509111762 | BE83: 1.579999924 | DF83: -3.950000048 | DG83: -1.854364872 | DH83: -1.77115643 | DI83: -1.60586834 | DJ83: -1.294232845 | DK83: -0.07096326351 | DL83: -0.07096326351 | DM83: -0.07096326351 | DN83: -0.07096326351 | GZ83: -3.900000095 | HA83: -0.7469561623 | HB83: -0.65014407 | HC83: -0.4628754679 | HD83: -0.2404734542 | HL83: -3.900000095 | HM83: -0.977574122
A84: -0.7099999785 | B84: 0.8999999762 | C84: 0.7099999785 | D84: -17 | E84: -1 | H84: -0.01746451855 | I84: -0.3000000119 | J84: -17 | K84: -0.3199999928 | L84: -4 | M84: -0.07158837467 | N84: 0 | O84: 0.5130746961 | P84: 0.6885726452 | Q84: 0.803465724 | R84: 0.8648917079 | S84: 0.8890019655 | T84: 0.8988969326 | U84: 0.9013403058 | V84: 0.9003639817 | W84: 0.8999999762 | X84: 0.3939449787 | Y84: 1.600000024 | Z84: 0.6740580201 | AA84: 1.600000024 | AB84: 0.825118959 | AC84: 1.600000024 | AD84: 0.9003639817 | AE84: 1.600000024 | AF84: 0.9440749884 | AG84: 1.600000024 | AH84: 0.9649024606 | AI84: 1.600000024 | AJ84: 0.9723853469 | AK84: 1.600000024 | AL84: 0.9735476375 | AM84: 1.600000024 | AN84: -0.969332397 | AO84: 1.600000024 | AP84: -0.9599648118 | AQ84: 1.600000024 | AR84: -0.9456702471 | AS84: 1.600000024 | AT84: -0.9266739488 | AU84: 1.600000024 | AV84: -0.9032012224 | AW84: 1.600000024 | AX84: -0.8740970492 | AY84: 1.600000024 | AZ84: -0.8385879993 | BA84: 1.600000024 | BB84: -0.7972478867 | BC84: 1.600000024 | BD84: -0.7506502867 | BE84: 1.600000024 | DF84: -4 | DG84: -1.854756236 | DH84: -1.772966623 | DI84: -1.612115264 | DJ84: -1.307920694 | DK84: -0.07158839703 | DL84: -0.07158839703 | DM84: -0.07158839703 | DN84: -0.07158839703 | GZ84: -3.950000048 | HA84: -0.751643379 | HB84: -0.6540823924 | HC84: -0.4642844579 | HD84: -0.2407421954 | HL84: -3.950000048 | HM84: -0.9775683999
A85: -0.75 | B85: 1.799999952 | C85: 0.75 | D85: -17 | E85: -0.1000000238 | H85: -0.01613867283 | I85: -0.2800000012 | J85: -17 | K85: -0.3000000119 | L85: -4.050000191 | M85: -0.07220886648 | N85: 0 | O85: 0.5183618069 | P85: 0.6936622262 | Q85: 0.8088700771 | R85: 0.8697525263 | S85: 0.8929909468 | T85: 0.902291894 | U85: 0.9043764472 | V85: 0.9031606317 | W85: 0.9026227593 | X85: 0.3965684474 | Y85: 1.619999886 | Z85: 0.6769991517 | AA85: 1.619999886 | AB85: 0.8264056444 | AC85: 1.619999886 | AD85: 0.9002351761 | AE85: 1.619999886 | AF85: 0.9438070059 | AG85: 1.619999886 | AH85: 0.9648174047 | AI85: 1.619999886 | AJ85: 0.9723150134 | AK85: 1.619999886 | AL85: 0.9731662869 | AM85: 1.619999886 | AN85: -0.9685400724 | AO85: 1.619999886 | AP85: -0.9587335587 | AQ85: 1.619999886 | AR85: -0.9440441132 | AS85: 1.619999886 | AT85: -0.9247689843 | AU85: 1.619999886 | AV85: -0.9012055397 | AW85: 1.619999886 | AX85: -0.8722515702 | AY85: 1.619999886 | AZ85: -0.8371076584 | BA85: 1.619999886 | BB85: -0.7963116169 | BC85: 1.619999886 | BD85: -0.7504014373 | BE85: 1.619999886 | DF85: -4.050000191 | DG85: -1.854995131 | DH85: -1.774407625 | DI85: -1.617843032 | DJ85: -1.32027483 | DK85: -0.07220888138 | DL85: -0.07220888138 | DM85: -0.07220888138 | DN85: -0.07220888138 | GZ85: -4 | HA85: -0.7563013975 | HB85: -0.6580837983 | HC85: -0.4656715212 | HD85: -0.2410084999 | HL85: -4 | HM85: -0.9775627971
A86: -0.75 | B86: 1.899999976 | C86: 0.75 | D86: -17 | E86: 0 | H86: -0.01482212543 | I86: -0.2599999905 | J86: -17 | K86: -0.2800000012 | L86: -4.099999905 | M86: -0.07280892879 | N86: 0 | O86: 0.5236489177 | P86: 0.6987518072 | Q86: 0.8142744303 | R86: 0.8746132255 | S86: 0.8969798684 | T86: 0.9056867957 | U86: 0.9074125886 | V86: 0.9059572816 | W86: 0.9052454829 | X86: 0.3990907669 | Y86: 1.639999986 | Z86: 0.6798101068 | AA86: 1.639999986 | AB86: 0.8276328444 | AC86: 1.639999986 | AD86: 0.9001170993 | AE86: 1.639999986 | AF86: 0.9435560703 | AG86: 1.639999986 | AH86: 0.9647419453 | AI86: 1.639999986 | AJ86: 0.9722498059 | AK86: 1.639999986 | AL86: 0.9727963805 | AM86: 1.639999986 | AN86: -0.9677702785 | AO86: 1.639999986 | AP86: -0.9575384855 | AQ86: 1.639999986 | AR86: -0.9424678087 | AS86: 1.639999986 | AT86: -0.9229252338 | AU86: 1.639999986 | AV86: -0.8992775083 | AW86: 1.639999986 | AX86: -0.8704720736 | AY86: 1.639999986 | AZ86: -0.8356832266 | BA86: 1.639999986 | BB86: -0.7954153419 | BC86: 1.639999986 | BD86: -0.7501727343 | BE86: 1.639999986 | DF86: -4.099999905 | DG86: -1.855229855 | DH86: -1.775809526 | DI86: -1.623382092 | DJ86: -1.331678987 | DK86: -0.07280898094 | DL86: -0.07280898094 | DM86: -0.07280898094 | DN86: -0.07280898094 | GZ86: -4.050000191 | HA86: -0.7606115282 | HB86: -0.6617682656 | HC86: -0.4667561036 | HD86: -0.2411616625 | HL86: -4.050000191 | HM86: -0.9775635123
H87: -0.01356232166 | I87: -0.2399999946 | J87: -17 | K87: -0.2599999905 | L87: -4.150000095 | M87: -0.0734089911 | N87: 0 | O87: 0.5289360881 | P87: 0.7038413882 | Q87: 0.8196787834 | R87: 0.8794740438 | S87: 0.9009687901 | T87: 0.9090817571 | U87: 0.91044873 | V87: 0.9087539315 | W87: 0.9078682661 | X87: 0.4015213251 | Y87: 1.659999967 | Z87: 0.6825116873 | AA87: 1.659999967 | AB87: 0.8288084269 | AC87: 1.659999967 | AD87: 0.9000034928 | AE87: 1.659999967 | AF87: 0.9433116317 | AG87: 1.659999967 | AH87: 0.9646656513 | AI87: 1.659999967 | AJ87: 0.9721862674 | AK87: 1.659999967 | AL87: 0.9724472165 | AM87: 1.659999967 | AN87: -0.9670479894 | AO87: 1.659999967 | AP87: -0.956420362 | AQ87: 1.659999967 | AR87: -0.9409961104 | AS87: 1.659999967 | AT87: -0.9212069511 | AU87: 1.659999967 | AV87: -0.8974847794 | AW87: 1.659999967 | AX87: -0.8688213229 | AY87: 1.659999967 | AZ87: -0.8343657255 | BA87: 1.659999967 | BB87: -0.7945920229 | BC87: 1.659999967 | BD87: -0.7499741316 | BE87: 1.659999967 | DF87: -4.150000095 | DG87: -1.855460405 | DH87: -1.777174234 | DI87: -1.628826976 | DJ87: -1.34290123 | DK87: -0.0734089613 | DL87: -0.0734089613 | DM87: -0.0734089613 | DN87: -0.0734089613 | GZ87: -4.099999905 | HA87: -0.7649133687 | HB87: -0.6653339245 | HC87: -0.4678247403 | HD87: -0.2413139601 | HL87: -4.099999905 | HM87: -0.9775641084
H88: -0.01230251789 | I88: -0.2199999988 | J88: -17 | K88: -0.2399999946 | L88: -4.199999809 | M88: -0.07400905341 | N88: 0 | O88: 0.5335376859 | P88: 0.7086158991 | Q88: 0.824704051 | R88: 0.8838931322 | S88: 0.9045639634 | T88: 0.9121534228 | U88: 0.913223207 | V88: 0.9113439918 | W88: 0.910323143 | X88: 0.4038623571 | Y88: 1.679999948 | Z88: 0.6851038933 | AA88: 1.679999948 | AB88: 0.8299536109 | AC88: 1.679999948 | AD88: 0.8999284506 | AE88: 1.679999948 | AF88: 0.9431016445 | AG88: 1.679999948 | AH88: 0.9646059275 | AI88: 1.679999948 | AJ88: 0.9721364379 | AK88: 1.679999948 | AL88: 0.9721335173 | AM88: 1.679999948 | AN88: -0.9663926959 | AO88: 1.679999948 | AP88: -0.9554045796 | AQ88: 1.679999948 | AR88: -0.9396595359 | AS88: 1.679999948 | AT88: -0.9196481705 | AU88: 1.679999948 | AV88: -0.89586097 | AW88: 1.679999948 | AX88: -0.8673288822 | AY88: 1.679999948 | AZ88: -0.8331774473 | BA88: 1.679999948 | BB88: -0.7938539386 | BC88: 1.679999948 | BD88: -0.7498056889 | BE88: 1.679999948 | DF88: -4.199999809 | DG88: -1.855634451 | DH88: -1.778307915 | DI88: -1.633802533 | DJ88: -1.352942228 | DK88: -0.07400906086 | DL88: -0.07400906086 | DM88: -0.07400906086 | DN88: -0.07400906086 | GZ88: -4.150000095 | HA88: -0.7692070076 | HB88: -0.6688602948 | HC88: -0.4688777709 | HD88: -0.2414654026 | HL88: -4.150000095 | HM88: -0.9775645852
H89: -0.01104271412 | I89: -0.200000003 | J89: -17 | K89: -0.2199999988 | L89: -4.25 | M89: -0.07459638268 | N89: 0 | O89: 0.5380108356 | P89: 0.7133314013 | Q89: 0.8296582103 | R89: 0.8882294893 | S89: 0.9080853462 | T89: 0.9151645303 | U89: 0.9159485698 | V89: 0.9138953686 | W89: 0.912746489 | X89: 0.4060924947 | Y89: 1.700000048 | Z89: 0.6875528693 | AA89: 1.700000048 | AB89: 0.8310280442 | AC89: 1.700000048 | AD89: 0.8998534083 | AE89: 1.700000048 | AF89: 0.9428996444 | AG89: 1.700000048 | AH89: 0.9645479321 | AI89: 1.700000048 | AJ89: 0.972086668 | AK89: 1.700000048 | AL89: 0.9718301296 | AM89: 1.700000048 | AN89: -0.9657628536 | AO89: 1.700000048 | AP89: -0.9544315934 | AQ89: 1.700000048 | AR89: -0.938383162 | AS89: 1.700000048 | AT89: -0.9181641936 | AU89: 1.700000048 | AV89: -0.8943215609 | AW89: 1.700000048 | AX89: -0.8659226894 | AY89: 1.700000048 | AZ89: -0.832069993 | BA89: 1.700000048 | BB89: -0.7931858301 | BC89: 1.700000048 | BD89: -0.74969244 | BE89: 1.700000048 | DF89: -4.25 | DG89: -1.855796218 | DH89: -1.779379249 | DI89: -1.638673067 | DJ89: -1.362702727 | DK89: -0.07459640503 | DL89: -0.07459640503 | DM89: -0.07459640503 | DN89: -0.07459640503 | GZ89: -4.199999809 | HA89: -0.7732272261 | HB89: -0.6719638166 | HC89: -0.4697547744 | HD89: -0.2415774259 | HL89: -4.199999809 | HM89: -0.9775671482
H90: -0.009793519974 | I90: -0.1800000072 | J90: -17 | K90: -0.200000003 | L90: -4.300000191 | M90: -0.07517147809 | N90: 0 | O90: 0.5424839854 | P90: 0.7180469632 | Q90: 0.8346124291 | R90: 0.8925658464 | S90: 0.9116066694 | T90: 0.9181756377 | U90: 0.9186739922 | V90: 0.9164467454 | W90: 0.9151698351 | X90: 0.4082469344 | Y90: 1.719999909 | Z90: 0.6899158955 | AA90: 1.719999909 | AB90: 0.8320918679 | AC90: 1.719999909 | AD90: 0.8998268843 | AE90: 1.719999909 | AF90: 0.9427317977 | AG90: 1.719999909 | AH90: 0.9644993544 | AI90: 1.719999909 | AJ90: 0.9720522761 | AK90: 1.719999909 | AL90: 0.97158885 | AM90: 1.719999909 | AN90: -0.9652570486 | AO90: 1.719999909 | AP90: -0.9536488652 | AQ90: 1.719999909 | AR90: -0.9373562932 | AS90: 1.719999909 | AT90: -0.9169713855 | AU90: 1.719999909 | AV90: -0.8930860758 | AW90: 1.719999909 | AX90: -0.8647964597 | AY90: 1.719999909 | AZ90: -0.8311858177 | BA90: 1.719999909 | BB90: -0.7926568389 | BC90: 1.719999909 | BD90: -0.749612391 | BE90: 1.719999909 | DF90: -4.300000191 | DG90: -1.855955601 | DH90: -1.780384064 | DI90: -1.643341064 | DJ90: -1.372104168 | DK90: -0.07517147064 | DL90: -0.07517147064 | DM90: -0.07517147064 | DN90: -0.07517147064 | GZ90: -4.25 | HA90: -0.7771906311 | HB90: -0.6749859168 | HC90: -0.470590559 | HD90: -0.2416818521 | HL90: -4.25 | HM90: -0.9775697112
H91: -0.008595108986 | I91: -0.1599999964 | J91: -17 | K91: -0.1800000072 | L91: -4.349999905 | M91: -0.07574657351 | N91: 0 | O91: 0.5464385152 | P91: 0.7225145698 | Q91: 0.8392716646 | R91: 0.8965646625 | S91: 0.9148294926 | T91: 0.9209415317 | U91: 0.9211995602 | V91: 0.9188384414 | W91: 0.9174617529 | X91: 0.4102468491 | Y91: 1.74000001 | Z91: 0.6920990944 | AA91: 1.74000001 | AB91: 0.833081007 | AC91: 1.74000001 | AD91: 0.8998177052 | AE91: 1.74000001 | AF91: 0.9425885677 | AG91: 1.74000001 | AH91: 0.9644614458 | AI91: 1.74000001 | AJ91: 0.9720234871 | AK91: 1.74000001 | AL91: 0.97136724 | AM91: 1.74000001 | AN91: -0.9647912979 | AO91: 1.74000001 | AP91: -0.9529295564 | AQ91: 1.74000001 | AR91: -0.9364159703 | AS91: 1.74000001 | AT91: -0.9158843756 | AU91: 1.74000001 | AV91: -0.8919686675 | AW91: 1.74000001 | AX91: -0.8637911081 | AY91: 1.74000001 | AZ91: -0.8304172754 | BA91: 1.74000001 | BB91: -0.7922317982 | BC91: 1.74000001 | BD91: -0.7496196628 | BE91: 1.74000001 | DF91: -4.349999905 | DG91: -1.856074333 | DH91: -1.781182051 | DI91: -1.647560477 | DJ91: -1.380895853 | DK91: -0.07574653625 | DL91: -0.07574653625 | DM91: -0.07574653625 | DN91: -0.07574653625 | GZ91: -4.300000191 | HA91: -0.7811470409 | HB91: -0.6780065448 | HC91: -0.47141589 | HD91: -0.2417858032 | HL91: -4.300000191 | HM91: -0.9775720358
H92: -0.007396697998 | I92: -0.1400000006 | J92: -17 | K92: -0.1599999964 | L92: -4.400000095 | M92: -0.07632167637 | N92: 0 | O92: 0.5501537919 | P92: 0.7268679142 | Q92: 0.8437947631 | R92: 0.9004077315 | S92: 0.9179145694 | T92: 0.923594296 | U92: 0.9236329794 | V92: 0.9211565256 | W92: 0.9196930528 | X92: 0.4121957421 | Y92: 1.75999999 | Z92: 0.6942223907 | AA92: 1.75999999 | AB92: 0.834061861 | AC92: 1.75999999 | AD92: 0.8998411298 | AE92: 1.75999999 | AF92: 0.9424666762 | AG92: 1.75999999 | AH92: 0.9644267559 | AI92: 1.75999999 | AJ92: 0.9720044136 | AK92: 1.75999999 | AL92: 0.9711931944 | AM92: 1.75999999 | AN92: -0.964422226 | AO92: 1.75999999 | AP92: -0.9523587227 | AQ92: 1.75999999 | AR92: -0.935670197 | AS92: 1.75999999 | AT92: -0.9150240421 | AU92: 1.75999999 | AV92: -0.8910875916 | AW92: 1.75999999 | AX92: -0.8630036712 | AY92: 1.75999999 | AZ92: -0.8298233151 | BA92: 1.75999999 | BB92: -0.7919172049 | BC92: 1.75999999 | BD92: -0.7496560812 | BE92: 1.75999999 | DF92: -4.400000095 | DG92: -1.856173992 | DH92: -1.781908512 | DI92: -1.651584268 | DJ92: -1.388908148 | DK92: -0.07632172108 | DL92: -0.07632172108 | DM92: -0.07632172108 | DN92: -0.07632172108 | GZ92: -4.349999905 | HA92: -0.7848891018 | HB92: -0.6806912026 | HC92: -0.4721129194 | HD92: -0.2418606965 | HL92: -4.349999905 | HM92: -0.9775760889
H93: -0.006198406219 | I93: -0.1199999973 | J93: -17 | K93: -0.1400000006 | L93: -4.449999809 | M93: -0.07687592506 | N93: 0 | O93: 0.5538690686 | P93: 0.731221199 | Q93: 0.8483178616 | R93: 0.904250741 | S93: 0.9209995866 | T93: 0.9262470007 | U93: 0.926066339 | V93: 0.9234745502 | W93: 0.921924293 | X93: 0.4139567316 | Y93: 1.779999852 | Z93: 0.6961268187 | AA93: 1.779999852 | AB93: 0.8349761963 | AC93: 1.779999852 | AD93: 0.8999205232 | AE93: 1.779999852 | AF93: 0.9423983097 | AG93: 1.779999852 | AH93: 0.9644138217 | AI93: 1.779999852 | AJ93: 0.9720022082 | AK93: 1.779999852 | AL93: 0.9710733294 | AM93: 1.779999852 | AN93: -0.9641577601 | AO93: 1.779999852 | AP93: -0.9519478679 | AQ93: 1.779999852 | AR93: -0.9351360798 | AS93: 1.779999852 | AT93: -0.9144147038 | AU93: 1.779999852 | AV93: -0.8904762864 | AW93: 1.779999852 | AX93: -0.8624792695 | AY93: 1.779999852 | AZ93: -0.8294639587 | BA93: 1.779999852 | BB93: -0.791790545 | BC93: 1.779999852 | BD93: -0.7498189807 | BE93: 1.779999852 | DF93: -4.449999809 | DG93: -1.856272459 | DH93: -1.782623053 | DI93: -1.655585885 | DJ93: -1.39689374 | DK93: -0.07687592506 | DL93: -0.07687592506 | DM93: -0.07687592506 | DN93: -0.07687592506 | GZ93: -4.400000095 | HA93: -0.7885294119 | HB93: -0.6832148361 | HC93: -0.4727480182 | HD93: -0.2419222001 | HL93: -4.400000095 | HM93: -0.9775803805
H94: -0.004999995232 | I94: -0.1000000015 | J94: -17 | K94: -0.1199999973 | L94: -4.5 | M94: -0.07742611319 | N94: 0 | O94: 0.5572149754 | P94: 0.7353901267 | Q94: 0.8526241779 | R94: 0.9078506827 | S94: 0.9238715768 | T94: 0.9287245274 | U94: 0.9283559322 | V94: 0.9256761074 | W94: 0.9240582585 | X94: 0.4156954885 | Y94: 1.799999952 | Z94: 0.6980000138 | AA94: 1.799999952 | AB94: 0.8358748555 | AC94: 1.799999952 | AD94: 0.8999999762 | AE94: 1.799999952 | AF94: 0.9423263073 | AG94: 1.799999952 | AH94: 0.9643924236 | AI94: 1.799999952 | AJ94: 0.9720000029 | AK94: 1.799999952 | AL94: 0.9709777832 | AM94: 1.799999952 | AN94: -0.9639472961 | AO94: 1.799999952 | AP94: -0.9516213536 | AQ94: 1.799999952 | AR94: -0.9347129464 | AS94: 1.799999952 | AT94: -0.9139348269 | AU94: 1.799999952 | AV94: -0.8899999857 | AW94: 1.799999952 | AX94: -0.8620796204 | AY94: 1.799999952 | AZ94: -0.829205215 | BA94: 1.799999952 | BB94: -0.7917281389 | BC94: 1.799999952 | BD94: -0.75 | BE94: 1.799999952 | DF94: -4.5 | DG94: -1.856343389 | DH94: -1.783239245 | DI94: -1.659265876 | DJ94: -1.404239774 | DK94: -0.07742607594 | DL94: -0.07742607594 | DM94: -0.07742607594 | DN94: -0.07742607594 | GZ94: -4.449999809 | HA94: -0.7921637451 | HB94: -0.6857306983 | HC94: -0.4733763496 | HD94: -0.2419834922 | HL94: -4.449999809 | HM94: -0.977584374
H95: -0.003947377205 | I95: -0.07999999821 | J95: -17 | K95: -0.1000000015 | L95: -4.550000191 | M95: -0.07797629386 | N95: 0 | O95: 0.560228467 | P95: 0.7393931746 | Q95: 0.8567354083 | R95: 0.9112316966 | S95: 0.9265516996 | T95: 0.9310443997 | U95: 0.9305161238 | V95: 0.9277728796 | W95: 0.9261047244 | X95: 0.4169853926 | Y95: 1.819999933 | Z95: 0.6993616223 | AA95: 1.819999933 | AB95: 0.8365468383 | AC95: 1.819999933 | AD95: 0.9000917077 | AE95: 1.819999933 | AV95: -0.8898134232 | AW95: 1.819999933 | AX95: -0.8619416952 | AY95: 1.819999933 | AZ95: -0.8291488886 | BA95: 1.819999933 | BB95: -0.7917820811 | BC95: 1.819999933 | BD95: -0.7501887083 | BE95: 1.819999933 | DF95: -4.550000191 | DG95: -1.856389761 | DH95: -1.783769131 | DI95: -1.662659407 | DJ95: -1.411087275 | DK95: -0.07797634602 | DL95: -0.07797634602 | DM95: -0.07797634602 | DN95: -0.07797634602 | GZ95: -4.5 | HA95: -0.7956388164 | HB95: -0.6879970708 | HC95: -0.4739159692 | HD95: -0.2420245263 | HL95: -4.5 | HM95: -0.9775895
H96: -0.002894759178 | I96: -0.05999999866 | J96: -17 | K96: -0.07999999821 | L96: -4.599999905 | M96: -0.07852241397 | N96: 0 | O96: 0.5632419586 | P96: 0.7433962226 | Q96: 0.8608465791 | R96: 0.9146127105 | S96: 0.9292318225 | T96: 0.9333642125 | U96: 0.9326763153 | V96: 0.9298695922 | W96: 0.9281511903 | X96: 0.4176496267 | Y96: 1.840000033 | Z96: 0.699953258 | AA96: 1.840000033 | AB96: 0.8368209004 | AC96: 1.840000033 | AX96: -0.8619039059 | AY96: 1.840000033 | AZ96: -0.8291324377 | BA96: 1.840000033 | BB96: -0.7917946577 | BC96: 1.840000033 | BD96: -0.7502367496 | BE96: 1.840000033 | DF96: -4.599999905 | DG96: -1.856435776 | DH96: -1.784291744 | DI96: -1.666052341 | DJ96: -1.417915821 | DK96: -0.07852244377 | DL96: -0.07852244377 | DM96: -0.07852244377 | DN96: -0.07852244377 | GZ96: -4.550000191 | HA96: -0.7989705311 | HB96: -0.6900356487 | HC96: -0.4743769677 | HD96: -0.2420474225 | HL96: -4.550000191 | HM96: -0.9775954008
H97: -0.001914739609 | I97: -0.03999999911 | J97: -17 | K97: -0.05999999866 | L97: -4.650000095 | M97: -0.07904773951 | N97: 0 | O97: 0.5660175681 | P97: 0.7472746372 | Q97: 0.8648130894 | R97: 0.9178349972 | S97: 0.9317743182 | T97: 0.9355707765 | U97: 0.9347426891 | V97: 0.9318891764 | W97: 0.9301322103 | X97: 0.4179622531 | Y97: 1.860000014 | BB97: -0.7917823792 | BC97: 1.860000014 | BD97: -0.750197947 | BE97: 1.860000014 | DF97: -4.650000095 | DG97: -1.856464744 | DH97: -1.784753084 | DI97: -1.669229269 | DJ97: -1.42431283 | DK97: -0.07904779911 | DL97: -0.07904779911 | DM97: -0.07904779911 | DN97: -0.07904779911 | GZ97: -4.599999905 | HA97: -0.8022973093 | HB97: -0.6920632961 | HC97: -0.474833768 | HD97: -0.2420702766 | HL97: -4.599999905 | HM97: -0.9776008845
H98: -0.0009613037109 | I98: -0.01999999955 | J98: -17 | K98: -0.03999999911 | L98: -4.699999809 | M98: -0.07957306504 | N98: 0 | O98: 0.5683854222 | P98: 0.75093925 | Q98: 0.8685314655 | R98: 0.9207851291 | S98: 0.9340807796 | T98: 0.9375830889 | U98: 0.9366483688 | V98: 0.9337766171 | W98: 0.9320011139 | BD98: -0.750110507 | BE98: 1.879999876 | DF98: -4.699999809 | DG98: -1.856464982 | DH98: -1.785116673 | DI98: -1.672017217 | DJ98: -1.430247784 | DK98: -0.07957303524 | DL98: -0.07957303524 | DM98: -0.07957303524 | DN98: -0.07957303524 | GZ98: -4.650000095 | HA98: -0.8055157841 | HB98: -0.6939234052 | HC98: -0.4752347813 | HD98: -0.2420803004 | HL98: -4.650000095 | HM98: -0.9776070834
H99: 0 | I99: 0 | J99: -17 | K99: -0.01999999955 | L99: -4.75 | M99: -0.08009839058 | N99: 0 | O99: 0.5707532763 | P99: 0.7546039224 | Q99: 0.8722498417 | R99: 0.9237353206 | S99: 0.9363873005 | T99: 0.9395954609 | U99: 0.9385541081 | V99: 0.9356639981 | W99: 0.9338700175 | BD99: -0.75 | BE99: 1.899999976 | DF99: -4.75 | DG99: -1.85646522 | DH99: -1.785476089 | DI99: -1.674774885 | DJ99: -1.436167836 | DK99: -0.08009839058 | DL99: -0.08009839058 | DM99: -0.08009839058 | DN99: -0.08009839058 | GZ99: -4.699999809 | HA99: -0.8085442383 | HB99: -0.6955035327 | HC99: -0.4755441134 | HD99: -0.2420683672 | HL99: -4.699999809 | HM99: -0.9776142955
J100: -17 | K100: 0 | L100: -4.800000191 | M100: -0.08061156422 | N100: 0 | O100: 0.572996974 | P100: 0.7581998706 | Q100: 0.8758895993 | R100: 0.9266013503 | S100: 0.9386217594 | T100: 0.9415484667 | U100: 0.9404101968 | V100: 0.9375098944 | W100: 0.9357030988 | DF100: -4.800000191 | DG100: -1.856456995 | DH100: -1.785803795 | DI100: -1.677384138 | DJ100: -1.441850662 | DK100: -0.08061158657 | DL100: -0.08061158657 | DM100: -0.08061158657 | DN100: -0.08061158657 | GZ100: -4.75 | HA100: -0.8115431623 | HB100: -0.6970722339 | HC100: -0.4758511557 | HD100: -0.2420564229 | HL100: -4.75 | HM100: -0.9776211501
L101: -4.849999905 | M101: -0.08111207932 | N101: 0 | O101: 0.574775219 | P101: 0.7615379691 | Q101: 0.8792342544 | R101: 0.9291517735 | S101: 0.9405859709 | T101: 0.9432787895 | U101: 0.9420801997 | V101: 0.9391999245 | W101: 0.9374017715 | DF101: -4.849999905 | DG101: -1.85641706 | DH101: -1.786025405 | DI101: -1.679511428 | DJ101: -1.446907163 | DK101: -0.08111202717 | DL101: -0.08111202717 | DM101: -0.08111202717 | DN101: -0.08111202717 | GZ101: -4.800000191 | HA101: -0.8144807125 | HB101: -0.698348834 | HC101: -0.4761292758 | HD101: -0.2420379161 | HL101: -4.800000191 | HM101: -0.977628243
L102: -4.900000095 | M102: -0.08161260188 | N102: 0 | O102: 0.5765534639 | P102: 0.7648761868 | Q102: 0.882578969 | R102: 0.9317022562 | S102: 0.9425501823 | T102: 0.945009172 | U102: 0.9437502027 | V102: 0.9408900142 | W102: 0.9391004443 | DF102: -4.900000095 | DG102: -1.856377244 | DH102: -1.786244869 | DI102: -1.68123734 | DJ102: -1.45194912 | DK102: -0.08161258698 | DL102: -0.08161258698 | DM102: -0.08161258698 | DN102: -0.08161258698 | GZ102: -4.849999905 | HA102: -0.8172026299 | HB102: -0.699282303 | HC102: -0.4763061733 | HD102: -0.2419945925 | HL102: -4.849999905 | HM102: -0.9776366473
L103: -4.949999809 | M103: -0.08211311698 | N103: 0 | O103: 0.5783036351 | P103: 0.7681977153 | Q103: 0.8859050274 | R103: 0.9342333078 | S103: 0.9444980025 | T103: 0.9467260242 | U103: 0.9454087615 | V103: 0.9425702691 | W103: 0.940790534 | DF103: -4.949999809 | DG103: -1.856335878 | DH103: -1.786456227 | DI103: -1.682801723 | DJ103: -1.45695138 | DK103: -0.08211314678 | DL103: -0.08211314678 | DM103: -0.08211314678 | DN103: -0.08211314678 | GZ103: -4.900000095 | HA103: -0.8199200537 | HB103: -0.7002059498 | HC103: -0.476481991 | HD103: -0.2419512368 | HL103: -4.900000095 | HM103: -0.9776445151
L104: -5 | M104: -0.08259343356 | N104: 0 | O104: 0.5795484781 | P104: 0.7712213397 | Q104: 0.8888952136 | R104: 0.9364153147 | S104: 0.946151197 | T104: 0.9481998682 | U104: 0.9468618631 | V104: 0.9440749884 | W104: 0.9423263073 | DF104: -5 | DG104: -1.856260777 | DH104: -1.786556125 | DI104: -1.683961868 | DJ104: -1.461397648 | DK104: -0.08259344101 | DL104: -0.08259344101 | DM104: -0.08259344101 | DN104: -0.08259344101 | GZ104: -4.949999809 | HA104: -0.8226193033 | HB104: -0.7011057358 | HC104: -0.4766507668 | HD104: -0.2419063515 | HL104: -4.949999809 | HM104: -0.9776524425
L105: -5.050000191 | M105: -0.08306919783 | N105: 0 | O105: 0.5807932615 | P105: 0.7742449641 | Q105: 0.8918853998 | R105: 0.9385973215 | S105: 0.947804451 | T105: 0.9496737123 | U105: 0.9483149052 | V105: 0.9455797076 | W105: 0.943862021 | DF105: -5.050000191 | DG105: -1.856185913 | DH105: -1.786655188 | DI105: -1.685097456 | DJ105: -1.465636969 | DK105: -0.08306920528 | DL105: -0.08306920528 | DM105: -0.08306920528 | DN105: -0.08306920528 | GZ105: -5 | HA105: -0.8250715415 | HB105: -0.701739513 | HC105: -0.4767119806 | HD105: -0.24183474 | HL105: -5 | HM105: -0.9776618005
L106: -5.099999905 | M106: -0.08354496211 | N106: 0 | O106: 0.5820381045 | P106: 0.7772685289 | Q106: 0.894875586 | R106: 0.9407792687 | S106: 0.9494576454 | T106: 0.9511474967 | U106: 0.9497680068 | V106: 0.9470844269 | W106: 0.9453977942 | DF106: -5.099999905 | DG106: -1.856111288 | DH106: -1.786753535 | DI106: -1.686209202 | DJ106: -1.469862461 | DK106: -0.08354496956 | DL106: -0.08354496956 | DM106: -0.08354496956 | DN106: -0.08354496956 | GZ106: -5.050000191 | HA106: -0.8275198505 | HB106: -0.702368495 | HC106: -0.4767729618 | HD106: -0.2417629911 | HL106: -5.050000191 | HM106: -0.9776706219
L107: -5.150000095 | M107: -0.08401720226 | N107: 0 | O107: 0.5828558207 | P107: 0.7800213099 | Q107: 0.8975656629 | R107: 0.9426594973 | S107: 0.9508606791 | T107: 0.9524145722 | U107: 0.9510437846 | V107: 0.9484339952 | W107: 0.9467942715 | DF107: -5.150000095 | DG107: -1.856008768 | DH107: -1.786759615 | DI107: -1.686986089 | DJ107: -1.473699689 | DK107: -0.08401715755 | DL107: -0.08401715755 | DM107: -0.08401715755 | DN107: -0.08401715755 | GZ107: -5.099999905 | HA107: -0.8299639868 | HB107: -0.7029928968 | HC107: -0.4768336218 | HD107: -0.241691116 | HL107: -5.099999905 | HM107: -0.9776794434
L108: -5.199999809 | M108: -0.08446826786 | N108: 0 | O108: 0.5836232901 | P108: 0.7827421427 | Q108: 0.9002203941 | R108: 0.9445042014 | S108: 0.9522342682 | T108: 0.9536572695 | U108: 0.9522987008 | V108: 0.9497653246 | W108: 0.9481742978 | DF108: -5.199999809 | DG108: -1.855903149 | DH108: -1.786754966 | DI108: -1.687709332 | DJ108: -1.47748208 | DK108: -0.08446824551 | DL108: -0.08446824551 | DM108: -0.08446824551 | DN108: -0.08446824551 | GZ108: -5.150000095 | HA108: -0.8321845322 | HB108: -0.7033992432 | HC108: -0.4768046811 | HD108: -0.2415968187 | HL108: -5.150000095 | HM108: -0.9776893378
L109: -5.25 | M109: -0.08491934091 | N109: 0 | O109: 0.5843907595 | P109: 0.7854630351 | Q109: 0.9028751254 | R109: 0.9463489056 | S109: 0.9536078572 | T109: 0.9548999667 | U109: 0.953553617 | V109: 0.9510966539 | W109: 0.9495543838 | DF109: -5.25 | DG109: -1.855797768 | DH109: -1.786750317 | DI109: -1.688416362 | DJ109: -1.481187224 | DK109: -0.08491933346 | DL109: -0.08491933346 | DM109: -0.08491933346 | DN109: -0.08491933346 | GZ109: -5.199999809 | HA109: -0.8343755474 | HB109: -0.7037784547 | HC109: -0.4767654125 | HD109: -0.2414995675 | HL109: -5.199999809 | HM109: -0.9776990534
L110: -5.300000191 | M110: -0.08537041396 | N110: 0 | O110: 0.5848478079 | P110: 0.7879696488 | Q110: 0.9052968025 | R110: 0.9479680061 | S110: 0.95479846 | T110: 0.9559912086 | U110: 0.9546763301 | V110: 0.952309072 | W110: 0.9508251548 | DF110: -5.300000191 | DG110: -1.855672359 | DH110: -1.786679506 | DI110: -1.688886285 | DJ110: -1.484466553 | DK110: -0.08537042141 | DL110: -0.08537042141 | DM110: -0.08537042141 | DN110: -0.08537042141 | GZ110: -5.25 | HA110: -0.836563231 | HB110: -0.7041556154 | HC110: -0.4767262509 | HD110: -0.2414021158 | HL110: -5.25 | HM110: -0.9777085901
L111: -5.349999905 | M111: -0.08580990881 | N111: 0 | O111: 0.5851939917 | P111: 0.7903997302 | Q111: 0.9076352715 | R111: 0.9495065808 | S111: 0.9559236765 | T111: 0.9570282698 | U111: 0.9557518363 | V111: 0.9534790516 | W111: 0.9520568848 | DF111: -5.349999905 | DG111: -1.855539799 | DH111: -1.786585569 | DI111: -1.689267159 | DJ111: -1.487631798 | DK111: -0.08580994606 | DL111: -0.08580994606 | DM111: -0.08580994606 | DN111: -0.08580994606 | GZ111: -5.300000191 | HA111: -0.8385740431 | HB111: -0.7043776065 | HC111: -0.4766227802 | HD111: -0.2412883625 | HL111: -5.300000191 | HM111: -0.9777189613
L112: -5.400000095 | M112: -0.08623632789 | N112: 0 | O112: 0.5855401754 | P112: 0.7928298116 | Q112: 0.9099737406 | R112: 0.9510451555 | S112: 0.9570489526 | T112: 0.9580653906 | U112: 0.9568273425 | V112: 0.9546489716 | W112: 0.9532886147 | DF112: -5.400000095 | DG112: -1.855407476 | DH112: -1.78649199 | DI112: -1.689639211 | DJ112: -1.490783095 | DK112: -0.08623635769 | DL112: -0.08623635769 | DM112: -0.08623635769 | DN112: -0.08623635769 | GZ112: -5.349999905 | HA112: -0.8405197625 | HB112: -0.7045439875 | HC112: -0.4764965778 | HD112: -0.2411684787 | HL112: -5.349999905 | HM112: -0.9777291537
L113: -5.449999809 | M113: -0.08666274697 | N113: 0 | O113: 0.5856750011 | P113: 0.795098424 | Q113: 0.912140131 | R113: 0.9524245858 | S113: 0.9580485821 | T113: 0.9589981437 | U113: 0.9578098655 | V113: 0.9557324052 | W113: 0.9544386268 | DF113: -5.449999809 | DG113: -1.855261683 | DH113: -1.786353946 | DI113: -1.689855814 | DJ113: -1.493713021 | DK113: -0.08666276932 | DL113: -0.08666276932 | DM113: -0.08666276932 | DN113: -0.08666276932 | GZ113: -5.400000095 | HA113: -0.8424625378 | HB113: -0.7047099558 | HC113: -0.4763707802 | HD113: -0.2410481729 | HL113: -5.400000095 | HM113: -0.9777392865
L114: -5.5 | M114: -0.08708916605 | N114: 0 | O114: 0.5856561065 | P114: 0.7972496152 | Q114: 0.9141814113 | R114: 0.9536882639 | S114: 0.958956778 | T114: 0.9598550797 | U114: 0.9587247372 | V114: 0.9567529559 | W114: 0.9555292726 | DF114: -5.5 | DG114: -1.855105996 | DH114: -1.786183715 | DI114: -1.689961791 | DJ114: -1.49647975 | DK114: -0.08708918095 | DL114: -0.08708918095 | DM114: -0.08708918095 | DN114: -0.08708918095 | GZ114: -5.449999809 | HA114: -0.8442719731 | HB114: -0.7047713523 | HC114: -0.4762015158 | HD114: -0.2409167457 | HL114: -5.449999809 | HM114: -0.9777500154
L115: -5.550000191 | M115: -0.0874960199 | N115: 0 | O115: 0.5856371522 | P115: 0.7994008064 | Q115: 0.9162226915 | R115: 0.954951942 | S115: 0.9598650336 | T115: 0.9607120156 | U115: 0.9596396685 | V115: 0.9577735066 | W115: 0.9566199183 | DF115: -5.550000191 | DG115: -1.854950428 | DH115: -1.786013961 | DI115: -1.690065265 | DJ115: -1.499234676 | DK115: -0.08749604225 | DL115: -0.08749604225 | DM115: -0.08749604225 | DN115: -0.08749604225 | GZ115: -5.5 | HA115: -0.8459838193 | HB115: -0.7047570988 | HC115: -0.4760008067 | HD115: -0.2407769307 | HL115: -5.5 | HM115: -0.9777607442
L116: -5.599999905 | M116: -0.08789784461 | N116: 0 | O116: 0.585488081 | P116: 0.8014395833 | Q116: 0.9181468487 | R116: 0.9561129808 | S116: 0.9606950879 | T116: 0.9615037441 | U116: 0.9604948163 | V116: 0.9587362409 | W116: 0.9576541781 | DF116: -5.599999905 | DG116: -1.854786515 | DH116: -1.785817146 | DI116: -1.690078139 | DJ116: -1.50172472 | DK116: -0.08789789677 | DL116: -0.08789789677 | DM116: -0.08789789677 | DN116: -0.08789789677 | GZ116: -5.550000191 | HA116: -0.8476932415 | HB116: -0.7047427623 | HC116: -0.4758005025 | HD116: -0.2406365774 | HL116: -5.550000191 | HM116: -0.9777712942
L117: -5.650000095 | M117: -0.08829968423 | N117: 0 | O117: 0.5851601362 | P117: 0.8033238053 | Q117: 0.9199101329 | R117: 0.9571329355 | S117: 0.961417675 | T117: 0.9622059464 | U117: 0.9612678289 | V117: 0.9596193433 | W117: 0.9586110711 | DF117: -5.650000095 | DG117: -1.854611278 | DH117: -1.785582662 | DI117: -1.689970851 | DJ117: -1.503970265 | DK117: -0.08829963207 | DL117: -0.08829963207 | DM117: -0.08829963207 | DN117: -0.08829963207 | GZ117: -5.599999905 | HA117: -0.8493094464 | HB117: -0.704664334 | HC117: -0.4755736918 | HD117: -0.2404892075 | HL117: -5.599999905 | HM117: -0.9777821423
L118: -5.699999809 | M118: -0.08869850636 | N118: 0 | O118: 0.5848321319 | P118: 0.8052079678 | Q118: 0.9216733575 | R118: 0.9581528306 | S118: 0.9621402025 | T118: 0.9629080892 | U118: 0.9620408416 | V118: 0.9605025053 | W118: 0.9595679641 | DF118: -5.699999809 | DG118: -1.854435802 | DH118: -1.785348654 | DI118: -1.689866066 | DJ118: -1.506202459 | DK118: -0.08869850636 | DL118: -0.08869850636 | DM118: -0.08869850636 | DN118: -0.08869850636 | GZ118: -5.650000095 | HA118: -0.850798731 | HB118: -0.7044978699 | HC118: -0.4753102421 | HD118: -0.2403323411 | HL118: -5.650000095 | HM118: -0.9777932288
L119: -5.75 | M119: -0.08907580376 | N119: 0 | O119: 0.5844376087 | P119: 0.8070250154 | Q119: 0.923368454 | R119: 0.9591168761 | S119: 0.9628221989 | T119: 0.9635762572 | U119: 0.9627814293 | V119: 0.9613526464 | W119: 0.960491538 | DF119: -5.75 | DG119: -1.854256153 | DH119: -1.785100937 | DI119: -1.689719439 | DJ119: -1.508341908 | DK119: -0.08907580376 | DL119: -0.08907580376 | DM119: -0.08907580376 | DN119: -0.08907580376 | GZ119: -5.699999809 | HA119: -0.8522859017 | HB119: -0.7043313229 | HC119: -0.4750471555 | HD119: -0.240174726 | HL119: -5.699999809 | HM119: -0.9778040172
L120: -5.800000191 | M120: -0.08945310116 | N120: 0 | O120: 0.5838567615 | P120: 0.8086541295 | Q120: 0.924872756 | R120: 0.9599242806 | S120: 0.9633904099 | T120: 0.9641491771 | U120: 0.9634313583 | V120: 0.9621104002 | W120: 0.9613218904 | DF120: -5.800000191 | DG120: -1.854064822 | DH120: -1.784813643 | DI120: -1.689453721 | DJ120: -1.510246634 | DK120: -0.08945310116 | DL120: -0.08945310116 | DM120: -0.08945310116 | DN120: -0.08945310116 | GZ120: -5.75 | HA120: -0.8537168342 | HB120: -0.7041319035 | HC120: -0.4747705806 | HD120: -0.2400132276 | HL120: -5.75 | HM120: -0.9778149845
L121: -5.849999905 | M121: -0.08983039856 | N121: 0 | O121: 0.5832758546 | P121: 0.8102831841 | Q121: 0.926377058 | R121: 0.9607316852 | S121: 0.963958621 | T121: 0.9647220969 | U121: 0.9640812874 | V121: 0.9628680944 | W121: 0.9621522427 | DF121: -5.849999905 | DG121: -1.853873134 | DH121: -1.784526706 | DI121: -1.689193845 | DJ121: -1.512140274 | DK121: -0.08983039856 | DL121: -0.08983039856 | DM121: -0.08983039856 | DN121: -0.08983039856 | GZ121: -5.800000191 | HA121: -0.8549947807 | HB121: -0.7038399342 | HC121: -0.4744558215 | HD121: -0.2398421386 | HL121: -5.800000191 | HM121: -0.9778262498
L122: -5.900000095 | M122: -0.0901966989 | N122: 0 | O122: 0.5826742053 | P122: 0.8118867278 | Q122: 0.9278560877 | R122: 0.9615200162 | S122: 0.9645138383 | T122: 0.9652840495 | U122: 0.9647202492 | V122: 0.9636138678 | W122: 0.962970078 | DF122: -5.900000095 | DG122: -1.853680015 | DH122: -1.784235477 | DI122: -1.688925982 | DJ122: -1.513992906 | DK122: -0.09019672871 | DL122: -0.09019672871 | DM122: -0.09019672871 | DN122: -0.09019672871 | GZ122: -5.849999905 | HA122: -0.8562707459 | HB122: -0.7035477328 | HC122: -0.47414123 | HD122: -0.2396701945 | HL122: -5.849999905 | HM122: -0.977837217
L123: -5.949999809 | M123: -0.09054950625 | N123: 0 | O123: 0.5818964839 | P123: 0.8132725954 | Q123: 0.9291206002 | R123: 0.9621460438 | S123: 0.9649590254 | T123: 0.9657531977 | U123: 0.9652658105 | V123: 0.9642581344 | W123: 0.963681221 | DF123: -5.949999809 | DG123: -1.853476167 | DH123: -1.78390646 | DI123: -1.68854928 | DJ123: -1.5155797 | DK123: -0.09054946899 | DL123: -0.09054946899 | DM123: -0.09054946899 | DN123: -0.09054946899 | GZ123: -5.900000095 | HA123: -0.8575243089 | HB123: -0.703244784 | HC123: -0.4738225705 | HD123: -0.2394964461 | HL123: -5.900000095 | HM123: -0.9778482439
L124: -6 | M124: -0.09090231359 | N124: 0 | O124: 0.5811187625 | P124: 0.814658463 | Q124: 0.9303851128 | R124: 0.962772131 | S124: 0.9654042125 | T124: 0.9662222862 | U124: 0.9658114314 | V124: 0.9649024606 | W124: 0.9643924236 | DF124: -6 | DG124: -1.853271961 | DH124: -1.783577442 | DI124: -1.688180208 | DJ124: -1.517157555 | DK124: -0.09090232849 | DL124: -0.09090232849 | DM124: -0.09090232849 | DN124: -0.09090232849 | GZ124: -5.949999809 | HA124: -0.8586014542 | HB124: -0.7028534846 | HC124: -0.4734675653 | HD124: -0.2393141726 | HL124: -5.949999809 | HM124: -0.9778594496
L125: -6.050000191 | M125: -0.09125512093 | N125: 0 | O125: 0.5803410411 | P125: 0.8160443306 | Q125: 0.9316496849 | R125: 0.9633982182 | S125: 0.9658493996 | T125: 0.9666913748 | U125: 0.9663569927 | V125: 0.9655467272 | W125: 0.9651035666 | DF125: -6.050000191 | DG125: -1.85306716 | DH125: -1.783248663 | DI125: -1.687818766 | DJ125: -1.518726468 | DK125: -0.09125506878 | DL125: -0.09125506878 | DM125: -0.09125506878 | DN125: -0.09125506878 | GZ125: -6 | HA125: -0.8596771273 | HB125: -0.7024614747 | HC125: -0.4731126253 | HD125: -0.2391220969 | HL125: -6 | HM125: -0.9778704168
L126: -6.099999905 | M126: -0.09158898145 | N126: 0 | O126: 0.5794299841 | P126: 0.8172110915 | Q126: 0.9327051044 | R126: 0.9638820887 | S126: 0.9662076831 | T126: 0.9670862556 | U126: 0.9668215513 | V126: 0.9660949111 | W126: 0.9657087326 | DF126: -6.099999905 | DG126: -1.852854967 | DH126: -1.782890439 | DI126: -1.687376142 | DJ126: -1.520029068 | DK126: -0.091588974 | DL126: -0.091588974 | DM126: -0.091588974 | DN126: -0.091588974 | GZ126: -6.050000191 | HA126: -0.8607511846 | HB126: -0.7020687372 | HC126: -0.4727577272 | HD126: -0.2389021131 | HL126: -6.050000191 | HM126: -0.9778812053
L127: -6.150000095 | M127: -0.09191735834 | N127: 0 | O127: 0.5785114765 | P127: 0.8183656931 | Q127: 0.9337489605 | R127: 0.9643579721 | S127: 0.9665611386 | T127: 0.967476964 | U127: 0.9672815204 | V127: 0.9666377306 | W127: 0.9663079977 | DF127: -6.150000095 | DG127: -1.852641821 | DH127: -1.782530427 | DI127: -1.686937094 | DJ127: -1.521205783 | DK127: -0.09191739559 | DL127: -0.09191739559 | DM127: -0.09191739559 | DN127: -0.09191739559 | GZ127: -6.099999905 | HA127: -0.8616477504 | HB127: -0.7016078233 | HC127: -0.4723751822 | HD127: -0.2386760198 | HL127: -6.099999905 | HM127: -0.9778922917
L128: -6.199999809 | M128: -0.09224573523 | N128: 0 | O128: 0.5775930285 | P128: 0.8195202351 | Q128: 0.934792757 | R128: 0.9648339152 | S128: 0.9669146538 | T128: 0.967867732 | U128: 0.967741549 | V128: 0.9671805501 | W128: 0.9669072032 | DF128: -6.199999809 | DG128: -1.852428079 | DH128: -1.782170296 | DI128: -1.686506391 | DJ128: -1.522375107 | DK128: -0.09224569798 | DL128: -0.09224569798 | DM128: -0.09224569798 | DN128: -0.09224569798 | GZ128: -6.150000095 | HA128: -0.8625135686 | HB128: -0.7011421801 | HC128: -0.4719910455 | HD128: -0.2384491457 | HL128: -6.150000095 | HM128: -0.9779030802
L129: -6.25 | M129: -0.09257163107 | N129: 0 | O129: 0.5766077638 | P129: 0.8205015659 | Q129: 0.9356774688 | R129: 0.9652159214 | S129: 0.9672204256 | T129: 0.9682167172 | U129: 0.9681488872 | V129: 0.9676527381 | W129: 0.9674239159 | DF129: -6.25 | DG129: -1.852211356 | DH129: -1.781794786 | DI129: -1.686035275 | DJ129: -1.523353815 | DK129: -0.09257161617 | DL129: -0.09257161617 | DM129: -0.09257161617 | DN129: -0.09257161617 | GZ129: -6.199999809 | HA129: -0.8633778372 | HB129: -0.7006756605 | HC129: -0.4716068437 | HD129: -0.2382217233 | HL129: -6.199999809 | HM129: -0.977913809
L130: -6.300000191 | M130: -0.09287563711 | N130: 0 | O130: 0.5756046772 | P130: 0.8214367628 | Q130: 0.9365198016 | R130: 0.9655728936 | S130: 0.9675135016 | T130: 0.9685545564 | U130: 0.968542099 | V130: 0.9681061506 | W130: 0.9679185152 | DF130: -6.300000191 | DG130: -1.851993322 | DH130: -1.781414866 | DI130: -1.685559392 | DJ130: -1.524277925 | DK130: -0.09287559986 | DL130: -0.09287559986 | DM130: -0.09287559986 | DN130: -0.09287559986 | GZ130: -6.25 | HA130: -0.8641053125 | HB130: -0.700173722 | HC130: -0.471208609 | HD130: -0.2379924966 | HL130: -6.25 | HM130: -0.9779245379
L131: -6.349999905 | M131: -0.0931796357 | N131: 0 | O131: 0.5746015906 | P131: 0.8223719001 | Q131: 0.9373620749 | R131: 0.9659298658 | S131: 0.9678065777 | T131: 0.9688923955 | U131: 0.9689353108 | V131: 0.9685595632 | W131: 0.9684131742 | DF131: -6.349999905 | DG131: -1.851774573 | DH131: -1.781034708 | DI131: -1.685091496 | DJ131: -1.525196314 | DK131: -0.09317958355 | DL131: -0.09317958355 | DM131: -0.09317958355 | DN131: -0.09317958355 | GZ131: -6.300000191 | HA131: -0.8647954878 | HB131: -0.6996616464 | HC131: -0.4708065111 | HD131: -0.2377623407 | HL131: -6.300000191 | HM131: -0.9779350879
L132: -6.400000095 | M132: -0.09348364174 | N132: 0 | O132: 0.5735805035 | P132: 0.8231759667 | Q132: 0.9380891323 | R132: 0.9662313461 | S132: 0.9680813551 | T132: 0.9692128897 | U132: 0.9692982435 | V132: 0.9689639807 | W132: 0.9688463211 | DF132: -6.400000095 | DG132: -1.851556063 | DH132: -1.780649424 | DI132: -1.68461144 | DJ132: -1.525971889 | DK132: -0.09348368645 | DL132: -0.09348368645 | DM132: -0.09348368645 | DN132: -0.09348368645 | GZ132: -6.349999905 | HA132: -0.8654845008 | HB132: -0.6991483475 | HC132: -0.470404162 | HD132: -0.2375315944 | HL132: -6.349999905 | HM132: -0.9779455783
L133: -6.449999809 | M133: -0.09377722442 | N133: 0 | O133: 0.5725488663 | P133: 0.8239036202 | Q133: 0.9387490153 | R133: 0.9665005803 | S133: 0.9683453441 | T133: 0.9695232511 | U133: 0.969643414 | V133: 0.9693398476 | W133: 0.9692435861 | DF133: -6.449999809 | DG133: -1.851337433 | DH133: -1.78026104 | DI133: -1.684126973 | DJ133: -1.526662946 | DK133: -0.09377717972 | DL133: -0.09377717972 | DM133: -0.09377717972 | DN133: -0.09377717972 | GZ133: -6.400000095 | HA133: -0.8660700362 | HB133: -0.6986246479 | HC133: -0.469997973 | HD133: -0.2373020088 | HL133: -6.400000095 | HM133: -0.9779558303
L134: -6.5 | M134: -0.09405690432 | N134: 0 | O134: 0.5715172291 | P134: 0.8246312737 | Q134: 0.9394088984 | R134: 0.9667697549 | S134: 0.9686093926 | T134: 0.9698336124 | U134: 0.9699885845 | V134: 0.9697157741 | W134: 0.9696409106 | DF134: -6.5 | DG134: -1.851117969 | DH134: -1.779862404 | DI134: -1.68364954 | DJ134: -1.52734983 | DK134: -0.09405696392 | DL134: -0.09405696392 | DM134: -0.09405696392 | DN134: -0.09405696392 | GZ134: -6.449999809 | HA134: -0.8665950945 | HB134: -0.6980944661 | HC134: -0.4695893684 | HD134: -0.2370728453 | HL134: -6.449999809 | HM134: -0.9779659631
L135: -6.550000191 | M135: -0.09433658421 | N135: 0 | O135: 0.5704987049 | P135: 0.825266242 | Q135: 0.9399914145 | R135: 0.967012167 | S135: 0.9688744545 | T135: 0.9701430798 | U135: 0.9703199267 | V135: 0.9700606465 | W135: 0.9699955583 | DF135: -6.550000191 | DG135: -1.850900769 | DH135: -1.779445767 | DI135: -1.683177114 | DJ135: -1.527936459 | DK135: -0.09433662891 | DL135: -0.09433662891 | DM135: -0.09433662891 | DN135: -0.09433662891 | GZ135: -6.5 | HA135: -0.8671193226 | HB135: -0.6975632101 | HC135: -0.4691804241 | HD135: -0.2368430383 | HL135: -6.5 | HM135: -0.9779758575
L136: -6.599999905 | M136: -0.0946162641 | N136: 0 | O136: 0.5694947243 | P136: 0.8257982731 | Q136: 0.9404880404 | R136: 0.9672247767 | S136: 0.9691407681 | T136: 0.9704514742 | U136: 0.9706358314 | V136: 0.9703710675 | W136: 0.9703028202 | DF136: -6.599999905 | DG136: -1.850685954 | DH136: -1.779031515 | DI136: -1.682708502 | DJ136: -1.528413177 | DK136: -0.09461629391 | DL136: -0.09461629391 | DM136: -0.09461629391 | DN136: -0.09461629391 | GZ136: -6.550000191 | HA136: -0.8675704888 | HB136: -0.6970079272 | HC136: -0.4687741513 | HD136: -0.236616101 | HL136: -6.550000191 | HM136: -0.9779856327
L137: -6.650000095 | M137: -0.09487761557 | N137: 0 | O137: 0.568490684 | P137: 0.8263303041 | Q137: 0.9409846067 | R137: 0.9674373865 | S137: 0.9694070816 | T137: 0.9707598686 | U137: 0.9709517956 | V137: 0.9706814885 | W137: 0.9706100821 | DF137: -6.650000095 | DG137: -1.850470424 | DH137: -1.778617144 | DI137: -1.682245374 | DJ137: -1.528887153 | DK137: -0.09487760067 | DL137: -0.09487760067 | DM137: -0.09487760067 | DN137: -0.09487760067 | GZ137: -6.599999905 | HA137: -0.8679407125 | HB137: -0.6964613093 | HC137: -0.4683708062 | HD137: -0.2363924134 | HL137: -6.599999905 | HM137: -0.9779951694
L138: -6.699999809 | M138: -0.09513302892 | N138: 0 | O138: 0.5675131083 | P138: 0.8268042803 | Q138: 0.9414356351 | R138: 0.9676419497 | S138: 0.9696840048 | T138: 0.971075654 | U138: 0.9712643623 | V138: 0.9709749818 | W138: 0.9708912373 | DF138: -6.699999809 | DG138: -1.850257516 | DH138: -1.778208256 | DI138: -1.681794763 | DJ138: -1.529298663 | DK138: -0.09513306618 | DL138: -0.09513306618 | DM138: -0.09513306618 | DN138: -0.09513306618 | GZ138: -6.650000095 | HA138: -0.8683105489 | HB138: -0.6959182461 | HC138: -0.467967098 | HD138: -0.2361680823 | HL138: -6.650000095 | HM138: -0.9780045869
L139: -6.75 | M139: -0.09538843483 | N139: 0 | O139: 0.5665928125 | P139: 0.8271526098 | Q139: 0.9417880774 | R139: 0.9678291678 | S139: 0.9699838758 | T139: 0.9714075327 | U139: 0.9715698361 | V139: 0.9712318778 | W139: 0.9711157084 | DF139: -6.75 | DG139: -1.850051522 | DH139: -1.777811766 | DI139: -1.681363463 | DJ139: -1.529578805 | DK139: -0.09538841248 | DL139: -0.09538841248 | DM139: -0.09538841248 | DN139: -0.09538841248 | GZ139: -6.699999809 | HA139: -0.8686346067 | HB139: -0.6953924297 | HC139: -0.4675687981 | HD139: -0.2359469167 | HL139: -6.699999809 | HM139: -0.9780138257
L140: -6.800000191 | M140: -0.09564186633 | N140: 0 | O140: 0.5656724572 | P140: 0.8275008798 | Q140: 0.94214046 | R140: 0.9680164456 | S140: 0.9702837467 | T140: 0.9717394114 | U140: 0.9718752503 | V140: 0.9714887738 | W140: 0.971340239 | DF140: -6.800000191 | DG140: -1.849844694 | DH140: -1.777415037 | DI140: -1.680936098 | DJ140: -1.529857397 | DK140: -0.09564185143 | DL140: -0.09564185143 | DM140: -0.09564185143 | DN140: -0.09564185143 | GZ140: -6.75 | HA140: -0.8688603891 | HB140: -0.6948996517 | HC140: -0.4671827531 | HD140: -0.2357334323 | HL140: -6.75 | HM140: -0.9780225279
L141: -6.849999905 | M141: -0.09587306529 | N141: 0 | O141: 0.5647742152 | P141: 0.8278220892 | Q141: 0.9424731135 | R141: 0.9682045579 | S141: 0.9705938101 | T141: 0.972078979 | U141: 0.9721819758 | V141: 0.9717391729 | W141: 0.9715528488 | DF141: -6.849999905 | DG141: -1.849639654 | DH141: -1.777023196 | DI141: -1.680519819 | DJ141: -1.530106664 | DK141: -0.09587311745 | DL141: -0.09587311745 | DM141: -0.09587311745 | DN141: -0.09587311745 | GZ141: -6.800000191 | HA141: -0.8690858393 | HB141: -0.6944092054 | HC141: -0.4667963265 | HD141: -0.2355193254 | HL141: -6.800000191 | HM141: -0.9780311706
L142: -6.900000095 | M142: -0.09610426426 | N142: 0 | O142: 0.5639936924 | P142: 0.8279985189 | Q142: 0.9427005053 | R142: 0.9683976173 | S142: 0.9709586501 | T142: 0.9724597335 | U142: 0.9724956751 | V142: 0.9719545245 | W142: 0.97170192 | DF142: -6.900000095 | DG142: -1.849447489 | DH142: -1.776657939 | DI142: -1.68014586 | DJ142: -1.530207157 | DK142: -0.09610426426 | DL142: -0.09610426426 | DM142: -0.09610426426 | DN142: -0.09610426426 | GZ142: -6.849999905 | HA142: -0.8692899832 | HB142: -0.6939325657 | HC142: -0.4664144145 | HD142: -0.2353072864 | HL142: -6.849999905 | HM142: -0.9780397537
L143: -6.949999809 | M143: -0.09633546323 | N143: 0 | O143: 0.56321311 | P143: 0.8281750083 | Q143: 0.9429278374 | R143: 0.9685906172 | S143: 0.9713234305 | T143: 0.972840488 | U143: 0.9728093743 | V143: 0.9721699357 | W143: 0.9718509316 | DF143: -6.949999809 | DG143: -1.849254727 | DH143: -1.776292682 | DI143: -1.679751873 | DJ143: -1.530307174 | DK143: -0.09633541107 | DL143: -0.09633541107 | DM143: -0.09633541107 | DN143: -0.09633541107 | GZ143: -6.900000095 | HA143: -0.8693813963 | HB143: -0.6935185798 | HC143: -0.4660579711 | HD143: -0.2351088907 | HL143: -6.900000095 | HM143: -0.9780476811
L144: -7 | M144: -0.09655679762 | N144: 0 | O144: 0.5624325871 | P144: 0.8283514977 | Q144: 0.9431552291 | R144: 0.9687836766 | S144: 0.971688211 | T144: 0.9732212424 | U144: 0.9731230736 | V144: 0.9723853469 | W144: 0.9720000029 | DF144: -7 | DG144: -1.849061131 | DH144: -1.775927186 | DI144: -1.679346442 | DJ144: -1.530406594 | DK144: -0.09655678272 | DL144: -0.09655678272 | DM144: -0.09655678272 | DN144: -0.09655678272 | GZ144: -6.949999809 | HA144: -0.8694726213 | HB144: -0.6931058343 | HC144: -0.4657012485 | HD144: -0.2349099988 | HL144: -6.949999809 | HM144: -0.9780553701
L145: -7.050000191 | M145: -0.09676383436 | N145: 0 | O145: 0.5616791844 | P145: 0.8283569217 | Q145: 0.9432215691 | R145: 0.9689207673 | S145: 0.9720664024 | T145: 0.9736149311 | U145: 0.973418057 | V145: 0.9725397825 | W145: 0.972061038 | DF145: -7.050000191 | DG145: -1.848873973 | DH145: -1.775568247 | DI145: -1.678935647 | DJ145: -1.530327082 | DK145: -0.09676384926 | DL145: -0.09676384926 | DM145: -0.09676384926 | DN145: -0.09676384926 | GZ145: -7 | HA145: -0.8695639126 | HB145: -0.6926945438 | HC145: -0.4653442513 | HD145: -0.2347105897 | HL145: -7 | HM145: -0.9780631783
L146: -7.099999905 | M146: -0.09697087109 | N146: 0 | O146: 0.5609257817 | P146: 0.8283622861 | Q146: 0.9432879686 | R146: 0.969057858 | S146: 0.9724446535 | T146: 0.9740086794 | U146: 0.9737130404 | V146: 0.9726942182 | W146: 0.9721221328 | DF146: -7.099999905 | DG146: -1.848686099 | DH146: -1.775209069 | DI146: -1.678526759 | DJ146: -1.530248165 | DK146: -0.09697091579 | DL146: -0.09697091579 | DM146: -0.09697091579 | DN146: -0.09697091579 | GZ146: -7.050000191 | HA146: -0.8695192963 | HB146: -0.6922959858 | HC146: -0.4649946544 | HD146: -0.2345186934 | HL146: -7.050000191 | HM146: -0.9780705097
L147: -7.150000095 | M147: -0.09717790782 | N147: 0 | O147: 0.560172379 | P147: 0.8283677101 | Q147: 0.9433543086 | R147: 0.9691949487 | S147: 0.972822845 | T147: 0.9744023681 | U147: 0.9740080833 | V147: 0.9728486538 | W147: 0.9721831679 | DF147: -7.150000095 | DG147: -1.84849751 | DH147: -1.774849653 | DI147: -1.678119898 | DJ147: -1.530169606 | DK147: -0.09717786312 | DL147: -0.09717786312 | DM147: -0.09717786312 | DN147: -0.09717786312 | GZ147: -7.099999905 | HA147: -0.86947468 | HB147: -0.6918981383 | HC147: -0.4646447411 | HD147: -0.2343262799 | HL147: -7.099999905 | HM147: -0.9780777219
L148: -7.199999809 | M148: -0.09736722708 | N148: 0 | O148: 0.5594189763 | P148: 0.8283731341 | Q148: 0.9434207082 | R148: 0.9693320394 | S148: 0.9732010365 | T148: 0.9747960567 | U148: 0.9743030667 | V148: 0.9730030894 | W148: 0.9722442031 | DF148: -7.199999809 | DG148: -1.848308325 | DH148: -1.774490118 | DI148: -1.677714825 | DJ148: -1.530091524 | DK148: -0.09736716747 | DL148: -0.09736716747 | DM148: -0.09736716747 | DN148: -0.09736716747 | GZ148: -7.150000095 | HA148: -0.8694301854 | HB148: -0.6915012503 | HC148: -0.4642944647 | HD148: -0.2341333491 | HL148: -7.150000095 | HM148: -0.978084934
L149: -7.25 | M149: -0.09755015373 | N149: 0 | O149: 0.5586655736 | P149: 0.8283785582 | Q149: 0.9434870481 | R149: 0.9694691896 | S149: 0.9735792875 | T149: 0.975189805 | U149: 0.9745980501 | V149: 0.9731575847 | W149: 0.9723052382 | DF149: -7.25 | DG149: -1.848118305 | DH149: -1.774130464 | DI149: -1.677311659 | DJ149: -1.5300138 | DK149: -0.09755015373 | DL149: -0.09755015373 | DM149: -0.09755015373 | DN149: -0.09755015373 | GZ149: -7.199999809 | HA149: -0.8693858347 | HB149: -0.6911050898 | HC149: -0.4639438718 | HD149: -0.2339399021 | HL149: -7.199999809 | HM149: -0.978092027
L150: -7.300000191 | M150: -0.09773308039 | N150: 0 | O150: 0.5579121709 | P150: 0.8283839226 | Q150: 0.9435533881 | R150: 0.9696062803 | S150: 0.973957479 | T150: 0.9755834937 | U150: 0.9748930335 | V150: 0.9733120203 | W150: 0.972366333 | DF150: -7.300000191 | DG150: -1.84792769 | DH150: -1.773770571 | DI150: -1.6769104 | DJ150: -1.529936552 | DK150: -0.09773313999 | DL150: -0.09773313999 | DM150: -0.09773313999 | DN150: -0.09773313999 | GZ150: -7.25 | HA150: -0.8693415393 | HB150: -0.6907096569 | HC150: -0.4635929392 | HD150: -0.2337459269 | HL150: -7.25 | HM150: -0.97809912
L151: -7.349999905 | M151: -0.09791453183 | N151: 0 | O151: 0.5570738912 | P151: 0.8282629251 | Q151: 0.9434778094 | R151: 0.9696505666 | S151: 0.9742934704 | T151: 0.9759472609 | U151: 0.9751468897 | V151: 0.9734064937 | W151: 0.9723568559 | DF151: -7.349999905 | DG151: -1.847732067 | DH151: -1.773390651 | DI151: -1.67645359 | DJ151: -1.529728174 | DK151: -0.09791457653 | DL151: -0.09791457653 | DM151: -0.09791457653 | DN151: -0.09791457653 | GZ151: -7.300000191 | HA151: -0.8692971776 | HB151: -0.6903151005 | HC151: -0.4632417086 | HD151: -0.2335514455 | HL151: -7.300000191 | HM151: -0.9781063917
L152: -7.400000095 | M152: -0.09807340801 | N152: 0 | O152: 0.556196332 | P152: 0.8280835748 | Q152: 0.9433367252 | R152: 0.9696519971 | S152: 0.974609971 | T152: 0.9762972593 | U152: 0.975381732 | V152: 0.9734732509 | W152: 0.9723148942 | DF152: -7.400000095 | DG152: -1.847533703 | DH152: -1.773001075 | DI152: -1.675971985 | DJ152: -1.52946043 | DK152: -0.0980733633 | DL152: -0.0980733633 | DM152: -0.0980733633 | DN152: -0.0980733633 | GZ152: -7.349999905 | HA152: -0.8691520942 | HB152: -0.6898749223 | HC152: -0.4628733269 | HD152: -0.2333532181 | HL152: -7.349999905 | HM152: -0.9781134847
L153: -7.449999809 | M153: -0.09823227674 | N153: 0 | O153: 0.5553187728 | P153: 0.8279042244 | Q153: 0.9431955814 | R153: 0.9696534276 | S153: 0.9749265313 | T153: 0.9766471982 | U153: 0.9756166339 | V153: 0.9735400677 | W153: 0.9722729325 | DF153: -7.449999809 | DG153: -1.847334623 | DH153: -1.772611141 | DI153: -1.675492287 | DJ153: -1.529194355 | DK153: -0.09823226929 | DL153: -0.09823226929 | DM153: -0.09823226929 | DN153: -0.09823226929 | GZ153: -7.400000095 | HA153: -0.8689606568 | HB153: -0.6894139424 | HC153: -0.4624967814 | HD153: -0.233152923 | HL153: -7.400000095 | HM153: -0.9781205776
L154: -7.5 | M154: -0.09839115292 | N154: 0 | O154: 0.5544412732 | P154: 0.827724874 | Q154: 0.9430544376 | R154: 0.9696548581 | S154: 0.975243032 | T154: 0.9769971371 | U154: 0.9758514762 | V154: 0.9736068845 | W154: 0.9722309709 | DF154: -7.5 | DG154: -1.84713459 | DH154: -1.77222085 | DI154: -1.675014496 | DJ154: -1.52892971 | DK154: -0.09839117527 | DL154: -0.09839117527 | DM154: -0.09839117527 | DN154: -0.09839117527 | GZ154: -7.449999809 | HA154: -0.8687694851 | HB154: -0.688953756 | HC154: -0.4621196634 | HD154: -0.2329520053 | HL154: -7.449999809 | HM154: -0.9781275514
L155: -7.550000191 | M155: -0.09854071587 | N155: 0 | O155: 0.553563714 | P155: 0.8275455236 | Q155: 0.9429133534 | R155: 0.9696562886 | S155: 0.9755595326 | T155: 0.9773471355 | U155: 0.9760863185 | V155: 0.9736737013 | W155: 0.9721890688 | DF155: -7.550000191 | DG155: -1.846933722 | DH155: -1.771829963 | DI155: -1.674538493 | DJ155: -1.528666735 | DK155: -0.09854066372 | DL155: -0.09854066372 | DM155: -0.09854066372 | DN155: -0.09854066372 | GZ155: -7.5 | HA155: -0.8685786232 | HB155: -0.6884942142 | HC155: -0.4617421405 | HD155: -0.2327504751 | HL155: -7.5 | HM155: -0.9781345251
L156: -7.599999905 | M156: -0.09867559373 | N156: 0 | O156: 0.5526862144 | P156: 0.8273661733 | Q156: 0.9427722096 | R156: 0.9696577787 | S156: 0.9758760333 | T156: 0.9776970744 | U156: 0.9763211608 | V156: 0.9737404585 | W156: 0.9721471071 | DF156: -7.599999905 | DG156: -1.84673202 | DH156: -1.771438837 | DI156: -1.674064279 | DJ156: -1.528405309 | DK156: -0.09867560863 | DL156: -0.09867560863 | DM156: -0.09867560863 | DN156: -0.09867560863 | GZ156: -7.550000191 | HA156: -0.8683882262 | HB156: -0.688035417 | HC156: -0.4613641103 | HD156: -0.2325483336 | HL156: -7.650000095 | HM156: -1.0000005
L157: -7.650000095 | M157: -0.09881046414 | N157: 0 | O157: 0.5517622828 | P157: 0.8271151781 | Q157: 0.9425559044 | R157: 0.9696107507 | S157: 0.9761682749 | T157: 0.9780288339 | U157: 0.9765328169 | V157: 0.9737753868 | W157: 0.9720684886 | DF157: -7.650000095 | DG157: -1.84652698 | DH157: -1.77103591 | DI157: -1.6735605 | DJ157: -1.528073311 | DK157: -0.09881043434 | DL157: -0.09881043434 | DM157: -0.09881043434 | DN157: -0.09881043434 | GZ157: -7.599999905 | HA157: -0.8681979399 | HB157: -0.6875773474 | HC157: -0.4609855495 | HD157: -0.2323455485 | HL157: -7.699999809 | HM157: -1.0000005
L158: -7.699999809 | M158: -0.098945342 | N158: 0 | O158: 0.5507588387 | P158: 0.8267413378 | Q158: 0.9422106743 | R158: 0.9694807529 | S158: 0.976418972 | T158: 0.9783294201 | U158: 0.9767045975 | V158: 0.9737557173 | W158: 0.9719271064 | DF158: -7.699999809 | DG158: -1.846316457 | DH158: -1.770613074 | DI158: -1.673004508 | DJ158: -1.527620077 | DK158: -0.09894537926 | DL158: -0.09894537926 | DM158: -0.09894537926 | DN158: -0.09894537926 | GZ158: -7.650000095 | HA158: -0.8679520133 | HB158: -0.6870943745 | HC158: -0.460597047 | HD158: -0.2321401883 | HL158: -7.75 | HM158: -1.0000005
L159: -7.75 | M159: -0.09906310588 | N159: 0 | O159: 0.5497553349 | P159: 0.8263674974 | Q159: 0.9418653846 | R159: 0.9693507552 | S159: 0.9766696095 | T159: 0.9786300063 | U159: 0.9768763185 | V159: 0.9737359881 | W159: 0.9717856646 | DF159: -7.75 | DG159: -1.846105099 | DH159: -1.770189524 | DI159: -1.672450185 | DJ159: -1.527169704 | DK159: -0.09906315804 | DL159: -0.09906315804 | DM159: -0.09906315804 | DN159: -0.09906315804 | GZ159: -7.699999809 | HA159: -0.8676099695 | HB159: -0.6865684262 | HC159: -0.4601917052 | HD159: -0.2319307134 | HL159: -7.800000191 | HM159: -1.0000005
L160: -7.800000191 | M160: -0.09917403758 | N160: 0 | O160: 0.5487518907 | P160: 0.8259936571 | Q160: 0.9415201545 | R160: 0.9692207575 | S160: 0.9769202471 | T160: 0.9789306521 | U160: 0.977048099 | V160: 0.9737163186 | W160: 0.9716442823 | DF160: -7.800000191 | DG160: -1.845892549 | DH160: -1.769765377 | DI160: -1.671897531 | DJ160: -1.526722074 | DK160: -0.09917402267 | DL160: -0.09917402267 | DM160: -0.09917402267 | DN160: -0.09917402267 | GZ160: -7.75 | HA160: -0.8672686451 | HB160: -0.6860429736 | HC160: -0.4597856884 | HD160: -0.2317205528 | HL160: -7.849999905 | HM160: -1.0000005
L161: -7.849999905 | M161: -0.09928496182 | N161: 0 | O161: 0.5477484465 | P161: 0.8256197572 | Q161: 0.9411749244 | R161: 0.9690907598 | S161: 0.9771709442 | T161: 0.9792312384 | U161: 0.9772198796 | V161: 0.9736965895 | W161: 0.9715029001 | DF161: -7.849999905 | DG161: -1.845679164 | DH161: -1.769340396 | DI161: -1.671346664 | DJ161: -1.526277184 | DK161: -0.09928500652 | DL161: -0.09928500652 | DM161: -0.09928500652 | DN161: -0.09928500652 | GZ161: -7.800000191 | HA161: -0.8669279516 | HB161: -0.6855180337 | HC161: -0.4593789688 | HD161: -0.2315096325 | HL161: -7.900000095 | HM161: -1.0000005
L162: -7.900000095 | M162: -0.09939491004 | N162: 0 | O162: 0.5467450023 | P162: 0.8252459168 | Q162: 0.9408296347 | R162: 0.9689607024 | S162: 0.9774215817 | T162: 0.9795318246 | U162: 0.9773916602 | V162: 0.9736769199 | W162: 0.9713614583 | DF162: -7.900000095 | DG162: -1.845464706 | DH162: -1.7689147 | DI162: -1.670797348 | DJ162: -1.525835037 | DK162: -0.09939491749 | DL162: -0.09939491749 | DM162: -0.09939491749 | DN162: -0.09939491749 | GZ162: -7.849999905 | HA162: -0.8665879001 | HB162: -0.6849937384 | HC162: -0.4589716163 | HD162: -0.2312979734 | HL162: -7.949999809 | HM162: -1.0000005
L163: -7.949999809 | M163: -0.09948194772 | N163: 0 | O163: 0.5457348228 | P163: 0.8248613477 | Q163: 0.9404738545 | R163: 0.968824029 | S163: 0.9776685238 | T163: 0.9798295498 | U163: 0.9775599241 | V163: 0.9736527205 | W163: 0.9712150693 | DF163: -7.949999809 | DG163: -1.845248818 | DH163: -1.768486738 | DI163: -1.670245171 | DJ163: -1.525385022 | DK163: -0.09948194027 | DL163: -0.09948194027 | DM163: -0.09948194027 | DN163: -0.09948194027 | GZ163: -7.900000095 | HA163: -0.8662483024 | HB163: -0.6844699729 | HC163: -0.458563519 | HD163: -0.2310856076 | HL163: -8 | HM163: -1.0000005
L164: -8 | M164: -0.09956897795 | N164: 0 | O164: 0.5446036458 | P164: 0.8242831826 | Q164: 0.9399278164 | R164: 0.9685667753 | S164: 0.9778491855 | T164: 0.9800751805 | U164: 0.9776656628 | V164: 0.9735476375 | W164: 0.9709777832 | DF164: -8 | DG164: -1.845024467 | DH164: -1.768027306 | DI164: -1.66961205 | DJ164: -1.524749875 | DK164: -0.09956896305 | DL164: -0.09956896305 | DM164: -0.09956896305 | DN164: -0.09956896305 | GZ164: -7.949999809 | HA164: -0.8659011339 | HB164: -0.6839429992 | HC164: -0.458153304 | HD164: -0.2308721653 | HL164: -8.050000191 | HM164: -1.0000005
L165: -8.050000191 | M165: -0.09965600818 | N165: 0 | O165: 0.5434724689 | P165: 0.8237050176 | Q165: 0.9393817186 | R165: 0.9683095813 | S165: 0.9780298471 | T165: 0.9803208113 | U165: 0.9777714014 | V165: 0.9734425545 | W165: 0.9707405567 | DF165: -8.050000191 | DG165: -1.844799042 | DH165: -1.7675668 | DI165: -1.668980241 | DJ165: -1.524118662 | DK165: -0.09965598583 | DL165: -0.09965598583 | DM165: -0.09965598583 | DN165: -0.09965598583 | GZ165: -8 | HA165: -0.8654052849 | HB165: -0.6833495191 | HC165: -0.4577168153 | HD165: -0.2306521605 | HL165: -8.100000381 | HM165: -1.0000005
L166: -8.100000381 | M166: -0.09973428398 | N166: 0 | O166: 0.5423412919 | P166: 0.8231268525 | Q166: 0.9388356805 | R166: 0.9680523276 | S166: 0.9782105088 | T166: 0.980566442 | U166: 0.97787714 | V166: 0.9733375311 | W166: 0.9705032706 | DF166: -8.100000381 | DG166: -1.844572306 | DH166: -1.767105222 | DI166: -1.668349862 | DJ166: -1.523491383 | DK166: -0.09973430634 | DL166: -0.09973430634 | DM166: -0.09973430634 | DN166: -0.09973430634 | GZ166: -8.050000191 | HA166: -0.8649101333 | HB166: -0.6827562538 | HC166: -0.4572794376 | HD166: -0.2304313216 | HL166: -8.149999619 | HM166: -1.0000005
L167: -8.149999619 | M167: -0.09979747981 | N167: 0 | O167: 0.541210115 | P167: 0.8225487471 | Q167: 0.9382896423 | R167: 0.9677951336 | S167: 0.9783911109 | T167: 0.9808120728 | U167: 0.9779828787 | V167: 0.9732324481 | W167: 0.9702660441 | DF167: -8.149999619 | DG167: -1.844344378 | DH167: -1.76664269 | DI167: -1.667720914 | DJ167: -1.522867918 | DK167: -0.09979748726 | DL167: -0.09979748726 | DM167: -0.09979748726 | DN167: -0.09979748726 | GZ167: -8.100000381 | HA167: -0.8644160884 | HB167: -0.6821635012 | HC167: -0.4568411709 | HD167: -0.2302096177 | HL167: -8.199999809 | HM167: -1.0000005
L168: -8.199999809 | M168: -0.09986067563 | N168: 0 | O168: 0.5400788784 | P168: 0.821970582 | Q168: 0.9377436042 | R168: 0.9675378799 | S168: 0.9785717726 | T168: 0.9810577035 | U168: 0.9780886173 | V168: 0.9731273651 | W168: 0.9700288177 | DF168: -8.199999809 | DG168: -1.844115376 | DH168: -1.766178966 | DI168: -1.667093396 | DJ168: -1.522248268 | DK168: -0.09986066818 | DL168: -0.09986066818 | DM168: -0.09986066818 | DN168: -0.09986066818 | GZ168: -8.149999619 | HA168: -0.8639229954 | HB168: -0.6815711295 | HC168: -0.4564019687 | HD168: -0.2299870488 | HL168: -8.25 | HM168: -1.0000005
L169: -8.25 | M169: -0.09992387146 | N169: 0 | O169: 0.5389477015 | P169: 0.8213924766 | Q169: 0.937197566 | R169: 0.9672806859 | S169: 0.9787523746 | T169: 0.9813033342 | U169: 0.978194356 | V169: 0.9730222821 | W169: 0.9697915316 | DF169: -8.25 | DG169: -1.843884945 | DH169: -1.765714288 | DI169: -1.66646719 | DJ169: -1.521632433 | DK169: -0.09992384911 | DL169: -0.09992384911 | DM169: -0.09992384911 | DN169: -0.09992384911 | GZ169: -8.199999809 | HA169: -0.8634307326 | HB169: -0.6809789555 | HC169: -0.4559618775 | HD169: -0.2297636148 | HL169: -8.300000191 | HM169: -1.0000005
L170: -8.300000191 | M170: -0.0999705568 | N170: 0 | O170: 0.5377210975 | P170: 0.8206565976 | Q170: 0.9365060329 | R170: 0.9669327736 | S170: 0.9788783789 | T170: 0.9815043211 | U170: 0.9782493114 | V170: 0.9728551507 | W170: 0.9694863558 | DF170: -8.300000191 | DG170: -1.843647003 | DH170: -1.765223384 | DI170: -1.66577661 | DJ170: -1.520871639 | DK170: -0.09997057915 | DL170: -0.09997057915 | DM170: -0.09997057915 | DN170: -0.09997057915 | GZ170: -8.25 | HA170: -0.8629392556 | HB170: -0.6803871453 | HC170: -0.4555208321 | HD170: -0.2295393469 | HL170: -8.350000381 | HM170: -1.0000005
L171: -8.350000381 | M171: -0.1000099704 | N171: 0 | O171: 0.53646034 | P171: 0.8198643923 | Q171: 0.9357625246 | R171: 0.9665525556 | S171: 0.9789848328 | T171: 0.9816893339 | U171: 0.9782860279 | V171: 0.9726657867 | W171: 0.9691568017 | DF171: -8.350000381 | DG171: -1.843405485 | DH171: -1.76472199 | DI171: -1.6650635 | DJ171: -1.520062447 | DK171: -0.1000099182 | DL171: -0.1000099182 | DM171: -0.1000099182 | DN171: -0.1000099182 | GZ171: -8.300000191 | HA171: -0.8623289382 | HB171: -0.6797423058 | HC171: -0.4550580091 | HD171: -0.2293091068 | HL171: -8.399999619 | HM171: -1.0000005
L172: -8.399999619 | M172: -0.1000493765 | N172: 0 | O172: 0.5351996422 | P172: 0.8190721869 | Q172: 0.9350190163 | R172: 0.9661723375 | S172: 0.9790912867 | T172: 0.9818743467 | U172: 0.978322804 | V172: 0.9724764824 | W172: 0.9688273072 | DF172: -8.399999619 | DG172: -1.843162417 | DH172: -1.764219284 | DI172: -1.664351344 | DJ172: -1.519197702 | DK172: -0.1000493765 | DL172: -0.1000493765 | DM172: -0.1000493765 | DN172: -0.1000493765 | GZ172: -8.350000381 | HA172: -0.8616769597 | HB172: -0.6790784835 | HC172: -0.4545866222 | HD172: -0.2290760921 | HL172: -8.449999809 | HM172: -1.0000005
L173: -8.449999809 | M173: -0.1000882983 | N173: 0 | O173: 0.5339388847 | P173: 0.8182799816 | Q173: 0.9342755079 | R173: 0.9657921195 | S173: 0.9791978002 | T173: 0.9820594192 | U173: 0.97835958 | V173: 0.972287178 | W173: 0.9684978127 | DF173: -8.449999809 | DG173: -1.842917919 | DH173: -1.76371491 | DI173: -1.663640261 | DJ173: -1.51833415 | DK173: -0.1000882387 | DL173: -0.1000882387 | DM173: -0.1000882387 | DN173: -0.1000882387 | GZ173: -8.399999619 | HA173: -0.8610120866 | HB173: -0.6784145782 | HC173: -0.4541140251 | HD173: -0.2288420541 | HL173: -8.5 | HM173: -1.0000005
L174: -8.5 | M174: -0.1001039743 | N174: 0 | O174: 0.5326781869 | P174: 0.8174877763 | Q174: 0.9335319996 | R174: 0.9654118419 | S174: 0.9793042541 | T174: 0.982244432 | U174: 0.9783963561 | V174: 0.9720978737 | W174: 0.9681683183 | DF174: -8.5 | DG174: -1.84267211 | DH174: -1.763209224 | DI174: -1.662930131 | DJ174: -1.517476559 | DK174: -0.1001039743 | DL174: -0.1001039743 | DM174: -0.1001039743 | DN174: -0.1001039743 | GZ174: -8.449999809 | HA174: -0.8603475899 | HB174: -0.6777508878 | HC174: -0.4536403062 | HD174: -0.2286070446 | HL174: -8.550000191 | HM174: -1.0000005
L175: -8.550000191 | M175: -0.1001196504 | N175: 0 | O175: 0.5314174294 | P175: 0.8166956306 | Q175: 0.9327885509 | R175: 0.9650316238 | S175: 0.979410708 | T175: 0.9824295044 | U175: 0.9784331322 | V175: 0.9719085693 | W175: 0.9678387642 | DF175: -8.550000191 | DG175: -1.84242475 | DH175: -1.762701988 | DI175: -1.662220955 | DJ175: -1.516625285 | DK175: -0.10011971 | DL175: -0.10011971 | DM175: -0.10011971 | DN175: -0.10011971 | GZ175: -8.5 | HA175: -0.8596842443 | HB175: -0.6770873464 | HC175: -0.4531653354 | HD175: -0.2283710229 | HL175: -8.600000381 | HM175: -1.0000005
L176: -8.600000381 | M176: -0.1001353264 | N176: 0 | O176: 0.5301014185 | P176: 0.8158091903 | Q176: 0.9319632649 | R176: 0.9646013975 | S176: 0.9794842005 | T176: 0.9825866818 | U176: 0.9784396291 | V176: 0.9716842771 | W176: 0.9674719572 | DF176: -8.600000381 | DG176: -1.842171907 | DH176: -1.762178183 | DI176: -1.661474109 | DJ176: -1.515686631 | DK176: -0.1001353264 | DL176: -0.1001353264 | DM176: -0.1001353264 | DN176: -0.1001353264 | GZ176: -8.550000191 | HA176: -0.8590223818 | HB176: -0.6764237219 | HC176: -0.4526893034 | HD176: -0.2281339777 | HL176: -8.649999619 | HM176: -1.0000005
L177: -8.649999619 | M177: -0.1001427919 | N177: 0 | O177: 0.5287094116 | P177: 0.8147931695 | Q177: 0.9310256839 | R177: 0.9641023874 | S177: 0.9795123339 | T177: 0.9827055335 | U177: 0.9784044623 | V177: 0.9714118242 | W177: 0.967053771 | DF177: -8.649999619 | DG177: -1.841911912 | DH177: -1.761631489 | DI177: -1.660674691 | DJ177: -1.514626503 | DK177: -0.1001428366 | DL177: -0.1001428366 | DM177: -0.1001428366 | DN177: -0.1001428366 | GZ177: -8.600000381 | HA177: -0.8582895272 | HB177: -0.675728895 | HC177: -0.4521994713 | HD177: -0.2278926694 | HL177: -8.699999809 | HM177: -1.0000005
L178: -8.699999809 | M178: -0.1001347899 | N178: 0 | O178: 0.5273174047 | P178: 0.8137771487 | Q178: 0.9300880432 | R178: 0.9636033773 | S178: 0.9795404673 | T178: 0.9828243852 | U178: 0.9783692956 | V178: 0.971139431 | W178: 0.9666355848 | DF178: -8.699999809 | DG178: -1.841650128 | DH178: -1.761082888 | DI178: -1.659872413 | DJ178: -1.513573766 | DK178: -0.1001347303 | DL178: -0.1001347303 | DM178: -0.1001347303 | DN178: -0.1001347303 | GZ178: -8.649999619 | HA178: -0.8574589505 | HB178: -0.6749907119 | HC178: -0.4516910404 | HD178: -0.2276458641 | HL178: -8.75 | HM178: -1.0000005
L179: -8.75 | M179: -0.1001267955 | N179: 0 | O179: 0.5259253383 | P179: 0.8127611279 | Q179: 0.9291504622 | R179: 0.9631043077 | S179: 0.9795686007 | T179: 0.9829432368 | U179: 0.9783341289 | V179: 0.9708670378 | W179: 0.9662173986 | DF179: -8.75 | DG179: -1.841386795 | DH179: -1.760532379 | DI179: -1.659053206 | DJ179: -1.512528539 | DK179: -0.1001267433 | DL179: -0.1001267433 | DM179: -0.1001267433 | DN179: -0.1001267433 | GZ179: -8.699999809 | HA179: -0.8566299899 | HB179: -0.6742522969 | HC179: -0.4511812132 | HD179: -0.2273978349 | HL179: -8.800000191 | HM179: -1.0000005
L180: -8.800000191 | M180: -0.1001187935 | N180: 0 | O180: 0.5245333314 | P180: 0.8117451072 | Q180: 0.9282128215 | R180: 0.9626052976 | S180: 0.979596734 | T180: 0.9830620885 | U180: 0.9782990217 | V180: 0.9705946445 | W180: 0.9657992125 | DF180: -8.800000191 | DG180: -1.841121674 | DH180: -1.75997901 | DI180: -1.658234596 | DJ180: -1.511490703 | DK180: -0.1001187563 | DL180: -0.1001187563 | DM180: -0.1001187563 | DN180: -0.1001187563 | GZ180: -8.75 | HA180: -0.8558028223 | HB180: -0.6735136842 | HC180: -0.4506698361 | HD180: -0.227148666 | HL180: -8.850000381 | HM180: -1.0000005
L181: -8.850000381 | M181: -0.1000948846 | N181: 0 | O181: 0.5231412649 | P181: 0.810729146 | Q181: 0.9272752404 | R181: 0.9621062875 | S181: 0.9796248674 | T181: 0.9831809402 | U181: 0.978263855 | V181: 0.9703221917 | W181: 0.9653810263 | DF181: -8.850000381 | DG181: -1.840854883 | DH181: -1.759399414 | DI181: -1.657416463 | DJ181: -1.510460019 | DK181: -0.1000949144 | DL181: -0.1000949144 | DM181: -0.1000949144 | DN181: -0.1000949144 | GZ181: -8.800000191 | HA181: -0.8549772595 | HB181: -0.6727747564 | HC181: -0.4501570814 | HD181: -0.2268983153 | HL181: -8.899999619 | HM181: -1.0000005
L182: -8.899999619 | M182: -0.1000632569 | N182: 0 | O182: 0.5217352509 | P182: 0.8096885681 | Q182: 0.9263175726 | R182: 0.9615952373 | S182: 0.9796442986 | T182: 0.983292222 | U182: 0.9782208204 | V182: 0.9700411558 | W182: 0.9649538398 | DF182: -8.899999619 | DG182: -1.840585113 | DH182: -1.758813977 | DI182: -1.656588674 | DJ182: -1.509412766 | DK182: -0.1000632048 | DL182: -0.1000632048 | DM182: -0.1000632048 | DN182: -0.1000632048 | GZ182: -8.850000381 | HA182: -0.8541533682 | HB182: -0.672035548 | HC182: -0.4496427581 | HD182: -0.2266467828 | HL182: -8.949999809 | HM182: -1.0000005
L183: -8.949999809 | M183: -0.1000316292 | N183: 0 | O183: 0.5202100873 | P183: 0.8084389567 | Q183: 0.9251891971 | R183: 0.9609816074 | S183: 0.9795899391 | T183: 0.9833392501 | U183: 0.9781107903 | V183: 0.9696867466 | W183: 0.9644505978 | DF183: -8.949999809 | DG183: -1.840304136 | DH183: -1.758190751 | DI183: -1.655673623 | DJ183: -1.508171082 | DK183: -0.1000316143 | DL183: -0.1000316143 | DM183: -0.1000316143 | DN183: -0.1000316143 | GZ183: -8.899999619 | HA183: -0.8533125865 | HB183: -0.6712879065 | HC183: -0.4491237479 | HD183: -0.2263931824 | HL183: -9 | HM183: -1.0000005
L184: -9 | M184: -0.1000000015 | N184: 0 | O184: 0.518684864 | P184: 0.8071893454 | Q184: 0.9240607619 | R184: 0.9603680372 | S184: 0.9795356393 | T184: 0.9833862782 | U184: 0.9780007601 | V184: 0.969332397 | W184: 0.9639472961 | DF184: -9 | DG184: -1.840021133 | DH184: -1.75756526 | DI184: -1.654758453 | DJ184: -1.506937623 | DK184: -0.1000000238 | DL184: -0.1000000238 | DM184: -0.1000000238 | DN184: -0.1000000238 | GZ184: -8.949999809 | HA184: -0.8523151109 | HB184: -0.670471361 | HC184: -0.4485749685 | HD184: -0.2261306769 | HL184: -9.050000191 | HM184: -1.0000005
L185: -9.050000191 | M185: -0.09994427115 | N185: 0 | O185: 0.5171597004 | P185: 0.8059397936 | Q185: 0.9229323864 | R185: 0.9597544074 | S185: 0.9794812799 | T185: 0.9834333062 | U185: 0.9778907299 | V185: 0.9689779878 | W185: 0.9634439945 | DF185: -9.050000191 | DG185: -1.839705706 | DH185: -1.756937623 | DI185: -1.653842926 | DJ185: -1.505712628 | DK185: -0.09994423389 | DL185: -0.09994423389 | DM185: -0.09994423389 | DN185: -0.09994423389 | GZ185: -9 | HA185: -0.8513197493 | HB185: -0.669654005 | HC185: -0.4480176438 | HD185: -0.2258668313 | HL185: -9.100000381 | HM185: -1.0000005
L186: -9.100000381 | M186: -0.09988854825 | N186: 0 | O186: 0.5156344771 | P186: 0.8046901822 | Q186: 0.9218040109 | R186: 0.9591408372 | S186: 0.9794269204 | T186: 0.9834803939 | U186: 0.9777806997 | V186: 0.9686235785 | W186: 0.9629406929 | DF186: -9.100000381 | DG186: -1.839385986 | DH186: -1.756307721 | DI186: -1.65292716 | DJ186: -1.50449574 | DK186: -0.09988856316 | DL186: -0.09988856316 | DM186: -0.09988856316 | DN186: -0.09988856316 | GZ186: -9.050000191 | HA186: -0.850326369 | HB186: -0.6688361533 | HC186: -0.4474462211 | HD186: -0.2256016244 | HL186: -9.149999619 | HM186: -1.0000005
L187: -9.149999619 | M187: -0.09983281791 | N187: 0 | O187: 0.5141093731 | P187: 0.8034406304 | Q187: 0.9206756949 | R187: 0.958527267 | S187: 0.9793726206 | T187: 0.983527422 | U187: 0.9776706696 | V187: 0.9682692289 | W187: 0.9624373913 | DF187: -9.149999619 | DG187: -1.839064121 | DH187: -1.755675673 | DI187: -1.652011275 | DJ187: -1.503286958 | DK187: -0.09983277321 | DL187: -0.09983277321 | DM187: -0.09983277321 | DN187: -0.09983277321 | GZ187: -9.100000381 | HA187: -0.8493348039 | HB187: -0.6680173421 | HC187: -0.4468732485 | HD187: -0.2253350563 | HL187: -9.199999809 | HM187: -1.0000005
L188: -9.199999809 | M188: -0.09975904226 | N188: 0 | O188: 0.5125841498 | P188: 0.8021910787 | Q188: 0.9195473194 | R188: 0.9579136372 | S188: 0.9793182611 | T188: 0.98357445 | U188: 0.977560699 | V188: 0.9679148197 | W188: 0.9619341493 | DF188: -9.199999809 | DG188: -1.83874023 | DH188: -1.755041242 | DI188: -1.651095033 | DJ188: -1.502086282 | DK188: -0.09975898266 | DL188: -0.09975898266 | DM188: -0.09975898266 | DN188: -0.09975898266 | GZ188: -9.149999619 | HA188: -0.8483452199 | HB188: -0.6671981012 | HC188: -0.4462987306 | HD188: -0.225067117 | HL188: -9.25 | HM188: -1.0000005
L189: -9.25 | M189: -0.09967873991 | N189: 0 | O189: 0.5109524727 | P189: 0.8007493615 | Q189: 0.9182709455 | R189: 0.957212925 | S189: 0.9791955352 | T189: 0.9835603833 | U189: 0.9773892164 | V189: 0.9674965739 | W189: 0.9613664746 | DF189: -9.25 | DG189: -1.83840394 | DH189: -1.754370689 | DI189: -1.650098205 | DJ189: -1.500711203 | DK189: -0.09967875481 | DL189: -0.09967875481 | DM189: -0.09967875481 | DN189: -0.09967875481 | GZ189: -9.199999809 | HA189: -0.8473576837 | HB189: -0.6663779178 | HC189: -0.445722579 | HD189: -0.2247977843 | HL189: -9.300000191 | HM189: -1.0000005
L190: -9.300000191 | M190: -0.09959843755 | N190: 0 | O190: 0.5092923641 | P190: 0.799256444 | Q190: 0.916955173 | R190: 0.9564889669 | S190: 0.9790545106 | T190: 0.983529985 | U190: 0.9772014022 | V190: 0.9670613408 | W190: 0.9607816935 | DF190: -9.300000191 | DG190: -1.838062525 | DH190: -1.753688216 | DI190: -1.649078727 | DJ190: -1.499243379 | DK190: -0.09959840775 | DL190: -0.09959840775 | DM190: -0.09959840775 | DN190: -0.09959840775 | GZ190: -9.25 | HA190: -0.8462280857 | HB190: -0.665494568 | HC190: -0.4451178219 | HD190: -0.2245195997 | HL190: -9.350000381 | HM190: -1.0000005
L191: -9.350000381 | M191: -0.09950662404 | N191: 0 | O191: 0.5076322556 | P191: 0.7977634668 | Q191: 0.9156393409 | R191: 0.9557650089 | S191: 0.9789135456 | T191: 0.9834995866 | U191: 0.977013588 | V191: 0.9666261077 | W191: 0.9601969123 | DF191: -9.350000381 | DG191: -1.837718725 | DH191: -1.753002882 | DI191: -1.648058057 | DJ191: -1.497732043 | DK191: -0.09950661659 | DL191: -0.09950661659 | DM191: -0.09950661659 | DN191: -0.09950661659 | GZ191: -9.300000191 | HA191: -0.8450621615 | HB191: -0.6645934758 | HC191: -0.4445039283 | HD191: -0.2242378797 | HL191: -9.399999619 | HM191: -1.0000005
L192: -9.399999619 | M192: -0.09940180182 | N192: 0 | O192: 0.5059722066 | P192: 0.7962705493 | Q192: 0.9143235683 | R192: 0.9550410509 | S192: 0.9787725806 | T192: 0.9834692478 | U192: 0.9768257737 | V192: 0.9661908746 | W192: 0.9596120715 | DF192: -9.399999619 | DG192: -1.837372541 | DH192: -1.752314568 | DI192: -1.647036195 | DJ192: -1.496231318 | DK192: -0.09940183163 | DL192: -0.09940183163 | DM192: -0.09940183163 | DN192: -0.09940183163 | GZ192: -9.350000381 | HA192: -0.8438983514 | HB192: -0.6636912262 | HC192: -0.4438881265 | HD192: -0.223954588 | HL192: -9.449999809 | HM192: -1.0000005
L193: -9.449999809 | M193: -0.09929697961 | N193: 0 | O193: 0.504312098 | P193: 0.7947776318 | Q193: 0.9130077958 | R193: 0.9543171525 | S193: 0.978631556 | T193: 0.9834388494 | U193: 0.9766379595 | V193: 0.9657556415 | W193: 0.9590272903 | DF193: -9.449999809 | DG193: -1.837023973 | DH193: -1.751623154 | DI193: -1.646013141 | DJ193: -1.494740963 | DK193: -0.09929692745 | DL193: -0.09929692745 | DM193: -0.09929692745 | DN193: -0.09929692745 | GZ193: -9.399999619 | HA193: -0.8427367771 | HB193: -0.6627876534 | HC193: -0.4432703325 | HD193: -0.2236696926 | HL193: -9.5 | HM193: -1.0000005
L194: -9.5 | M194: -0.09918715805 | N194: 0 | O194: 0.5026519895 | P194: 0.7932847142 | Q194: 0.9116920233 | R194: 0.9535931945 | S194: 0.978490591 | T194: 0.9834084511 | U194: 0.9764500856 | V194: 0.9653204083 | W194: 0.9584425092 | DF194: -9.5 | DG194: -1.836672902 | DH194: -1.750928879 | DI194: -1.644988894 | DJ194: -1.493260741 | DK194: -0.0991871357 | DL194: -0.0991871357 | DM194: -0.0991871357 | DN194: -0.0991871357 | GZ194: -9.449999809 | HA194: -0.841577339 | HB194: -0.6618555077 | HC194: -0.4426505652 | HD194: -0.2233831933 | HL194: -9.550000191 | HM194: -1.0000005
L195: -9.550000191 | M195: -0.09905786812 | N195: 0 | O195: 0.5009270906 | P195: 0.7916718721 | Q195: 0.9102889895 | R195: 0.9528189301 | S195: 0.9783065915 | T195: 0.9833387733 | U195: 0.9762240648 | V195: 0.9648474455 | W195: 0.9578207731 | DF195: -9.550000191 | DG195: -1.836312652 | DH195: -1.750209808 | DI195: -1.643913031 | DJ195: -1.491669893 | DK195: -0.09905791283 | DL195: -0.09905791283 | DM195: -0.09905791283 | DN195: -0.09905791283 | GZ195: -9.5 | HA195: -0.8404200039 | HB195: -0.6609175244 | HC195: -0.4420288058 | HD195: -0.2230950692 | HL195: -9.600000381 | HM195: -1.0000005
L196: -9.600000381 | M196: -0.0989285782 | N196: 0 | O196: 0.4991302788 | P196: 0.7899258137 | Q196: 0.9087890983 | R196: 0.9519888759 | S196: 0.978074789 | T196: 0.9832253456 | U196: 0.9759554863 | V196: 0.9643324614 | W196: 0.9571580291 | DF196: -9.600000381 | DG196: -1.83594203 | DH196: -1.749462962 | DI196: -1.642778993 | DJ196: -1.489955664 | DK196: -0.09892857075 | DL196: -0.09892857075 | DM196: -0.09892857075 | DN196: -0.09892857075 | GZ196: -9.550000191 | HA196: -0.839175694 | HB196: -0.6599387314 | HC196: -0.4413880054 | HD196: -0.2228004136 | HL196: -9.649999619 | HM196: -1.0000005
L197: -9.649999619 | M197: -0.09879928082 | N197: 0 | O197: 0.4973334968 | P197: 0.7881798148 | Q197: 0.9072892666 | R197: 0.951158762 | S197: 0.9778430462 | T197: 0.983111918 | U197: 0.9756869078 | V197: 0.9638175368 | W197: 0.956495285 | DF197: -9.649999619 | DG197: -1.835568547 | DH197: -1.74871242 | DI197: -1.64164257 | DJ197: -1.488252401 | DK197: -0.09879922867 | DL197: -0.09879922867 | DM197: -0.09879922867 | DN197: -0.09879922867 | GZ197: -9.600000381 | HA197: -0.8378345697 | HB197: -0.6589143824 | HC197: -0.4407258742 | HD197: -0.2224984988 | HL197: -9.699999809 | HM197: -1.0000005
L198: -9.699999809 | M198: -0.09864707291 | N198: 0 | O198: 0.4955366552 | P198: 0.7864337564 | Q198: 0.9057893753 | R198: 0.9503287077 | S198: 0.9776112437 | T198: 0.9829984903 | U198: 0.9754183292 | V198: 0.9633026123 | W198: 0.955832541 | DF198: -9.699999809 | DG198: -1.835192204 | DH198: -1.747957945 | DI198: -1.640503764 | DJ198: -1.486559987 | DK198: -0.09864711761 | DL198: -0.09864711761 | DM198: -0.09864711761 | DN198: -0.09864711761 | GZ198: -9.649999619 | HA198: -0.8364953712 | HB198: -0.6578888761 | HC198: -0.4400613275 | HD198: -0.2221948008 | HL198: -9.75 | HM198: -1.0000005
L199: -9.75 | M199: -0.09849337488 | N199: 0 | O199: 0.4937398434 | P199: 0.7846876979 | Q199: 0.904289484 | R199: 0.9494985938 | S199: 0.9773794413 | T199: 0.9828850627 | U199: 0.9751497507 | V199: 0.9627876878 | W199: 0.9551697969 | DF199: -9.75 | DG199: -1.834812999 | DH199: -1.747199655 | DI199: -1.639318466 | DJ199: -1.484878302 | DK199: -0.09849333763 | DL199: -0.09849333763 | DM199: -0.09849333763 | DN199: -0.09849333763 | GZ199: -9.699999809 | HA199: -0.8351586853 | HB199: -0.6568623444 | HC199: -0.4393943418 | HD199: -0.2218892143 | HL199: -9.800000191 | HM199: -1.0000005
L200: -9.800000191 | M200: -0.09833966941 | N200: 0 | O200: 0.4919430017 | P200: 0.782941699 | Q200: 0.9027896523 | R200: 0.9486685395 | S200: 0.9771476984 | T200: 0.9827716351 | U200: 0.9748811722 | V200: 0.9622727036 | W200: 0.9545070529 | DF200: -9.800000191 | DG200: -1.834430933 | DH200: -1.74643755 | DI200: -1.638097167 | DJ200: -1.483207226 | DK200: -0.09833967686 | DL200: -0.09833967686 | DM200: -0.09833967686 | DN200: -0.09833967686 | GZ200: -9.75 | HA200: -0.8338243015 | HB200: -0.6558346555 | HC200: -0.438724894 | HD200: -0.2215817915 | HL200: -9.850000381 | HM200: -1.0000005
L201: -9.850000381 | M201: -0.09816955775 | N201: 0 | O201: 0.490124315 | P201: 0.7811540961 | Q201: 0.9012612104 | R201: 0.9478223324 | S201: 0.9769009352 | T201: 0.9826442599 | U201: 0.9745993614 | V201: 0.9617453814 | W201: 0.9538326263 | DF201: -9.850000381 | DG201: -1.834043264 | DH201: -1.745663643 | DI201: -1.636856198 | DJ201: -1.481505036 | DK201: -0.0981695652 | DL201: -0.0981695652 | DM201: -0.0981695652 | DN201: -0.0981695652 | GZ201: -9.800000191 | HA201: -0.8324920982 | HB201: -0.6548058092 | HC201: -0.4380530539 | HD201: -0.2212724381 | HL201: -9.899999619 | HM201: -1.0000005
... 144 more rows

Sheet planks
T1: x | U1: -x | V1: y | W1: z | AN1: x | AO1: "-x" | AP1: y | AQ1: z
T2: 1 | X2: 2 | AB2: 3 | AF2: 4 | AJ2: 5 | AN2: 6 | AR2: 7 | AV2: 8 | AZ2: 9 | BD2: 10 | BH2: 11 | BL2: 12 | BP2: 13 | BT2: 14 | BX2: 15 | CB2: 16 | CF2: 17 | CJ2: 18 | CN2: 19 | CR2: 20 | CV2: 21 | CZ2: 22 | DD2: 23 | DH2: 24 | DL2: 25 | DP2: 26 | DT2: 27 | DX2: 28 | EB2: 29 | EF2: 30 | EJ2: 31 | EN2: 32 | ER2: 33 | EV2: 34 | EZ2: 35 | FD2: 36 | FH2: 37 | FL2: 38 | FP2: 39 | FT2: 40 | FX2: 41 | GB2: 42 | GF2: 43 | GJ2: 44 | GN2: 45 | GR2: 46 | GV2: 47 | GZ2: 48 | HD2: 49 | HH2: 50
Q3: Back | R3: Heights | S3: Front | T3: 0 | U3: 0 | V3: 0.5350755453 | W3: 0 | X3: 0 | Y3: 0 | Z3: 0.5053638816 | AA3: 0 | AB3: 0 | AC3: 0 | AD3: 0.4776302278 | AE3: 0 | AF3: 0 | AG3: 0 | AH3: 0.4515023232 | AI3: 0 | AJ3: 0 | AK3: 0 | AL3: 0.4270302653 | AM3: 0 | AN3: 0 | AO3: 0 | AP3: 0.404245168 | AQ3: 0 | AR3: 0 | AS3: 0 | AT3: 0.3830856979 | AU3: 0 | AV3: 0 | AW3: 0 | AX3: 0.3634498119 | AY3: 0 | AZ3: 0 | BA3: 0 | BB3: 0.3451860845 | BC3: 0 | BD3: 0 | BE3: 0 | BF3: 0.3281207681 | BG3: 0 | BH3: 0 | BI3: 0 | BJ3: 0.312158823 | BK3: 0 | BL3: 0 | BM3: 0 | BN3: 0.3572120368 | BO3: 0 | BP3: 0 | BQ3: 0 | BR3: 0.3451860845 | BS3: 0 | BT3: 0 | BU3: 0 | BV3: 0.3336919248 | BW3: 0 | BX3: 0 | BY3: 0 | BZ3: 0.3226909935 | CA3: 0 | CB3: 0 | CC3: 0 | CD3: 0.312158823 | CE3: 0 | CF3: 0 | CG3: 0 | CH3: 0.3020477295 | CI3: 0 | HL3: Back of plan | HN3: Back x | HO3: Back -x | HP3: Back y | HQ3: Mid x | HR3: Mid -x | HS3: Mid y | HT3: Centre lines
D4: 17m (5)NSB | Q4: -1.5 | R4: 0 | T4: 0 | U4: 0 | V4: 1.886340261 | W4: -0.0009613037109 | X4: 0 | Y4: 0 | Z4: 1.811361551 | AA4: -0.004999995232 | AB4: 0 | AC4: 0 | AD4: 1.736397266 | AE4: -0.009793519974 | AF4: 0 | AG4: 0 | AH4: 1.661437273 | AI4: -0.01356232166 | AJ4: 0 | AK4: 0 | AL4: 1.586479902 | AM4: -0.01879036427 | AN4: 0 | AO4: 0 | AP4: 1.511524677 | AQ4: -0.02431344986 | AR4: 0 | AS4: 0 | AT4: 1.436570644 | AU4: -0.03018021584 | AV4: 0 | AW4: 0 | AX4: 1.361617208 | AY4: -0.03485000134 | AZ4: 0 | BA4: 0 | BB4: 1.286664724 | BC4: -0.04151070118 | BD4: 0 | BE4: 0 | BF4: 1.21171248 | BG4: -0.04869544506 | HL4: -17 | HM4: -0.7500690818 | HT4: 0 | HU4: 0
Q5: -16.5 | R5: 0 | S5: -1.5 | T5: 0.02318089455 | U5: -0.02318089455 | V5: 1.886340261 | W5: -0.05000000075 | X5: 0.02140405215 | Y5: -0.02140405215 | Z5: 1.811361551 | AA5: -0.05000000075 | AB5: 0.01909089647 | AC5: -0.01909089647 | AD5: 1.736397266 | AE5: -0.05000000075 | AF5: 0.01664229482 | AG5: -0.01664229482 | AH5: 1.661437273 | AI5: -0.05000000075 | AJ5: 0.01411250792 | AK5: -0.01411250792 | AL5: 1.586479902 | AM5: -0.05000000075 | AN5: 0.01152459625 | AO5: -0.01152459625 | AP5: 1.511524677 | AQ5: -0.05000000075 | AR5: 0.008898220956 | AS5: -0.008898220956 | AT5: 1.436570644 | AU5: -0.05000000075 | AV5: 0.006254477892 | AW5: -0.006254477892 | AX5: 1.361617208 | AY5: -0.05000000075 | AZ5: 0.003585116239 | BA5: -0.003585116239 | BB5: 1.286664724 | BC5: -0.05000000075 | BD5: 0.0009103164193 | BE5: -0.0009103164193 | BF5: 1.21171248 | BG5: -0.05000000075 | BH5: 0 | BI5: 0 | BJ5: 1.135800838 | BK5: -0.05656266212 | BL5: 0 | BM5: 0 | BN5: 1.060881615 | BO5: -0.06301259995 | BP5: 0 | BQ5: 0 | BR5: 0.9859647751 | BS5: -0.07253623009 | BT5: 0 | BU5: 0 | BV5: 0.9110532403 | BW5: -0.0834530592 | BX5: 0 | BY5: 0 | BZ5: 0.8361517191 | CA5: -0.09637904167 | HL5: -17 | HM5: 0.7500690818 | HN5: 0.7500690818 | HO5: -0.7500690818 | HP5: 1.887500167 | HQ5: 0.9723799825 | HR5: -0.9723799825 | HS5: 1.789766908 | HT5: 0 | HU5: 1.887500167
K6: 17m (5)NSB | Q6: -16.50374985 | R6: 0.01999999955 | S6: -0.759485364 | T6: 0.04664565995 | U6: -0.04664565995 | V6: 1.885177374 | W6: -0.1000000015 | X6: 0.04483944923 | Y6: -0.04483944923 | Z6: 1.810199499 | AA6: -0.1000000015 | AB6: 0.04222341627 | AC6: -0.04222341627 | AD6: 1.735245347 | AE6: -0.1000000015 | AF6: 0.03937798366 | AG6: -0.03937798366 | AH6: 1.660299301 | AI6: -0.1000000015 | AJ6: 0.03636785969 | AK6: -0.03636785969 | AL6: 1.585359812 | AM6: -0.1000000015 | AN6: 0.03322773054 | AO6: -0.03322773054 | AP6: 1.510425568 | AQ6: -0.1000000015 | AR6: 0.02998701669 | AS6: -0.02998701669 | AT6: 1.435495615 | AU6: -0.1000000015 | AV6: 0.0266786851 | AW6: -0.0266786851 | AX6: 1.360568643 | AY6: -0.1000000015 | AZ6: 0.02330280654 | BA6: -0.02330280654 | BB6: 1.28564465 | BC6: -0.1000000015 | BD6: 0.01989345811 | BE6: -0.01989345811 | BF6: 1.210722208 | BG6: -0.1000000015 | BH6: 0.01645997912 | BI6: -0.01645997912 | BJ6: 1.135800838 | BK6: -0.1000000015 | BL6: 0.01297932863 | BM6: -0.01297932863 | BN6: 1.060881615 | BO6: -0.1000000015 | BP6: 0.009449027479 | BQ6: -0.009449027479 | BR6: 0.9859647751 | BS6: -0.1000000015 | BT6: 0.005809774622 | BU6: -0.005809774622 | BV6: 0.9110532403 | BW6: -0.1000000015 | BX6: 0.001968113706 | BY6: -0.001968113706 | BZ6: 0.8361517191 | CA6: -0.1000000015 | CB6: 0 | CC6: 0 | CD6: 0.7605214119 | CE6: -0.1078861952 | CF6: 0 | CG6: 0 | CH6: 0.6856768727 | CI6: -0.1244672537 | CJ6: 0 | CK6: 0 | CL6: 0.6108433604 | CM6: -0.1429651976 | HN6: 0.7501870394 | HO6: -0.7501870394 | HP6: 1.862500429 | HQ6: 0.9724183679 | HR6: -0.9724183679 | HS6: 1.764766932 | HT6: 0.7500690818 | HU6: 1.887500167
Q7: -16.50749969 | R7: 0.03999999911 | S7: -0.6631579399 | T7: 0.06962478161 | U7: -0.06962478161 | V7: 1.884014368 | W7: -0.150000006 | X7: 0.06782179326 | Y7: -0.06782179326 | Z7: 1.809036732 | AA7: -0.150000006 | AB7: 0.06495049596 | AC7: -0.06495049596 | AD7: 1.734091878 | AE7: -0.150000006 | AF7: 0.06176083907 | AG7: -0.06176083907 | AH7: 1.65915978 | AI7: -0.150000006 | AJ7: 0.05832596123 | AK7: -0.05832596123 | AL7: 1.584238529 | AM7: -0.150000006 | AN7: 0.05469062179 | AO7: -0.05469062179 | AP7: 1.509326696 | AQ7: -0.150000006 | AR7: 0.05089324713 | AS7: -0.05089324713 | AT7: 1.43442297 | AU7: -0.150000006 | AV7: 0.04697745293 | AW7: -0.04697745293 | AX7: 1.359525204 | AY7: -0.150000006 | AZ7: 0.04295210168 | BA7: -0.04295210168 | BB7: 1.284633279 | BC7: -0.150000006 | BD7: 0.03879159316 | BE7: -0.03879159316 | BF7: 1.209749579 | BG7: -0.150000006 | BH7: 0.0346689038 | BI7: -0.0346689038 | BJ7: 1.134863138 | BK7: -0.150000006 | BL7: 0.03042673692 | BM7: -0.03042673692 | BN7: 1.059983253 | BO7: -0.150000006 | BP7: 0.02613676153 | BQ7: -0.02613676153 | BR7: 0.985106051 | BS7: -0.150000006 | BT7: 0.02175322175 | BU7: -0.02175322175 | BV7: 0.9102343321 | BW7: -0.150000006 | BX7: 0.01724617928 | BY7: -0.01724617928 | BZ7: 0.835369885 | CA7: -0.150000006 | CB7: 0.01248306036 | CC7: -0.01248306036 | CD7: 0.7605214119 | CE7: -0.150000006 | CF7: 0.007658055052 | CG7: -0.007658055052 | CH7: 0.6856768727 | CI7: -0.150000006 | CJ7: 0.002665612847 | CK7: -0.002665612847 | CL7: 0.6108433604 | CM7: -0.150000006 | CN7: 0 | CO7: 0 | CP7: 0.5354522467 | CQ7: -0.1639852524 | CR7: 0 | CS7: 0 | CT7: 0.4607061148 | CU7: -0.1823192835 | HN7: 0.7502307296 | HO7: -0.7502307296 | HP7: 1.837500572 | HQ7: 0.9724955559 | HR7: -0.9724955559 | HS7: 1.739585638 | HT7: -0.7500690818 | HU7: 1.887500167
K8: Planking arrangement | Q8: -16.51277161 | R8: 0.05999999866 | S8: -0.5951985121 | T8: 0.09253995121 | U8: -0.09253995121 | V8: 1.882859945 | W8: -0.200000003 | X8: 0.09069354832 | Y8: -0.09069354832 | Z8: 1.807883739 | AA8: -0.200000003 | AB8: 0.08751873672 | AC8: -0.08751873672 | AD8: 1.732951283 | AE8: -0.200000003 | AF8: 0.08393823355 | AG8: -0.08393823355 | AH8: 1.658036947 | AI8: -0.200000003 | AJ8: 0.08003475517 | AK8: -0.08003475517 | AL8: 1.583138585 | AM8: -0.200000003 | AN8: 0.07586238533 | AO8: -0.07586238533 | AP8: 1.508254766 | AQ8: -0.200000003 | AR8: 0.0714699775 | AS8: -0.0714699775 | AT8: 1.433383584 | AU8: -0.200000003 | AV8: 0.06691257656 | AW8: -0.06691257656 | AX8: 1.358522177 | AY8: -0.200000003 | AZ8: 0.06221036986 | BA8: -0.06221036986 | BB8: 1.28366971 | BC8: -0.200000003 | BD8: 0.05741711333 | BE8: -0.05741711333 | BF8: 1.208823085 | BG8: -0.200000003 | BH8: 0.0525556691 | BI8: -0.0525556691 | BJ8: 1.133980751 | BK8: -0.200000003 | BL8: 0.04763178527 | BM8: -0.04763178527 | BN8: 1.05914259 | BO8: -0.200000003 | BP8: 0.04265637696 | BQ8: -0.04265637696 | BR8: 0.9843078256 | BS8: -0.200000003 | BT8: 0.03759735823 | BU8: -0.03759735823 | BV8: 0.909478724 | BW8: -0.200000003 | BX8: 0.03248993307 | BY8: -0.03248993307 | BZ8: 0.8346528411 | CA8: -0.200000003 | CB8: 0.02721881494 | CC8: -0.02721881494 | CD8: 0.7598384023 | CE8: -0.200000003 | CF8: 0.0219119247 | CG8: -0.0219119247 | CH8: 0.6850265265 | CI8: -0.200000003 | CJ8: 0.01641961373 | CK8: -0.01641961373 | CL8: 0.6102280021 | CM8: -0.200000003 | CN8: 0.01062588301 | CO8: -0.01062588301 | CP8: 0.5354522467 | CQ8: -0.200000003 | CR8: 0.004462261219 | CS8: -0.004462261219 | CT8: 0.4607061148 | CU8: -0.200000003 | CV8: 0 | CW8: 0 | CX8: 0.3856549859 | CY8: -0.2111783028 | CZ8: 0 | DA8: 0 | DB8: 0.3110945821 | DC8: -0.2493544817 | HN8: 0.7501179576 | HO8: -0.7501179576 | HP8: 1.812500954 | HQ8: 0.9726080894 | HR8: -0.9726080894 | HS8: 1.7145859
Q9: -16.51831627 | R9: 0.07999999821 | S9: -0.5406797528 | T9: 0.1150135025 | U9: -0.1150135025 | V9: 1.881723046 | W9: -0.25 | X9: 0.1131562516 | Y9: -0.1131562516 | Z9: 1.806747556 | AA9: -0.25 | AB9: 0.1097253561 | AC9: -0.1097253561 | AD9: 1.731826544 | AE9: -0.25 | AF9: 0.1058056206 | AG9: -0.1058056206 | AH9: 1.656929135 | AI9: -0.25 | AJ9: 0.101488024 | AK9: -0.101488024 | AL9: 1.582053542 | AM9: -0.25 | AN9: 0.09683371335 | AO9: -0.09683371335 | AP9: 1.507198215 | AQ9: -0.25 | AR9: 0.09190137684 | AS9: -0.09190137684 | AT9: 1.43236053 | AU9: -0.25 | AV9: 0.08675674349 | AW9: -0.08675674349 | AX9: 1.35753727 | AY9: -0.25 | AZ9: 0.08143055439 | BA9: -0.08143055439 | BB9: 1.282726645 | BC9: -0.25 | BD9: 0.07595771551 | BE9: -0.07595771551 | BF9: 1.207940102 | BG9: -0.25 | BH9: 0.07037571818 | BI9: -0.07037571818 | BJ9: 1.133148074 | BK9: -0.25 | BL9: 0.06472701579 | BM9: -0.06472701579 | BN9: 1.058361173 | BO9: -0.25 | BP9: 0.05902943388 | BQ9: -0.05902943388 | BR9: 0.9835778475 | BS9: -0.25 | BT9: 0.05326364934 | BU9: -0.05326364934 | BV9: 0.9087998867 | BW9: -0.25 | BX9: 0.04752841592 | BY9: -0.04752841592 | BZ9: 0.8340194821 | CA9: -0.25 | CB9: 0.04177708551 | CC9: -0.04177708551 | CD9: 0.7592403889 | CE9: -0.25 | CF9: 0.03605755046 | CG9: -0.03605755046 | CH9: 0.6844589114 | CI9: -0.25 | CJ9: 0.03013001196 | CK9: -0.03013001196 | CL9: 0.6096936464 | CM9: -0.25 | CN9: 0.02378803119 | CO9: -0.02378803119 | CP9: 0.534963131 | CQ9: -0.25 | CR9: 0.01687993854 | CS9: -0.01687993854 | CT9: 0.4602822363 | CU9: -0.25 | CV9: 0.009414279833 | CW9: -0.009414279833 | CX9: 0.3856549859 | CY9: -0.25 | CZ9: 0.001311687753 | DA9: -0.001311687753 | DB9: 0.3110945821 | DC9: -0.25 | DD9: 0 | DE9: 0 | DF9: 0.2366374284 | DG9: -0.306885004 | HN9: 0.7498868704 | HO9: -0.7498868704 | HP9: 1.787501931 | HQ9: 0.9727663994 | HR9: -0.9727663994 | HS9: 1.688826442
Q10: -16.52375031 | R10: 0.1000000015 | S10: -0.4942216873 | T10: 0.137359485 | U10: -0.137359485 | V10: 1.880586147 | W10: -0.3000000119 | X10: 0.1354460567 | Y10: -0.1354460567 | Z10: 1.805612803 | AA10: -0.3000000119 | AB10: 0.1317134351 | AC10: -0.1317134351 | AD10: 1.730706215 | AE10: -0.3000000119 | AF10: 0.1274113804 | AG10: -0.1274113804 | AH10: 1.655829906 | AI10: -0.3000000119 | AJ10: 0.1226399764 | AK10: -0.1226399764 | AL10: 1.58098197 | AM10: -0.3000000119 | AN10: 0.117466934 | AO10: -0.117466934 | AP10: 1.506160617 | AQ10: -0.3000000119 | AR10: 0.1119620502 | AS10: -0.1119620502 | AT10: 1.431362987 | AU10: -0.3000000119 | AV10: 0.1062028334 | AW10: -0.1062028334 | AX10: 1.35658443 | AY10: -0.3000000119 | AZ10: 0.1002309844 | BA10: -0.1002309844 | BB10: 1.281822562 | BC10: -0.3000000119 | BD10: 0.0941150412 | BE10: -0.0941150412 | BF10: 1.207072377 | BG10: -0.3000000119 | BH10: 0.08789198846 | BI10: -0.08789198846 | BJ10: 1.132331014 | BK10: -0.3000000119 | BL10: 0.08159416169 | BM10: -0.08159416169 | BN10: 1.057595849 | BO10: -0.3000000119 | BP10: 0.07524528354 | BQ10: -0.07524528354 | BR10: 0.9828650951 | BS10: -0.3000000119 | BT10: 0.06883756816 | BU10: -0.06883756816 | BV10: 0.9081394076 | BW10: -0.3000000119 | BX10: 0.06253492832 | BY10: -0.06253492832 | BZ10: 0.8334047198 | CA10: -0.3000000119 | CB10: 0.0562983267 | CC10: -0.0562983267 | CD10: 0.7586645484 | CE10: -0.3000000119 | CF10: 0.05011361465 | CG10: -0.05011361465 | CH10: 0.6839200854 | CI10: -0.3000000119 | CJ10: 0.04369799793 | CK10: -0.04369799793 | CL10: 0.6091951728 | CM10: -0.3000000119 | CN10: 0.03679997101 | CO10: -0.03679997101 | CP10: 0.5345132947 | CQ10: -0.3000000119 | CR10: 0.02922447585 | CS10: -0.02922447585 | CT10: 0.4598972201 | CU10: -0.3000000119 | CV10: 0.02085112967 | CW10: -0.02085112967 | CX10: 0.3853665888 | CY10: -0.3000000119 | CZ10: 0.01147272717 | DA10: -0.01147272717 | DB10: 0.3109562695 | DC10: -0.3000000119 | DD10: 0.001424450078 | DE10: -0.001424450078 | DF10: 0.2366374284 | DG10: -0.3000000119 | HN10: 0.749676466 | HO10: -0.749676466 | HP10: 1.762502909 | HQ10: 0.9730084538 | HR10: -0.9730084538 | HS10: 1.663827538
